Workbook

Sheet Instructions
A1: CES Dynamic Charts
A3: Tool Instructions: | C3: Do not save under another name - the tool will break.
A5: Dashboard worksheet: allows you to navigate to other worksheets in the tool by choosing one of the 5 options (SA Charts, NSA Charts, etc.). Use green arrows to return to dashboard portal.
A7: SA and NSA Charts worksheets: Use the drop down menus to choose different sectors. The statistics in the table below it will automatically update.
A8: For the number of months, the limit is 100.
A18: Enter a month and year to see the level and percentage changes since that date.
A28: Enter a start and finish date to see level and percentage changes between those dates.
A38: Historical worksheet: Travel through the years by using the right arrow key on your keyboard, and watch the economic changes develop. Begin your journey at the far left of the spreadsheet in January 2005.
A39: Refer to the color key at the top of the page. Each cell is color coded to represent how well the sector performed during that time frame.
A40: Essentially, red colors show the lowest performance for that sector while blue colors show the best performance for that sector. The darker color red represents
A41: the lowest 15% of each sector's performance compared to its own historical performance, while the darkest blue color represents the top 15% of its performance.

Sheet Dashboard

Sheet SA Charts
B2: Series 1 | C2: Total Private | M2: Compare arbitrary dates:
B3: Series 2 | C3: Goods Producing | J3: Comparison to current month: | N3: Mo | O3: Yr
B4: Months | C4: 48 | J4: Month | K4: Yr | M4: Start | N4: 12 | O4: 2002
J5: 12 | K5: 2010 | M5: Finish | N5: 12 | O5: 2010
C6: Current | F6: OTM | H6: OTY | J6: Count | K6: Change | M6: Counts | O6: Change
C7: Count | D7: % of TNF | E7: % of other | F7: Level | G7: % | H7: Level | I7: % | J7: =IF(K5>2000,DATE(K5,J5,1),DATE(2000+K5,J5,1)) -> 2010-12-01 | K7: Level | L7: % | M7: =IF(O4>1999,DATE(O4,N4,1),DATE(1999+O4,N4,1)) -> 2002-12-01 | N7: =IF(O5>1999,DATE(O5,N5,1),DATE(1999+O5,N5,1)) -> 2010-12-01 | O7: Level | P7: %
B8: =C2 -> Total Private | C8: =OFFSET(SA!A1,MATCH(C2,SA!D2:D35,0),COUNTA(SA!1:1)-1,1,1) -> 2587100 | D8: =OFFSET(SA!A1,MATCH(C2,SA!D2:D35,0),COUNTA(SA!1:1)-1,1,1)/OFFSET(SA!A1,1,COUNTA(SA!1:1)-1,1,1) -> 0.8648169814 | E8: =D8/D9 -> 4.269141914 | F8: =OFFSET(SA!A1,MATCH(C2,SA!D2:D35,0),COUNTA(SA!1:1)-1,1,1)-OFFSET(SA!A1,MATCH(C2,SA!D2:D35,0),COUNTA(SA!1:1)-2,1,1) -> 9000 | G8: =F8/OFFSET(SA!A1,MATCH(C2,SA!D2:D35,0),COUNTA(SA!1:1)-2,1,1) -> 0.003490942942 | H8: =OFFSET(SA!A1,MATCH(C2,SA!D2:D35,0),COUNTA(SA!1:1)-1,1,1)-OFFSET(SA!A1,MATCH(C2,SA!D2:D35,0),COUNTA(SA!1:1)-13,1,1) -> -4800 | I8: =H8/OFFSET(SA!A1,MATCH(C2,SA!D2:D35,0),COUNTA(SA!1:1)-13,1,1) -> -0.0018519233 | J8: =OFFSET(SA!A1,MATCH(C2,SA!D2:D35,0),MATCH(J7,SA!1:1,0)-1,1,1) -> 2321700 | K8: =C8-J8 -> 265400 | L8: =K8/OFFSET(SA!A1,MATCH(C2,SA!D2:D35,0),MATCH(J7,SA!1:1,0)-1,1,1) -> 0.114312788 | M8: =OFFSET(SA!A1,MATCH(C2,SA!D2:D35,0),MATCH(M7,SA!1:1,0)-1,1,1) -> 2363400 | N8: =OFFSET(SA!A1,MATCH(C2,SA!D2:D35,0),MATCH(N7,SA!1:1,0)-1,1,1) -> 2321700 | O8: =N8-M8 -> -41700 | P8: =O8/M8 -> -0.0176440721
B9: =C3 -> Goods Producing | C9: =OFFSET(SA!A1,MATCH(C3,SA!D2:D46,0),COUNTA(SA!1:1)-1,1,1) -> 606000 | D9: =OFFSET(SA!A1,MATCH(C3,SA!D2:D46,0),COUNTA(SA!1:1)-1,1,1)/OFFSET(SA!A1,1,COUNTA(SA!1:1)-1,1,1) -> 0.2025739596 | E9: =D9/D8 -> 0.2342391094 | F9: =OFFSET(SA!A1,MATCH(C3,SA!D2:D46,0),COUNTA(SA!1:1)-1,1,1)-OFFSET(SA!A1,MATCH(C3,SA!D2:D46,0),COUNTA(SA!1:1)-2,1,1) -> 2900 | G9: =F9/OFFSET(SA!A1,MATCH(C3,SA!D2:D46,0),COUNTA(SA!1:1)-2,1,1) -> 0.004808489471 | H9: =OFFSET(SA!A1,MATCH(C3,SA!D2:D46,0),COUNTA(SA!1:1)-1,1,1)-OFFSET(SA!A1,MATCH(C3,SA!D2:D46,0),COUNTA(SA!1:1)-13,1,1) -> -14800 | I9: =H9/OFFSET(SA!A1,MATCH(C3,SA!D2:D46,0),COUNTA(SA!1:1)-13,1,1) -> -0.02384020619 | J9: =OFFSET(SA!A1,MATCH(C3,SA!D2:D46,0),MATCH(J7,SA!1:1,0)-1,1,1) -> 532200 | K9: =C9-J9 -> 73800 | L9: =K9/OFFSET(SA!A1,MATCH(C3,SA!D2:D46,0),MATCH(J7,SA!1:1,0)-1,1,1) -> 0.1386696731 | M9: =OFFSET(SA!A1,MATCH(C3,SA!D2:D35,0),MATCH(M7,SA!1:1,0)-1,1,1) -> 648900 | N9: =OFFSET(SA!A1,MATCH(C3,SA!D2:D35,0),MATCH(N7,SA!1:1,0)-1,1,1) -> 532200 | O9: =N9-M9 -> -116700 | P9: =O9/M9 -> -0.1798428109
B39: =CONCATENATE("SA ",TRIM(B42)," / ",TRIM(B43)) -> SA Total Private / Goods Producing
B41: Month | C41: =OFFSET(SA!A1,0,COUNTA(SA!1:1)-'SA Charts'!C4,1,'SA Charts'!C4) -> 2016-01-01 | D41: 2016-02-01 | E41: 2016-03-01 | F41: 2016-04-01 | G41: 2016-05-01 | H41: 2016-06-01 | I41: 2016-07-01 | J41: 2016-08-01 | K41: 2016-09-01 | L41: 2016-10-01 | M41: 2016-11-01 | N41: 2016-12-01 | O41: 2017-01-01 | P41: 2017-02-01 | Q41: 2017-03-01 | R41: 2017-04-01 | S41: 2017-05-01 | T41: 2017-06-01 | U41: 2017-07-01 | V41: 2017-08-01 | W41: 2017-09-01 | X41: 2017-10-01 | Y41: 2017-11-01 | Z41: 2017-12-01 | AA41: 2018-01-01 | AB41: 2018-02-01 | AC41: 2018-03-01 | AD41: 2018-04-01 | AE41: 2018-05-01 | AF41: 2018-06-01 | AG41: 2018-07-01 | AH41: 2018-08-01 | AI41: 2018-09-01 | AJ41: 2018-10-01 | AK41: 2018-11-01 | AL41: 2018-12-01 | AM41: 2019-01-01 | AN41: 2019-02-01 | AO41: 2019-03-01 | AP41: 2019-04-01 | AQ41: 2019-05-01 | AR41: 2019-06-01 | AS41: 2019-07-01 | AT41: 2019-08-01 | AU41: 2019-09-01 | AV41: 2019-10-01 | AW41: 2019-11-01 | AX41: 2019-12-01
B42: =C2 -> Total Private | C42: =OFFSET(SA!A1,MATCH(C2,SA!D2:D35,0),COUNTA(SA!1:1)-'SA Charts'!C4,1,'SA Charts'!C4) -> 2507400 | D42: 2510600 | E42: 2510600 | F42: 2515000 | G42: 2512300 | H42: 2508600 | I42: 2516600 | J42: 2517700 | K42: 2519700 | L42: 2520300 | M42: 2521800 | N42: 2521900 | O42: 2531700 | P42: 2535200 | Q42: 2538900 | R42: 2536800 | S42: 2533500 | T42: 2539200 | U42: 2536900 | V42: 2537100 | W42: 2535000 | X42: 2538600 | Y42: 2541400 | Z42: 2547000 | AA42: 2554100 | AB42: 2557800 | AC42: 2566000 | AD42: 2560400 | AE42: 2559600 | AF42: 2566300 | AG42: 2573500 | AH42: 2571800 | AI42: 2572200 | AJ42: 2572000 | AK42: 2582800 | AL42: 2591900 | AM42: 2584600 | AN42: 2583200 | AO42: 2576800 | AP42: 2576500 | AQ42: 2577700 | AR42: 2577200 | AS42: 2574000 | AT42: 2573900 | AU42: 2575100 | AV42: 2577000 | AW42: 2578100 | AX42: 2587100
B43: =C3 -> Goods Producing | C43: =OFFSET(SA!A1,MATCH(C3,SA!D2:D46,0),COUNTA(SA!1:1)-'SA Charts'!C4,1,'SA Charts'!C4) -> 581900 | D43: 581800 | E43: 582200 | F43: 581800 | G43: 580800 | H43: 579700 | I43: 579300 | J43: 579900 | K43: 579900 | L43: 581000 | M43: 582100 | N43: 583200 | O43: 584500 | P43: 586300 | Q43: 587300 | R43: 587900 | S43: 587900 | T43: 588600 | U43: 588700 | V43: 589100 | W43: 589100 | X43: 590700 | Y43: 592700 | Z43: 594400 | AA43: 598000 | AB43: 602400 | AC43: 606100 | AD43: 605400 | AE43: 608200 | AF43: 613400 | AG43: 615700 | AH43: 617800 | AI43: 619400 | AJ43: 620000 | AK43: 620200 | AL43: 620800 | AM43: 608100 | AN43: 606800 | AO43: 605400 | AP43: 602700 | AQ43: 605000 | AR43: 605700 | AS43: 602600 | AT43: 603600 | AU43: 602300 | AV43: 601800 | AW43: 603100 | AX43: 606000
B44: OTM 1 | D44: =D42-C42 -> 3200 | E44: =E42-D42 -> 0 | F44: 4400 | G44: -2700 | H44: -3700 | I44: 8000 | J44: =J42-I42 -> 1100 | K44: 2000 | L44: 600 | M44: 1500 | N44: 100 | O44: 9800 | P44: 3500 | Q44: 3700 | R44: -2100 | S44: -3300 | T44: 5700 | U44: -2300 | V44: 200 | W44: -2100 | X44: 3600 | Y44: 2800 | Z44: 5600 | AA44: 7100 | AB44: 3700 | AC44: 8200 | AD44: -5600 | AE44: -800 | AF44: 6700 | AG44: 7200 | AH44: -1700 | AI44: 400 | AJ44: -200 | AK44: 10800 | AL44: 9100 | AM44: -7300 | AN44: -1400 | AO44: -6400 | AP44: -300 | AQ44: 1200 | AR44: -500 | AS44: -3200 | AT44: -100 | AU44: 1200 | AV44: 1900 | AW44: 1100 | AX44: 9000 | BV44: =BV42-BU42 -> 
B45: OTM 2 | D45: -100 | E45: 400 | F45: -400 | G45: -1000 | H45: -1100 | I45: -400 | J45: =J43-I43 -> 600 | K45: 0 | L45: 1100 | M45: 1100 | N45: 1100 | O45: 1300 | P45: 1800 | Q45: 1000 | R45: 600 | S45: 0 | T45: 700 | U45: 100 | V45: 400 | W45: 0 | X45: 1600 | Y45: 2000 | Z45: 1700 | AA45: 3600 | AB45: 4400 | AC45: 3700 | AD45: -700 | AE45: 2800 | AF45: 5200 | AG45: 2300 | AH45: 2100 | AI45: 1600 | AJ45: 600 | AK45: 200 | AL45: 600 | AM45: -12700 | AN45: -1300 | AO45: -1400 | AP45: -2700 | AQ45: 2300 | AR45: 700 | AS45: -3100 | AT45: 1000 | AU45: -1300 | AV45: -500 | AW45: 1300 | AX45: 2900 | BV45: =BV43-BU43 -> 
B46: %OTM 1 | D46: =D44/C42*100 -> 0.1276222382 | E46: 0 | F46: 0.1752569107 | G46: -0.1073558648 | H46: -0.147275405 | I46: 0.3189029738 | J46: =J44/I42*100 -> 0.04370976715 | K46: 0.07943758192 | L46: 0.02381235861 | M46: 0.0595167242 | N46: 0.003965421524 | O46: 0.3885958999 | P46: 0.1382470277 | Q46: 0.1459450931 | R46: -0.08271298594 | S46: -0.1300851466 | T46: 0.2249851983 | U46: -0.09057971014 | V46: 0.00788363751 | W46: -0.08277166844 | X46: 0.1420118343 | Y46: 0.1102970141 | Z46: 0.2203509876 | AA46: 0.2787593247 | AB46: 0.1448651188 | AC46: 0.3205880053 | AD46: -0.2182385035 | AE46: -0.03124511795 | AF46: 0.2617596499 | AG46: 0.2805595605 | AH46: -0.0660578978 | AI46: 0.01555330897 | AJ46: -0.007775445144 | AK46: 0.4199066874 | AL46: 0.3523308038 | AM46: -0.2816466685 | AN46: -0.05416698909 | AO46: -0.2477547228 | AP46: -0.0116423471 | AQ46: 0.04657481079 | AR46: -0.01939713698 | AS46: -0.1241657613 | AT46: -0.003885003885 | AU46: 0.04662185788 | AV46: 0.07378354239 | AW46: 0.04268529298 | AX46: 0.3490942942 | BV46: =BV44/BU42*100 -> 
B47: %OTM 2 | D47: -0.01718508335 | E47: 0.0687521485 | F47: -0.0687049124 | G47: -0.1718803713 | H47: -0.1893939394 | I47: -0.06900120752 | J47: =J45/I43*100 -> 0.1035732781 | K47: 0 | L47: 0.1896878772 | M47: 0.1893287435 | N47: 0.1889709672 | O47: 0.2229080933 | P47: 0.3079555175 | Q47: 0.1705611462 | R47: 0.1021624383 | S47: 0 | T47: 0.1190678687 | U47: 0.01698946653 | V47: 0.06794632241 | W47: 0 | X47: 0.2716007469 | Y47: 0.3385813442 | Z47: 0.2868230133 | AA47: 0.6056527591 | AB47: 0.7357859532 | AC47: 0.6142098274 | AD47: -0.115492493 | AE47: 0.4625041295 | AF47: 0.8549819138 | AG47: 0.3749592436 | AH47: 0.341075199 | AI47: 0.2589834898 | AJ47: 0.09686793671 | AK47: 0.03225806452 | AL47: 0.09674298613 | AM47: -2.045747423 | AN47: -0.2137806282 | AO47: -0.2307185234 | AP47: -0.4459861249 | AQ47: 0.3816160611 | AR47: 0.1157024793 | AS47: -0.5118045237 | AT47: 0.1659475606 | AU47: -0.2153744201 | AV47: -0.08301510875 | AW47: 0.2160186108 | AX47: 0.4808489471 | BV47: =BV45/BU43*100 -> 
C48: Used for pop-up menus. --> | D48: None | BJ48: =(BJ42-BI42)/(BB42-BI42) -> 
C49: May need to change if | D49: =SA!D2 -> Total Nonfarm | BJ49: =(BJ43-BI43)/(BB43-BI43) ->  | DD49: `
C50: SA sector names change. | D50: =SA!D3 -> Total Private
D51: =SA!D4 -> Goods Producing
D52: =SA!D5 -> Service-Providing | M52: <-- Button no longer needed; relevant code called directly when parameter cells change.
D53: =SA!D6 -> Private Service Providing
D54: =SA!D7 -> Mining and Logging | K54: Axis range calculations (referenced in axis-manipulation code)
D55: =SA!D9 -> Construction | K55: Ave | L55: SD | M55: Min | N55: Max | O55: SDMin | P55: SDMax | Q55: AxisSDMin | R55: AxisSDMax | S55: AxisMin | T55: AxisMax
D56: =SA!D10 -> Manufacturing | K56: =AVERAGE(OFFSET($C42,0,0,1,$C$4)) -> 2550070.833 | L56: =STDEV(OFFSET($C42,0,0,1,$C$4)) -> 26245.27482 | M56: =MIN(OFFSET($C42,0,0,1,$C$4)) -> 2507400 | N56: =MAX(OFFSET($C42,0,0,1,$C$4)) -> 2591900 | O56: =(M56-$K56)/$L56 -> -1.625848219 | P56: =(N56-$K56)/$L56 -> 1.593778955 | Q56: =IF(ISNA(O57),FLOOR(O56,0.25),FLOOR(MIN($O$56:$O$57),0.25)) -> -1.75 | R56: =IF(ISNA(P57),CEILING(P56,0.25),CEILING(MAX($P$56:$P$57),0.25)) -> 2 | S56: =Q56*$L56+$K56 -> 2504141.602 | T56: =R56*$L56+$K56 -> 2602561.383
D57: =SA!D11 -> Durable Goods | K57: =AVERAGE(OFFSET($C43,0,0,1,$C$4)) -> 596693.75 | L57: =STDEV(OFFSET($C43,0,0,1,$C$4)) -> 13123.41429 | M57: =MIN(OFFSET($C43,0,0,1,$C$4)) -> 579300 | N57: =MAX(OFFSET($C43,0,0,1,$C$4)) -> 620800 | O57: =(M57-$K57)/$L57 -> -1.325398224 | P57: =(N57-$K57)/$L57 -> 1.836888592 | Q57: =IF(ISNA(O56),FLOOR(O57,0.25),FLOOR(MIN($O$56:$O$57),0.25)) -> -1.75 | R57: =IF(ISNA(P56),CEILING(P57,0.25),CEILING(MAX($P$56:$P$57),0.25)) -> 2 | S57: =Q57*$L57+$K57 -> 573727.775 | T57: =R57*$L57+$K57 -> 622940.5786
D58: =SA!D12 -> Non-Durable Goods
D59: =SA!D13 -> Trade, Transportation, and Utilities
D60: =SA!D14 -> Wholesale Trade
D61: =SA!D15 -> Retail Trade
D62: =SA!D16 -> Transportation, Warehousing, and Utilities
D63: =SA!D17 -> Information
D64: =SA!D18 -> Financial Activities
D65: =SA!D20 -> Real Estate and Rental and Leasing
D66: =SA!D21 -> Professional and Business Services
D67: =SA!D22 -> Professional, Scientific, and Technical Services
D68: =SA!D24 -> Administrative and Support and Waste Management and Remediation Services
D69: =SA!D25 -> Education and Health Services
D70: =SA!D26 -> Educational Services
D71: =SA!D27 -> Health Care and Social Assistance
D72: =SA!D28 -> Leisure and Hospitality
D73: =SA!D29 -> Arts, Entertainment, and Recreation
D74: =SA!D30 -> Accommodation and Food Services
D75: =SA!D31 -> Other Services
D76: =SA!D32 -> Government
D77: =SA!D33 -> Federal Government
D78: =SA!D34 -> State Government
D79: =SA!D35 -> Local Government

Sheet NSA Charts
B2: Series 1 | C2: Total Private | F2: Series 3 | G2: Manufacturing | K2: Comparison to current month: | N2: Compare arbitrary dates:
B3: Series 2 | C3: Total Private | F3: Series 4 | G3: Retail Trade | O3: Mo | P3: Yr
B4: Months | C4: 48 | K4: Month | L4: Yr | N4: Start | O4: 12 | P4: 2002
K5: 12 | L5: 2010 | N5: Finish | O5: 12 | P5: 2010
C7: Current | F7: OTM | H7: OTY | J7: =B7 -> 0 | K7: Count | L7: Change | N7: Counts | P7: Change
C8: Count | D8: % of TNF | E8: % of SS | F8: Level | G8: % | H8: Level | I8: % | J8: 0 | K8: =IF(L5>2000,DATE(L5,K5,1),DATE(2000+L5,K5,1)) -> 2010-12-01 | L8: Level | M8: % | N8: =IF(P4>2000,DATE(P4,O4,1),DATE(2000+P4,O4,1)) -> 2002-12-01 | O8: =IF(P5>2000,DATE(P5,O5,1),DATE(2000+P5,O5,1)) -> 2010-12-01 | P8: Level | Q8: %
B9: =C2 -> Total Private | C9: =OFFSET(NSA!A1,MATCH(C2,NSA!D2:D89,0),COUNTA(NSA!1:1)+1,1,1) -> 2583000 | D9: =OFFSET(NSA!A1,MATCH(C2,NSA!D2:D89,0),COUNTA(NSA!1:1),1,1)/OFFSET(NSA!A1,1,COUNTA(NSA!1:1),1,1) -> 0.8606715426 | E9: SS | F9: =OFFSET(NSA!A1,MATCH(C2,NSA!D2:D89,0),COUNTA(NSA!1:1)+1,1,1)-OFFSET(NSA!A1,MATCH(C2,NSA!D2:D89,0),COUNTA(NSA!1:1),1,1) -> -5900 | G9: =F9/OFFSET(NSA!C1,MATCH(C2,NSA!D2:D89,0),COUNTA(NSA!1:1)-2,1,1) -> -0.002278960176 | H9: =OFFSET(NSA!A1,MATCH(C2,NSA!D2:D89,0),COUNTA(NSA!1:1)+1,1,1)-OFFSET(NSA!A1,MATCH(C2,NSA!D2:D89,0),COUNTA(NSA!1:1)-11,1,1) -> -3300 | I9: =H9/OFFSET(NSA!C1,MATCH(C2,NSA!D2:D89,0),COUNTA(NSA!1:1)-13,1,1) -> -0.001275954066 | J9: Total Private | K9: =OFFSET(NSA!A1,MATCH(C2,NSA!D2:D89,0),MATCH(K8,NSA!1:1,0)-1,1,1) -> 2326800 | L9: =C9-K9 -> 256200 | M9: =L9/OFFSET(NSA!A1,MATCH(C2,NSA!D2:D89,0),MATCH(K8,NSA!1:1,0),1,1) -> 0.1131425543 | N9: =OFFSET(NSA!C1,MATCH(C2,NSA!D2:D89,0),MATCH(N8,NSA!1:1,0)-3,1,1) -> 2372900 | O9: =OFFSET(NSA!C1,MATCH(C2,NSA!D2:D89,0),MATCH(O8,NSA!1:1,0)-3,1,1) -> 2326800 | P9: =O9-N9 -> -46100 | Q9: =P9/N9 -> -0.0194277045
B10: =C3 -> Total Private | C10: =OFFSET(NSA!A1,MATCH(C3,NSA!D2:D89,0),COUNTA(NSA!1:1)+1,1,1) -> 2583000 | D10: =OFFSET(NSA!A1,MATCH(C3,NSA!D2:D89,0),COUNTA(NSA!1:1),1,1)/OFFSET(NSA!A1,1,COUNTA(NSA!1:1),1,1) -> 0.8606715426 | E10: =C10/C9 -> 1 | F10: =OFFSET(NSA!A1,MATCH(C3,NSA!D2:D89,0),COUNTA(NSA!1:1)+1,1,1)-OFFSET(NSA!A1,MATCH(C3,NSA!D2:D89,0),COUNTA(NSA!1:1),1,1) -> -5900 | G10: =F10/OFFSET(NSA!C1,MATCH(C3,NSA!D2:D89,0),COUNTA(NSA!1:1)-2,1,1) -> -0.002278960176 | H10: =OFFSET(NSA!A1,MATCH(C3,NSA!D2:D89,0),COUNTA(NSA!1:1)+1,1,1)-OFFSET(NSA!A1,MATCH(C3,NSA!D2:D89,0),COUNTA(NSA!1:1)-11,1,1) -> -3300 | I10: =H10/OFFSET(NSA!C1,MATCH(C3,NSA!D2:D89,0),COUNTA(NSA!1:1)-13,1,1) -> -0.001275954066 | J10: Total Private | K10: =OFFSET(NSA!A1,MATCH(C3,NSA!D2:D89,0),MATCH(K8,NSA!1:1,0)-1,1,1) -> 2326800 | L10: =C10-K10 -> 256200 | M10: =L10/OFFSET(NSA!A1,MATCH(C3,NSA!D2:D89,0),MATCH(K8,NSA!1:1,0),1,1) -> 0.1131425543 | N10: =OFFSET(NSA!C1,MATCH(C3,NSA!D2:D89,0),MATCH(N8,NSA!1:1,0)-3,1,1) -> 2372900 | O10: =OFFSET(NSA!C1,MATCH(C3,NSA!D2:D89,0),MATCH(O8,NSA!1:1,0)-3,1,1) -> 2326800 | P10: =O10-N10 -> -46100 | Q10: =P10/N10 -> -0.0194277045
B11: =G2 -> Manufacturing | C11: =OFFSET(NSA!A1,MATCH(G2,NSA!D2:D89,0),COUNTA(NSA!1:1)+1,1,1) -> 472100 | D11: =OFFSET(NSA!A1,MATCH(G2,NSA!D2:D89,0),COUNTA(NSA!1:1),1,1)/OFFSET(NSA!A1,1,COUNTA(NSA!1:1),1,1) -> 0.1565492021 | E11: =C11/C9 -> 0.1827719706 | F11: =OFFSET(NSA!A1,MATCH(G2,NSA!D2:D89,0),COUNTA(NSA!1:1)+1,1,1)-OFFSET(NSA!A1,MATCH(G2,NSA!D2:D89,0),COUNTA(NSA!1:1),1,1) -> 1200 | G11: =F11/OFFSET(NSA!C1,MATCH(G2,NSA!D2:D89,0),COUNTA(NSA!1:1)-2,1,1) -> 0.002548311743 | H11: =OFFSET(NSA!A1,MATCH(G2,NSA!D2:D89,0),COUNTA(NSA!1:1)+1,1,1)-OFFSET(NSA!A1,MATCH(G2,NSA!D2:D89,0),COUNTA(NSA!1:1)-11,1,1) -> -17200 | I11: =H11/OFFSET(NSA!C1,MATCH(G2,NSA!D2:D89,0),COUNTA(NSA!1:1)-13,1,1) -> -0.03515225833 | J11: Manufacturing | K11: =OFFSET(NSA!A1,MATCH(G2,NSA!D2:D89,0),MATCH(K8,NSA!1:1,0)-1,1,1) -> 435100 | L11: 37000 | M11: =L11/OFFSET(NSA!A1,MATCH(G2,NSA!D2:D89,0),MATCH(K8,NSA!1:1,0),1,1) -> 0.08539118394 | N11: =OFFSET(NSA!C1,MATCH(G2,NSA!D2:D89,0),MATCH(N8,NSA!1:1,0)-3,1,1) -> 521200 | O11: =OFFSET(NSA!C1,MATCH(G2,NSA!D2:D89,0),MATCH(O8,NSA!1:1,0)-3,1,1) -> 435100 | P11: =O11-N11 -> -86100 | Q11: =P11/N11 -> -0.1651957022
B12: =G3 -> Retail Trade | C12: =OFFSET(NSA!A1,MATCH(G3,NSA!D2:D89,0),COUNTA(NSA!1:1)+1,1,1) -> 320700 | D12: =OFFSET(NSA!A1,MATCH(G3,NSA!D2:D89,0),COUNTA(NSA!1:1),1,1)/OFFSET(NSA!A1,1,COUNTA(NSA!1:1),1,1) -> 0.1062167553 | E12: =C12/C9 -> 0.1241579559 | F12: =OFFSET(NSA!A1,MATCH(G3,NSA!D2:D89,0),COUNTA(NSA!1:1)+1,1,1)-OFFSET(NSA!A1,MATCH(G3,NSA!D2:D89,0),COUNTA(NSA!1:1),1,1) -> 1200 | G12: =F12/OFFSET(NSA!C1,MATCH(G3,NSA!D2:D89,0),COUNTA(NSA!1:1)-2,1,1) -> 0.003755868545 | H12: =OFFSET(NSA!A1,MATCH(G3,NSA!D2:D89,0),COUNTA(NSA!1:1)+1,1,1)-OFFSET(NSA!A1,MATCH(G3,NSA!D2:D89,0),COUNTA(NSA!1:1)-11,1,1) -> 7100 | I12: =H12/OFFSET(NSA!C1,MATCH(G3,NSA!D2:D89,0),COUNTA(NSA!1:1)-13,1,1) -> 0.02264030612 | J12: Retail Trade | K12: =OFFSET(NSA!A1,MATCH(G3,NSA!D2:D89,0),MATCH(K8,NSA!1:1,0)-1,1,1) -> 306200 | L12: 14500 | M12: =L12/OFFSET(NSA!A1,MATCH(G3,NSA!D2:D89,0),MATCH(K8,NSA!1:1,0),1,1) -> 0.0500517777 | N12: =OFFSET(NSA!C1,MATCH(G3,NSA!D2:D89,0),MATCH(N8,NSA!1:1,0)-3,1,1) -> 335700 | O12: =OFFSET(NSA!C1,MATCH(G3,NSA!D2:D89,0),MATCH(O8,NSA!1:1,0)-3,1,1) -> 306200 | P12: =O12-N12 -> -29500 | Q12: =P12/N12 -> -0.08787607983
B55: =CONCATENATE("NSA ",TRIM(B57)," / ",TRIM(B58)) -> NSA Total Private / Total Private | C55: 0 | D55: =C55+1 -> 1 | E55: =D55+1 -> 2 | F55: =E55+1 -> 3 | G55: 4 | H55: 5 | I55: 6 | J55: 7 | K55: 8 | L55: 9 | M55: 10 | N55: 11 | O55: 12 | P55: 13 | Q55: 14 | R55: 15 | S55: 16 | T55: 17 | U55: 18 | V55: 19 | W55: 20 | X55: 21 | Y55: 22 | Z55: 23 | AA55: 24 | AB55: 25 | AC55: 26 | AD55: 27 | AE55: 28 | AF55: 29 | AG55: 30 | AH55: 31 | AI55: 32 | AJ55: 33 | AK55: 34 | AL55: 35 | AM55: 36 | AN55: 37 | AO55: 38 | AP55: 39 | AQ55: 40 | AR55: 41 | AS55: 42 | AT55: 43 | AU55: 44 | AV55: 45 | AW55: 46 | AX55: 47 | AY55: 48 | AZ55: 49 | BA55: 50 | BB55: 51 | BC55: 52 | BD55: 53 | BE55: 54 | BF55: 55 | BG55: 56 | BH55: 57 | BI55: 58 | BJ55: 59 | BK55: 60 | BL55: 61 | BM55: 62 | BN55: 63 | BO55: 64 | BP55: 65 | BQ55: 66 | BR55: =BQ55+1 -> 67 | BS55: 68 | BT55: 69 | BU55: 70 | BV55: 71 | BW55: 72 | BX55: 73 | BY55: 74 | BZ55: 75 | CA55: 76 | CB55: 77 | CC55: 78 | CD55: 79 | CE55: 80 | CF55: 81 | CG55: 82 | CH55: 83 | CI55: 84 | CJ55: 85 | CK55: 86 | CL55: 87 | CM55: 88 | CN55: 89 | CO55: 90 | CP55: 91 | CQ55: 92 | CR55: 93 | CS55: 94 | CT55: 95 | CU55: 96 | CV55: 97 | CW55: 98 | CX55: 99 | CY55: 100 | CZ55: 101
B56: Month | C56: =OFFSET(SA!A1,0,COUNTA(SA!1:1)-'NSA Charts'!C4,1,'NSA Charts'!C4) -> 2016-01-01 | D56: 2016-02-01 | E56: 2016-03-01 | F56: 2016-04-01 | G56: 2016-05-01 | H56: 2016-06-01 | I56: 2016-07-01 | J56: 2016-08-01 | K56: 2016-09-01 | L56: 2016-10-01 | M56: 2016-11-01 | N56: 2016-12-01 | O56: 2017-01-01 | P56: 2017-02-01 | Q56: 2017-03-01 | R56: 2017-04-01 | S56: 2017-05-01 | T56: 2017-06-01 | U56: 2017-07-01 | V56: 2017-08-01 | W56: 2017-09-01 | X56: 2017-10-01 | Y56: 2017-11-01 | Z56: 2017-12-01 | AA56: 2018-01-01 | AB56: 2018-02-01 | AC56: 2018-03-01 | AD56: 2018-04-01 | AE56: 2018-05-01 | AF56: 2018-06-01 | AG56: 2018-07-01 | AH56: 2018-08-01 | AI56: 2018-09-01 | AJ56: 2018-10-01 | AK56: 2018-11-01 | AL56: 2018-12-01 | AM56: 2019-01-01 | AN56: 2019-02-01 | AO56: 2019-03-01 | AP56: 2019-04-01 | AQ56: 2019-05-01 | AR56: 2019-06-01 | AS56: 2019-07-01 | AT56: 2019-08-01 | AU56: 2019-09-01 | AV56: 2019-10-01 | AW56: 2019-11-01 | AX56: 2019-12-01
B57: =C2 -> Total Private | C57: =OFFSET(NSA!$C$1,MATCH($C$2,NSA!$D$2:$D$89,0),COUNTA(NSA!1:1)-($C$4-C$55)) -> 2444800 | D57: =OFFSET(NSA!$C$1,MATCH($C$2,NSA!$D$2:$D$89,0),COUNTA(NSA!1:1)-($C$4-D$55)) -> 2449700 | E57: =OFFSET(NSA!$C$1,MATCH($C$2,NSA!$D$2:$D$88,0),COUNTA(NSA!1:1)-($C$4-E55)) -> 2460300 | F57: =OFFSET(NSA!$C$1,MATCH($C$2,NSA!$D$2:$D$88,0),COUNTA(NSA!1:1)-($C$4-F55)) -> 2494900 | G57: =OFFSET(NSA!$C$1,MATCH($C$2,NSA!$D$2:$D$88,0),COUNTA(NSA!1:1)-($C$4-G55)) -> 2521800 | H57: =OFFSET(NSA!$C$1,MATCH($C$2,NSA!$D$2:$D$88,0),COUNTA(NSA!1:1)-($C$4-H55)) -> 2552100 | I57: =OFFSET(NSA!$C$1,MATCH($C$2,NSA!$D$2:$D$88,0),COUNTA(NSA!1:1)-($C$4-I55)) -> 2563500 | J57: =OFFSET(NSA!$C$1,MATCH($C$2,NSA!$D$2:$D$88,0),COUNTA(NSA!1:1)-($C$4-J55)) -> 2565100 | K57: =OFFSET(NSA!$C$1,MATCH($C$2,NSA!$D$2:$D$88,0),COUNTA(NSA!1:1)-($C$4-K55)) -> 2537500 | L57: =OFFSET(NSA!$C$1,MATCH($C$2,NSA!$D$2:$D$88,0),COUNTA(NSA!1:1)-($C$4-L55)) -> 2533300 | M57: =OFFSET(NSA!$C$1,MATCH($C$2,NSA!$D$2:$D$88,0),COUNTA(NSA!1:1)-($C$4-M55)) -> 2530700 | N57: =OFFSET(NSA!$C$1,MATCH($C$2,NSA!$D$2:$D$88,0),COUNTA(NSA!1:1)-($C$4-N55)) -> 2521900 | O57: =OFFSET(NSA!$C$1,MATCH($C$2,NSA!$D$2:$D$88,0),COUNTA(NSA!1:1)-($C$4-O55)) -> 2469500 | P57: =OFFSET(NSA!$C$1,MATCH($C$2,NSA!$D$2:$D$88,0),COUNTA(NSA!1:1)-($C$4-P55)) -> 2473500 | Q57: =OFFSET(NSA!$C$1,MATCH($C$2,NSA!$D$2:$D$88,0),COUNTA(NSA!1:1)-($C$4-Q55)) -> 2489400 | R57: =OFFSET(NSA!$C$1,MATCH($C$2,NSA!$D$2:$D$88,0),COUNTA(NSA!1:1)-($C$4-R55)) -> 2511500 | S57: =OFFSET(NSA!$C$1,MATCH($C$2,NSA!$D$2:$D$88,0),COUNTA(NSA!1:1)-($C$4-S55)) -> 2542800 | T57: =OFFSET(NSA!$C$1,MATCH($C$2,NSA!$D$2:$D$88,0),COUNTA(NSA!1:1)-($C$4-T55)) -> 2583600 | U57: =OFFSET(NSA!$C$1,MATCH($C$2,NSA!$D$2:$D$88,0),COUNTA(NSA!1:1)-($C$4-U55)) -> 2584300 | V57: =OFFSET(NSA!$C$1,MATCH($C$2,NSA!$D$2:$D$88,0),COUNTA(NSA!1:1)-($C$4-V55)) -> 2584800 | W57: =OFFSET(NSA!$C$1,MATCH($C$2,NSA!$D$2:$D$88,0),COUNTA(NSA!1:1)-($C$4-W55)) -> 2552200 | X57: =OFFSET(NSA!$C$1,MATCH($C$2,NSA!$D$2:$D$88,0),COUNTA(NSA!1:1)-($C$4-X55)) -> 2559600 | Y57: =OFFSET(NSA!$C$1,MATCH($C$2,NSA!$D$2:$D$88,0),COUNTA(NSA!1:1)-($C$4-Y55)) -> 2554200 | Z57: =OFFSET(NSA!$C$1,MATCH($C$2,NSA!$D$2:$D$88,0),COUNTA(NSA!1:1)-($C$4-Z55)) -> 2541400 | AA57: =OFFSET(NSA!$C$1,MATCH($C$2,NSA!$D$2:$D$88,0),COUNTA(NSA!1:1)-($C$4-AA55)) -> 2492100 | AB57: =OFFSET(NSA!$C$1,MATCH($C$2,NSA!$D$2:$D$88,0),COUNTA(NSA!1:1)-($C$4-AB55)) -> 2494500 | AC57: =OFFSET(NSA!$C$1,MATCH($C$2,NSA!$D$2:$D$88,0),COUNTA(NSA!1:1)-($C$4-AC55)) -> 2513000 | AD57: =OFFSET(NSA!$C$1,MATCH($C$2,NSA!$D$2:$D$88,0),COUNTA(NSA!1:1)-($C$4-AD55)) -> 2531400 | AE57: =OFFSET(NSA!$C$1,MATCH($C$2,NSA!$D$2:$D$88,0),COUNTA(NSA!1:1)-($C$4-AE55)) -> 2562700 | AF57: =OFFSET(NSA!$C$1,MATCH($C$2,NSA!$D$2:$D$88,0),COUNTA(NSA!1:1)-($C$4-AF55)) -> 2614800 | AG57: =OFFSET(NSA!$C$1,MATCH($C$2,NSA!$D$2:$D$88,0),COUNTA(NSA!1:1)-($C$4-AG55)) -> 2628000 | AH57: =OFFSET(NSA!$C$1,MATCH($C$2,NSA!$D$2:$D$88,0),COUNTA(NSA!1:1)-($C$4-AH55)) -> 2624900 | AI57: =OFFSET(NSA!$C$1,MATCH($C$2,NSA!$D$2:$D$88,0),COUNTA(NSA!1:1)-($C$4-AI55)) -> 2590600 | AJ57: =OFFSET(NSA!$C$1,MATCH($C$2,NSA!$D$2:$D$88,0),COUNTA(NSA!1:1)-($C$4-AJ55)) -> 2591900 | AK57: =OFFSET(NSA!$C$1,MATCH($C$2,NSA!$D$2:$D$88,0),COUNTA(NSA!1:1)-($C$4-AK55)) -> 2593600 | AL57: =OFFSET(NSA!$C$1,MATCH($C$2,NSA!$D$2:$D$88,0),COUNTA(NSA!1:1)-($C$4-AL55)) -> 2586300 | AM57: =OFFSET(NSA!$C$1,MATCH($C$2,NSA!$D$2:$D$88,0),COUNTA(NSA!1:1)-($C$4-AM55)) -> 2525600 | AN57: =OFFSET(NSA!$C$1,MATCH($C$2,NSA!$D$2:$D$88,0),COUNTA(NSA!1:1)-($C$4-AN55)) -> 2522000 | AO57: =OFFSET(NSA!$C$1,MATCH($C$2,NSA!$D$2:$D$88,0),COUNTA(NSA!1:1)-($C$4-AO55)) -> 2527400 | AP57: =OFFSET(NSA!$C$1,MATCH($C$2,NSA!$D$2:$D$88,0),COUNTA(NSA!1:1)-($C$4-AP55)) -> 2545600 | AQ57: =OFFSET(NSA!$C$1,MATCH($C$2,NSA!$D$2:$D$88,0),COUNTA(NSA!1:1)-($C$4-AQ55)) -> 2582000 | AR57: =OFFSET(NSA!$C$1,MATCH($C$2,NSA!$D$2:$D$88,0),COUNTA(NSA!1:1)-($C$4-AR55)) -> 2624900 | AS57: =OFFSET(NSA!$C$1,MATCH($C$2,NSA!$D$2:$D$88,0),COUNTA(NSA!1:1)-($C$4-AS55)) -> 2627400 | AT57: =OFFSET(NSA!$C$1,MATCH($C$2,NSA!$D$2:$D$88,0),COUNTA(NSA!1:1)-($C$4-AT55)) -> 2623300 | AU57: =OFFSET(NSA!$C$1,MATCH($C$2,NSA!$D$2:$D$88,0),COUNTA(NSA!1:1)-($C$4-AU55)) -> 2589100 | AV57: =OFFSET(NSA!$C$1,MATCH($C$2,NSA!$D$2:$D$88,0),COUNTA(NSA!1:1)-($C$4-AV55)) -> 2595500 | AW57: =OFFSET(NSA!$C$1,MATCH($C$2,NSA!$D$2:$D$88,0),COUNTA(NSA!1:1)-($C$4-AW55)) -> 2588900 | AX57: =OFFSET(NSA!$C$1,MATCH($C$2,NSA!$D$2:$D$89,0),COUNTA(NSA!1:1)-($C$4-AX55)) -> 2583000 | AY57: =OFFSET(NSA!$C$1,MATCH($C$2,NSA!$D$2:$D$88,0),COUNTA(NSA!1:1)-($C$4-AY55)) -> 0 | AZ57: =OFFSET(NSA!$C$1,MATCH($C$2,NSA!$D$2:$D$88,0),COUNTA(NSA!1:1)-($C$4-AZ55)) -> 0 | BA57: =OFFSET(NSA!$C$1,MATCH($C$2,NSA!$D$2:$D$88,0),COUNTA(NSA!1:1)-($C$4-BA55)) -> 0 | BB57: =OFFSET(NSA!$C$1,MATCH($C$2,NSA!$D$2:$D$88,0),COUNTA(NSA!1:1)-($C$4-BB55)) -> 0 | BC57: =OFFSET(NSA!$C$1,MATCH($C$2,NSA!$D$2:$D$88,0),COUNTA(NSA!1:1)-($C$4-BC55)) -> 0 | BD57: =OFFSET(NSA!$C$1,MATCH($C$2,NSA!$D$2:$D$88,0),COUNTA(NSA!1:1)-($C$4-BD55)) -> 0 | BE57: =OFFSET(NSA!$C$1,MATCH($C$2,NSA!$D$2:$D$88,0),COUNTA(NSA!1:1)-($C$4-BE55)) -> 0 | BF57: =OFFSET(NSA!$C$1,MATCH($C$2,NSA!$D$2:$D$88,0),COUNTA(NSA!1:1)-($C$4-BF55)) -> 0 | BG57: =OFFSET(NSA!$C$1,MATCH($C$2,NSA!$D$2:$D$88,0),COUNTA(NSA!1:1)-($C$4-BG55)) -> 0 | BH57: =OFFSET(NSA!$C$1,MATCH($C$2,NSA!$D$2:$D$88,0),COUNTA(NSA!1:1)-($C$4-BH55)) -> 0 | BI57: =OFFSET(NSA!$C$1,MATCH($C$2,NSA!$D$2:$D$88,0),COUNTA(NSA!1:1)-($C$4-BI55)) -> 0 | BJ57: =OFFSET(NSA!$C$1,MATCH($C$2,NSA!$D$2:$D$88,0),COUNTA(NSA!1:1)-($C$4-BJ55)) -> 0 | BK57: =OFFSET(NSA!$C$1,MATCH($C$2,NSA!$D$2:$D$88,0),COUNTA(NSA!1:1)-($C$4-BK55)) -> 0 | BL57: =OFFSET(NSA!$C$1,MATCH($C$2,NSA!$D$2:$D$88,0),COUNTA(NSA!1:1)-($C$4-BL55)) -> 0 | BM57: =OFFSET(NSA!$C$1,MATCH($C$2,NSA!$D$2:$D$88,0),COUNTA(NSA!1:1)-($C$4-BM55)) -> 0 | BN57: =OFFSET(NSA!$C$1,MATCH($C$2,NSA!$D$2:$D$88,0),COUNTA(NSA!1:1)-($C$4-BN55)) -> 0 | BO57: =OFFSET(NSA!$C$1,MATCH($C$2,NSA!$D$2:$D$88,0),COUNTA(NSA!1:1)-($C$4-BO55)) -> 0 | BP57: =OFFSET(NSA!$C$1,MATCH($C$2,NSA!$D$2:$D$88,0),COUNTA(NSA!1:1)-($C$4-BP55)) -> 0 | BQ57: =OFFSET(NSA!$C$1,MATCH($C$2,NSA!$D$2:$D$88,0),COUNTA(NSA!1:1)-($C$4-BQ55)) -> 0 | BR57: =OFFSET(NSA!$C$1,MATCH($C$2,NSA!$D$2:$D$88,0),COUNTA(NSA!1:1)-($C$4-BR55)) -> 0 | BS57: =OFFSET(NSA!$C$1,MATCH($C$2,NSA!$D$2:$D$88,0),COUNTA(NSA!1:1)-($C$4-BS55)) -> 0 | BT57: =OFFSET(NSA!$C$1,MATCH($C$2,NSA!$D$2:$D$88,0),COUNTA(NSA!1:1)-($C$4-BT55)) -> 0 | BU57: =OFFSET(NSA!$C$1,MATCH($C$2,NSA!$D$2:$D$88,0),COUNTA(NSA!1:1)-($C$4-BU55)) -> 0 | BV57: =OFFSET(NSA!$C$1,MATCH($C$2,NSA!$D$2:$D$88,0),COUNTA(NSA!1:1)-($C$4-BV55)) -> 0 | BW57: =OFFSET(NSA!$C$1,MATCH($C$2,NSA!$D$2:$D$88,0),COUNTA(NSA!1:1)-($C$4-BW55)) -> 0 | BX57: =OFFSET(NSA!$C$1,MATCH($C$2,NSA!$D$2:$D$88,0),COUNTA(NSA!1:1)-($C$4-BX55)) -> 0 | BY57: =OFFSET(NSA!$C$1,MATCH($C$2,NSA!$D$2:$D$88,0),COUNTA(NSA!1:1)-($C$4-BY55)) -> 0 | BZ57: =OFFSET(NSA!$C$1,MATCH($C$2,NSA!$D$2:$D$88,0),COUNTA(NSA!1:1)-($C$4-BZ55)) -> 0 | CA57: =OFFSET(NSA!$C$1,MATCH($C$2,NSA!$D$2:$D$88,0),COUNTA(NSA!1:1)-($C$4-CA55)) -> 0 | CB57: =OFFSET(NSA!$C$1,MATCH($C$2,NSA!$D$2:$D$88,0),COUNTA(NSA!1:1)-($C$4-CB55)) -> 0 | CC57: =OFFSET(NSA!$C$1,MATCH($C$2,NSA!$D$2:$D$88,0),COUNTA(NSA!1:1)-($C$4-CC55)) -> 0 | CD57: =OFFSET(NSA!$C$1,MATCH($C$2,NSA!$D$2:$D$88,0),COUNTA(NSA!1:1)-($C$4-CD55)) -> 0 | CE57: =OFFSET(NSA!$C$1,MATCH($C$2,NSA!$D$2:$D$88,0),COUNTA(NSA!1:1)-($C$4-CE55)) -> 0 | CF57: =OFFSET(NSA!$C$1,MATCH($C$2,NSA!$D$2:$D$88,0),COUNTA(NSA!1:1)-($C$4-CF55)) -> 0 | CG57: =OFFSET(NSA!$C$1,MATCH($C$2,NSA!$D$2:$D$88,0),COUNTA(NSA!1:1)-($C$4-CG55)) -> 0 | CH57: =OFFSET(NSA!$C$1,MATCH($C$2,NSA!$D$2:$D$88,0),COUNTA(NSA!1:1)-($C$4-CH55)) -> 0 | CI57: =OFFSET(NSA!$C$1,MATCH($C$2,NSA!$D$2:$D$88,0),COUNTA(NSA!1:1)-($C$4-CI55)) -> 0 | CJ57: =OFFSET(NSA!$C$1,MATCH($C$2,NSA!$D$2:$D$88,0),COUNTA(NSA!1:1)-($C$4-CJ55)) -> 0 | CK57: =OFFSET(NSA!$C$1,MATCH($C$2,NSA!$D$2:$D$88,0),COUNTA(NSA!1:1)-($C$4-CK55)) -> 0 | CL57: =OFFSET(NSA!$C$1,MATCH($C$2,NSA!$D$2:$D$88,0),COUNTA(NSA!1:1)-($C$4-CL55)) -> 0 | CM57: =OFFSET(NSA!$C$1,MATCH($C$2,NSA!$D$2:$D$88,0),COUNTA(NSA!1:1)-($C$4-CM55)) -> 0 | CN57: =OFFSET(NSA!$C$1,MATCH($C$2,NSA!$D$2:$D$88,0),COUNTA(NSA!1:1)-($C$4-CN55)) -> 0 | CO57: =OFFSET(NSA!$C$1,MATCH($C$2,NSA!$D$2:$D$88,0),COUNTA(NSA!1:1)-($C$4-CO55)) -> 0 | CP57: =OFFSET(NSA!$C$1,MATCH($C$2,NSA!$D$2:$D$88,0),COUNTA(NSA!1:1)-($C$4-CP55)) -> 0 | CQ57: =OFFSET(NSA!$C$1,MATCH($C$2,NSA!$D$2:$D$88,0),COUNTA(NSA!1:1)-($C$4-CQ55)) -> 0 | CR57: =OFFSET(NSA!$C$1,MATCH($C$2,NSA!$D$2:$D$88,0),COUNTA(NSA!1:1)-($C$4-CR55)) -> 0 | CS57: =OFFSET(NSA!$C$1,MATCH($C$2,NSA!$D$2:$D$88,0),COUNTA(NSA!1:1)-($C$4-CS55)) -> 0 | CT57: =OFFSET(NSA!$C$1,MATCH($C$2,NSA!$D$2:$D$88,0),COUNTA(NSA!1:1)-($C$4-CT55)) -> 0 | CU57: =OFFSET(NSA!$C$1,MATCH($C$2,NSA!$D$2:$D$88,0),COUNTA(NSA!1:1)-($C$4-CU55)) -> 0 | CV57: =OFFSET(NSA!$C$1,MATCH($C$2,NSA!$D$2:$D$88,0),COUNTA(NSA!1:1)-($C$4-CV55)) -> 0 | CW57: =OFFSET(NSA!$C$1,MATCH($C$2,NSA!$D$2:$D$88,0),COUNTA(NSA!1:1)-($C$4-CW55)) -> 0 | CX57: =OFFSET(NSA!$C$1,MATCH($C$2,NSA!$D$2:$D$88,0),COUNTA(NSA!1:1)-($C$4-CX55)) -> 0 | CY57: =OFFSET(NSA!$C$1,MATCH($C$2,NSA!$D$2:$D$88,0),COUNTA(NSA!1:1)-($C$4-CY55)) -> 0 | CZ57: =OFFSET(NSA!$C$1,MATCH($C$2,NSA!$D$2:$D$88,0),COUNTA(NSA!1:1)-($C$4-CZ55)) -> 0
B58: =C3 -> Total Private | C58: =OFFSET(NSA!$C$1,MATCH($C$3,NSA!$D$2:$D$89,0),COUNTA(NSA!1:1)-($C$4-C$55)) -> 2444800 | D58: =OFFSET(NSA!$C$1,MATCH($C$3,NSA!$D$2:$D$88,0),COUNTA(NSA!1:1)-($C$4-D$55)) -> 2449700 | E58: =OFFSET(NSA!$C$1,MATCH($C$3,NSA!$D$2:$D$88,0),COUNTA(NSA!1:1)-($C$4-E$55)) -> 2460300 | F58: =OFFSET(NSA!$C$1,MATCH($C$3,NSA!$D$2:$D$88,0),COUNTA(NSA!1:1)-($C$4-F$55)) -> 2494900 | G58: =OFFSET(NSA!$C$1,MATCH($C$3,NSA!$D$2:$D$88,0),COUNTA(NSA!1:1)-($C$4-G$55)) -> 2521800 | H58: =OFFSET(NSA!$C$1,MATCH($C$3,NSA!$D$2:$D$88,0),COUNTA(NSA!1:1)-($C$4-H$55)) -> 2552100 | I58: =OFFSET(NSA!$C$1,MATCH($C$3,NSA!$D$2:$D$88,0),COUNTA(NSA!1:1)-($C$4-I$55)) -> 2563500 | J58: =OFFSET(NSA!$C$1,MATCH($C$3,NSA!$D$2:$D$88,0),COUNTA(NSA!1:1)-($C$4-J$55)) -> 2565100 | K58: =OFFSET(NSA!$C$1,MATCH($C$3,NSA!$D$2:$D$88,0),COUNTA(NSA!1:1)-($C$4-K$55)) -> 2537500 | L58: =OFFSET(NSA!$C$1,MATCH($C$3,NSA!$D$2:$D$88,0),COUNTA(NSA!1:1)-($C$4-L$55)) -> 2533300 | M58: =OFFSET(NSA!$C$1,MATCH($C$3,NSA!$D$2:$D$88,0),COUNTA(NSA!1:1)-($C$4-M$55)) -> 2530700 | N58: =OFFSET(NSA!$C$1,MATCH($C$3,NSA!$D$2:$D$88,0),COUNTA(NSA!1:1)-($C$4-N$55)) -> 2521900 | O58: =OFFSET(NSA!$C$1,MATCH($C$3,NSA!$D$2:$D$88,0),COUNTA(NSA!1:1)-($C$4-O$55)) -> 2469500 | P58: =OFFSET(NSA!$C$1,MATCH($C$3,NSA!$D$2:$D$88,0),COUNTA(NSA!1:1)-($C$4-P$55)) -> 2473500 | Q58: =OFFSET(NSA!$C$1,MATCH($C$3,NSA!$D$2:$D$88,0),COUNTA(NSA!1:1)-($C$4-Q$55)) -> 2489400 | R58: =OFFSET(NSA!$C$1,MATCH($C$3,NSA!$D$2:$D$88,0),COUNTA(NSA!1:1)-($C$4-R$55)) -> 2511500 | S58: =OFFSET(NSA!$C$1,MATCH($C$3,NSA!$D$2:$D$88,0),COUNTA(NSA!1:1)-($C$4-S$55)) -> 2542800 | T58: =OFFSET(NSA!$C$1,MATCH($C$3,NSA!$D$2:$D$88,0),COUNTA(NSA!1:1)-($C$4-T$55)) -> 2583600 | U58: =OFFSET(NSA!$C$1,MATCH($C$3,NSA!$D$2:$D$88,0),COUNTA(NSA!1:1)-($C$4-U$55)) -> 2584300 | V58: =OFFSET(NSA!$C$1,MATCH($C$3,NSA!$D$2:$D$88,0),COUNTA(NSA!1:1)-($C$4-V$55)) -> 2584800 | W58: =OFFSET(NSA!$C$1,MATCH($C$3,NSA!$D$2:$D$88,0),COUNTA(NSA!1:1)-($C$4-W$55)) -> 2552200 | X58: =OFFSET(NSA!$C$1,MATCH($C$3,NSA!$D$2:$D$88,0),COUNTA(NSA!1:1)-($C$4-X$55)) -> 2559600 | Y58: =OFFSET(NSA!$C$1,MATCH($C$3,NSA!$D$2:$D$88,0),COUNTA(NSA!1:1)-($C$4-Y$55)) -> 2554200 | Z58: =OFFSET(NSA!$C$1,MATCH($C$3,NSA!$D$2:$D$88,0),COUNTA(NSA!1:1)-($C$4-Z$55)) -> 2541400 | AA58: =OFFSET(NSA!$C$1,MATCH($C$3,NSA!$D$2:$D$88,0),COUNTA(NSA!1:1)-($C$4-AA$55)) -> 2492100 | AB58: =OFFSET(NSA!$C$1,MATCH($C$3,NSA!$D$2:$D$88,0),COUNTA(NSA!1:1)-($C$4-AB$55)) -> 2494500 | AC58: =OFFSET(NSA!$C$1,MATCH($C$3,NSA!$D$2:$D$88,0),COUNTA(NSA!1:1)-($C$4-AC$55)) -> 2513000 | AD58: =OFFSET(NSA!$C$1,MATCH($C$3,NSA!$D$2:$D$88,0),COUNTA(NSA!1:1)-($C$4-AD$55)) -> 2531400 | AE58: =OFFSET(NSA!$C$1,MATCH($C$3,NSA!$D$2:$D$88,0),COUNTA(NSA!1:1)-($C$4-AE$55)) -> 2562700 | AF58: =OFFSET(NSA!$C$1,MATCH($C$3,NSA!$D$2:$D$88,0),COUNTA(NSA!1:1)-($C$4-AF$55)) -> 2614800 | AG58: =OFFSET(NSA!$C$1,MATCH($C$3,NSA!$D$2:$D$88,0),COUNTA(NSA!1:1)-($C$4-AG$55)) -> 2628000 | AH58: =OFFSET(NSA!$C$1,MATCH($C$3,NSA!$D$2:$D$88,0),COUNTA(NSA!1:1)-($C$4-AH$55)) -> 2624900 | AI58: =OFFSET(NSA!$C$1,MATCH($C$3,NSA!$D$2:$D$88,0),COUNTA(NSA!1:1)-($C$4-AI$55)) -> 2590600 | AJ58: =OFFSET(NSA!$C$1,MATCH($C$3,NSA!$D$2:$D$88,0),COUNTA(NSA!1:1)-($C$4-AJ$55)) -> 2591900 | AK58: =OFFSET(NSA!$C$1,MATCH($C$3,NSA!$D$2:$D$88,0),COUNTA(NSA!1:1)-($C$4-AK$55)) -> 2593600 | AL58: =OFFSET(NSA!$C$1,MATCH($C$3,NSA!$D$2:$D$88,0),COUNTA(NSA!1:1)-($C$4-AL$55)) -> 2586300 | AM58: =OFFSET(NSA!$C$1,MATCH($C$3,NSA!$D$2:$D$88,0),COUNTA(NSA!1:1)-($C$4-AM$55)) -> 2525600 | AN58: =OFFSET(NSA!$C$1,MATCH($C$3,NSA!$D$2:$D$88,0),COUNTA(NSA!1:1)-($C$4-AN$55)) -> 2522000 | AO58: =OFFSET(NSA!$C$1,MATCH($C$3,NSA!$D$2:$D$88,0),COUNTA(NSA!1:1)-($C$4-AO$55)) -> 2527400 | AP58: =OFFSET(NSA!$C$1,MATCH($C$3,NSA!$D$2:$D$88,0),COUNTA(NSA!1:1)-($C$4-AP$55)) -> 2545600 | AQ58: =OFFSET(NSA!$C$1,MATCH($C$3,NSA!$D$2:$D$88,0),COUNTA(NSA!1:1)-($C$4-AQ$55)) -> 2582000 | AR58: =OFFSET(NSA!$C$1,MATCH($C$3,NSA!$D$2:$D$88,0),COUNTA(NSA!1:1)-($C$4-AR$55)) -> 2624900 | AS58: =OFFSET(NSA!$C$1,MATCH($C$3,NSA!$D$2:$D$88,0),COUNTA(NSA!1:1)-($C$4-AS$55)) -> 2627400 | AT58: =OFFSET(NSA!$C$1,MATCH($C$3,NSA!$D$2:$D$88,0),COUNTA(NSA!1:1)-($C$4-AT$55)) -> 2623300 | AU58: =OFFSET(NSA!$C$1,MATCH($C$3,NSA!$D$2:$D$88,0),COUNTA(NSA!1:1)-($C$4-AU$55)) -> 2589100 | AV58: =OFFSET(NSA!$C$1,MATCH($C$3,NSA!$D$2:$D$88,0),COUNTA(NSA!1:1)-($C$4-AV$55)) -> 2595500 | AW58: =OFFSET(NSA!$C$1,MATCH($C$3,NSA!$D$2:$D$88,0),COUNTA(NSA!1:1)-($C$4-AW$55)) -> 2588900 | AX58: =OFFSET(NSA!$C$1,MATCH($C$3,NSA!$D$2:$D$88,0),COUNTA(NSA!1:1)-($C$4-AX$55)) -> 2583000 | AY58: =OFFSET(NSA!$C$1,MATCH($C$3,NSA!$D$2:$D$88,0),COUNTA(NSA!1:1)-($C$4-AY$55)) -> 0 | AZ58: =OFFSET(NSA!$C$1,MATCH($C$3,NSA!$D$2:$D$88,0),COUNTA(NSA!1:1)-($C$4-AZ$55)) -> 0 | BA58: =OFFSET(NSA!$C$1,MATCH($C$3,NSA!$D$2:$D$88,0),COUNTA(NSA!1:1)-($C$4-BA$55)) -> 0 | BB58: =OFFSET(NSA!$C$1,MATCH($C$3,NSA!$D$2:$D$88,0),COUNTA(NSA!1:1)-($C$4-BB$55)) -> 0 | BC58: =OFFSET(NSA!$C$1,MATCH($C$3,NSA!$D$2:$D$88,0),COUNTA(NSA!1:1)-($C$4-BC$55)) -> 0 | BD58: =OFFSET(NSA!$C$1,MATCH($C$3,NSA!$D$2:$D$88,0),COUNTA(NSA!1:1)-($C$4-BD$55)) -> 0 | BE58: =OFFSET(NSA!$C$1,MATCH($C$3,NSA!$D$2:$D$88,0),COUNTA(NSA!1:1)-($C$4-BE$55)) -> 0 | BF58: =OFFSET(NSA!$C$1,MATCH($C$3,NSA!$D$2:$D$88,0),COUNTA(NSA!1:1)-($C$4-BF$55)) -> 0 | BG58: =OFFSET(NSA!$C$1,MATCH($C$3,NSA!$D$2:$D$88,0),COUNTA(NSA!1:1)-($C$4-BG$55)) -> 0 | BH58: =OFFSET(NSA!$C$1,MATCH($C$3,NSA!$D$2:$D$88,0),COUNTA(NSA!1:1)-($C$4-BH$55)) -> 0 | BI58: =OFFSET(NSA!$C$1,MATCH($C$3,NSA!$D$2:$D$88,0),COUNTA(NSA!1:1)-($C$4-BI$55)) -> 0 | BJ58: =OFFSET(NSA!$C$1,MATCH($C$3,NSA!$D$2:$D$88,0),COUNTA(NSA!1:1)-($C$4-BJ$55)) -> 0 | BK58: =OFFSET(NSA!$C$1,MATCH($C$3,NSA!$D$2:$D$88,0),COUNTA(NSA!1:1)-($C$4-BK$55)) -> 0 | BL58: =OFFSET(NSA!$C$1,MATCH($C$3,NSA!$D$2:$D$88,0),COUNTA(NSA!1:1)-($C$4-BL$55)) -> 0 | BM58: =OFFSET(NSA!$C$1,MATCH($C$3,NSA!$D$2:$D$88,0),COUNTA(NSA!1:1)-($C$4-BM$55)) -> 0 | BN58: =OFFSET(NSA!$C$1,MATCH($C$3,NSA!$D$2:$D$88,0),COUNTA(NSA!1:1)-($C$4-BN$55)) -> 0 | BO58: =OFFSET(NSA!$C$1,MATCH($C$3,NSA!$D$2:$D$88,0),COUNTA(NSA!1:1)-($C$4-BO$55)) -> 0 | BP58: =OFFSET(NSA!$C$1,MATCH($C$3,NSA!$D$2:$D$88,0),COUNTA(NSA!1:1)-($C$4-BP$55)) -> 0 | BQ58: =OFFSET(NSA!$C$1,MATCH($C$3,NSA!$D$2:$D$88,0),COUNTA(NSA!1:1)-($C$4-BQ$55)) -> 0 | BR58: =OFFSET(NSA!$C$1,MATCH($C$3,NSA!$D$2:$D$88,0),COUNTA(NSA!1:1)-($C$4-BR$55)) -> 0 | BS58: =OFFSET(NSA!$C$1,MATCH($C$3,NSA!$D$2:$D$88,0),COUNTA(NSA!1:1)-($C$4-BS$55)) -> 0 | BT58: =OFFSET(NSA!$C$1,MATCH($C$3,NSA!$D$2:$D$88,0),COUNTA(NSA!1:1)-($C$4-BT$55)) -> 0 | BU58: =OFFSET(NSA!$C$1,MATCH($C$3,NSA!$D$2:$D$88,0),COUNTA(NSA!1:1)-($C$4-BU$55)) -> 0 | BV58: =OFFSET(NSA!$C$1,MATCH($C$3,NSA!$D$2:$D$88,0),COUNTA(NSA!1:1)-($C$4-BV$55)) -> 0 | BW58: =OFFSET(NSA!$C$1,MATCH($C$3,NSA!$D$2:$D$88,0),COUNTA(NSA!1:1)-($C$4-BW$55)) -> 0 | BX58: =OFFSET(NSA!$C$1,MATCH($C$3,NSA!$D$2:$D$88,0),COUNTA(NSA!1:1)-($C$4-BX$55)) -> 0 | BY58: =OFFSET(NSA!$C$1,MATCH($C$3,NSA!$D$2:$D$88,0),COUNTA(NSA!1:1)-($C$4-BY$55)) -> 0 | BZ58: =OFFSET(NSA!$C$1,MATCH($C$3,NSA!$D$2:$D$88,0),COUNTA(NSA!1:1)-($C$4-BZ$55)) -> 0 | CA58: =OFFSET(NSA!$C$1,MATCH($C$3,NSA!$D$2:$D$88,0),COUNTA(NSA!1:1)-($C$4-CA$55)) -> 0 | CB58: =OFFSET(NSA!$C$1,MATCH($C$3,NSA!$D$2:$D$88,0),COUNTA(NSA!1:1)-($C$4-CB$55)) -> 0 | CC58: =OFFSET(NSA!$C$1,MATCH($C$3,NSA!$D$2:$D$88,0),COUNTA(NSA!1:1)-($C$4-CC$55)) -> 0 | CD58: =OFFSET(NSA!$C$1,MATCH($C$3,NSA!$D$2:$D$88,0),COUNTA(NSA!1:1)-($C$4-CD$55)) -> 0 | CE58: =OFFSET(NSA!$C$1,MATCH($C$3,NSA!$D$2:$D$88,0),COUNTA(NSA!1:1)-($C$4-CE$55)) -> 0 | CF58: =OFFSET(NSA!$C$1,MATCH($C$3,NSA!$D$2:$D$88,0),COUNTA(NSA!1:1)-($C$4-CF$55)) -> 0 | CG58: =OFFSET(NSA!$C$1,MATCH($C$3,NSA!$D$2:$D$88,0),COUNTA(NSA!1:1)-($C$4-CG$55)) -> 0 | CH58: =OFFSET(NSA!$C$1,MATCH($C$3,NSA!$D$2:$D$88,0),COUNTA(NSA!1:1)-($C$4-CH$55)) -> 0 | CI58: =OFFSET(NSA!$C$1,MATCH($C$3,NSA!$D$2:$D$88,0),COUNTA(NSA!1:1)-($C$4-CI$55)) -> 0 | CJ58: =OFFSET(NSA!$C$1,MATCH($C$3,NSA!$D$2:$D$88,0),COUNTA(NSA!1:1)-($C$4-CJ$55)) -> 0 | CK58: =OFFSET(NSA!$C$1,MATCH($C$3,NSA!$D$2:$D$88,0),COUNTA(NSA!1:1)-($C$4-CK$55)) -> 0 | CL58: =OFFSET(NSA!$C$1,MATCH($C$3,NSA!$D$2:$D$88,0),COUNTA(NSA!1:1)-($C$4-CL$55)) -> 0 | CM58: =OFFSET(NSA!$C$1,MATCH($C$3,NSA!$D$2:$D$88,0),COUNTA(NSA!1:1)-($C$4-CM$55)) -> 0 | CN58: =OFFSET(NSA!$C$1,MATCH($C$3,NSA!$D$2:$D$88,0),COUNTA(NSA!1:1)-($C$4-CN$55)) -> 0 | CO58: =OFFSET(NSA!$C$1,MATCH($C$3,NSA!$D$2:$D$88,0),COUNTA(NSA!1:1)-($C$4-CO$55)) -> 0 | CP58: =OFFSET(NSA!$C$1,MATCH($C$3,NSA!$D$2:$D$88,0),COUNTA(NSA!1:1)-($C$4-CP$55)) -> 0 | CQ58: =OFFSET(NSA!$C$1,MATCH($C$3,NSA!$D$2:$D$88,0),COUNTA(NSA!1:1)-($C$4-CQ$55)) -> 0 | CR58: =OFFSET(NSA!$C$1,MATCH($C$3,NSA!$D$2:$D$88,0),COUNTA(NSA!1:1)-($C$4-CR$55)) -> 0 | CS58: =OFFSET(NSA!$C$1,MATCH($C$3,NSA!$D$2:$D$88,0),COUNTA(NSA!1:1)-($C$4-CS$55)) -> 0 | CT58: =OFFSET(NSA!$C$1,MATCH($C$3,NSA!$D$2:$D$88,0),COUNTA(NSA!1:1)-($C$4-CT$55)) -> 0 | CU58: =OFFSET(NSA!$C$1,MATCH($C$3,NSA!$D$2:$D$88,0),COUNTA(NSA!1:1)-($C$4-CU$55)) -> 0 | CV58: =OFFSET(NSA!$C$1,MATCH($C$3,NSA!$D$2:$D$88,0),COUNTA(NSA!1:1)-($C$4-CV$55)) -> 0 | CW58: =OFFSET(NSA!$C$1,MATCH($C$3,NSA!$D$2:$D$88,0),COUNTA(NSA!1:1)-($C$4-CW$55)) -> 0 | CX58: =OFFSET(NSA!$C$1,MATCH($C$3,NSA!$D$2:$D$88,0),COUNTA(NSA!1:1)-($C$4-CX$55)) -> 0 | CY58: =OFFSET(NSA!$C$1,MATCH($C$3,NSA!$D$2:$D$88,0),COUNTA(NSA!1:1)-($C$4-CY$55)) -> 0 | CZ58: =OFFSET(NSA!$C$1,MATCH($C$3,NSA!$D$2:$D$88,0),COUNTA(NSA!1:1)-($C$4-CZ$55)) -> 0
B59: =CONCATENATE("NSA ",TRIM(B60)," / ",TRIM(B61)) -> NSA Manufacturing / Retail Trade
B60: =G2 -> Manufacturing | C60: =OFFSET(NSA!$C$1,MATCH($G$2,NSA!$D$2:$D$88,0),COUNTA(NSA!1:1)-($C$4-C$55)) -> 462000 | D60: =OFFSET(NSA!$C$1,MATCH($G$2,NSA!$D$2:$D$88,0),COUNTA(NSA!1:1)-($C$4-D$55)) -> 460000 | E60: =OFFSET(NSA!$C$1,MATCH($G$2,NSA!$D$2:$D$88,0),COUNTA(NSA!1:1)-($C$4-E$55)) -> 461000 | F60: =OFFSET(NSA!$C$1,MATCH($G$2,NSA!$D$2:$D$88,0),COUNTA(NSA!1:1)-($C$4-F$55)) -> 461500 | G60: =OFFSET(NSA!$C$1,MATCH($G$2,NSA!$D$2:$D$88,0),COUNTA(NSA!1:1)-($C$4-G$55)) -> 462800 | H60: =OFFSET(NSA!$C$1,MATCH($G$2,NSA!$D$2:$D$88,0),COUNTA(NSA!1:1)-($C$4-H$55)) -> 470600 | I60: =OFFSET(NSA!$C$1,MATCH($G$2,NSA!$D$2:$D$88,0),COUNTA(NSA!1:1)-($C$4-I$55)) -> 472600 | J60: =OFFSET(NSA!$C$1,MATCH($G$2,NSA!$D$2:$D$88,0),COUNTA(NSA!1:1)-($C$4-J$55)) -> 471700 | K60: =OFFSET(NSA!$C$1,MATCH($G$2,NSA!$D$2:$D$88,0),COUNTA(NSA!1:1)-($C$4-K$55)) -> 465400 | L60: =OFFSET(NSA!$C$1,MATCH($G$2,NSA!$D$2:$D$88,0),COUNTA(NSA!1:1)-($C$4-L$55)) -> 463300 | M60: =OFFSET(NSA!$C$1,MATCH($G$2,NSA!$D$2:$D$88,0),COUNTA(NSA!1:1)-($C$4-M$55)) -> 462600 | N60: =OFFSET(NSA!$C$1,MATCH($G$2,NSA!$D$2:$D$88,0),COUNTA(NSA!1:1)-($C$4-N$55)) -> 463500 | O60: =OFFSET(NSA!$C$1,MATCH($G$2,NSA!$D$2:$D$88,0),COUNTA(NSA!1:1)-($C$4-O$55)) -> 461100 | P60: =OFFSET(NSA!$C$1,MATCH($G$2,NSA!$D$2:$D$88,0),COUNTA(NSA!1:1)-($C$4-P$55)) -> 460300 | Q60: =OFFSET(NSA!$C$1,MATCH($G$2,NSA!$D$2:$D$88,0),COUNTA(NSA!1:1)-($C$4-Q$55)) -> 462500 | R60: =OFFSET(NSA!$C$1,MATCH($G$2,NSA!$D$2:$D$88,0),COUNTA(NSA!1:1)-($C$4-R$55)) -> 462900 | S60: =OFFSET(NSA!$C$1,MATCH($G$2,NSA!$D$2:$D$88,0),COUNTA(NSA!1:1)-($C$4-S$55)) -> 464100 | T60: =OFFSET(NSA!$C$1,MATCH($G$2,NSA!$D$2:$D$88,0),COUNTA(NSA!1:1)-($C$4-T$55)) -> 473500 | U60: =OFFSET(NSA!$C$1,MATCH($G$2,NSA!$D$2:$D$88,0),COUNTA(NSA!1:1)-($C$4-U$55)) -> 476000 | V60: =OFFSET(NSA!$C$1,MATCH($G$2,NSA!$D$2:$D$88,0),COUNTA(NSA!1:1)-($C$4-V$55)) -> 475400 | W60: =OFFSET(NSA!$C$1,MATCH($G$2,NSA!$D$2:$D$88,0),COUNTA(NSA!1:1)-($C$4-W$55)) -> 469100 | X60: =OFFSET(NSA!$C$1,MATCH($G$2,NSA!$D$2:$D$88,0),COUNTA(NSA!1:1)-($C$4-X$55)) -> 470300 | Y60: =OFFSET(NSA!$C$1,MATCH($G$2,NSA!$D$2:$D$88,0),COUNTA(NSA!1:1)-($C$4-Y$55)) -> 471700 | Z60: =OFFSET(NSA!$C$1,MATCH($G$2,NSA!$D$2:$D$88,0),COUNTA(NSA!1:1)-($C$4-Z$55)) -> 471800 | AA60: =OFFSET(NSA!$C$1,MATCH($G$2,NSA!$D$2:$D$88,0),COUNTA(NSA!1:1)-($C$4-AA$55)) -> 471300 | AB60: =OFFSET(NSA!$C$1,MATCH($G$2,NSA!$D$2:$D$88,0),COUNTA(NSA!1:1)-($C$4-AB$55)) -> 473000 | AC60: =OFFSET(NSA!$C$1,MATCH($G$2,NSA!$D$2:$D$88,0),COUNTA(NSA!1:1)-($C$4-AC$55)) -> 475900 | AD60: =OFFSET(NSA!$C$1,MATCH($G$2,NSA!$D$2:$D$88,0),COUNTA(NSA!1:1)-($C$4-AD$55)) -> 477700 | AE60: =OFFSET(NSA!$C$1,MATCH($G$2,NSA!$D$2:$D$88,0),COUNTA(NSA!1:1)-($C$4-AE$55)) -> 480400 | AF60: =OFFSET(NSA!$C$1,MATCH($G$2,NSA!$D$2:$D$88,0),COUNTA(NSA!1:1)-($C$4-AF$55)) -> 491200 | AG60: =OFFSET(NSA!$C$1,MATCH($G$2,NSA!$D$2:$D$88,0),COUNTA(NSA!1:1)-($C$4-AG$55)) -> 495100 | AH60: =OFFSET(NSA!$C$1,MATCH($G$2,NSA!$D$2:$D$88,0),COUNTA(NSA!1:1)-($C$4-AH$55)) -> 495500 | AI60: =OFFSET(NSA!$C$1,MATCH($G$2,NSA!$D$2:$D$88,0),COUNTA(NSA!1:1)-($C$4-AI$55)) -> 490600 | AJ60: =OFFSET(NSA!$C$1,MATCH($G$2,NSA!$D$2:$D$88,0),COUNTA(NSA!1:1)-($C$4-AJ$55)) -> 490800 | AK60: =OFFSET(NSA!$C$1,MATCH($G$2,NSA!$D$2:$D$88,0),COUNTA(NSA!1:1)-($C$4-AK$55)) -> 490500 | AL60: =OFFSET(NSA!$C$1,MATCH($G$2,NSA!$D$2:$D$88,0),COUNTA(NSA!1:1)-($C$4-AL$55)) -> 489300 | AM60: =OFFSET(NSA!$C$1,MATCH($G$2,NSA!$D$2:$D$88,0),COUNTA(NSA!1:1)-($C$4-AM$55)) -> 472800 | AN60: =OFFSET(NSA!$C$1,MATCH($G$2,NSA!$D$2:$D$88,0),COUNTA(NSA!1:1)-($C$4-AN$55)) -> 471000 | AO60: =OFFSET(NSA!$C$1,MATCH($G$2,NSA!$D$2:$D$88,0),COUNTA(NSA!1:1)-($C$4-AO$55)) -> 471500 | AP60: =OFFSET(NSA!$C$1,MATCH($G$2,NSA!$D$2:$D$88,0),COUNTA(NSA!1:1)-($C$4-AP$55)) -> 472000 | AQ60: =OFFSET(NSA!$C$1,MATCH($G$2,NSA!$D$2:$D$88,0),COUNTA(NSA!1:1)-($C$4-AQ$55)) -> 474200 | AR60: =OFFSET(NSA!$C$1,MATCH($G$2,NSA!$D$2:$D$88,0),COUNTA(NSA!1:1)-($C$4-AR$55)) -> 482200 | AS60: =OFFSET(NSA!$C$1,MATCH($G$2,NSA!$D$2:$D$88,0),COUNTA(NSA!1:1)-($C$4-AS$55)) -> 479100 | AT60: =OFFSET(NSA!$C$1,MATCH($G$2,NSA!$D$2:$D$88,0),COUNTA(NSA!1:1)-($C$4-AT$55)) -> 478900 | AU60: =OFFSET(NSA!$C$1,MATCH($G$2,NSA!$D$2:$D$88,0),COUNTA(NSA!1:1)-($C$4-AU$55)) -> 470500 | AV60: =OFFSET(NSA!$C$1,MATCH($G$2,NSA!$D$2:$D$88,0),COUNTA(NSA!1:1)-($C$4-AV$55)) -> 469500 | AW60: =OFFSET(NSA!$C$1,MATCH($G$2,NSA!$D$2:$D$88,0),COUNTA(NSA!1:1)-($C$4-AW$55)) -> 470900 | AX60: =OFFSET(NSA!$C$1,MATCH($G$2,NSA!$D$2:$D$88,0),COUNTA(NSA!1:1)-($C$4-AX$55)) -> 472100 | AY60: =OFFSET(NSA!$C$1,MATCH($G$2,NSA!$D$2:$D$88,0),COUNTA(NSA!1:1)-($C$4-AY$55)) -> 0 | AZ60: =OFFSET(NSA!$C$1,MATCH($G$2,NSA!$D$2:$D$88,0),COUNTA(NSA!1:1)-($C$4-AZ$55)) -> 0 | BA60: =OFFSET(NSA!$C$1,MATCH($G$2,NSA!$D$2:$D$88,0),COUNTA(NSA!1:1)-($C$4-BA$55)) -> 0 | BB60: =OFFSET(NSA!$C$1,MATCH($G$2,NSA!$D$2:$D$88,0),COUNTA(NSA!1:1)-($C$4-BB$55)) -> 0 | BC60: =OFFSET(NSA!$C$1,MATCH($G$2,NSA!$D$2:$D$88,0),COUNTA(NSA!1:1)-($C$4-BC$55)) -> 0 | BD60: =OFFSET(NSA!$C$1,MATCH($G$2,NSA!$D$2:$D$88,0),COUNTA(NSA!1:1)-($C$4-BD$55)) -> 0 | BE60: =OFFSET(NSA!$C$1,MATCH($G$2,NSA!$D$2:$D$88,0),COUNTA(NSA!1:1)-($C$4-BE$55)) -> 0 | BF60: =OFFSET(NSA!$C$1,MATCH($G$2,NSA!$D$2:$D$88,0),COUNTA(NSA!1:1)-($C$4-BF$55)) -> 0 | BG60: =OFFSET(NSA!$C$1,MATCH($G$2,NSA!$D$2:$D$88,0),COUNTA(NSA!1:1)-($C$4-BG$55)) -> 0 | BH60: =OFFSET(NSA!$C$1,MATCH($G$2,NSA!$D$2:$D$88,0),COUNTA(NSA!1:1)-($C$4-BH$55)) -> 0 | BI60: =OFFSET(NSA!$C$1,MATCH($G$2,NSA!$D$2:$D$88,0),COUNTA(NSA!1:1)-($C$4-BI$55)) -> 0 | BJ60: =OFFSET(NSA!$C$1,MATCH($G$2,NSA!$D$2:$D$88,0),COUNTA(NSA!1:1)-($C$4-BJ$55)) -> 0 | BK60: =OFFSET(NSA!$C$1,MATCH($G$2,NSA!$D$2:$D$88,0),COUNTA(NSA!1:1)-($C$4-BK$55)) -> 0 | BL60: =OFFSET(NSA!$C$1,MATCH($G$2,NSA!$D$2:$D$88,0),COUNTA(NSA!1:1)-($C$4-BL$55)) -> 0 | BM60: =OFFSET(NSA!$C$1,MATCH($G$2,NSA!$D$2:$D$88,0),COUNTA(NSA!1:1)-($C$4-BM$55)) -> 0 | BN60: =OFFSET(NSA!$C$1,MATCH($G$2,NSA!$D$2:$D$88,0),COUNTA(NSA!1:1)-($C$4-BN$55)) -> 0 | BO60: =OFFSET(NSA!$C$1,MATCH($G$2,NSA!$D$2:$D$88,0),COUNTA(NSA!1:1)-($C$4-BO$55)) -> 0 | BP60: =OFFSET(NSA!$C$1,MATCH($G$2,NSA!$D$2:$D$88,0),COUNTA(NSA!1:1)-($C$4-BP$55)) -> 0 | BQ60: =OFFSET(NSA!$C$1,MATCH($G$2,NSA!$D$2:$D$88,0),COUNTA(NSA!1:1)-($C$4-BQ$55)) -> 0 | BR60: =OFFSET(NSA!$C$1,MATCH($G$2,NSA!$D$2:$D$88,0),COUNTA(NSA!1:1)-($C$4-BR$55)) -> 0 | BS60: =OFFSET(NSA!$C$1,MATCH($G$2,NSA!$D$2:$D$88,0),COUNTA(NSA!1:1)-($C$4-BS$55)) -> 0 | BT60: =OFFSET(NSA!$C$1,MATCH($G$2,NSA!$D$2:$D$88,0),COUNTA(NSA!1:1)-($C$4-BT$55)) -> 0 | BU60: =OFFSET(NSA!$C$1,MATCH($G$2,NSA!$D$2:$D$88,0),COUNTA(NSA!1:1)-($C$4-BU$55)) -> 0 | BV60: =OFFSET(NSA!$C$1,MATCH($G$2,NSA!$D$2:$D$88,0),COUNTA(NSA!1:1)-($C$4-BV$55)) -> 0 | BW60: =OFFSET(NSA!$C$1,MATCH($G$2,NSA!$D$2:$D$88,0),COUNTA(NSA!1:1)-($C$4-BW$55)) -> 0 | BX60: =OFFSET(NSA!$C$1,MATCH($G$2,NSA!$D$2:$D$88,0),COUNTA(NSA!1:1)-($C$4-BX$55)) -> 0 | BY60: =OFFSET(NSA!$C$1,MATCH($G$2,NSA!$D$2:$D$88,0),COUNTA(NSA!1:1)-($C$4-BY$55)) -> 0 | BZ60: =OFFSET(NSA!$C$1,MATCH($G$2,NSA!$D$2:$D$88,0),COUNTA(NSA!1:1)-($C$4-BZ$55)) -> 0 | CA60: =OFFSET(NSA!$C$1,MATCH($G$2,NSA!$D$2:$D$88,0),COUNTA(NSA!1:1)-($C$4-CA$55)) -> 0 | CB60: =OFFSET(NSA!$C$1,MATCH($G$2,NSA!$D$2:$D$88,0),COUNTA(NSA!1:1)-($C$4-CB$55)) -> 0 | CC60: =OFFSET(NSA!$C$1,MATCH($G$2,NSA!$D$2:$D$88,0),COUNTA(NSA!1:1)-($C$4-CC$55)) -> 0 | CD60: =OFFSET(NSA!$C$1,MATCH($G$2,NSA!$D$2:$D$88,0),COUNTA(NSA!1:1)-($C$4-CD$55)) -> 0 | CE60: =OFFSET(NSA!$C$1,MATCH($G$2,NSA!$D$2:$D$88,0),COUNTA(NSA!1:1)-($C$4-CE$55)) -> 0 | CF60: =OFFSET(NSA!$C$1,MATCH($G$2,NSA!$D$2:$D$88,0),COUNTA(NSA!1:1)-($C$4-CF$55)) -> 0 | CG60: =OFFSET(NSA!$C$1,MATCH($G$2,NSA!$D$2:$D$88,0),COUNTA(NSA!1:1)-($C$4-CG$55)) -> 0 | CH60: =OFFSET(NSA!$C$1,MATCH($G$2,NSA!$D$2:$D$88,0),COUNTA(NSA!1:1)-($C$4-CH$55)) -> 0 | CI60: =OFFSET(NSA!$C$1,MATCH($G$2,NSA!$D$2:$D$88,0),COUNTA(NSA!1:1)-($C$4-CI$55)) -> 0 | CJ60: =OFFSET(NSA!$C$1,MATCH($G$2,NSA!$D$2:$D$88,0),COUNTA(NSA!1:1)-($C$4-CJ$55)) -> 0 | CK60: =OFFSET(NSA!$C$1,MATCH($G$2,NSA!$D$2:$D$88,0),COUNTA(NSA!1:1)-($C$4-CK$55)) -> 0 | CL60: =OFFSET(NSA!$C$1,MATCH($G$2,NSA!$D$2:$D$88,0),COUNTA(NSA!1:1)-($C$4-CL$55)) -> 0 | CM60: =OFFSET(NSA!$C$1,MATCH($G$2,NSA!$D$2:$D$88,0),COUNTA(NSA!1:1)-($C$4-CM$55)) -> 0 | CN60: =OFFSET(NSA!$C$1,MATCH($G$2,NSA!$D$2:$D$88,0),COUNTA(NSA!1:1)-($C$4-CN$55)) -> 0 | CO60: =OFFSET(NSA!$C$1,MATCH($G$2,NSA!$D$2:$D$88,0),COUNTA(NSA!1:1)-($C$4-CO$55)) -> 0 | CP60: =OFFSET(NSA!$C$1,MATCH($G$2,NSA!$D$2:$D$88,0),COUNTA(NSA!1:1)-($C$4-CP$55)) -> 0 | CQ60: =OFFSET(NSA!$C$1,MATCH($G$2,NSA!$D$2:$D$88,0),COUNTA(NSA!1:1)-($C$4-CQ$55)) -> 0 | CR60: =OFFSET(NSA!$C$1,MATCH($G$2,NSA!$D$2:$D$88,0),COUNTA(NSA!1:1)-($C$4-CR$55)) -> 0 | CS60: =OFFSET(NSA!$C$1,MATCH($G$2,NSA!$D$2:$D$88,0),COUNTA(NSA!1:1)-($C$4-CS$55)) -> 0 | CT60: =OFFSET(NSA!$C$1,MATCH($G$2,NSA!$D$2:$D$88,0),COUNTA(NSA!1:1)-($C$4-CT$55)) -> 0 | CU60: =OFFSET(NSA!$C$1,MATCH($G$2,NSA!$D$2:$D$88,0),COUNTA(NSA!1:1)-($C$4-CU$55)) -> 0 | CV60: =OFFSET(NSA!$C$1,MATCH($G$2,NSA!$D$2:$D$88,0),COUNTA(NSA!1:1)-($C$4-CV$55)) -> 0 | CW60: =OFFSET(NSA!$C$1,MATCH($G$2,NSA!$D$2:$D$88,0),COUNTA(NSA!1:1)-($C$4-CW$55)) -> 0 | CX60: =OFFSET(NSA!$C$1,MATCH($G$2,NSA!$D$2:$D$88,0),COUNTA(NSA!1:1)-($C$4-CX$55)) -> 0 | CY60: =OFFSET(NSA!$C$1,MATCH($G$2,NSA!$D$2:$D$88,0),COUNTA(NSA!1:1)-($C$4-CY$55)) -> 0 | CZ60: =OFFSET(NSA!$C$1,MATCH($G$2,NSA!$D$2:$D$88,0),COUNTA(NSA!1:1)-($C$4-CZ$55)) -> 0
B61: =G3 -> Retail Trade | C61: =OFFSET(NSA!$C$1,MATCH($G$3,NSA!$D$2:$D$88,0),COUNTA(NSA!1:1)-($C$4-C$55)) -> 302800 | D61: =OFFSET(NSA!$C$1,MATCH($G$3,NSA!$D$2:$D$88,0),COUNTA(NSA!1:1)-($C$4-D$55)) -> 299400 | E61: =OFFSET(NSA!$C$1,MATCH($G$3,NSA!$D$2:$D$88,0),COUNTA(NSA!1:1)-($C$4-E$55)) -> 300500 | F61: =OFFSET(NSA!$C$1,MATCH($G$3,NSA!$D$2:$D$88,0),COUNTA(NSA!1:1)-($C$4-F$55)) -> 304200 | G61: =OFFSET(NSA!$C$1,MATCH($G$3,NSA!$D$2:$D$88,0),COUNTA(NSA!1:1)-($C$4-G$55)) -> 307500 | H61: =OFFSET(NSA!$C$1,MATCH($G$3,NSA!$D$2:$D$88,0),COUNTA(NSA!1:1)-($C$4-H$55)) -> 309800 | I61: =OFFSET(NSA!$C$1,MATCH($G$3,NSA!$D$2:$D$88,0),COUNTA(NSA!1:1)-($C$4-I$55)) -> 311500 | J61: =OFFSET(NSA!$C$1,MATCH($G$3,NSA!$D$2:$D$88,0),COUNTA(NSA!1:1)-($C$4-J$55)) -> 311300 | K61: =OFFSET(NSA!$C$1,MATCH($G$3,NSA!$D$2:$D$88,0),COUNTA(NSA!1:1)-($C$4-K$55)) -> 306100 | L61: =OFFSET(NSA!$C$1,MATCH($G$3,NSA!$D$2:$D$88,0),COUNTA(NSA!1:1)-($C$4-L$55)) -> 309700 | M61: =OFFSET(NSA!$C$1,MATCH($G$3,NSA!$D$2:$D$88,0),COUNTA(NSA!1:1)-($C$4-M$55)) -> 317600 | N61: =OFFSET(NSA!$C$1,MATCH($G$3,NSA!$D$2:$D$88,0),COUNTA(NSA!1:1)-($C$4-N$55)) -> 318800 | O61: =OFFSET(NSA!$C$1,MATCH($G$3,NSA!$D$2:$D$88,0),COUNTA(NSA!1:1)-($C$4-O$55)) -> 306300 | P61: =OFFSET(NSA!$C$1,MATCH($G$3,NSA!$D$2:$D$88,0),COUNTA(NSA!1:1)-($C$4-P$55)) -> 302200 | Q61: =OFFSET(NSA!$C$1,MATCH($G$3,NSA!$D$2:$D$88,0),COUNTA(NSA!1:1)-($C$4-Q$55)) -> 303000 | R61: =OFFSET(NSA!$C$1,MATCH($G$3,NSA!$D$2:$D$88,0),COUNTA(NSA!1:1)-($C$4-R$55)) -> 304400 | S61: =OFFSET(NSA!$C$1,MATCH($G$3,NSA!$D$2:$D$88,0),COUNTA(NSA!1:1)-($C$4-S$55)) -> 307300 | T61: =OFFSET(NSA!$C$1,MATCH($G$3,NSA!$D$2:$D$88,0),COUNTA(NSA!1:1)-($C$4-T$55)) -> 309800 | U61: =OFFSET(NSA!$C$1,MATCH($G$3,NSA!$D$2:$D$88,0),COUNTA(NSA!1:1)-($C$4-U$55)) -> 310000 | V61: =OFFSET(NSA!$C$1,MATCH($G$3,NSA!$D$2:$D$88,0),COUNTA(NSA!1:1)-($C$4-V$55)) -> 310000 | W61: =OFFSET(NSA!$C$1,MATCH($G$3,NSA!$D$2:$D$88,0),COUNTA(NSA!1:1)-($C$4-W$55)) -> 304500 | X61: =OFFSET(NSA!$C$1,MATCH($G$3,NSA!$D$2:$D$88,0),COUNTA(NSA!1:1)-($C$4-X$55)) -> 306600 | Y61: =OFFSET(NSA!$C$1,MATCH($G$3,NSA!$D$2:$D$88,0),COUNTA(NSA!1:1)-($C$4-Y$55)) -> 315500 | Z61: =OFFSET(NSA!$C$1,MATCH($G$3,NSA!$D$2:$D$88,0),COUNTA(NSA!1:1)-($C$4-Z$55)) -> 315300 | AA61: =OFFSET(NSA!$C$1,MATCH($G$3,NSA!$D$2:$D$88,0),COUNTA(NSA!1:1)-($C$4-AA$55)) -> 301900 | AB61: =OFFSET(NSA!$C$1,MATCH($G$3,NSA!$D$2:$D$88,0),COUNTA(NSA!1:1)-($C$4-AB$55)) -> 298600 | AC61: =OFFSET(NSA!$C$1,MATCH($G$3,NSA!$D$2:$D$88,0),COUNTA(NSA!1:1)-($C$4-AC$55)) -> 299600 | AD61: =OFFSET(NSA!$C$1,MATCH($G$3,NSA!$D$2:$D$88,0),COUNTA(NSA!1:1)-($C$4-AD$55)) -> 300900 | AE61: =OFFSET(NSA!$C$1,MATCH($G$3,NSA!$D$2:$D$88,0),COUNTA(NSA!1:1)-($C$4-AE$55)) -> 303300 | AF61: =OFFSET(NSA!$C$1,MATCH($G$3,NSA!$D$2:$D$88,0),COUNTA(NSA!1:1)-($C$4-AF$55)) -> 307100 | AG61: =OFFSET(NSA!$C$1,MATCH($G$3,NSA!$D$2:$D$88,0),COUNTA(NSA!1:1)-($C$4-AG$55)) -> 308000 | AH61: =OFFSET(NSA!$C$1,MATCH($G$3,NSA!$D$2:$D$88,0),COUNTA(NSA!1:1)-($C$4-AH$55)) -> 308200 | AI61: =OFFSET(NSA!$C$1,MATCH($G$3,NSA!$D$2:$D$88,0),COUNTA(NSA!1:1)-($C$4-AI$55)) -> 301700 | AJ61: =OFFSET(NSA!$C$1,MATCH($G$3,NSA!$D$2:$D$88,0),COUNTA(NSA!1:1)-($C$4-AJ$55)) -> 302600 | AK61: =OFFSET(NSA!$C$1,MATCH($G$3,NSA!$D$2:$D$88,0),COUNTA(NSA!1:1)-($C$4-AK$55)) -> 313000 | AL61: =OFFSET(NSA!$C$1,MATCH($G$3,NSA!$D$2:$D$88,0),COUNTA(NSA!1:1)-($C$4-AL$55)) -> 313600 | AM61: =OFFSET(NSA!$C$1,MATCH($G$3,NSA!$D$2:$D$88,0),COUNTA(NSA!1:1)-($C$4-AM$55)) -> 305900 | AN61: =OFFSET(NSA!$C$1,MATCH($G$3,NSA!$D$2:$D$88,0),COUNTA(NSA!1:1)-($C$4-AN$55)) -> 303700 | AO61: =OFFSET(NSA!$C$1,MATCH($G$3,NSA!$D$2:$D$88,0),COUNTA(NSA!1:1)-($C$4-AO$55)) -> 303100 | AP61: =OFFSET(NSA!$C$1,MATCH($G$3,NSA!$D$2:$D$88,0),COUNTA(NSA!1:1)-($C$4-AP$55)) -> 302200 | AQ61: =OFFSET(NSA!$C$1,MATCH($G$3,NSA!$D$2:$D$88,0),COUNTA(NSA!1:1)-($C$4-AQ$55)) -> 304900 | AR61: =OFFSET(NSA!$C$1,MATCH($G$3,NSA!$D$2:$D$88,0),COUNTA(NSA!1:1)-($C$4-AR$55)) -> 308000 | AS61: =OFFSET(NSA!$C$1,MATCH($G$3,NSA!$D$2:$D$88,0),COUNTA(NSA!1:1)-($C$4-AS$55)) -> 309100 | AT61: =OFFSET(NSA!$C$1,MATCH($G$3,NSA!$D$2:$D$88,0),COUNTA(NSA!1:1)-($C$4-AT$55)) -> 308800 | AU61: =OFFSET(NSA!$C$1,MATCH($G$3,NSA!$D$2:$D$88,0),COUNTA(NSA!1:1)-($C$4-AU$55)) -> 307200 | AV61: =OFFSET(NSA!$C$1,MATCH($G$3,NSA!$D$2:$D$88,0),COUNTA(NSA!1:1)-($C$4-AV$55)) -> 311100 | AW61: =OFFSET(NSA!$C$1,MATCH($G$3,NSA!$D$2:$D$88,0),COUNTA(NSA!1:1)-($C$4-AW$55)) -> 319500 | AX61: =OFFSET(NSA!$C$1,MATCH($G$3,NSA!$D$2:$D$88,0),COUNTA(NSA!1:1)-($C$4-AX$55)) -> 320700 | AY61: =OFFSET(NSA!$C$1,MATCH($G$3,NSA!$D$2:$D$88,0),COUNTA(NSA!1:1)-($C$4-AY$55)) -> 0 | AZ61: =OFFSET(NSA!$C$1,MATCH($G$3,NSA!$D$2:$D$88,0),COUNTA(NSA!1:1)-($C$4-AZ$55)) -> 0 | BA61: =OFFSET(NSA!$C$1,MATCH($G$3,NSA!$D$2:$D$88,0),COUNTA(NSA!1:1)-($C$4-BA$55)) -> 0 | BB61: =OFFSET(NSA!$C$1,MATCH($G$3,NSA!$D$2:$D$88,0),COUNTA(NSA!1:1)-($C$4-BB$55)) -> 0 | BC61: =OFFSET(NSA!$C$1,MATCH($G$3,NSA!$D$2:$D$88,0),COUNTA(NSA!1:1)-($C$4-BC$55)) -> 0 | BD61: =OFFSET(NSA!$C$1,MATCH($G$3,NSA!$D$2:$D$88,0),COUNTA(NSA!1:1)-($C$4-BD$55)) -> 0 | BE61: =OFFSET(NSA!$C$1,MATCH($G$3,NSA!$D$2:$D$88,0),COUNTA(NSA!1:1)-($C$4-BE$55)) -> 0 | BF61: =OFFSET(NSA!$C$1,MATCH($G$3,NSA!$D$2:$D$88,0),COUNTA(NSA!1:1)-($C$4-BF$55)) -> 0 | BG61: =OFFSET(NSA!$C$1,MATCH($G$3,NSA!$D$2:$D$88,0),COUNTA(NSA!1:1)-($C$4-BG$55)) -> 0 | BH61: =OFFSET(NSA!$C$1,MATCH($G$3,NSA!$D$2:$D$88,0),COUNTA(NSA!1:1)-($C$4-BH$55)) -> 0 | BI61: =OFFSET(NSA!$C$1,MATCH($G$3,NSA!$D$2:$D$88,0),COUNTA(NSA!1:1)-($C$4-BI$55)) -> 0 | BJ61: =OFFSET(NSA!$C$1,MATCH($G$3,NSA!$D$2:$D$88,0),COUNTA(NSA!1:1)-($C$4-BJ$55)) -> 0 | BK61: =OFFSET(NSA!$C$1,MATCH($G$3,NSA!$D$2:$D$88,0),COUNTA(NSA!1:1)-($C$4-BK$55)) -> 0 | BL61: =OFFSET(NSA!$C$1,MATCH($G$3,NSA!$D$2:$D$88,0),COUNTA(NSA!1:1)-($C$4-BL$55)) -> 0 | BM61: =OFFSET(NSA!$C$1,MATCH($G$3,NSA!$D$2:$D$88,0),COUNTA(NSA!1:1)-($C$4-BM$55)) -> 0 | BN61: =OFFSET(NSA!$C$1,MATCH($G$3,NSA!$D$2:$D$88,0),COUNTA(NSA!1:1)-($C$4-BN$55)) -> 0 | BO61: =OFFSET(NSA!$C$1,MATCH($G$3,NSA!$D$2:$D$88,0),COUNTA(NSA!1:1)-($C$4-BO$55)) -> 0 | BP61: =OFFSET(NSA!$C$1,MATCH($G$3,NSA!$D$2:$D$88,0),COUNTA(NSA!1:1)-($C$4-BP$55)) -> 0 | BQ61: =OFFSET(NSA!$C$1,MATCH($G$3,NSA!$D$2:$D$88,0),COUNTA(NSA!1:1)-($C$4-BQ$55)) -> 0 | BR61: =OFFSET(NSA!$C$1,MATCH($G$3,NSA!$D$2:$D$88,0),COUNTA(NSA!1:1)-($C$4-BR$55)) -> 0 | BS61: =OFFSET(NSA!$C$1,MATCH($G$3,NSA!$D$2:$D$88,0),COUNTA(NSA!1:1)-($C$4-BS$55)) -> 0 | BT61: =OFFSET(NSA!$C$1,MATCH($G$3,NSA!$D$2:$D$88,0),COUNTA(NSA!1:1)-($C$4-BT$55)) -> 0 | BU61: =OFFSET(NSA!$C$1,MATCH($G$3,NSA!$D$2:$D$88,0),COUNTA(NSA!1:1)-($C$4-BU$55)) -> 0 | BV61: =OFFSET(NSA!$C$1,MATCH($G$3,NSA!$D$2:$D$88,0),COUNTA(NSA!1:1)-($C$4-BV$55)) -> 0 | BW61: =OFFSET(NSA!$C$1,MATCH($G$3,NSA!$D$2:$D$88,0),COUNTA(NSA!1:1)-($C$4-BW$55)) -> 0 | BX61: =OFFSET(NSA!$C$1,MATCH($G$3,NSA!$D$2:$D$88,0),COUNTA(NSA!1:1)-($C$4-BX$55)) -> 0 | BY61: =OFFSET(NSA!$C$1,MATCH($G$3,NSA!$D$2:$D$88,0),COUNTA(NSA!1:1)-($C$4-BY$55)) -> 0 | BZ61: =OFFSET(NSA!$C$1,MATCH($G$3,NSA!$D$2:$D$88,0),COUNTA(NSA!1:1)-($C$4-BZ$55)) -> 0 | CA61: =OFFSET(NSA!$C$1,MATCH($G$3,NSA!$D$2:$D$88,0),COUNTA(NSA!1:1)-($C$4-CA$55)) -> 0 | CB61: =OFFSET(NSA!$C$1,MATCH($G$3,NSA!$D$2:$D$88,0),COUNTA(NSA!1:1)-($C$4-CB$55)) -> 0 | CC61: =OFFSET(NSA!$C$1,MATCH($G$3,NSA!$D$2:$D$88,0),COUNTA(NSA!1:1)-($C$4-CC$55)) -> 0 | CD61: =OFFSET(NSA!$C$1,MATCH($G$3,NSA!$D$2:$D$88,0),COUNTA(NSA!1:1)-($C$4-CD$55)) -> 0 | CE61: =OFFSET(NSA!$C$1,MATCH($G$3,NSA!$D$2:$D$88,0),COUNTA(NSA!1:1)-($C$4-CE$55)) -> 0 | CF61: =OFFSET(NSA!$C$1,MATCH($G$3,NSA!$D$2:$D$88,0),COUNTA(NSA!1:1)-($C$4-CF$55)) -> 0 | CG61: =OFFSET(NSA!$C$1,MATCH($G$3,NSA!$D$2:$D$88,0),COUNTA(NSA!1:1)-($C$4-CG$55)) -> 0 | CH61: =OFFSET(NSA!$C$1,MATCH($G$3,NSA!$D$2:$D$88,0),COUNTA(NSA!1:1)-($C$4-CH$55)) -> 0 | CI61: =OFFSET(NSA!$C$1,MATCH($G$3,NSA!$D$2:$D$88,0),COUNTA(NSA!1:1)-($C$4-CI$55)) -> 0 | CJ61: =OFFSET(NSA!$C$1,MATCH($G$3,NSA!$D$2:$D$88,0),COUNTA(NSA!1:1)-($C$4-CJ$55)) -> 0 | CK61: =OFFSET(NSA!$C$1,MATCH($G$3,NSA!$D$2:$D$88,0),COUNTA(NSA!1:1)-($C$4-CK$55)) -> 0 | CL61: =OFFSET(NSA!$C$1,MATCH($G$3,NSA!$D$2:$D$88,0),COUNTA(NSA!1:1)-($C$4-CL$55)) -> 0 | CM61: =OFFSET(NSA!$C$1,MATCH($G$3,NSA!$D$2:$D$88,0),COUNTA(NSA!1:1)-($C$4-CM$55)) -> 0 | CN61: =OFFSET(NSA!$C$1,MATCH($G$3,NSA!$D$2:$D$88,0),COUNTA(NSA!1:1)-($C$4-CN$55)) -> 0 | CO61: =OFFSET(NSA!$C$1,MATCH($G$3,NSA!$D$2:$D$88,0),COUNTA(NSA!1:1)-($C$4-CO$55)) -> 0 | CP61: =OFFSET(NSA!$C$1,MATCH($G$3,NSA!$D$2:$D$88,0),COUNTA(NSA!1:1)-($C$4-CP$55)) -> 0 | CQ61: =OFFSET(NSA!$C$1,MATCH($G$3,NSA!$D$2:$D$88,0),COUNTA(NSA!1:1)-($C$4-CQ$55)) -> 0 | CR61: =OFFSET(NSA!$C$1,MATCH($G$3,NSA!$D$2:$D$88,0),COUNTA(NSA!1:1)-($C$4-CR$55)) -> 0 | CS61: =OFFSET(NSA!$C$1,MATCH($G$3,NSA!$D$2:$D$88,0),COUNTA(NSA!1:1)-($C$4-CS$55)) -> 0 | CT61: =OFFSET(NSA!$C$1,MATCH($G$3,NSA!$D$2:$D$88,0),COUNTA(NSA!1:1)-($C$4-CT$55)) -> 0 | CU61: =OFFSET(NSA!$C$1,MATCH($G$3,NSA!$D$2:$D$88,0),COUNTA(NSA!1:1)-($C$4-CU$55)) -> 0 | CV61: =OFFSET(NSA!$C$1,MATCH($G$3,NSA!$D$2:$D$88,0),COUNTA(NSA!1:1)-($C$4-CV$55)) -> 0 | CW61: =OFFSET(NSA!$C$1,MATCH($G$3,NSA!$D$2:$D$88,0),COUNTA(NSA!1:1)-($C$4-CW$55)) -> 0 | CX61: =OFFSET(NSA!$C$1,MATCH($G$3,NSA!$D$2:$D$88,0),COUNTA(NSA!1:1)-($C$4-CX$55)) -> 0 | CY61: =OFFSET(NSA!$C$1,MATCH($G$3,NSA!$D$2:$D$88,0),COUNTA(NSA!1:1)-($C$4-CY$55)) -> 0 | CZ61: =OFFSET(NSA!$C$1,MATCH($G$3,NSA!$D$2:$D$88,0),COUNTA(NSA!1:1)-($C$4-CZ$55)) -> 0
B62: OTM 1 | D62: =D57-C57 -> 4900 | E62: 10600 | F62: 34600 | G62: 26900 | H62: 30300 | I62: 11400 | J62: 1600 | K62: -27600 | L62: -4200 | M62: -2600 | N62: -8800 | O62: -52400 | P62: 4000 | Q62: 15900 | R62: 22100 | S62: 31300 | T62: 40800 | U62: 700 | V62: 500 | W62: -32600 | X62: 7400 | Y62: -5400 | Z62: -12800 | AA62: -49300 | AB62: 2400 | AC62: 18500 | AD62: 18400 | AE62: 31300 | AF62: 52100 | AG62: 13200 | AH62: -3100 | AI62: -34300 | AJ62: =AJ57-AI57 -> 1300 | AK62: 1700 | AL62: -7300 | AM62: -60700 | AN62: -3600 | AO62: 5400 | AP62: 18200 | AQ62: 36400 | AR62: 42900 | AS62: 2500 | AT62: -4100 | AU62: -34200 | AV62: 6400 | AW62: -6600 | AX62: -5900 | AY62: -2583000 | AZ62: 0 | BA62: 0 | BB62: 0 | BC62: 0 | BD62: 0 | BE62: 0 | BF62: 0 | BG62: 0 | BH62: 0 | BI62: 0 | BJ62: 0 | BK62: 0 | BL62: 0 | BM62: 0 | BN62: 0 | BO62: 0 | BP62: =BP57-BO57 -> 0 | BQ62: 0 | BR62: 0 | BS62: 0 | BT62: 0 | BU62: 0 | BV62: 0 | BW62: 0 | BX62: 0 | BY62: 0 | BZ62: 0 | CA62: 0 | CB62: 0 | CC62: 0 | CD62: 0 | CE62: 0 | CF62: 0 | CG62: 0 | CH62: 0 | CI62: 0 | CJ62: 0 | CK62: 0 | CL62: 0 | CM62: 0 | CN62: 0 | CO62: 0 | CP62: 0 | CQ62: 0 | CR62: 0 | CS62: 0 | CT62: 0 | CU62: 0 | CV62: 0 | CW62: 0 | CX62: 0 | CY62: 0 | CZ62: 0
B63: OTM 2 | D63: =D58-C58 -> 4900 | E63: 10600 | F63: 34600 | G63: 26900 | H63: 30300 | I63: 11400 | J63: 1600 | K63: -27600 | L63: -4200 | M63: -2600 | N63: -8800 | O63: -52400 | P63: 4000 | Q63: 15900 | R63: 22100 | S63: 31300 | T63: 40800 | U63: 700 | V63: 500 | W63: -32600 | X63: 7400 | Y63: -5400 | Z63: -12800 | AA63: -49300 | AB63: 2400 | AC63: 18500 | AD63: 18400 | AE63: 31300 | AF63: 52100 | AG63: 13200 | AH63: -3100 | AI63: -34300 | AJ63: =AJ58-AI58 -> 1300 | AK63: 1700 | AL63: -7300 | AM63: -60700 | AN63: -3600 | AO63: 5400 | AP63: 18200 | AQ63: 36400 | AR63: 42900 | AS63: 2500 | AT63: -4100 | AU63: -34200 | AV63: 6400 | AW63: -6600 | AX63: -5900 | AY63: -2583000 | AZ63: 0 | BA63: 0 | BB63: 0 | BC63: 0 | BD63: 0 | BE63: 0 | BF63: 0 | BG63: 0 | BH63: 0 | BI63: 0 | BJ63: 0 | BK63: 0 | BL63: 0 | BM63: 0 | BN63: 0 | BO63: 0 | BP63: =BP58-BO58 -> 0 | BQ63: 0 | BR63: 0 | BS63: 0 | BT63: 0 | BU63: 0 | BV63: 0 | BW63: 0 | BX63: 0 | BY63: 0 | BZ63: 0 | CA63: 0 | CB63: 0 | CC63: 0 | CD63: 0 | CE63: 0 | CF63: 0 | CG63: 0 | CH63: 0 | CI63: 0 | CJ63: 0 | CK63: 0 | CL63: 0 | CM63: 0 | CN63: 0 | CO63: 0 | CP63: 0 | CQ63: 0 | CR63: 0 | CS63: 0 | CT63: 0 | CU63: 0 | CV63: 0 | CW63: 0 | CX63: 0 | CY63: 0 | CZ63: 0
B64: %OTM 1 | D64: =D62/C57*100 -> 0.2004253927 | E64: 0.4327060456 | F64: 1.406332561 | G64: 1.078199527 | H64: 1.201522722 | I64: 0.4466909604 | J64: 0.06241466745 | K64: -1.075981443 | L64: -0.1655172414 | M64: -0.1026329294 | N64: -0.3477298771 | O64: -2.077798485 | P64: 0.1619761085 | Q64: 0.6428138266 | R64: 0.8877641199 | S64: 1.246267171 | T64: 1.604530439 | U64: 0.0270939774 | V64: 0.01934759896 | W64: -1.261219437 | X64: 0.289945929 | Y64: -0.2109704641 | Z64: -0.5011353849 | AA64: -1.939875659 | AB64: 0.09630432166 | AC64: 0.7416315895 | AD64: 0.7321925985 | AE64: 1.236469938 | AF64: 2.033012058 | AG64: 0.5048187242 | AH64: -0.1179604262 | AI64: -1.306716446 | AJ64: =AJ62/AI57*100 -> 0.05018142515 | AK64: 0.06558895019 | AL64: -0.2814620605 | AM64: -2.346982175 | AN64: -0.1425403864 | AO64: 0.2141157811 | AP64: 0.7201076205 | AQ64: 1.42991829 | AR64: 1.661502711 | AS64: 0.09524172349 | AT64: -0.1560478039 | AU64: -1.303701445 | AV64: 0.2471901433 | AW64: -0.2542862647 | AX64: -0.2278960176 | AY64: -100 | BP64: =BP62/BO57*100 -> 
B65: %OTM 2 | D65: =D63/C58*100 -> 0.2004253927 | E65: 0.4327060456 | F65: 1.406332561 | G65: 1.078199527 | H65: 1.201522722 | I65: 0.4466909604 | J65: 0.06241466745 | K65: -1.075981443 | L65: -0.1655172414 | M65: -0.1026329294 | N65: -0.3477298771 | O65: -2.077798485 | P65: 0.1619761085 | Q65: 0.6428138266 | R65: 0.8877641199 | S65: 1.246267171 | T65: 1.604530439 | U65: 0.0270939774 | V65: 0.01934759896 | W65: -1.261219437 | X65: 0.289945929 | Y65: -0.2109704641 | Z65: -0.5011353849 | AA65: -1.939875659 | AB65: 0.09630432166 | AC65: 0.7416315895 | AD65: 0.7321925985 | AE65: 1.236469938 | AF65: 2.033012058 | AG65: 0.5048187242 | AH65: -0.1179604262 | AI65: -1.306716446 | AJ65: =AJ63/AI58*100 -> 0.05018142515 | AK65: 0.06558895019 | AL65: -0.2814620605 | AM65: -2.346982175 | AN65: -0.1425403864 | AO65: 0.2141157811 | AP65: 0.7201076205 | AQ65: 1.42991829 | AR65: 1.661502711 | AS65: 0.09524172349 | AT65: -0.1560478039 | AU65: -1.303701445 | AV65: 0.2471901433 | AW65: -0.2542862647 | AX65: -0.2278960176 | AY65: -100 | BP65: =BP63/BO58*100 -> 
C66: Used for pop-up menus. --> | D66: None | BJ66: =(BJ57-BI57)/(BB57-BI57) -> 
C67: May need to change if | D67: =NSA!D2 -> Total Nonfarm | BJ67: =(BJ58-BI58)/(BB58-BI58) -> 
C68: NSA sector names change. | D68: =NSA!D3 -> Total Private | AK68: =(AK57-AE57)/AE57*100 -> 1.20575955
D69: =NSA!D4 -> Goods Producing
D70: =NSA!D5 -> Service-Providing | M70: <-- Button no longer needed; relevant code called directly when parameter cells change.
D71: =NSA!D6 -> Private Service Providing
D72: =NSA!D7 -> Mining and Logging | K72: Axis range calculations (referenced in axis-manipulation code)
D73: =NSA!D9 -> Construction | K73: Ave | L73: SD | M73: Min | N73: Max | O73: SDMin | P73: SDMax | Q73: AxisSDMin | R73: AxisSDMax | S73: AxisMin | T73: AxisMax
D74: =NSA!D10 -> Construction of Buildings | K74: =AVERAGE(OFFSET($C57,0,0,1,$C$4)) -> 2549602.083 | L74: =STDEV(OFFSET($C57,0,0,1,$C$4)) -> 49073.50323 | M74: =MIN(OFFSET($C57,0,0,1,$C$4))-($C57*0.05) -> 2322560 | N74: =MAX(OFFSET($C57,0,0,1,$C$4))*1.05 -> 2759400 | O74: =(M74-$K74)/$L74 -> -4.626571742 | P74: =(N74-$K74)/$L74 -> 4.275177089 | Q74: =IF(ISNA(O75),FLOOR(O74,0.25),FLOOR(MIN($O$74:$O$75),0.25)) -> -4.75 | R74: =IF(ISNA(P75),CEILING(P74,0.25),CEILING(MAX($P$74:$P$75),0.25)) -> 4.5 | S74: =Q74*$L74+$K74 -> 2316502.943 | T74: =R74*$L74+$K74 -> 2770432.848
D75: =NSA!D11 -> Heavy and Civil Engineering Construction | K75: =AVERAGE(OFFSET($C58,0,0,1,$C$4)) -> 2549602.083 | L75: =STDEV(OFFSET($C58,0,0,1,$C$4)) -> 49073.50323 | M75: =MIN(OFFSET($C58,0,0,1,$C$4))-($C58*0.05) -> 2322560 | N75: =MAX(OFFSET($C58,0,0,1,$C$4))*1.05 -> 2759400 | O75: =(M75-$K75)/$L75 -> -4.626571742 | P75: =(N75-$K75)/$L75 -> 4.275177089 | Q75: =IF(ISNA(O74),FLOOR(O75,0.25),FLOOR(MIN($O$74:$O$75),0.25)) -> -4.75 | R75: =IF(ISNA(P74),CEILING(P75,0.25),CEILING(MAX($P$74:$P$75),0.25)) -> 4.5 | S75: =Q75*$L75+$K75 -> 2316502.943 | T75: =R75*$L75+$K75 -> 2770432.848
D76: =NSA!D12 -> Specialty Trade Contractors
D77: =NSA!D13 -> Building Equipment Contractors
D78: =NSA!D14 -> Manufacturing
D79: =NSA!D15 -> Durable Goods | K79: Ave | L79: SD | M79: Min | N79: Max | O79: SDMin | P79: SDMax | Q79: AxisSDMin | R79: AxisSDMax | S79: AxisMin | T79: AxisMax
D80: =NSA!D16 -> Wood Product Manufacturing | K80: =AVERAGE(OFFSET($C60,0,0,1,$C$4)) -> 472952.0833 | L80: =STDEV(OFFSET($C60,0,0,1,$C$4)) -> 9746.532162 | M80: =MIN(OFFSET($C60,0,0,1,$C$4))-($C60*0.05) -> 436900 | N80: =MAX(OFFSET($C60,0,0,1,$C$4))*1.05 -> 520275 | O80: =(M80-$K80)/$L80 -> -3.698965205 | P80: =(N80-$K80)/$L80 -> 4.855359412 | Q80: =IF(ISNA(O75),FLOOR(O80,0.25),FLOOR(MIN($O$74:$O$75),0.25)) -> -4.75 | R80: =IF(ISNA(P75),CEILING(P80,0.25),CEILING(MAX($P$74:$P$75),0.25)) -> 4.5 | S80: =Q80*$L80+$K80 -> 426656.0556 | T80: =R80*$L80+$K80 -> 516811.4781
D81: =NSA!D17 -> Fabricated Metal Product Manufacturing | K81: =AVERAGE(OFFSET($C61,0,0,1,$C$4)) -> 307433.3333 | L81: =STDEV(OFFSET($C61,0,0,1,$C$4)) -> 5455.168673 | M81: =MIN(OFFSET($C61,0,0,1,$C$4))-($C61*0.05) -> 283460 | N81: =MAX(OFFSET($C61,0,0,1,$C$4))*1.05 -> 336735 | O81: =(M81-$K81)/$L81 -> -4.394608998 | P81: =(N81-$K81)/$L81 -> 5.371358509 | Q81: =IF(ISNA(O80),FLOOR(O81,0.25),FLOOR(MIN($O$74:$O$75),0.25)) -> -4.75 | R81: =IF(ISNA(P80),CEILING(P81,0.25),CEILING(MAX($P$74:$P$75),0.25)) -> 4.5 | S81: =Q81*$L81+$K81 -> 281521.2821 | T81: =R81*$L81+$K81 -> 331981.5924
D82: =NSA!D18 -> Machinery Manufacturing
D83: =NSA!D19 -> Electrical Equipment, Appliance, and Component Manufacturing
D84: =NSA!D20 -> Transportation Equipment Manufacturing
D85: =NSA!D21 -> Non-Durable Goods
D86: =NSA!D22 -> Food Manufacturing
D87: =NSA!D23 -> Animal Slaughtering and Processing
D88: =NSA!D24 -> Paper Manufacturing
D89: =NSA!D25 -> Printing and Related Support Activities
D90: =NSA!D26 -> Plastics and Rubber Products Manufacturing
D91: =NSA!D27 -> Plastics Product Manufacturing
D92: =NSA!D28 -> Trade, Transportation, and Utilities
D93: =NSA!D29 -> Wholesale Trade
D94: =NSA!D30 -> Merchant Wholesalers, Durable Goods
D95: =NSA!D31 -> Merchant Wholesalers, Nondurable Goods
D96: =NSA!D32 -> Grocery and Related Product Merchant Wholesalers
D97: =NSA!D33 -> Retail Trade
D98: =NSA!D34 -> Motor Vehicle and Parts Dealers
D99: =NSA!D35 -> Building Material and Garden Equipment and Supplies Dealers
D100: =NSA!D36 -> Food and Beverage Stores
D101: =NSA!D37 -> Grocery Stores
D102: =NSA!D38 -> Gasoline Stations
D103: =NSA!D39 -> General Merchandise Stores
D104: =NSA!D40 -> Department Stores
D105: =NSA!D41 -> Nonstore Retailers
D106: =NSA!D42 -> Electronic Shopping and Mail-Order Houses
D107: =NSA!D43 -> Transportation, Warehousing, and Utilities
D108: =NSA!D44 -> Utilities
D109: =NSA!D45 -> Transportation and Warehousing
D110: =NSA!D46 -> Truck Transportation
D111: =NSA!D47 -> Information
D112: =NSA!D48 -> Financial Activities
D113: =NSA!D49 -> Finance and Insurance
D114: =NSA!D50 -> Credit Intermediation and Related Activities including Monetary Authorities-Central Bank
D115: =NSA!D51 -> Depository Credit Intermediation including Monetary Authorities-Central Bank
D116: =NSA!D52 -> Insurance Carriers and Related Activities
D117: =NSA!D53 -> Real Estate and Rental and Leasing
D118: =NSA!D54 -> Professional and Business Services
D119: =NSA!D55 -> Professional, Scientific, and Technical Services
D120: =NSA!D56 -> Architectural, Engineering, and Related Services
D121: =NSA!D57 -> Management of Companies and Enterprises
D122: =NSA!D58 -> Administrative and Support and Waste Management and Remediation Services
D123: =NSA!D59 -> Employment Services
D124: =NSA!D60 -> Services to Buildings and Dwellings
D125: =NSA!D61 -> Education and Health Services
D126: =NSA!D62 -> Educational Services
D127: =NSA!D63 -> Colleges, Universities, and Professional Schools
D128: =NSA!D64 -> Health Care and Social Assistance
D129: =NSA!D65 -> Ambulatory Health Care Services
D130: =NSA!D66 -> Offices of Physicians
D131: =NSA!D67 -> Outpatient Care Centers
D132: =NSA!D68 -> Hospitals
D133: =NSA!D69 -> Nursing and Residential Care Facilities
D134: =NSA!D70 -> Nursing Care Facilities
D135: =NSA!D71 -> Social Assistance
D136: =NSA!D72 -> Leisure and Hospitality
D137: =NSA!D73 -> Arts, Entertainment, and Recreation
D138: =NSA!D74 -> Accommodation and Food Services
D139: =NSA!D75 -> Accommodation
D140: =NSA!D76 -> Food Services and Drinking Places
D141: =NSA!D77 -> Drinking Places (Alcoholic Beverages)
D142: =NSA!D78 -> Restaurants and Other Eating Places
D143: =NSA!D79 -> Full-service restaurants
D144: =NSA!D80 -> Limited Service Eating Places and Other Eating Places
D145: =NSA!D81 -> Other Services
D146: =NSA!D82 -> Repair and Maintenance
D147: =NSA!D83 -> Personal and Laundry Services
D148: =NSA!D84 -> Religious, Grantmaking, Civic, Professional, and Similar Organizations
D149: =NSA!D85 -> Government
D150: =NSA!D86 -> Federal Government
D151: =NSA!D87 -> State Government
D152: =NSA!D88 -> Local Government
D153: =NSA!D89 -> Local Government Educational Services

Sheet Monthly
A40: This graph is based on your selection in SA charts and shows the monthly fluctuations
F65: 1 | G65: =F65+1 -> 2 | H65: =G65+1 -> 3 | I65: 4 | J65: 5 | K65: 6 | L65: 7 | M65: 8 | N65: 9 | O65: 10 | P65: 11 | Q65: 12 | R65: 13 | S65: 14 | T65: 15 | U65: 16 | V65: 17 | W65: 18 | X65: 19 | Y65: 20 | Z65: 21 | AA65: 22 | AB65: 23 | AC65: 24 | AD65: 25 | AE65: 26 | AF65: 27 | AG65: 28 | AH65: 29 | AI65: 30 | AJ65: 31 | AK65: 32 | AL65: 33 | AM65: 34 | AN65: 35 | AO65: 36 | AP65: 37 | AQ65: 38 | AR65: 39 | AS65: 40 | AT65: 41 | AU65: 42 | AV65: 43 | AW65: 44 | AX65: 45
B66: 3 Month Chg | E66: =AVERAGE('SA Charts'!C44:E44) -> 1600 | F66: =AVERAGE('SA Charts'!D44:F44) -> 2533.333333 | G66: =AVERAGE('SA Charts'!E44:G44) -> 566.6666667 | H66: =AVERAGE('SA Charts'!F44:H44) -> -666.6666667 | I66: =AVERAGE('SA Charts'!G44:I44) -> 533.3333333 | J66: =AVERAGE('SA Charts'!H44:J44) -> 1800 | K66: =AVERAGE('SA Charts'!I44:K44) -> 3700 | L66: =AVERAGE('SA Charts'!J44:L44) -> 1233.333333 | M66: =AVERAGE('SA Charts'!K44:M44) -> 1366.666667 | N66: =AVERAGE('SA Charts'!L44:N44) -> 733.3333333 | O66: =AVERAGE('SA Charts'!M44:O44) -> 3800 | P66: =AVERAGE('SA Charts'!N44:P44) -> 4466.666667 | Q66: =AVERAGE('SA Charts'!O44:Q44) -> 5666.666667 | R66: =AVERAGE('SA Charts'!P44:R44) -> 1700 | S66: =AVERAGE('SA Charts'!Q44:S44) -> -566.6666667 | T66: =AVERAGE('SA Charts'!R44:T44) -> 100 | U66: =AVERAGE('SA Charts'!S44:U44) -> 33.33333333 | V66: =AVERAGE('SA Charts'!T44:V44) -> 1200 | W66: =AVERAGE('SA Charts'!U44:W44) -> -1400 | X66: =AVERAGE('SA Charts'!V44:X44) -> 566.6666667 | Y66: =AVERAGE('SA Charts'!W44:Y44) -> 1433.333333 | Z66: =AVERAGE('SA Charts'!X44:Z44) -> 4000 | AA66: =AVERAGE('SA Charts'!Y44:AA44) -> 5166.666667 | AB66: =AVERAGE('SA Charts'!Z44:AB44) -> 5466.666667 | AC66: =AVERAGE('SA Charts'!AA44:AC44) -> 6333.333333 | AD66: =AVERAGE('SA Charts'!AB44:AD44) -> 2100 | AE66: =AVERAGE('SA Charts'!AC44:AE44) -> 600 | AF66: =AVERAGE('SA Charts'!AD44:AF44) -> 100 | AG66: =AVERAGE('SA Charts'!AE44:AG44) -> 4366.666667 | AH66: =AVERAGE('SA Charts'!AF44:AH44) -> 4066.666667 | AI66: =AVERAGE('SA Charts'!AG44:AI44) -> 1966.666667 | AJ66: =AVERAGE('SA Charts'!AH44:AJ44) -> -500 | AK66: =AVERAGE('SA Charts'!AI44:AK44) -> 3666.666667 | AL66: =AVERAGE('SA Charts'!AJ44:AL44) -> 6566.666667 | AM66: =AVERAGE('SA Charts'!AK44:AM44) -> 4200 | AN66: =AVERAGE('SA Charts'!AL44:AN44) -> 133.3333333 | AO66: =AVERAGE('SA Charts'!AM44:AO44) -> -5033.333333 | AP66: =AVERAGE('SA Charts'!AN44:AP44) -> -2700 | AQ66: =AVERAGE('SA Charts'!AO44:AQ44) -> -1833.333333 | AR66: =AVERAGE('SA Charts'!AP44:AR44) -> 133.3333333 | AS66: =AVERAGE('SA Charts'!AQ44:AS44) -> -833.3333333 | AT66: =AVERAGE('SA Charts'!AR44:AT44) -> -1266.666667 | AU66: =AVERAGE('SA Charts'!AS44:AU44) -> -700 | AV66: =AVERAGE('SA Charts'!AT44:AV44) -> 1000 | AW66: =AVERAGE('SA Charts'!AU44:AW44) -> 1400 | AX66: =AVERAGE('SA Charts'!AV44:AX44) -> 4000 | AY66: =AVERAGE('SA Charts'!AW44:AY44) ->  | AZ66: =AVERAGE('SA Charts'!AX44:AZ44) ->  | BA66: =AVERAGE('SA Charts'!AY44:BA44) ->  | BB66: =AVERAGE('SA Charts'!AZ44:BB44) ->  | BC66: =AVERAGE('SA Charts'!BA44:BC44) ->  | BD66: =AVERAGE('SA Charts'!BB44:BD44) ->  | BE66: =AVERAGE('SA Charts'!BC44:BE44) ->  | BF66: =AVERAGE('SA Charts'!BD44:BF44) ->  | BG66: =AVERAGE('SA Charts'!BE44:BG44) ->  | BH66: =AVERAGE('SA Charts'!BF44:BH44) ->  | BI66: =AVERAGE('SA Charts'!BG44:BI44) ->  | BJ66: =AVERAGE('SA Charts'!BH44:BJ44) ->  | BK66: =AVERAGE('SA Charts'!BI44:BK44) ->  | BL66: =AVERAGE('SA Charts'!BJ44:BL44) ->  | BM66: =AVERAGE('SA Charts'!BK44:BM44) ->  | BN66: =AVERAGE('SA Charts'!BL44:BN44) ->  | BO66: =AVERAGE('SA Charts'!BM44:BO44) ->  | BP66: =AVERAGE('SA Charts'!BN44:BP44) ->  | BQ66: =AVERAGE('SA Charts'!BO44:BQ44) ->  | BR66: =AVERAGE('SA Charts'!BP44:BR44) ->  | BS66: =AVERAGE('SA Charts'!BQ44:BS44) ->  | BT66: =AVERAGE('SA Charts'!BR44:BT44) ->  | BU66: =AVERAGE('SA Charts'!BS44:BU44) ->  | BV66: =AVERAGE('SA Charts'!BT44:BV44) ->  | BW66: =AVERAGE('SA Charts'!BU44:BW44) ->  | BX66: =AVERAGE('SA Charts'!BV44:BX44) ->  | BY66: =AVERAGE('SA Charts'!BW44:BY44) ->  | BZ66: =AVERAGE('SA Charts'!BX44:BZ44) ->  | CA66: =AVERAGE('SA Charts'!BY44:CA44) ->  | CB66: =AVERAGE('SA Charts'!BZ44:CB44) ->  | CC66: =AVERAGE('SA Charts'!CA44:CC44) ->  | CD66: =AVERAGE('SA Charts'!CB44:CD44) ->  | CE66: =AVERAGE('SA Charts'!CC44:CE44) ->  | CF66: =AVERAGE('SA Charts'!CD44:CF44) ->  | CG66: =AVERAGE('SA Charts'!CE44:CG44) ->  | CH66: =AVERAGE('SA Charts'!CF44:CH44) ->  | CI66: =AVERAGE('SA Charts'!CG44:CI44) ->  | CJ66: =AVERAGE('SA Charts'!CH44:CJ44) ->  | CK66: =AVERAGE('SA Charts'!CI44:CK44) ->  | CL66: =AVERAGE('SA Charts'!CJ44:CL44) ->  | CM66: =AVERAGE('SA Charts'!CK44:CM44) ->  | CN66: =AVERAGE('SA Charts'!CL44:CN44) ->  | CO66: =AVERAGE('SA Charts'!CM44:CO44) ->  | CP66: =AVERAGE('SA Charts'!CN44:CP44) ->  | CQ66: =AVERAGE('SA Charts'!CO44:CQ44) ->  | CR66: =AVERAGE('SA Charts'!CP44:CR44) ->  | CS66: =AVERAGE('SA Charts'!CQ44:CS44) ->  | CT66: =AVERAGE('SA Charts'!CR44:CT44) ->  | CU66: =AVERAGE('SA Charts'!CS44:CU44) ->  | CV66: =AVERAGE('SA Charts'!CT44:CV44) ->  | CW66: =AVERAGE('SA Charts'!CU44:CW44) ->  | CX66: =AVERAGE('SA Charts'!CV44:CX44) ->  | CY66: =AVERAGE('SA Charts'!CW44:CY44) ->  | CZ66: =AVERAGE('SA Charts'!CX44:CZ44) -> 
B69: 6 mo trend | C69: Current | D69: Diff | E69: Expected value | F69: ='SA Charts'!AX41 -> 2019-12-01 | G69: ='SA Charts'!AW41 -> 2019-11-01 | H69: ='SA Charts'!AL41 -> 2018-12-01 | J69: AVG 48 mo | K69: AVG 24 mo | L69: AVG 12 mo | M69: AVG 6 mo | N69: AVG 3 mo | P69: 12 mo var | Q69: 6 mo var | R69: 3 mo var
A70: ='SA Charts'!C2 -> Total Private | E70: =(N70)-(F70+G70) -> -6100 | F70: ='SA Charts'!AX44 -> 9000 | G70: ='SA Charts'!AW44 -> 1100 | H70: ='SA Charts'!AL44 -> 9100 | J70: =AVERAGE('SA Charts'!D44:AX44) -> 1695.744681 | K70: =AVERAGE('SA Charts'!AA44:AX44) -> 1670.833333 | L70: =AVERAGE('SA Charts'!AM44:AX44) -> -400 | M70: =AVERAGE('SA Charts'!AS44:AX44) -> 1650 | N70: =AVERAGE('SA Charts'!AV44:AX44) -> 4000 | P70: =F70-L70 -> 9400 | Q70: =F70-M70 -> 7350 | R70: =F70-N70 -> 5000

Sheet 3Month
A42: This graph is based on your selection in SA charts
A44: This graph shows how providing a 3 month-view of the data smoothes out volatility. Where you see no data are months where the 3 month average=0.

Sheet Historical
A1: CES Historical Analysis | B1: Key | C1: <15% | D1: 15 to 30% | E1: 31 to 45% | F1: 46 to 55% | G1: 56 to 70% | H1: 71 to 85% | I1: >85% | CT1: Key | CU1: <15% | CV1: 15 to 30% | CW1: 31 to 45% | CX1: 46 to 55% | CY1: 56 to 70% | CZ1: 71 to 85% | DA1: >85% | EY1: Key | EZ1: Significantly Higher Change (bolded italicized black text)
C2: Bottom 15% | I2: Top 15% | CU2: Bottom 15% | DA2: Top 15% | EZ2: Significantly Lower Change (bolded italicized red text)
AW3: GM Closes | EY3: Above Key applies to values starting October 2017 (non-benchmarked data)
GB4: Dark Red Shaded: low performance for sector over time frame
B5: Scroll to the right | N5: Housing Market Prices Peaks | Z5: Housing Market Price Declines Begin | AE5: Peak | AF5: Decline begins | AH5: Floods | AU5: Great Recession | BV5: Act 10 Protests | CA5: Act 10 Passes | CD5: Education Cuts begin | CM5: Severe Drought | DF5: Dodd Frank | GB5: Dark Blue Shaded: high performance for sector over time frame
DE6: Severe Winter Weather/Late Spring | EY6: Post Benchmark Re-estimates | FE6: Long Winter!
A7: Year over Year Change | B7: 2005-01-01 | C7: 2005-02-01 | D7: 2005-03-01 | E7: 2005-04-01 | F7: 2005-05-01 | G7: 2005-06-01 | H7: 2005-07-01 | I7: 2005-08-01 | J7: 2005-09-01 | K7: 2005-10-01 | L7: 2005-11-01 | M7: 2005-12-01 | N7: 2006-01-01 | O7: 2006-02-01 | P7: 2006-03-01 | Q7: 2006-04-01 | R7: 2006-05-01 | S7: 2006-06-01 | T7: 2006-07-01 | U7: 2006-08-01 | V7: 2006-09-01 | W7: 2006-10-01 | X7: 2006-11-01 | Y7: 2006-12-01 | Z7: 2007-01-01 | AA7: 2007-02-01 | AB7: 2007-03-01 | AC7: 2007-04-01 | AD7: 2007-05-01 | AE7: 2007-06-01 | AF7: 2007-07-01 | AG7: 2007-08-01 | AH7: 2007-09-01 | AI7: 2007-10-01 | AJ7: 2007-11-01 | AK7: 2007-12-01 | AL7: 2008-01-01 | AM7: 2008-02-01 | AN7: 2008-03-01 | AO7: 2008-04-01 | AP7: 2008-05-01 | AQ7: 2008-06-01 | AR7: 2008-07-01 | AS7: 2008-08-01 | AT7: 2008-09-01 | AU7: 2008-10-01 | AV7: 2008-11-01 | AW7: 2008-12-01 | AX7: 2009-01-01 | AY7: 2009-02-01 | AZ7: 2009-03-01 | BA7: 2009-04-01 | BB7: 2009-05-01 | BC7: 2009-06-01 | BD7: 2009-07-01 | BE7: 2009-08-01 | BF7: 2009-09-01 | BG7: 2009-10-01 | BH7: 2009-11-01 | BI7: 2009-12-01 | BJ7: 2010-01-01 | BK7: 2010-02-01 | BL7: 2010-03-01 | BM7: 2010-04-01 | BN7: 2010-05-01 | BO7: 2010-06-01 | BP7: 2010-07-01 | BQ7: 2010-08-01 | BR7: 2010-09-01 | BS7: 2010-10-01 | BT7: 2010-11-01 | BU7: 2010-12-01 | BV7: 2011-01-01 | BW7: 2011-02-01 | BX7: 2011-03-01 | BY7: 2011-04-01 | BZ7: 2011-05-01 | CA7: 2011-06-01 | CB7: 2011-07-01 | CC7: 2011-08-01 | CD7: 2011-09-01 | CE7: 2011-10-01 | CF7: 2011-11-01 | CG7: 2011-12-01 | CH7: 2012-01-01 | CI7: 2012-02-01 | CJ7: 2012-03-01 | CK7: 2012-04-01 | CL7: 2012-05-01 | CM7: 2012-06-01 | CN7: 2012-07-01 | CO7: 2012-08-01 | CP7: 2012-09-01 | CQ7: 2012-10-01 | CR7: 2012-11-01 | CS7: 2012-12-01 | CT7: 2013-01-01 | CU7: 2013-02-01 | CV7: 2013-03-01 | CW7: 2013-04-01 | CX7: 2013-05-01 | CY7: 2013-06-01 | CZ7: 2013-07-01 | DA7: 2013-08-01 | DB7: 2013-09-01 | DC7: 2013-10-01 | DD7: 2013-11-01 | DE7: 2013-12-01 | DF7: 2014-01-01 | DG7: 2014-02-01 | DH7: 2014-03-01 | DI7: 2014-04-01 | DJ7: 2014-05-01 | DK7: 2014-06-01 | DL7: =EDATE(DK7, 1) -> 2014-07-01 | DM7: =EDATE(DL7, 1) -> 2014-08-01 | DN7: 2014-09-01 | DO7: 2014-10-01 | DP7: 2014-11-01 | DQ7: 2014-12-01 | DR7: 2015-01-01 | DS7: 2015-02-01 | DT7: 2015-03-01 | DU7: 2015-04-01 | DV7: 2015-05-01 | DW7: 2015-06-01 | DX7: 2015-07-01 | DY7: 2015-08-01 | DZ7: 2015-09-01 | EA7: 2015-10-01 | EB7: 2015-11-01 | EC7: 2015-12-01 | ED7: 2016-01-01 | EE7: =EDATE(ED7, 1) -> 2016-02-01 | EF7: =EDATE(EE7, 1) -> 2016-03-01 | EG7: =EDATE(EF7, 1) -> 2016-04-01 | EH7: =EDATE(EG7, 1) -> 2016-05-01 | EI7: =EDATE(EH7, 1) -> 2016-06-01 | EJ7: =EDATE(EI7, 1) -> 2016-07-01 | EK7: =EDATE(EJ7, 1) -> 2016-08-01 | EL7: =EDATE(EK7, 1) -> 2016-09-01 | EM7: 2016-10-01 | EN7: 2016-11-01 | EO7: =EDATE(EN7, 1) -> 2016-12-01 | EP7: =EDATE(EO7, 1) -> 2017-01-01 | EQ7: =EDATE(EP7, 1) -> 2017-02-01 | ER7: =EDATE(EQ7, 1) -> 2017-03-01 | ES7: 2017-04-01 | ET7: 2017-05-01 | EU7: 2017-06-01 | EV7: 2017-07-01 | EW7: 2017-08-01 | EX7: 2017-09-01 | EY7: 2017-10-01 | EZ7: 2017-11-01 | FA7: =EDATE(EZ7, 1) -> 2017-12-01 | FB7: =EDATE(FA7, 1) -> 2018-01-01 | FC7: 2018-02-01 | FD7: 2018-03-01 | FE7: 2018-04-01 | FF7: 2018-05-01 | FG7: 2018-06-01 | FH7: 2018-07-01 | FI7: 2018-08-01 | FJ7: 2018-09-01 | FK7: 2018-10-01 | FL7: 2018-11-01 | FM7: 2018-12-01 | FN7: =EDATE(FM7, 1) -> 2019-01-01 | FO7: =EDATE(FN7, 1) -> 2019-02-01 | FP7: =EDATE(FO7, 1) -> 2019-03-01 | FQ7: =EDATE(FP7, 1) -> 2019-04-01 | FR7: =EDATE(FQ7, 1) -> 2019-05-01 | FS7: =EDATE(FR7, 1) -> 2019-06-01 | FT7: =EDATE(FS7, 1) -> 2019-07-01 | FU7: =EDATE(FT7, 1) -> 2019-08-01 | FV7: =EDATE(FU7, 1) -> 2019-09-01 | FW7: =EDATE(FV7, 1) -> 2019-10-01 | FX7: =EDATE(FW7, 1) -> 2019-11-01 | FY7: =EDATE(FX7, 1) -> 2019-12-01 | FZ7: =EDATE(FY7, 1) -> 2020-01-01 | GA7: Y/Y Sig | GB7: # Positive Sig Changes since October 2017 | GC7: 12 mo Trend | GD7: Year over Year Change | GE7: Min | GF7: 0.15 | GG7: 0.3 | GH7: 0.45 | GI7: 0.55 | GJ7: 0.7 | GK7: 0.85 | GL7: Max | GM7: Std Deviation
A8: Total Non Farm | B8: =SA!BN2-SA!BB2 -> 37600 | C8: =SA!BO2-SA!BC2 -> 40000 | D8: =SA!BP2-SA!BD2 -> 38800 | E8: =SA!BQ2-SA!BE2 -> 46200 | F8: =SA!BR2-SA!BF2 -> 35600 | G8: =SA!BS2-SA!BG2 -> 28900 | H8: =SA!BT2-SA!BH2 -> 28200 | I8: =SA!BU2-SA!BI2 -> 24100 | J8: =SA!BV2-SA!BJ2 -> 39200 | K8: =SA!BW2-SA!BK2 -> 25600 | L8: =SA!BX2-SA!BL2 -> 27200 | M8: =SA!BY2-SA!BM2 -> 32700 | N8: =SA!BZ2-SA!BN2 -> 30900 | O8: =SA!CA2-SA!BO2 -> 27800 | P8: =SA!CB2-SA!BP2 -> 27900 | Q8: =SA!CC2-SA!BQ2 -> 26100 | R8: =SA!CD2-SA!BR2 -> 23800 | S8: =SA!CE2-SA!BS2 -> 34600 | T8: =SA!CF2-SA!BT2 -> 23500 | U8: =SA!CG2-SA!BU2 -> 21300 | V8: =SA!CH2-SA!BV2 -> 18200 | W8: =SA!CI2-SA!BW2 -> 19600 | X8: =SA!CJ2-SA!BX2 -> 17100 | Y8: =SA!CK2-SA!BY2 -> 15500 | Z8: =SA!CL2-SA!BZ2 -> 21200 | AA8: =SA!CM2-SA!CA2 -> 15700 | AB8: =SA!CN2-SA!CB2 -> 18100 | AC8: =SA!CO2-SA!CC2 -> 11300 | AD8: =SA!CP2-SA!CD2 -> 23600 | AE8: =SA!CQ2-SA!CE2 -> 24600 | AF8: =SA!CR2-SA!CF2 -> 20200 | AG8: =SA!CS2-SA!CG2 -> 18400 | AH8: =SA!CT2-SA!CH2 -> 14800 | AI8: =SA!CU2-SA!CI2 -> 10700 | AJ8: =SA!CV2-SA!CJ2 -> 10200 | AK8: =SA!CW2-SA!CK2 -> 12200 | AL8: =SA!CX2-SA!CL2 -> 12000 | AM8: =SA!CY2-SA!CM2 -> 13400 | AN8: =SA!CZ2-SA!CN2 -> 5600 | AO8: =SA!DA2-SA!CO2 -> 1100 | AP8: =SA!DB2-SA!CP2 -> -1700 | AQ8: =SA!DC2-SA!CQ2 -> -12600 | AR8: =SA!DD2-SA!CR2 -> -9100 | AS8: =SA!DE2-SA!CS2 -> -12600 | AT8: =SA!DF2-SA!CT2 -> -9200 | AU8: =SA!DG2-SA!CU2 -> -14800 | AV8: =SA!DH2-SA!CV2 -> -23700 | AW8: =SA!DI2-SA!CW2 -> -42800 | AX8: =SA!DJ2-SA!CX2 -> -73400 | AY8: =SA!DK2-SA!CY2 -> -89600 | AZ8: =SA!DL2-SA!CZ2 -> -107900 | BA8: =SA!DM2-SA!DA2 -> -125600 | BB8: =SA!DN2-SA!DB2 -> -128800 | BC8: =SA!DO2-SA!DC2 -> -139500 | BD8: =SA!DP2-SA!DD2 -> -148500 | BE8: =SA!DQ2-SA!DE2 -> -150800 | BF8: =SA!DR2-SA!DF2 -> -155300 | BG8: =SA!DS2-SA!DG2 -> -143400 | BH8: =SA!DT2-SA!DH2 -> -137600 | BI8: =SA!DU2-SA!DI2 -> -124400 | BJ8: =SA!DV2-SA!DJ2 -> -99000 | BK8: =SA!DW2-SA!DK2 -> -82200 | BL8: =SA!DX2-SA!DL2 -> -59000 | BM8: =SA!DY2-SA!DM2 -> -25900 | BN8: =SA!DZ2-SA!DN2 -> -22600 | BO8: =SA!EA2-SA!DO2 -> -11500 | BP8: =SA!EB2-SA!DP2 -> 3300 | BQ8: =SA!EC2-SA!DQ2 -> 13500 | BR8: =SA!ED2-SA!DR2 -> 13500 | BS8: =SA!EE2-SA!DS2 -> 22500 | BT8: =SA!EF2-SA!DT2 -> 27000 | BU8: =SA!EG2-SA!DU2 -> 26000 | BV8: =SA!EH2-SA!DV2 -> 30700 | BW8: =SA!EI2-SA!DW2 -> 32400 | BX8: =SA!EJ2-SA!DX2 -> 33100 | BY8: =SA!EK2-SA!DY2 -> 25800 | BZ8: =SA!EL2-SA!DZ2 -> 23900 | CA8: =SA!EM2-SA!EA2 -> 23000 | CB8: =SA!EN2-SA!EB2 -> 33100 | CC8: =SA!EO2-SA!EC2 -> 26800 | CD8: =SA!EP2-SA!ED2 -> 31500 | CE8: =SA!EQ2-SA!EE2 -> 17700 | CF8: =SA!ER2-SA!EF2 -> 17000 | CG8: =SA!ES2-SA!EG2 -> 25100 | CH8: =SA!ET2-SA!EH2 -> 16400 | CI8: =SA!EU2-SA!EI2 -> 21000 | CJ8: =SA!EV2-SA!EJ2 -> 33000 | CK8: =SA!EW2-SA!EK2 -> 37200 | CL8: =SA!EX2-SA!EL2 -> 34700 | CM8: =SA!EY2-SA!EM2 -> 36900 | CN8: =SA!EZ2-SA!EN2 -> 14600 | CO8: =SA!FA2-SA!EO2 -> 22100 | CP8: =SA!FB2-SA!EP2 -> 24600 | CQ8: =SA!FC2-SA!EQ2 -> 33900 | CR8: =SA!FD2-SA!ER2 -> 41600 | CS8: =SA!FE2-SA!ES2 -> 32200 | CT8: =SA!FF2-SA!ET2 -> 27800 | CU8: =SA!FG2-SA!EU2 -> 38400 | CV8: =SA!FH2-SA!EV2 -> 25300 | CW8: =SA!FI2-SA!EW2 -> 6400 | CX8: =SA!FJ2-SA!EX2 -> 19300 | CY8: =SA!FK2-SA!EY2 -> 24300 | CZ8: =SA!FL2-SA!EZ2 -> 34200 | DA8: =SA!FM2-SA!FA2 -> 35800 | DB8: =SA!FN2-SA!FB2 -> 36900 | DC8: =SA!FO2-SA!FC2 -> 32800 | DD8: =SA!FP2-SA!FD2 -> 25100 | DE8: =SA!FQ2-SA!FE2 -> 33100 | DF8: =SA!FR2-SA!FF2 -> 46000 | DG8: =SA!FS2-SA!FG2 -> 30300 | DH8: =SA!FT2-SA!FH2 -> 31600 | DI8: =SA!FU2-SA!FI2 -> 47700 | DJ8: =SA!FV2-SA!FJ2 -> 41300 | DK8: =SA!FW2-SA!FK2 -> 43600 | DL8: =SA!FX2-SA!FL2 -> 44000 | DM8: =SA!FY2-SA!FM2 -> 50000 | DN8: =SA!FZ2-SA!FN2 -> 42000 | DO8: =SA!GA2-SA!FO2 -> 43200 | DP8: =SA!GB2-SA!FP2 -> 53500 | DQ8: =SA!GC2-SA!FQ2 -> 44300 | DR8: =SA!GD2-SA!FR2 -> 43600 | DS8: =SA!GE2-SA!FS2 -> 44900 | DT8: =SA!GF2-SA!FT2 -> 45700 | DU8: =SA!GG2-SA!FU2 -> 43000 | DV8: =SA!GH2-SA!FV2 -> 44300 | DW8: =SA!GI2-SA!FW2 -> 39000 | DX8: =SA!GJ2-SA!FX2 -> 42800 | DY8: =SA!GK2-SA!FY2 -> 32600 | DZ8: =SA!GL2-SA!FZ2 -> 35500 | EA8: =SA!GM2-SA!GA2 -> 38600 | EB8: =SA!GN2-SA!GB2 -> 26100 | EC8: =SA!GO2-SA!GC2 -> 38800 | ED8: =SA!GP2-SA!GD2 -> 43600 | EE8: =SA!GQ2-SA!GE2 -> 44200 | EF8: =SA!GR2-SA!GF2 -> 39700 | EG8: =SA!GS2-SA!GG2 -> 43600 | EH8: =SA!GT2-SA!GH2 -> 31900 | EI8: =SA!GU2-SA!GI2 -> 28900 | EJ8: =SA!GV2-SA!GJ2 -> 33000 | EK8: =SA!GW2-SA!GK2 -> 39100 | EL8: =SA!GX2-SA!GL2 -> 32300 | EM8: =SA!GY2-SA!GM2 -> 27300 | EN8: =SA!GZ2-SA!GN2 -> 35700 | EO8: =SA!HA2-SA!GO2 -> 23400 | EP8: =SA!HB2-SA!GP2 -> 22600 | EQ8: =SA!HC2-SA!GQ2 -> 22600 | ER8: =SA!HD2-SA!GR2 -> 23900 | ES8: =SA!HE2-SA!GS2 -> 17900 | ET8: =SA!HF2-SA!GT2 -> 22700 | EU8: =SA!HG2-SA!GU2 -> 26700 | EV8: =SA!HH2-SA!GV2 -> 17600 | EW8: =SA!HI2-SA!GW2 -> 7200 | EX8: =SA!HJ2-SA!GX2 -> 12400 | EY8: =SA!HK2-SA!GY2 -> 16300 | EZ8: =SA!HL2-SA!GZ2 -> 8600 | FA8: =SA!HM2-SA!HA2 -> 19900 | FB8: =SA!HN2-SA!HB2 -> 20900 | FC8: =SA!HO2-SA!HC2 -> 23300 | FD8: =SA!HP2-SA!HD2 -> 29300 | FE8: =SA!HQ2-SA!HE2 -> 24000 | FF8: =SA!HR2-SA!HF2 -> 25000 | FG8: =SA!HS2-SA!HG2 -> 30200 | FH8: =SA!HT2-SA!HH2 -> 38500 | FI8: =SA!HU2-SA!HI2 -> 42800 | FJ8: =SA!HV2-SA!HJ2 -> 38700 | FK8: =SA!HW2-SA!HK2 -> 32200 | FL8: =SA!HX2-SA!HL2 -> 46300 | FM8: =SA!HY2-SA!HM2 -> 48300 | FN8: =SA!HZ2-SA!HN2 -> 27100 | FO8: =SA!IA2-SA!HO2 -> 17800 | FP8: =SA!IB2-SA!HP2 -> 7300 | FQ8: =SA!IC2-SA!HQ2 -> 11700 | FR8: =SA!ID2-SA!HR2 -> 14300 | FS8: =SA!IE2-SA!HS2 -> 10000 | FT8: =SA!IF2-SA!HT2 -> -3100 | FU8: =SA!IG2-SA!HU2 -> -7600 | FV8: =SA!IH2-SA!HV2 -> -1700 | FW8: =SA!II2-SA!HW2 -> 3000 | FX8: =SA!IJ2-SA!HX2 -> -10800 | FY8: =SA!IK2-SA!HY2 -> -10100 | FZ8: =SA!IL2-SA!HZ2 -> -2988600 | GA8: 28484.82 | GB8: =COUNTIF(EY8:FY8, ">" &GA8) -> 8 | GD8: Total Non Farm | GE8: =MIN(B8:FN8) -> -155300 | GF8: =_xlfn.PERCENTILE.EXC($B8:$FN8,0.15) -> -5400 | GG8: =_xlfn.PERCENTILE.EXC($B8:$FN8,0.3) -> 17700 | GH8: =_xlfn.PERCENTILE.EXC($B8:$FN8,0.45) -> 23950 | GI8: =_xlfn.PERCENTILE.EXC($B8:$FN8,0.55) -> 27050 | GJ8: =_xlfn.PERCENTILE.EXC($B8:$FN8,0.7) -> 33000 | GK8: =_xlfn.PERCENTILE.EXC($B8:$FN8,0.85) -> 39850 | GL8: =MAX(B8:FN8) -> 53500 | GM8: =STDEVP(B8:FN8) -> 44373.87466
A9: Total Private | B9: =SA!BN3-SA!BB3 -> 29300 | C9: =SA!BO3-SA!BC3 -> 35500 | D9: =SA!BP3-SA!BD3 -> 36700 | E9: =SA!BQ3-SA!BE3 -> 41500 | F9: =SA!BR3-SA!BF3 -> 32200 | G9: =SA!BS3-SA!BG3 -> 29600 | H9: =SA!BT3-SA!BH3 -> 26900 | I9: =SA!BU3-SA!BI3 -> 24200 | J9: =SA!BV3-SA!BJ3 -> 31200 | K9: =SA!BW3-SA!BK3 -> 23100 | L9: =SA!BX3-SA!BL3 -> 27900 | M9: =SA!BY3-SA!BM3 -> 27800 | N9: =SA!BZ3-SA!BN3 -> 31900 | O9: =SA!CA3-SA!BO3 -> 29400 | P9: =SA!CB3-SA!BP3 -> 26600 | Q9: =SA!CC3-SA!BQ3 -> 25300 | R9: =SA!CD3-SA!BR3 -> 24200 | S9: =SA!CE3-SA!BS3 -> 30500 | T9: =SA!CF3-SA!BT3 -> 21900 | U9: =SA!CG3-SA!BU3 -> 19300 | V9: =SA!CH3-SA!BV3 -> 18500 | W9: =SA!CI3-SA!BW3 -> 21300 | X9: =SA!CJ3-SA!BX3 -> 16200 | Y9: =SA!CK3-SA!BY3 -> 17800 | Z9: =SA!CL3-SA!BZ3 -> 22700 | AA9: =SA!CM3-SA!CA3 -> 17300 | AB9: =SA!CN3-SA!CB3 -> 19800 | AC9: =SA!CO3-SA!CC3 -> 11700 | AD9: =SA!CP3-SA!CD3 -> 21500 | AE9: =SA!CQ3-SA!CE3 -> 21000 | AF9: =SA!CR3-SA!CF3 -> 18900 | AG9: =SA!CS3-SA!CG3 -> 15900 | AH9: =SA!CT3-SA!CH3 -> 11700 | AI9: =SA!CU3-SA!CI3 -> 9300 | AJ9: =SA!CV3-SA!CJ3 -> 11200 | AK9: =SA!CW3-SA!CK3 -> 9100 | AL9: =SA!CX3-SA!CL3 -> 5500 | AM9: =SA!CY3-SA!CM3 -> 6900 | AN9: =SA!CZ3-SA!CN3 -> 1000 | AO9: =SA!DA3-SA!CO3 -> -1000 | AP9: =SA!DB3-SA!CP3 -> -5800 | AQ9: =SA!DC3-SA!CQ3 -> -11600 | AR9: =SA!DD3-SA!CR3 -> -14000 | AS9: =SA!DE3-SA!CS3 -> -14900 | AT9: =SA!DF3-SA!CT3 -> -19700 | AU9: =SA!DG3-SA!CU3 -> -24000 | AV9: =SA!DH3-SA!CV3 -> -38200 | AW9: =SA!DI3-SA!CW3 -> -50100 | AX9: =SA!DJ3-SA!CX3 -> -75500 | AY9: =SA!DK3-SA!CY3 -> -93500 | AZ9: =SA!DL3-SA!CZ3 -> -112500 | BA9: =SA!DM3-SA!DA3 -> -130800 | BB9: =SA!DN3-SA!DB3 -> -132600 | BC9: =SA!DO3-SA!DC3 -> -140700 | BD9: =SA!DP3-SA!DD3 -> -147800 | BE9: =SA!DQ3-SA!DE3 -> -148800 | BF9: =SA!DR3-SA!DF3 -> -140700 | BG9: =SA!DS3-SA!DG3 -> -138400 | BH9: =SA!DT3-SA!DH3 -> -127400 | BI9: =SA!DU3-SA!DI3 -> -119800 | BJ9: =SA!DV3-SA!DJ3 -> -95500 | BK9: =SA!DW3-SA!DK3 -> -76100 | BL9: =SA!DX3-SA!DL3 -> -54200 | BM9: =SA!DY3-SA!DM3 -> -25200 | BN9: =SA!DZ3-SA!DN3 -> -24500 | BO9: =SA!EA3-SA!DO3 -> -13700 | BP9: =SA!EB3-SA!DP3 -> 5400 | BQ9: =SA!EC3-SA!DQ3 -> 14800 | BR9: =SA!ED3-SA!DR3 -> 12300 | BS9: =SA!EE3-SA!DS3 -> 23700 | BT9: =SA!EF3-SA!DT3 -> 25500 | BU9: =SA!EG3-SA!DU3 -> 31500 | BV9: =SA!EH3-SA!DV3 -> 32800 | BW9: =SA!EI3-SA!DW3 -> 31100 | BX9: =SA!EJ3-SA!DX3 -> 32600 | BY9: =SA!EK3-SA!DY3 -> 31400 | BZ9: =SA!EL3-SA!DZ3 -> 32100 | CA9: =SA!EM3-SA!EA3 -> 31300 | CB9: =SA!EN3-SA!EB3 -> 33200 | CC9: =SA!EO3-SA!EC3 -> 30200 | CD9: =SA!EP3-SA!ED3 -> 37500 | CE9: =SA!EQ3-SA!EE3 -> 27500 | CF9: =SA!ER3-SA!EF3 -> 30300 | CG9: =SA!ES3-SA!EG3 -> 28900 | CH9: =SA!ET3-SA!EH3 -> 32200 | CI9: =SA!EU3-SA!EI3 -> 35400 | CJ9: =SA!EV3-SA!EJ3 -> 41000 | CK9: =SA!EW3-SA!EK3 -> 39000 | CL9: =SA!EX3-SA!EL3 -> 34000 | CM9: =SA!EY3-SA!EM3 -> 38800 | CN9: =SA!EZ3-SA!EN3 -> 23800 | CO9: =SA!FA3-SA!EO3 -> 23300 | CP9: =SA!FB3-SA!EP3 -> 26100 | CQ9: =SA!FC3-SA!EQ3 -> 31300 | CR9: =SA!FD3-SA!ER3 -> 32200 | CS9: =SA!FE3-SA!ES3 -> 31900 | CT9: =SA!FF3-SA!ET3 -> 28500 | CU9: =SA!FG3-SA!EU3 -> 30700 | CV9: =SA!FH3-SA!EV3 -> 26100 | CW9: =SA!FI3-SA!EW3 -> 12900 | CX9: =SA!FJ3-SA!EX3 -> 29500 | CY9: =SA!FK3-SA!EY3 -> 27500 | CZ9: =SA!FL3-SA!EZ3 -> 34800 | DA9: =SA!FM3-SA!FA3 -> 40300 | DB9: =SA!FN3-SA!FB3 -> 35400 | DC9: =SA!FO3-SA!FC3 -> 32600 | DD9: =SA!FP3-SA!FD3 -> 32800 | DE9: =SA!FQ3-SA!FE3 -> 33700 | DF9: =SA!FR3-SA!FF3 -> 35300 | DG9: =SA!FS3-SA!FG3 -> 32700 | DH9: =SA!FT3-SA!FH3 -> 31700 | DI9: =SA!FU3-SA!FI3 -> 45800 | DJ9: =SA!FV3-SA!FJ3 -> 39100 | DK9: =SA!FW3-SA!FK3 -> 41400 | DL9: =SA!FX3-SA!FL3 -> 42100 | DM9: =SA!FY3-SA!FM3 -> 41100 | DN9: =SA!FZ3-SA!FN3 -> 41100 | DO9: =SA!GA3-SA!FO3 -> 42800 | DP9: =SA!GB3-SA!FP3 -> 46600 | DQ9: =SA!GC3-SA!FQ3 -> 44000 | DR9: =SA!GD3-SA!FR3 -> 45100 | DS9: =SA!GE3-SA!FS3 -> 43000 | DT9: =SA!GF3-SA!FT3 -> 45200 | DU9: =SA!GG3-SA!FU3 -> 41100 | DV9: =SA!GH3-SA!FV3 -> 44000 | DW9: =SA!GI3-SA!FW3 -> 39900 | DX9: =SA!GJ3-SA!FX3 -> 44300 | DY9: =SA!GK3-SA!FY3 -> 41100 | DZ9: =SA!GL3-SA!FZ3 -> 40100 | EA9: =SA!GM3-SA!GA3 -> 42300 | EB9: =SA!GN3-SA!GB3 -> 38500 | EC9: =SA!GO3-SA!GC3 -> 41000 | ED9: =SA!GP3-SA!GD3 -> 42900 | EE9: =SA!GQ3-SA!GE3 -> 45000 | EF9: =SA!GR3-SA!GF3 -> 40300 | EG9: =SA!GS3-SA!GG3 -> 43400 | EH9: =SA!GT3-SA!GH3 -> 33700 | EI9: =SA!GU3-SA!GI3 -> 28900 | EJ9: =SA!GV3-SA!GJ3 -> 30700 | EK9: =SA!GW3-SA!GK3 -> 29200 | EL9: =SA!GX3-SA!GL3 -> 29500 | EM9: =SA!GY3-SA!GM3 -> 25200 | EN9: =SA!GZ3-SA!GN3 -> 22600 | EO9: =SA!HA3-SA!GO3 -> 20700 | EP9: =SA!HB3-SA!GP3 -> 24300 | EQ9: =SA!HC3-SA!GQ3 -> 24600 | ER9: =SA!HD3-SA!GR3 -> 28300 | ES9: =SA!HE3-SA!GS3 -> 21800 | ET9: =SA!HF3-SA!GT3 -> 21200 | EU9: =SA!HG3-SA!GU3 -> 30600 | EV9: =SA!HH3-SA!GV3 -> 20300 | EW9: =SA!HI3-SA!GW3 -> 19400 | EX9: =SA!HJ3-SA!GX3 -> 15300 | EY9: =SA!HK3-SA!GY3 -> 18300 | EZ9: =SA!HL3-SA!GZ3 -> 19600 | FA9: =SA!HM3-SA!HA3 -> 25100 | FB9: =SA!HN3-SA!HB3 -> 22400 | FC9: =SA!HO3-SA!HC3 -> 22600 | FD9: =SA!HP3-SA!HD3 -> 27100 | FE9: =SA!HQ3-SA!HE3 -> 23600 | FF9: =SA!HR3-SA!HF3 -> 26100 | FG9: =SA!HS3-SA!HG3 -> 27100 | FH9: =SA!HT3-SA!HH3 -> 36600 | FI9: =SA!HU3-SA!HI3 -> 34700 | FJ9: =SA!HV3-SA!HJ3 -> 37200 | FK9: =SA!HW3-SA!HK3 -> 33400 | FL9: =SA!HX3-SA!HL3 -> 41400 | FM9: =SA!HY3-SA!HM3 -> 44900 | FN9: =SA!HZ3-SA!HN3 -> 30500 | FO9: =SA!IA3-SA!HO3 -> 25400 | FP9: =SA!IB3-SA!HP3 -> 10800 | FQ9: =SA!IC3-SA!HQ3 -> 16100 | FR9: =SA!ID3-SA!HR3 -> 18100 | FS9: =SA!IE3-SA!HS3 -> 10900 | FT9: =SA!IF3-SA!HT3 -> 500 | FU9: =SA!IG3-SA!HU3 -> 2100 | FV9: =SA!IH3-SA!HV3 -> 2900 | FW9: =SA!II3-SA!HW3 -> 5000 | FX9: =SA!IJ3-SA!HX3 -> -4700 | FY9: =SA!IK3-SA!HY3 -> -4800 | FZ9: =SA!IL3-SA!HZ3 -> -2584600 | GA9: 27395.83 | GB9: =COUNTIF(EY9:FY9, ">" &GA9) -> 7 | GD9: Total Private | GE9: -148800 | GF9: -8700 | GG9: 19800 | GH9: 25800 | GI9: 29350 | GJ9: 32600 | GK9: 40300 | GL9: 46600 | GM9: 43998.40118
A10: Goods Producing | B10: =SA!BN4-SA!BB4 -> 3700 | C10: =SA!BO4-SA!BC4 -> 7500 | D10: =SA!BP4-SA!BD4 -> 6200 | E10: =SA!BQ4-SA!BE4 -> 5200 | F10: =SA!BR4-SA!BF4 -> 3100 | G10: =SA!BS4-SA!BG4 -> 4600 | H10: =SA!BT4-SA!BH4 -> 3200 | I10: =SA!BU4-SA!BI4 -> 1400 | J10: =SA!BV4-SA!BJ4 -> 800 | K10: =SA!BW4-SA!BK4 -> 600 | L10: =SA!BX4-SA!BL4 -> 200 | M10: =SA!BY4-SA!BM4 -> -1300 | N10: =SA!BZ4-SA!BN4 -> 6500 | O10: =SA!CA4-SA!BO4 -> 2200 | P10: =SA!CB4-SA!BP4 -> 2100 | Q10: =SA!CC4-SA!BQ4 -> 3600 | R10: =SA!CD4-SA!BR4 -> 2000 | S10: =SA!CE4-SA!BS4 -> 4100 | T10: =SA!CF4-SA!BT4 -> 700 | U10: =SA!CG4-SA!BU4 -> 300 | V10: =SA!CH4-SA!BV4 -> -400 | W10: =SA!CI4-SA!BW4 -> -1700 | X10: =SA!CJ4-SA!BX4 -> -4300 | Y10: =SA!CK4-SA!BY4 -> -2500 | Z10: =SA!CL4-SA!BZ4 -> -4900 | AA10: =SA!CM4-SA!CA4 -> -7100 | AB10: =SA!CN4-SA!CB4 -> -5200 | AC10: =SA!CO4-SA!CC4 -> -8200 | AD10: =SA!CP4-SA!CD4 -> -4600 | AE10: =SA!CQ4-SA!CE4 -> -6500 | AF10: =SA!CR4-SA!CF4 -> -5900 | AG10: =SA!CS4-SA!CG4 -> -6900 | AH10: =SA!CT4-SA!CH4 -> -7900 | AI10: =SA!CU4-SA!CI4 -> -7000 | AJ10: =SA!CV4-SA!CJ4 -> -4900 | AK10: =SA!CW4-SA!CK4 -> -7200 | AL10: =SA!CX4-SA!CL4 -> -7900 | AM10: =SA!CY4-SA!CM4 -> -6100 | AN10: =SA!CZ4-SA!CN4 -> -8800 | AO10: =SA!DA4-SA!CO4 -> -10900 | AP10: =SA!DB4-SA!CP4 -> -12900 | AQ10: =SA!DC4-SA!CQ4 -> -13100 | AR10: =SA!DD4-SA!CR4 -> -16900 | AS10: =SA!DE4-SA!CS4 -> -18200 | AT10: =SA!DF4-SA!CT4 -> -19700 | AU10: =SA!DG4-SA!CU4 -> -21800 | AV10: =SA!DH4-SA!CV4 -> -27100 | AW10: =SA!DI4-SA!CW4 -> -32800 | AX10: =SA!DJ4-SA!CX4 -> -44600 | AY10: =SA!DK4-SA!CY4 -> -55600 | AZ10: =SA!DL4-SA!CZ4 -> -65900 | BA10: =SA!DM4-SA!DA4 -> -75300 | BB10: =SA!DN4-SA!DB4 -> -80100 | BC10: =SA!DO4-SA!DC4 -> -86500 | BD10: =SA!DP4-SA!DD4 -> -87300 | BE10: =SA!DQ4-SA!DE4 -> -86200 | BF10: =SA!DR4-SA!DF4 -> -78700 | BG10: =SA!DS4-SA!DG4 -> -78600 | BH10: =SA!DT4-SA!DH4 -> -74300 | BI10: =SA!DU4-SA!DI4 -> -68600 | BJ10: =SA!DV4-SA!DJ4 -> -58200 | BK10: =SA!DW4-SA!DK4 -> -46800 | BL10: =SA!DX4-SA!DL4 -> -34200 | BM10: =SA!DY4-SA!DM4 -> -18800 | BN10: =SA!DZ4-SA!DN4 -> -14000 | BO10: =SA!EA4-SA!DO4 -> -6500 | BP10: =SA!EB4-SA!DP4 -> 700 | BQ10: =SA!EC4-SA!DQ4 -> 3800 | BR10: =SA!ED4-SA!DR4 -> 900 | BS10: =SA!EE4-SA!DS4 -> 4500 | BT10: =SA!EF4-SA!DT4 -> 5800 | BU10: =SA!EG4-SA!DU4 -> 7700 | BV10: =SA!EH4-SA!DV4 -> 10300 | BW10: =SA!EI4-SA!DW4 -> 11600 | BX10: =SA!EJ4-SA!DX4 -> 11600 | BY10: =SA!EK4-SA!DY4 -> 11700 | BZ10: =SA!EL4-SA!DZ4 -> 13700 | CA10: =SA!EM4-SA!EA4 -> 13000 | CB10: =SA!EN4-SA!EB4 -> 13900 | CC10: =SA!EO4-SA!EC4 -> 13700 | CD10: =SA!EP4-SA!ED4 -> 13400 | CE10: =SA!EQ4-SA!EE4 -> 11800 | CF10: =SA!ER4-SA!EF4 -> 13400 | CG10: =SA!ES4-SA!EG4 -> 14000 | CH10: =SA!ET4-SA!EH4 -> 14400 | CI10: =SA!EU4-SA!EI4 -> 14400 | CJ10: =SA!EV4-SA!EJ4 -> 15300 | CK10: =SA!EW4-SA!EK4 -> 15500 | CL10: =SA!EX4-SA!EL4 -> 10900 | CM10: =SA!EY4-SA!EM4 -> 12400 | CN10: =SA!EZ4-SA!EN4 -> 9700 | CO10: =SA!FA4-SA!EO4 -> 8400 | CP10: =SA!FB4-SA!EP4 -> 9200 | CQ10: =SA!FC4-SA!EQ4 -> 11600 | CR10: =SA!FD4-SA!ER4 -> 9600 | CS10: =SA!FE4-SA!ES4 -> 10900 | CT10: =SA!FF4-SA!ET4 -> 10100 | CU10: =SA!FG4-SA!EU4 -> 9600 | CV10: =SA!FH4-SA!EV4 -> 7300 | CW10: =SA!FI4-SA!EW4 -> 100 | CX10: =SA!FJ4-SA!EX4 -> 6800 | CY10: =SA!FK4-SA!EY4 -> 6500 | CZ10: =SA!FL4-SA!EZ4 -> 5800 | DA10: =SA!FM4-SA!FA4 -> 8100 | DB10: =SA!FN4-SA!FB4 -> 7900 | DC10: =SA!FO4-SA!FC4 -> 7400 | DD10: =SA!FP4-SA!FD4 -> 9300 | DE10: =SA!FQ4-SA!FE4 -> 5400 | DF10: =SA!FR4-SA!FF4 -> 6900 | DG10: =SA!FS4-SA!FG4 -> 6300 | DH10: =SA!FT4-SA!FH4 -> 7900 | DI10: =SA!FU4-SA!FI4 -> 13300 | DJ10: =SA!FV4-SA!FJ4 -> 11900 | DK10: =SA!FW4-SA!FK4 -> 12700 | DL10: =SA!FX4-SA!FL4 -> 15500 | DM10: =SA!FY4-SA!FM4 -> 15100 | DN10: =SA!FZ4-SA!FN4 -> 15300 | DO10: =SA!GA4-SA!FO4 -> 15200 | DP10: =SA!GB4-SA!FP4 -> 14400 | DQ10: =SA!GC4-SA!FQ4 -> 16400 | DR10: =SA!GD4-SA!FR4 -> 15400 | DS10: =SA!GE4-SA!FS4 -> 15500 | DT10: =SA!GF4-SA!FT4 -> 13600 | DU10: =SA!GG4-SA!FU4 -> 12700 | DV10: =SA!GH4-SA!FV4 -> 11500 | DW10: =SA!GI4-SA!FW4 -> 9200 | DX10: =SA!GJ4-SA!FX4 -> 7500 | DY10: =SA!GK4-SA!FY4 -> 4800 | DZ10: =SA!GL4-SA!FZ4 -> 4100 | EA10: =SA!GM4-SA!GA4 -> 3200 | EB10: =SA!GN4-SA!GB4 -> 2800 | EC10: =SA!GO4-SA!GC4 -> 3000 | ED10: =SA!GP4-SA!GD4 -> 1800 | EE10: =SA!GQ4-SA!GE4 -> 1000 | EF10: =SA!GR4-SA!GF4 -> 1800 | EG10: =SA!GS4-SA!GG4 -> 900 | EH10: =SA!GT4-SA!GH4 -> -800 | EI10: =SA!GU4-SA!GI4 -> -1600 | EJ10: =SA!GV4-SA!GJ4 -> -2200 | EK10: =SA!GW4-SA!GK4 -> -400 | EL10: =SA!GX4-SA!GL4 -> -700 | EM10: =SA!GY4-SA!GM4 -> 300 | EN10: =SA!GZ4-SA!GN4 -> 1100 | EO10: =SA!HA4-SA!GO4 -> 1300 | EP10: =SA!HB4-SA!GP4 -> 2600 | EQ10: =SA!HC4-SA!GQ4 -> 4500 | ER10: =SA!HD4-SA!GR4 -> 5100 | ES10: =SA!HE4-SA!GS4 -> 6100 | ET10: =SA!HF4-SA!GT4 -> 7100 | EU10: =SA!HG4-SA!GU4 -> 8900 | EV10: =SA!HH4-SA!GV4 -> 9400 | EW10: =SA!HI4-SA!GW4 -> 9200 | EX10: =SA!HJ4-SA!GX4 -> 9200 | EY10: =SA!HK4-SA!GY4 -> 9700 | EZ10: =SA!HL4-SA!GZ4 -> 10600 | FA10: =SA!HM4-SA!HA4 -> 11200 | FB10: =SA!HN4-SA!HB4 -> 13500 | FC10: =SA!HO4-SA!HC4 -> 16100 | FD10: =SA!HP4-SA!HD4 -> 18800 | FE10: =SA!HQ4-SA!HE4 -> 17500 | FF10: =SA!HR4-SA!HF4 -> 20300 | FG10: =SA!HS4-SA!HG4 -> 24800 | FH10: =SA!HT4-SA!HH4 -> 27000 | FI10: =SA!HU4-SA!HI4 -> 28700 | FJ10: =SA!HV4-SA!HJ4 -> 30300 | FK10: =SA!HW4-SA!HK4 -> 29300 | FL10: =SA!HX4-SA!HL4 -> 27500 | FM10: =SA!HY4-SA!HM4 -> 26400 | FN10: =SA!HZ4-SA!HN4 -> 10100 | FO10: =SA!IA4-SA!HO4 -> 4400 | FP10: =SA!IB4-SA!HP4 -> -700 | FQ10: =SA!IC4-SA!HQ4 -> -2700 | FR10: =SA!ID4-SA!HR4 -> -3200 | FS10: =SA!IE4-SA!HS4 -> -7700 | FT10: =SA!IF4-SA!HT4 -> -13100 | FU10: =SA!IG4-SA!HU4 -> -14200 | FV10: =SA!IH4-SA!HV4 -> -17100 | FW10: =SA!II4-SA!HW4 -> -18200 | FX10: =SA!IJ4-SA!HX4 -> -17100 | FY10: =SA!IK4-SA!HY4 -> -14800 | FZ10: =SA!IL4-SA!HZ4 -> -608100 | GA10: 13801.55 | GB10: =COUNTIF(EY10:FY10, ">" &GA10) -> 11 | GD10: Goods Producing | GE10: -87300 | GF10: -11900 | GG10: -400 | GH10: 3200 | GI10: 6250 | GJ10: 9700 | GK10: 13800 | GL10: 30300 | GM10: 23571.19323
A11: Service-Providing | B11: =SA!BN5-SA!BB5 -> 33900 | C11: =SA!BO5-SA!BC5 -> 32500 | D11: =SA!BP5-SA!BD5 -> 32600 | E11: =SA!BQ5-SA!BE5 -> 41000 | F11: =SA!BR5-SA!BF5 -> 32500 | G11: =SA!BS5-SA!BG5 -> 24300 | H11: =SA!BT5-SA!BH5 -> 25000 | I11: =SA!BU5-SA!BI5 -> 22700 | J11: =SA!BV5-SA!BJ5 -> 38400 | K11: =SA!BW5-SA!BK5 -> 25000 | L11: =SA!BX5-SA!BL5 -> 27000 | M11: =SA!BY5-SA!BM5 -> 34000 | N11: =SA!BZ5-SA!BN5 -> 24400 | O11: =SA!CA5-SA!BO5 -> 25600 | P11: =SA!CB5-SA!BP5 -> 25800 | Q11: =SA!CC5-SA!BQ5 -> 22500 | R11: =SA!CD5-SA!BR5 -> 21800 | S11: =SA!CE5-SA!BS5 -> 30500 | T11: =SA!CF5-SA!BT5 -> 22800 | U11: =SA!CG5-SA!BU5 -> 21000 | V11: =SA!CH5-SA!BV5 -> 18600 | W11: =SA!CI5-SA!BW5 -> 21300 | X11: =SA!CJ5-SA!BX5 -> 21400 | Y11: =SA!CK5-SA!BY5 -> 18000 | Z11: =SA!CL5-SA!BZ5 -> 26100 | AA11: =SA!CM5-SA!CA5 -> 22800 | AB11: =SA!CN5-SA!CB5 -> 23300 | AC11: =SA!CO5-SA!CC5 -> 19500 | AD11: =SA!CP5-SA!CD5 -> 28200 | AE11: =SA!CQ5-SA!CE5 -> 31100 | AF11: =SA!CR5-SA!CF5 -> 26100 | AG11: =SA!CS5-SA!CG5 -> 25300 | AH11: =SA!CT5-SA!CH5 -> 22700 | AI11: =SA!CU5-SA!CI5 -> 17700 | AJ11: =SA!CV5-SA!CJ5 -> 15100 | AK11: =SA!CW5-SA!CK5 -> 19400 | AL11: =SA!CX5-SA!CL5 -> 19900 | AM11: =SA!CY5-SA!CM5 -> 19500 | AN11: =SA!CZ5-SA!CN5 -> 14400 | AO11: =SA!DA5-SA!CO5 -> 12000 | AP11: =SA!DB5-SA!CP5 -> 11200 | AQ11: =SA!DC5-SA!CQ5 -> 500 | AR11: =SA!DD5-SA!CR5 -> 7800 | AS11: =SA!DE5-SA!CS5 -> 5600 | AT11: =SA!DF5-SA!CT5 -> 10500 | AU11: =SA!DG5-SA!CU5 -> 7000 | AV11: =SA!DH5-SA!CV5 -> 3400 | AW11: =SA!DI5-SA!CW5 -> -10000 | AX11: =SA!DJ5-SA!CX5 -> -28800 | AY11: =SA!DK5-SA!CY5 -> -34000 | AZ11: =SA!DL5-SA!CZ5 -> -42000 | BA11: =SA!DM5-SA!DA5 -> -50300 | BB11: =SA!DN5-SA!DB5 -> -48700 | BC11: =SA!DO5-SA!DC5 -> -53000 | BD11: =SA!DP5-SA!DD5 -> -61200 | BE11: =SA!DQ5-SA!DE5 -> -64600 | BF11: =SA!DR5-SA!DF5 -> -76600 | BG11: =SA!DS5-SA!DG5 -> -64800 | BH11: =SA!DT5-SA!DH5 -> -63300 | BI11: =SA!DU5-SA!DI5 -> -55800 | BJ11: =SA!DV5-SA!DJ5 -> -40800 | BK11: =SA!DW5-SA!DK5 -> -35400 | BL11: =SA!DX5-SA!DL5 -> -24800 | BM11: =SA!DY5-SA!DM5 -> -7100 | BN11: =SA!DZ5-SA!DN5 -> -8600 | BO11: =SA!EA5-SA!DO5 -> -5000 | BP11: =SA!EB5-SA!DP5 -> 2600 | BQ11: =SA!EC5-SA!DQ5 -> 9700 | BR11: =SA!ED5-SA!DR5 -> 12600 | BS11: =SA!EE5-SA!DS5 -> 18000 | BT11: =SA!EF5-SA!DT5 -> 21200 | BU11: =SA!EG5-SA!DU5 -> 18300 | BV11: =SA!EH5-SA!DV5 -> 20400 | BW11: =SA!EI5-SA!DW5 -> 20800 | BX11: =SA!EJ5-SA!DX5 -> 21500 | BY11: =SA!EK5-SA!DY5 -> 14100 | BZ11: =SA!EL5-SA!DZ5 -> 10200 | CA11: =SA!EM5-SA!EA5 -> 10000 | CB11: =SA!EN5-SA!EB5 -> 19200 | CC11: =SA!EO5-SA!EC5 -> 13100 | CD11: =SA!EP5-SA!ED5 -> 18100 | CE11: =SA!EQ5-SA!EE5 -> 5900 | CF11: =SA!ER5-SA!EF5 -> 3600 | CG11: =SA!ES5-SA!EG5 -> 11100 | CH11: =SA!ET5-SA!EH5 -> 2000 | CI11: =SA!EU5-SA!EI5 -> 6600 | CJ11: =SA!EV5-SA!EJ5 -> 17700 | CK11: =SA!EW5-SA!EK5 -> 21700 | CL11: =SA!EX5-SA!EL5 -> 23800 | CM11: =SA!EY5-SA!EM5 -> 24500 | CN11: =SA!EZ5-SA!EN5 -> 4900 | CO11: =SA!FA5-SA!EO5 -> 13700 | CP11: =SA!FB5-SA!EP5 -> 15400 | CQ11: =SA!FC5-SA!EQ5 -> 22300 | CR11: =SA!FD5-SA!ER5 -> 32000 | CS11: =SA!FE5-SA!ES5 -> 21300 | CT11: =SA!FF5-SA!ET5 -> 17700 | CU11: =SA!FG5-SA!EU5 -> 28800 | CV11: =SA!FH5-SA!EV5 -> 18000 | CW11: =SA!FI5-SA!EW5 -> 6300 | CX11: =SA!FJ5-SA!EX5 -> 12500 | CY11: =SA!FK5-SA!EY5 -> 17800 | CZ11: =SA!FL5-SA!EZ5 -> 28400 | DA11: =SA!FM5-SA!FA5 -> 27700 | DB11: =SA!FN5-SA!FB5 -> 29000 | DC11: =SA!FO5-SA!FC5 -> 25400 | DD11: =SA!FP5-SA!FD5 -> 15800 | DE11: =SA!FQ5-SA!FE5 -> 27700 | DF11: =SA!FR5-SA!FF5 -> 39100 | DG11: =SA!FS5-SA!FG5 -> 24000 | DH11: =SA!FT5-SA!FH5 -> 23700 | DI11: =SA!FU5-SA!FI5 -> 34400 | DJ11: =SA!FV5-SA!FJ5 -> 29400 | DK11: =SA!FW5-SA!FK5 -> 30900 | DL11: =SA!FX5-SA!FL5 -> 28500 | DM11: =SA!FY5-SA!FM5 -> 34900 | DN11: =SA!FZ5-SA!FN5 -> 26700 | DO11: =SA!GA5-SA!FO5 -> 28000 | DP11: =SA!GB5-SA!FP5 -> 39100 | DQ11: =SA!GC5-SA!FQ5 -> 27900 | DR11: =SA!GD5-SA!FR5 -> 28200 | DS11: =SA!GE5-SA!FS5 -> 29400 | DT11: =SA!GF5-SA!FT5 -> 32100 | DU11: =SA!GG5-SA!FU5 -> 30300 | DV11: =SA!GH5-SA!FV5 -> 32800 | DW11: =SA!GI5-SA!FW5 -> 29800 | DX11: =SA!GJ5-SA!FX5 -> 35300 | DY11: =SA!GK5-SA!FY5 -> 27800 | DZ11: =SA!GL5-SA!FZ5 -> 31400 | EA11: =SA!GM5-SA!GA5 -> 35400 | EB11: =SA!GN5-SA!GB5 -> 23300 | EC11: =SA!GO5-SA!GC5 -> 35800 | ED11: =SA!GP5-SA!GD5 -> 41800 | EE11: =SA!GQ5-SA!GE5 -> 43200 | EF11: =SA!GR5-SA!GF5 -> 37900 | EG11: =SA!GS5-SA!GG5 -> 42700 | EH11: =SA!GT5-SA!GH5 -> 32700 | EI11: =SA!GU5-SA!GI5 -> 30500 | EJ11: =SA!GV5-SA!GJ5 -> 35200 | EK11: =SA!GW5-SA!GK5 -> 39500 | EL11: =SA!GX5-SA!GL5 -> 33000 | EM11: =SA!GY5-SA!GM5 -> 27000 | EN11: =SA!GZ5-SA!GN5 -> 34600 | EO11: =SA!HA5-SA!GO5 -> 22100 | EP11: =SA!HB5-SA!GP5 -> 20000 | EQ11: =SA!HC5-SA!GQ5 -> 18100 | ER11: =SA!HD5-SA!GR5 -> 18800 | ES11: =SA!HE5-SA!GS5 -> 11800 | ET11: =SA!HF5-SA!GT5 -> 15600 | EU11: =SA!HG5-SA!GU5 -> 17800 | EV11: =SA!HH5-SA!GV5 -> 8200 | EW11: =SA!HI5-SA!GW5 -> -2000 | EX11: =SA!HJ5-SA!GX5 -> 3200 | EY11: =SA!HK5-SA!GY5 -> 6600 | EZ11: =SA!HL5-SA!GZ5 -> -2000 | FA11: =SA!HM5-SA!HA5 -> 8700 | FB11: =SA!HN5-SA!HB5 -> 7400 | FC11: =SA!HO5-SA!HC5 -> 7200 | FD11: =SA!HP5-SA!HD5 -> 10500 | FE11: =SA!HQ5-SA!HE5 -> 6500 | FF11: =SA!HR5-SA!HF5 -> 4700 | FG11: =SA!HS5-SA!HG5 -> 5400 | FH11: =SA!HT5-SA!HH5 -> 11500 | FI11: =SA!HU5-SA!HI5 -> 14100 | FJ11: =SA!HV5-SA!HJ5 -> 8400 | FK11: =SA!HW5-SA!HK5 -> 2900 | FL11: =SA!HX5-SA!HL5 -> 18800 | FM11: =SA!HY5-SA!HM5 -> 21900 | FN11: =SA!HZ5-SA!HN5 -> 17000 | FO11: =SA!IA5-SA!HO5 -> 13400 | FP11: =SA!IB5-SA!HP5 -> 8000 | FQ11: =SA!IC5-SA!HQ5 -> 14400 | FR11: =SA!ID5-SA!HR5 -> 17500 | FS11: =SA!IE5-SA!HS5 -> 17700 | FT11: =SA!IF5-SA!HT5 -> 10000 | FU11: =SA!IG5-SA!HU5 -> 6600 | FV11: =SA!IH5-SA!HV5 -> 15400 | FW11: =SA!II5-SA!HW5 -> 21200 | FX11: =SA!IJ5-SA!HX5 -> 6300 | FY11: =SA!IK5-SA!HY5 -> 4700 | FZ11: =SA!IL5-SA!HZ5 -> -2380500 | GA11: n/a | GB11: =COUNTIF(EY11:FY11, ">" &GA11) -> 0 | GD11: Service-Providing | GE11: -76600 | GF11: 3050 | GG11: 11200 | GH11: 18200 | GI11: 21450 | GJ11: 26100 | GK11: 32050 | GL11: 43200 | GM11: 23028.16746
A12: Private Service Providing | B12: =SA!BN6-SA!BB6 -> 25600 | C12: =SA!BO6-SA!BC6 -> 28000 | D12: =SA!BP6-SA!BD6 -> 30500 | E12: =SA!BQ6-SA!BE6 -> 36300 | F12: =SA!BR6-SA!BF6 -> 29100 | G12: =SA!BS6-SA!BG6 -> 25000 | H12: =SA!BT6-SA!BH6 -> 23700 | I12: =SA!BU6-SA!BI6 -> 22800 | J12: =SA!BV6-SA!BJ6 -> 30400 | K12: =SA!BW6-SA!BK6 -> 22500 | L12: =SA!BX6-SA!BL6 -> 27700 | M12: =SA!BY6-SA!BM6 -> 29100 | N12: =SA!BZ6-SA!BN6 -> 25400 | O12: =SA!CA6-SA!BO6 -> 27200 | P12: =SA!CB6-SA!BP6 -> 24500 | Q12: =SA!CC6-SA!BQ6 -> 21700 | R12: =SA!CD6-SA!BR6 -> 22200 | S12: =SA!CE6-SA!BS6 -> 26400 | T12: =SA!CF6-SA!BT6 -> 21200 | U12: =SA!CG6-SA!BU6 -> 19000 | V12: =SA!CH6-SA!BV6 -> 18900 | W12: =SA!CI6-SA!BW6 -> 23000 | X12: =SA!CJ6-SA!BX6 -> 20500 | Y12: =SA!CK6-SA!BY6 -> 20300 | Z12: =SA!CL6-SA!BZ6 -> 27600 | AA12: =SA!CM6-SA!CA6 -> 24400 | AB12: =SA!CN6-SA!CB6 -> 25000 | AC12: =SA!CO6-SA!CC6 -> 19900 | AD12: =SA!CP6-SA!CD6 -> 26100 | AE12: =SA!CQ6-SA!CE6 -> 27500 | AF12: =SA!CR6-SA!CF6 -> 24800 | AG12: =SA!CS6-SA!CG6 -> 22800 | AH12: =SA!CT6-SA!CH6 -> 19600 | AI12: =SA!CU6-SA!CI6 -> 16300 | AJ12: =SA!CV6-SA!CJ6 -> 16100 | AK12: =SA!CW6-SA!CK6 -> 16300 | AL12: =SA!CX6-SA!CL6 -> 13400 | AM12: =SA!CY6-SA!CM6 -> 13000 | AN12: =SA!CZ6-SA!CN6 -> 9800 | AO12: =SA!DA6-SA!CO6 -> 9900 | AP12: =SA!DB6-SA!CP6 -> 7100 | AQ12: =SA!DC6-SA!CQ6 -> 1500 | AR12: =SA!DD6-SA!CR6 -> 2900 | AS12: =SA!DE6-SA!CS6 -> 3300 | AT12: =SA!DF6-SA!CT6 -> 0 | AU12: =SA!DG6-SA!CU6 -> -2200 | AV12: =SA!DH6-SA!CV6 -> -11100 | AW12: =SA!DI6-SA!CW6 -> -17300 | AX12: =SA!DJ6-SA!CX6 -> -30900 | AY12: =SA!DK6-SA!CY6 -> -37900 | AZ12: =SA!DL6-SA!CZ6 -> -46600 | BA12: =SA!DM6-SA!DA6 -> -55500 | BB12: =SA!DN6-SA!DB6 -> -52500 | BC12: =SA!DO6-SA!DC6 -> -54200 | BD12: =SA!DP6-SA!DD6 -> -60500 | BE12: =SA!DQ6-SA!DE6 -> -62600 | BF12: =SA!DR6-SA!DF6 -> -62000 | BG12: =SA!DS6-SA!DG6 -> -59800 | BH12: =SA!DT6-SA!DH6 -> -53100 | BI12: =SA!DU6-SA!DI6 -> -51200 | BJ12: =SA!DV6-SA!DJ6 -> -37300 | BK12: =SA!DW6-SA!DK6 -> -29300 | BL12: =SA!DX6-SA!DL6 -> -20000 | BM12: =SA!DY6-SA!DM6 -> -6400 | BN12: =SA!DZ6-SA!DN6 -> -10500 | BO12: =SA!EA6-SA!DO6 -> -7200 | BP12: =SA!EB6-SA!DP6 -> 4700 | BQ12: =SA!EC6-SA!DQ6 -> 11000 | BR12: =SA!ED6-SA!DR6 -> 11400 | BS12: =SA!EE6-SA!DS6 -> 19200 | BT12: =SA!EF6-SA!DT6 -> 19700 | BU12: =SA!EG6-SA!DU6 -> 23800 | BV12: =SA!EH6-SA!DV6 -> 22500 | BW12: =SA!EI6-SA!DW6 -> 19500 | BX12: =SA!EJ6-SA!DX6 -> 21000 | BY12: =SA!EK6-SA!DY6 -> 19700 | BZ12: =SA!EL6-SA!DZ6 -> 18400 | CA12: =SA!EM6-SA!EA6 -> 18300 | CB12: =SA!EN6-SA!EB6 -> 19300 | CC12: =SA!EO6-SA!EC6 -> 16500 | CD12: =SA!EP6-SA!ED6 -> 24100 | CE12: =SA!EQ6-SA!EE6 -> 15700 | CF12: =SA!ER6-SA!EF6 -> 16900 | CG12: =SA!ES6-SA!EG6 -> 14900 | CH12: =SA!ET6-SA!EH6 -> 17800 | CI12: =SA!EU6-SA!EI6 -> 21000 | CJ12: =SA!EV6-SA!EJ6 -> 25700 | CK12: =SA!EW6-SA!EK6 -> 23500 | CL12: =SA!EX6-SA!EL6 -> 23100 | CM12: =SA!EY6-SA!EM6 -> 26400 | CN12: =SA!EZ6-SA!EN6 -> 14100 | CO12: =SA!FA6-SA!EO6 -> 14900 | CP12: =SA!FB6-SA!EP6 -> 16900 | CQ12: =SA!FC6-SA!EQ6 -> 19700 | CR12: =SA!FD6-SA!ER6 -> 22600 | CS12: =SA!FE6-SA!ES6 -> 21000 | CT12: =SA!FF6-SA!ET6 -> 18400 | CU12: =SA!FG6-SA!EU6 -> 21100 | CV12: =SA!FH6-SA!EV6 -> 18800 | CW12: =SA!FI6-SA!EW6 -> 12800 | CX12: =SA!FJ6-SA!EX6 -> 22700 | CY12: =SA!FK6-SA!EY6 -> 21000 | CZ12: =SA!FL6-SA!EZ6 -> 29000 | DA12: =SA!FM6-SA!FA6 -> 32200 | DB12: =SA!FN6-SA!FB6 -> 27500 | DC12: =SA!FO6-SA!FC6 -> 25200 | DD12: =SA!FP6-SA!FD6 -> 23500 | DE12: =SA!FQ6-SA!FE6 -> 28300 | DF12: =SA!FR6-SA!FF6 -> 28400 | DG12: =SA!FS6-SA!FG6 -> 26400 | DH12: =SA!FT6-SA!FH6 -> 23800 | DI12: =SA!FU6-SA!FI6 -> 32500 | DJ12: =SA!FV6-SA!FJ6 -> 27200 | DK12: =SA!FW6-SA!FK6 -> 28700 | DL12: =SA!FX6-SA!FL6 -> 26600 | DM12: =SA!FY6-SA!FM6 -> 26000 | DN12: =SA!FZ6-SA!FN6 -> 25800 | DO12: =SA!GA6-SA!FO6 -> 27600 | DP12: =SA!GB6-SA!FP6 -> 32200 | DQ12: =SA!GC6-SA!FQ6 -> 27600 | DR12: =SA!GD6-SA!FR6 -> 29700 | DS12: =SA!GE6-SA!FS6 -> 27500 | DT12: =SA!GF6-SA!FT6 -> 31600 | DU12: =SA!GG6-SA!FU6 -> 28400 | DV12: =SA!GH6-SA!FV6 -> 32500 | DW12: =SA!GI6-SA!FW6 -> 30700 | DX12: =SA!GJ6-SA!FX6 -> 36800 | DY12: =SA!GK6-SA!FY6 -> 36300 | DZ12: =SA!GL6-SA!FZ6 -> 36000 | EA12: =SA!GM6-SA!GA6 -> 39100 | EB12: =SA!GN6-SA!GB6 -> 35700 | EC12: =SA!GO6-SA!GC6 -> 38000 | ED12: =SA!GP6-SA!GD6 -> 41100 | EE12: =SA!GQ6-SA!GE6 -> 44000 | EF12: =SA!GR6-SA!GF6 -> 38500 | EG12: =SA!GS6-SA!GG6 -> 42500 | EH12: =SA!GT6-SA!GH6 -> 34500 | EI12: =SA!GU6-SA!GI6 -> 30500 | EJ12: =SA!GV6-SA!GJ6 -> 32900 | EK12: =SA!GW6-SA!GK6 -> 29600 | EL12: =SA!GX6-SA!GL6 -> 30200 | EM12: =SA!GY6-SA!GM6 -> 24900 | EN12: =SA!GZ6-SA!GN6 -> 21500 | EO12: =SA!HA6-SA!GO6 -> 19400 | EP12: =SA!HB6-SA!GP6 -> 21700 | EQ12: =SA!HC6-SA!GQ6 -> 20100 | ER12: =SA!HD6-SA!GR6 -> 23200 | ES12: =SA!HE6-SA!GS6 -> 15700 | ET12: =SA!HF6-SA!GT6 -> 14100 | EU12: =SA!HG6-SA!GU6 -> 21700 | EV12: =SA!HH6-SA!GV6 -> 10900 | EW12: =SA!HI6-SA!GW6 -> 10200 | EX12: =SA!HJ6-SA!GX6 -> 6100 | EY12: =SA!HK6-SA!GY6 -> 8600 | EZ12: =SA!HL6-SA!GZ6 -> 9000 | FA12: =SA!HM6-SA!HA6 -> 13900 | FB12: =SA!HN6-SA!HB6 -> 8900 | FC12: =SA!HO6-SA!HC6 -> 6500 | FD12: =SA!HP6-SA!HD6 -> 8300 | FE12: =SA!HQ6-SA!HE6 -> 6100 | FF12: =SA!HR6-SA!HF6 -> 5800 | FG12: =SA!HS6-SA!HG6 -> 2300 | FH12: =SA!HT6-SA!HH6 -> 9600 | FI12: =SA!HU6-SA!HI6 -> 6000 | FJ12: =SA!HV6-SA!HJ6 -> 6900 | FK12: =SA!HW6-SA!HK6 -> 4100 | FL12: =SA!HX6-SA!HL6 -> 13900 | FM12: =SA!HY6-SA!HM6 -> 18500 | FN12: =SA!HZ6-SA!HN6 -> 20400 | FO12: =SA!IA6-SA!HO6 -> 21000 | FP12: =SA!IB6-SA!HP6 -> 11500 | FQ12: =SA!IC6-SA!HQ6 -> 18800 | FR12: =SA!ID6-SA!HR6 -> 21300 | FS12: =SA!IE6-SA!HS6 -> 18600 | FT12: =SA!IF6-SA!HT6 -> 13600 | FU12: =SA!IG6-SA!HU6 -> 16300 | FV12: =SA!IH6-SA!HV6 -> 20000 | FW12: =SA!II6-SA!HW6 -> 23200 | FX12: =SA!IJ6-SA!HX6 -> 12400 | FY12: =SA!IK6-SA!HY6 -> 10000 | FZ12: =SA!IL6-SA!HZ6 -> -1976500 | GA12: 23664.97 | GB12: =COUNTIF(EY12:FY12, ">" &GA12) -> 0 | GD12: Private Service Providing | GE12: -62600 | GF12: 3100 | GG12: 13900 | GH12: 19650 | GI12: 21700 | GJ12: 25600 | GK12: 29350 | GL12: 44000 | GM12: 22205.31017
A13: Mining and Logging | B13: =SA!BN7-SA!BB7 -> 100 | C13: =SA!BO7-SA!BC7 -> 100 | D13: =SA!BP7-SA!BD7 -> 200 | E13: =SA!BQ7-SA!BE7 -> 100 | F13: =SA!BR7-SA!BF7 -> 100 | G13: =SA!BS7-SA!BG7 -> 200 | H13: =SA!BT7-SA!BH7 -> 200 | I13: =SA!BU7-SA!BI7 -> 200 | J13: =SA!BV7-SA!BJ7 -> 200 | K13: =SA!BW7-SA!BK7 -> 0 | L13: =SA!BX7-SA!BL7 -> 0 | M13: =SA!BY7-SA!BM7 -> -100 | N13: =SA!BZ7-SA!BN7 -> 100 | O13: =SA!CA7-SA!BO7 -> 100 | P13: =SA!CB7-SA!BP7 -> 0 | Q13: =SA!CC7-SA!BQ7 -> 100 | R13: =SA!CD7-SA!BR7 -> 100 | S13: =SA!CE7-SA!BS7 -> 0 | T13: =SA!CF7-SA!BT7 -> -100 | U13: =SA!CG7-SA!BU7 -> -100 | V13: =SA!CH7-SA!BV7 -> -100 | W13: =SA!CI7-SA!BW7 -> 0 | X13: =SA!CJ7-SA!BX7 -> -200 | Y13: =SA!CK7-SA!BY7 -> -100 | Z13: =SA!CL7-SA!BZ7 -> -200 | AA13: =SA!CM7-SA!CA7 -> -200 | AB13: =SA!CN7-SA!CB7 -> -200 | AC13: =SA!CO7-SA!CC7 -> -200 | AD13: =SA!CP7-SA!CD7 -> -300 | AE13: =SA!CQ7-SA!CE7 -> -400 | AF13: =SA!CR7-SA!CF7 -> -200 | AG13: =SA!CS7-SA!CG7 -> -300 | AH13: =SA!CT7-SA!CH7 -> -300 | AI13: =SA!CU7-SA!CI7 -> -300 | AJ13: =SA!CV7-SA!CJ7 -> -200 | AK13: =SA!CW7-SA!CK7 -> -400 | AL13: =SA!CX7-SA!CL7 -> -300 | AM13: =SA!CY7-SA!CM7 -> -300 | AN13: =SA!CZ7-SA!CN7 -> -400 | AO13: =SA!DA7-SA!CO7 -> -400 | AP13: =SA!DB7-SA!CP7 -> -400 | AQ13: =SA!DC7-SA!CQ7 -> -200 | AR13: =SA!DD7-SA!CR7 -> -300 | AS13: =SA!DE7-SA!CS7 -> -200 | AT13: =SA!DF7-SA!CT7 -> -200 | AU13: =SA!DG7-SA!CU7 -> -300 | AV13: =SA!DH7-SA!CV7 -> -300 | AW13: =SA!DI7-SA!CW7 -> -200 | AX13: =SA!DJ7-SA!CX7 -> -300 | AY13: =SA!DK7-SA!CY7 -> -400 | AZ13: =SA!DL7-SA!CZ7 -> -400 | BA13: =SA!DM7-SA!DA7 -> -500 | BB13: =SA!DN7-SA!DB7 -> -300 | BC13: =SA!DO7-SA!DC7 -> -500 | BD13: =SA!DP7-SA!DD7 -> -400 | BE13: =SA!DQ7-SA!DE7 -> -400 | BF13: =SA!DR7-SA!DF7 -> -400 | BG13: =SA!DS7-SA!DG7 -> -300 | BH13: =SA!DT7-SA!DH7 -> -400 | BI13: =SA!DU7-SA!DI7 -> -200 | BJ13: =SA!DV7-SA!DJ7 -> -300 | BK13: =SA!DW7-SA!DK7 -> -200 | BL13: =SA!DX7-SA!DL7 -> -100 | BM13: =SA!DY7-SA!DM7 -> 100 | BN13: =SA!DZ7-SA!DN7 -> 0 | BO13: =SA!EA7-SA!DO7 -> 0 | BP13: =SA!EB7-SA!DP7 -> 0 | BQ13: =SA!EC7-SA!DQ7 -> 0 | BR13: =SA!ED7-SA!DR7 -> -100 | BS13: =SA!EE7-SA!DS7 -> 0 | BT13: =SA!EF7-SA!DT7 -> 0 | BU13: =SA!EG7-SA!DU7 -> -100 | BV13: =SA!EH7-SA!DV7 -> 100 | BW13: =SA!EI7-SA!DW7 -> 100 | BX13: =SA!EJ7-SA!DX7 -> 100 | BY13: =SA!EK7-SA!DY7 -> -100 | BZ13: =SA!EL7-SA!DZ7 -> -100 | CA13: =SA!EM7-SA!EA7 -> 200 | CB13: =SA!EN7-SA!EB7 -> 0 | CC13: =SA!EO7-SA!EC7 -> 0 | CD13: =SA!EP7-SA!ED7 -> 200 | CE13: =SA!EQ7-SA!EE7 -> 200 | CF13: =SA!ER7-SA!EF7 -> 400 | CG13: =SA!ES7-SA!EG7 -> 400 | CH13: =SA!ET7-SA!EH7 -> 300 | CI13: =SA!EU7-SA!EI7 -> 400 | CJ13: =SA!EV7-SA!EJ7 -> 500 | CK13: =SA!EW7-SA!EK7 -> 700 | CL13: =SA!EX7-SA!EL7 -> 600 | CM13: =SA!EY7-SA!EM7 -> 400 | CN13: =SA!EZ7-SA!EN7 -> 500 | CO13: =SA!FA7-SA!EO7 -> 500 | CP13: =SA!FB7-SA!EP7 -> 400 | CQ13: =SA!FC7-SA!EQ7 -> 300 | CR13: =SA!FD7-SA!ER7 -> 200 | CS13: =SA!FE7-SA!ES7 -> 300 | CT13: =SA!FF7-SA!ET7 -> 300 | CU13: =SA!FG7-SA!EU7 -> 200 | CV13: =SA!FH7-SA!EV7 -> 0 | CW13: =SA!FI7-SA!EW7 -> -100 | CX13: =SA!FJ7-SA!EX7 -> 200 | CY13: =SA!FK7-SA!EY7 -> 200 | CZ13: =SA!FL7-SA!EZ7 -> 200 | DA13: =SA!FM7-SA!FA7 -> 300 | DB13: =SA!FN7-SA!FB7 -> 300 | DC13: =SA!FO7-SA!FC7 -> 300 | DD13: =SA!FP7-SA!FD7 -> 300 | DE13: =SA!FQ7-SA!FE7 -> 200 | DF13: =SA!FR7-SA!FF7 -> 300 | DG13: =SA!FS7-SA!FG7 -> 300 | DH13: =SA!FT7-SA!FH7 -> 300 | DI13: =SA!FU7-SA!FI7 -> 400 | DJ13: =SA!FV7-SA!FJ7 -> 300 | DK13: =SA!FW7-SA!FK7 -> 300 | DL13: =SA!FX7-SA!FL7 -> 400 | DM13: =SA!FY7-SA!FM7 -> 400 | DN13: =SA!FZ7-SA!FN7 -> 400 | DO13: =SA!GA7-SA!FO7 -> 500 | DP13: =SA!GB7-SA!FP7 -> 500 | DQ13: =SA!GC7-SA!FQ7 -> 600 | DR13: =SA!GD7-SA!FR7 -> 500 | DS13: =SA!GE7-SA!FS7 -> 500 | DT13: =SA!GF7-SA!FT7 -> 500 | DU13: =SA!GG7-SA!FU7 -> 400 | DV13: =SA!GH7-SA!FV7 -> 300 | DW13: =SA!GI7-SA!FW7 -> 200 | DX13: =SA!GJ7-SA!FX7 -> 0 | DY13: =SA!GK7-SA!FY7 -> -100 | DZ13: =SA!GL7-SA!FZ7 -> -200 | EA13: =SA!GM7-SA!GA7 -> -300 | EB13: =SA!GN7-SA!GB7 -> -300 | EC13: =SA!GO7-SA!GC7 -> -300 | ED13: =SA!GP7-SA!GD7 -> -400 | EE13: =SA!GQ7-SA!GE7 -> -500 | EF13: =SA!GR7-SA!GF7 -> -400 | EG13: =SA!GS7-SA!GG7 -> -500 | EH13: =SA!GT7-SA!GH7 -> -500 | EI13: =SA!GU7-SA!GI7 -> -500 | EJ13: =SA!GV7-SA!GJ7 -> -500 | EK13: =SA!GW7-SA!GK7 -> -400 | EL13: =SA!GX7-SA!GL7 -> -400 | EM13: =SA!GY7-SA!GM7 -> -300 | EN13: =SA!GZ7-SA!GN7 -> -300 | EO13: =SA!HA7-SA!GO7 -> -300 | EP13: =SA!HB7-SA!GP7 -> -100 | EQ13: =SA!HC7-SA!GQ7 -> 100 | ER13: =SA!HD7-SA!GR7 -> 300 | ES13: =SA!HE7-SA!GS7 -> 500 | ET13: =SA!HF7-SA!GT7 -> 500 | EU13: =SA!HG7-SA!GU7 -> 700 | EV13: =SA!HH7-SA!GV7 -> 800 | EW13: =SA!HI7-SA!GW7 -> 900 | EX13: =SA!HJ7-SA!GX7 -> 1000 | EY13: =SA!HK7-SA!GY7 -> 800 | EZ13: =SA!HL7-SA!GZ7 -> 900 | FA13: =SA!HM7-SA!HA7 -> 700 | FB13: =SA!HN7-SA!HB7 -> 700 | FC13: =SA!HO7-SA!HC7 -> 600 | FD13: =SA!HP7-SA!HD7 -> 400 | FE13: =SA!HQ7-SA!HE7 -> 300 | FF13: =SA!HR7-SA!HF7 -> 200 | FG13: =SA!HS7-SA!HG7 -> 200 | FH13: =SA!HT7-SA!HH7 -> 200 | FI13: =SA!HU7-SA!HI7 -> 0 | FJ13: =SA!HV7-SA!HJ7 -> 0 | FK13: =SA!HW7-SA!HK7 -> 100 | FL13: =SA!HX7-SA!HL7 -> 0 | FM13: =SA!HY7-SA!HM7 -> 100 | FN13: =SA!HZ7-SA!HN7 -> 100 | FO13: =SA!IA7-SA!HO7 -> 200 | FP13: =SA!IB7-SA!HP7 -> 200 | FQ13: =SA!IC7-SA!HQ7 -> 200 | FR13: =SA!ID7-SA!HR7 -> 300 | FS13: =SA!IE7-SA!HS7 -> 200 | FT13: =SA!IF7-SA!HT7 -> 100 | FU13: =SA!IG7-SA!HU7 -> 100 | FV13: =SA!IH7-SA!HV7 -> 0 | FW13: =SA!II7-SA!HW7 -> 100 | FX13: =SA!IJ7-SA!HX7 -> 100 | FY13: =SA!IK7-SA!HY7 -> 0 | FZ13: =SA!IL7-SA!HZ7 -> -4700 | GA13: 1018.255 | GB13: =COUNTIF(EY13:FY13, ">" &GA13) -> 0 | GD13: Mining and Logging | GE13: -500 | GF13: -300 | GG13: -200 | GH13: 0 | GI13: 100 | GJ13: 200 | GK13: 400 | GL13: 1000 | GM13: 340.3791829
A14: Construction | B14: =SA!BN9-SA!BB9 -> 1100 | C14: =SA!BO9-SA!BC9 -> 1700 | D14: =SA!BP9-SA!BD9 -> 800 | E14: =SA!BQ9-SA!BE9 -> 1100 | F14: =SA!BR9-SA!BF9 -> 900 | G14: =SA!BS9-SA!BG9 -> 600 | H14: =SA!BT9-SA!BH9 -> 600 | I14: =SA!BU9-SA!BI9 -> 400 | J14: =SA!BV9-SA!BJ9 -> 500 | K14: =SA!BW9-SA!BK9 -> 600 | L14: =SA!BX9-SA!BL9 -> 600 | M14: =SA!BY9-SA!BM9 -> -200 | N14: =SA!BZ9-SA!BN9 -> 2200 | O14: =SA!CA9-SA!BO9 -> 2300 | P14: =SA!CB9-SA!BP9 -> 1400 | Q14: =SA!CC9-SA!BQ9 -> 2300 | R14: =SA!CD9-SA!BR9 -> 500 | S14: =SA!CE9-SA!BS9 -> 1500 | T14: =SA!CF9-SA!BT9 -> -600 | U14: =SA!CG9-SA!BU9 -> -600 | V14: =SA!CH9-SA!BV9 -> -1300 | W14: =SA!CI9-SA!BW9 -> -1800 | X14: =SA!CJ9-SA!BX9 -> -3200 | Y14: =SA!CK9-SA!BY9 -> -1100 | Z14: =SA!CL9-SA!BZ9 -> -1900 | AA14: =SA!CM9-SA!CA9 -> -4400 | AB14: =SA!CN9-SA!CB9 -> -600 | AC14: =SA!CO9-SA!CC9 -> -3600 | AD14: =SA!CP9-SA!CD9 -> -700 | AE14: =SA!CQ9-SA!CE9 -> -1900 | AF14: =SA!CR9-SA!CF9 -> -1100 | AG14: =SA!CS9-SA!CG9 -> -1100 | AH14: =SA!CT9-SA!CH9 -> -1000 | AI14: =SA!CU9-SA!CI9 -> -300 | AJ14: =SA!CV9-SA!CJ9 -> 300 | AK14: =SA!CW9-SA!CK9 -> -2300 | AL14: =SA!CX9-SA!CL9 -> -4600 | AM14: =SA!CY9-SA!CM9 -> -3300 | AN14: =SA!CZ9-SA!CN9 -> -6500 | AO14: =SA!DA9-SA!CO9 -> -7000 | AP14: =SA!DB9-SA!CP9 -> -7500 | AQ14: =SA!DC9-SA!CQ9 -> -7100 | AR14: =SA!DD9-SA!CR9 -> -7200 | AS14: =SA!DE9-SA!CS9 -> -7700 | AT14: =SA!DF9-SA!CT9 -> -8200 | AU14: =SA!DG9-SA!CU9 -> -9500 | AV14: =SA!DH9-SA!CV9 -> -11300 | AW14: =SA!DI9-SA!CW9 -> -12200 | AX14: =SA!DJ9-SA!CX9 -> -14200 | AY14: =SA!DK9-SA!CY9 -> -14300 | AZ14: =SA!DL9-SA!CZ9 -> -16300 | BA14: =SA!DM9-SA!DA9 -> -16700 | BB14: =SA!DN9-SA!DB9 -> -16900 | BC14: =SA!DO9-SA!DC9 -> -18000 | BD14: =SA!DP9-SA!DD9 -> -18500 | BE14: =SA!DQ9-SA!DE9 -> -19000 | BF14: =SA!DR9-SA!DF9 -> -18200 | BG14: =SA!DS9-SA!DG9 -> -17700 | BH14: =SA!DT9-SA!DH9 -> -16000 | BI14: =SA!DU9-SA!DI9 -> -14800 | BJ14: =SA!DV9-SA!DJ9 -> -12000 | BK14: =SA!DW9-SA!DK9 -> -11800 | BL14: =SA!DX9-SA!DL9 -> -9800 | BM14: =SA!DY9-SA!DM9 -> -5900 | BN14: =SA!DZ9-SA!DN9 -> -8500 | BO14: =SA!EA9-SA!DO9 -> -7600 | BP14: =SA!EB9-SA!DP9 -> -6800 | BQ14: =SA!EC9-SA!DQ9 -> -5400 | BR14: =SA!ED9-SA!DR9 -> -5100 | BS14: =SA!EE9-SA!DS9 -> -3500 | BT14: =SA!EF9-SA!DT9 -> -4100 | BU14: =SA!EG9-SA!DU9 -> -3800 | BV14: =SA!EH9-SA!DV9 -> -3500 | BW14: =SA!EI9-SA!DW9 -> -3300 | BX14: =SA!EJ9-SA!DX9 -> -2800 | BY14: =SA!EK9-SA!DY9 -> -4500 | BZ14: =SA!EL9-SA!DZ9 -> -1600 | CA14: =SA!EM9-SA!EA9 -> -1400 | CB14: =SA!EN9-SA!EB9 -> -500 | CC14: =SA!EO9-SA!EC9 -> -700 | CD14: =SA!EP9-SA!ED9 -> -700 | CE14: =SA!EQ9-SA!EE9 -> -2000 | CF14: =SA!ER9-SA!EF9 -> -600 | CG14: =SA!ES9-SA!EG9 -> -100 | CH14: =SA!ET9-SA!EH9 -> 100 | CI14: =SA!EU9-SA!EI9 -> 1000 | CJ14: =SA!EV9-SA!EJ9 -> 1900 | CK14: =SA!EW9-SA!EK9 -> 4100 | CL14: =SA!EX9-SA!EL9 -> 100 | CM14: =SA!EY9-SA!EM9 -> 0 | CN14: =SA!EZ9-SA!EN9 -> -1000 | CO14: =SA!FA9-SA!EO9 -> -1200 | CP14: =SA!FB9-SA!EP9 -> -400 | CQ14: =SA!FC9-SA!EQ9 -> 1200 | CR14: =SA!FD9-SA!ER9 -> 900 | CS14: =SA!FE9-SA!ES9 -> 3000 | CT14: =SA!FF9-SA!ET9 -> 3700 | CU14: =SA!FG9-SA!EU9 -> 4200 | CV14: =SA!FH9-SA!EV9 -> 3400 | CW14: =SA!FI9-SA!EW9 -> -1500 | CX14: =SA!FJ9-SA!EX9 -> 5500 | CY14: =SA!FK9-SA!EY9 -> 5800 | CZ14: =SA!FL9-SA!EZ9 -> 6900 | DA14: =SA!FM9-SA!FA9 -> 8000 | DB14: =SA!FN9-SA!FB9 -> 7400 | DC14: =SA!FO9-SA!FC9 -> 6400 | DD14: =SA!FP9-SA!FD9 -> 6900 | DE14: =SA!FQ9-SA!FE9 -> 3300 | DF14: =SA!FR9-SA!FF9 -> 3800 | DG14: =SA!FS9-SA!FG9 -> 3000 | DH14: =SA!FT9-SA!FH9 -> 3600 | DI14: =SA!FU9-SA!FI9 -> 6400 | DJ14: =SA!FV9-SA!FJ9 -> 4100 | DK14: =SA!FW9-SA!FK9 -> 5300 | DL14: =SA!FX9-SA!FL9 -> 5100 | DM14: =SA!FY9-SA!FM9 -> 5000 | DN14: =SA!FZ9-SA!FN9 -> 5600 | DO14: =SA!GA9-SA!FO9 -> 5700 | DP14: =SA!GB9-SA!FP9 -> 5600 | DQ14: =SA!GC9-SA!FQ9 -> 7300 | DR14: =SA!GD9-SA!FR9 -> 7200 | DS14: =SA!GE9-SA!FS9 -> 6800 | DT14: =SA!GF9-SA!FT9 -> 6100 | DU14: =SA!GG9-SA!FU9 -> 7500 | DV14: =SA!GH9-SA!FV9 -> 7400 | DW14: =SA!GI9-SA!FW9 -> 6000 | DX14: =SA!GJ9-SA!FX9 -> 5700 | DY14: =SA!GK9-SA!FY9 -> 4700 | DZ14: =SA!GL9-SA!FZ9 -> 3900 | EA14: =SA!GM9-SA!GA9 -> 4100 | EB14: =SA!GN9-SA!GB9 -> 4100 | EC14: =SA!GO9-SA!GC9 -> 5100 | ED14: =SA!GP9-SA!GD9 -> 3900 | EE14: =SA!GQ9-SA!GE9 -> 4600 | EF14: =SA!GR9-SA!GF9 -> 5200 | EG14: =SA!GS9-SA!GG9 -> 3300 | EH14: =SA!GT9-SA!GH9 -> 2000 | EI14: =SA!GU9-SA!GI9 -> 2000 | EJ14: =SA!GV9-SA!GJ9 -> 2300 | EK14: =SA!GW9-SA!GK9 -> 3100 | EL14: =SA!GX9-SA!GL9 -> 3500 | EM14: =SA!GY9-SA!GM9 -> 3200 | EN14: =SA!GZ9-SA!GN9 -> 3700 | EO14: =SA!HA9-SA!GO9 -> 2500 | EP14: =SA!HB9-SA!GP9 -> 3300 | EQ14: =SA!HC9-SA!GQ9 -> 4100 | ER14: =SA!HD9-SA!GR9 -> 3400 | ES14: =SA!HE9-SA!GS9 -> 4800 | ET14: =SA!HF9-SA!GT9 -> 5200 | EU14: =SA!HG9-SA!GU9 -> 5500 | EV14: =SA!HH9-SA!GV9 -> 5200 | EW14: =SA!HI9-SA!GW9 -> 4700 | EX14: =SA!HJ9-SA!GX9 -> 4500 | EY14: =SA!HK9-SA!GY9 -> 3000 | EZ14: =SA!HL9-SA!GZ9 -> 2300 | FA14: =SA!HM9-SA!HA9 -> 3100 | FB14: =SA!HN9-SA!HB9 -> 3100 | FC14: =SA!HO9-SA!HC9 -> 3400 | FD14: =SA!HP9-SA!HD9 -> 5600 | FE14: =SA!HQ9-SA!HE9 -> 3200 | FF14: =SA!HR9-SA!HF9 -> 4700 | FG14: =SA!HS9-SA!HG9 -> 5900 | FH14: =SA!HT9-SA!HH9 -> 5700 | FI14: =SA!HU9-SA!HI9 -> 6600 | FJ14: =SA!HV9-SA!HJ9 -> 7300 | FK14: =SA!HW9-SA!HK9 -> 9000 | FL14: =SA!HX9-SA!HL9 -> 8600 | FM14: =SA!HY9-SA!HM9 -> 8500 | FN14: =SA!HZ9-SA!HN9 -> 7800 | FO14: =SA!IA9-SA!HO9 -> 6100 | FP14: =SA!IB9-SA!HP9 -> 2800 | FQ14: =SA!IC9-SA!HQ9 -> 1800 | FR14: =SA!ID9-SA!HR9 -> 2600 | FS14: =SA!IE9-SA!HS9 -> 1700 | FT14: =SA!IF9-SA!HT9 -> 2100 | FU14: =SA!IG9-SA!HU9 -> 1700 | FV14: =SA!IH9-SA!HV9 -> 2500 | FW14: =SA!II9-SA!HW9 -> 2400 | FX14: =SA!IJ9-SA!HX9 -> 2800 | FY14: =SA!IK9-SA!HY9 -> 2200 | FZ14: =SA!IL9-SA!HZ9 -> -125900 | GA14: 8374.695 | GB14: =COUNTIF(EY14:FY14, ">" &GA14) -> 3 | GD14: Construction | GE14: -19000 | GF14: -7050 | GG14: -1400 | GH14: 500 | GI14: 2000 | GJ14: 3800 | GK14: 5600 | GL14: 9000 | GM14: 6448.274962
A15: Manufacturing | B15: =SA!BN10-SA!BB10 -> 2500 | C15: =SA!BO10-SA!BC10 -> 5700 | D15: =SA!BP10-SA!BD10 -> 5200 | E15: =SA!BQ10-SA!BE10 -> 4000 | F15: =SA!BR10-SA!BF10 -> 2100 | G15: =SA!BS10-SA!BG10 -> 3800 | H15: =SA!BT10-SA!BH10 -> 2400 | I15: =SA!BU10-SA!BI10 -> 800 | J15: =SA!BV10-SA!BJ10 -> 100 | K15: =SA!BW10-SA!BK10 -> 0 | L15: =SA!BX10-SA!BL10 -> -400 | M15: =SA!BY10-SA!BM10 -> -1000 | N15: =SA!BZ10-SA!BN10 -> 4200 | O15: =SA!CA10-SA!BO10 -> -200 | P15: =SA!CB10-SA!BP10 -> 700 | Q15: =SA!CC10-SA!BQ10 -> 1200 | R15: =SA!CD10-SA!BR10 -> 1400 | S15: =SA!CE10-SA!BS10 -> 2600 | T15: =SA!CF10-SA!BT10 -> 1400 | U15: =SA!CG10-SA!BU10 -> 1000 | V15: =SA!CH10-SA!BV10 -> 1000 | W15: =SA!CI10-SA!BW10 -> 100 | X15: =SA!CJ10-SA!BX10 -> -900 | Y15: =SA!CK10-SA!BY10 -> -1300 | Z15: =SA!CL10-SA!BZ10 -> -2800 | AA15: =SA!CM10-SA!CA10 -> -2500 | AB15: =SA!CN10-SA!CB10 -> -4400 | AC15: =SA!CO10-SA!CC10 -> -4400 | AD15: =SA!CP10-SA!CD10 -> -3600 | AE15: =SA!CQ10-SA!CE10 -> -4200 | AF15: =SA!CR10-SA!CF10 -> -4600 | AG15: =SA!CS10-SA!CG10 -> -5500 | AH15: =SA!CT10-SA!CH10 -> -6600 | AI15: =SA!CU10-SA!CI10 -> -6400 | AJ15: =SA!CV10-SA!CJ10 -> -5000 | AK15: =SA!CW10-SA!CK10 -> -4500 | AL15: =SA!CX10-SA!CL10 -> -3000 | AM15: =SA!CY10-SA!CM10 -> -2500 | AN15: =SA!CZ10-SA!CN10 -> -1900 | AO15: =SA!DA10-SA!CO10 -> -3500 | AP15: =SA!DB10-SA!CP10 -> -5000 | AQ15: =SA!DC10-SA!CQ10 -> -5800 | AR15: =SA!DD10-SA!CR10 -> -9400 | AS15: =SA!DE10-SA!CS10 -> -10300 | AT15: =SA!DF10-SA!CT10 -> -11300 | AU15: =SA!DG10-SA!CU10 -> -12000 | AV15: =SA!DH10-SA!CV10 -> -15500 | AW15: =SA!DI10-SA!CW10 -> -20400 | AX15: =SA!DJ10-SA!CX10 -> -30100 | AY15: =SA!DK10-SA!CY10 -> -40900 | AZ15: =SA!DL10-SA!CZ10 -> -49200 | BA15: =SA!DM10-SA!DA10 -> -58100 | BB15: =SA!DN10-SA!DB10 -> -62900 | BC15: =SA!DO10-SA!DC10 -> -68000 | BD15: =SA!DP10-SA!DD10 -> -68400 | BE15: =SA!DQ10-SA!DE10 -> -66800 | BF15: =SA!DR10-SA!DF10 -> -60100 | BG15: =SA!DS10-SA!DG10 -> -60600 | BH15: =SA!DT10-SA!DH10 -> -57900 | BI15: =SA!DU10-SA!DI10 -> -53600 | BJ15: =SA!DV10-SA!DJ10 -> -45900 | BK15: =SA!DW10-SA!DK10 -> -34800 | BL15: =SA!DX10-SA!DL10 -> -24300 | BM15: =SA!DY10-SA!DM10 -> -13000 | BN15: =SA!DZ10-SA!DN10 -> -5500 | BO15: =SA!EA10-SA!DO10 -> 1100 | BP15: =SA!EB10-SA!DP10 -> 7500 | BQ15: =SA!EC10-SA!DQ10 -> 9200 | BR15: =SA!ED10-SA!DR10 -> 6100 | BS15: =SA!EE10-SA!DS10 -> 8000 | BT15: =SA!EF10-SA!DT10 -> 9900 | BU15: =SA!EG10-SA!DU10 -> 11600 | BV15: =SA!EH10-SA!DV10 -> 13700 | BW15: =SA!EI10-SA!DW10 -> 14800 | BX15: =SA!EJ10-SA!DX10 -> 14300 | BY15: =SA!EK10-SA!DY10 -> 16300 | BZ15: =SA!EL10-SA!DZ10 -> 15400 | CA15: =SA!EM10-SA!EA10 -> 14200 | CB15: =SA!EN10-SA!EB10 -> 14400 | CC15: =SA!EO10-SA!EC10 -> 14400 | CD15: =SA!EP10-SA!ED10 -> 13900 | CE15: =SA!EQ10-SA!EE10 -> 13600 | CF15: =SA!ER10-SA!EF10 -> 13600 | CG15: =SA!ES10-SA!EG10 -> 13700 | CH15: =SA!ET10-SA!EH10 -> 14000 | CI15: =SA!EU10-SA!EI10 -> 13000 | CJ15: =SA!EV10-SA!EJ10 -> 12900 | CK15: =SA!EW10-SA!EK10 -> 10700 | CL15: =SA!EX10-SA!EL10 -> 10200 | CM15: =SA!EY10-SA!EM10 -> 12000 | CN15: =SA!EZ10-SA!EN10 -> 10200 | CO15: =SA!FA10-SA!EO10 -> 9100 | CP15: =SA!FB10-SA!EP10 -> 9200 | CQ15: =SA!FC10-SA!EQ10 -> 10100 | CR15: =SA!FD10-SA!ER10 -> 8500 | CS15: =SA!FE10-SA!ES10 -> 7600 | CT15: =SA!FF10-SA!ET10 -> 6100 | CU15: =SA!FG10-SA!EU10 -> 5200 | CV15: =SA!FH10-SA!EV10 -> 3900 | CW15: =SA!FI10-SA!EW10 -> 1700 | CX15: =SA!FJ10-SA!EX10 -> 1100 | CY15: =SA!FK10-SA!EY10 -> 500 | CZ15: =SA!FL10-SA!EZ10 -> -1300 | DA15: =SA!FM10-SA!FA10 -> -200 | DB15: =SA!FN10-SA!FB10 -> 200 | DC15: =SA!FO10-SA!FC10 -> 700 | DD15: =SA!FP10-SA!FD10 -> 2100 | DE15: =SA!FQ10-SA!FE10 -> 1900 | DF15: =SA!FR10-SA!FF10 -> 2800 | DG15: =SA!FS10-SA!FG10 -> 3000 | DH15: =SA!FT10-SA!FH10 -> 4000 | DI15: =SA!FU10-SA!FI10 -> 6500 | DJ15: =SA!FV10-SA!FJ10 -> 7500 | DK15: =SA!FW10-SA!FK10 -> 7100 | DL15: =SA!FX10-SA!FL10 -> 10000 | DM15: =SA!FY10-SA!FM10 -> 9700 | DN15: =SA!FZ10-SA!FN10 -> 9300 | DO15: =SA!GA10-SA!FO10 -> 9000 | DP15: =SA!GB10-SA!FP10 -> 8300 | DQ15: =SA!GC10-SA!FQ10 -> 8500 | DR15: =SA!GD10-SA!FR10 -> 7700 | DS15: =SA!GE10-SA!FS10 -> 8200 | DT15: =SA!GF10-SA!FT10 -> 7000 | DU15: =SA!GG10-SA!FU10 -> 4800 | DV15: =SA!GH10-SA!FV10 -> 3800 | DW15: =SA!GI10-SA!FW10 -> 3000 | DX15: =SA!GJ10-SA!FX10 -> 1800 | DY15: =SA!GK10-SA!FY10 -> 200 | DZ15: =SA!GL10-SA!FZ10 -> 400 | EA15: =SA!GM10-SA!GA10 -> -600 | EB15: =SA!GN10-SA!GB10 -> -1000 | EC15: =SA!GO10-SA!GC10 -> -1800 | ED15: =SA!GP10-SA!GD10 -> -1700 | EE15: =SA!GQ10-SA!GE10 -> -3100 | EF15: =SA!GR10-SA!GF10 -> -3000 | EG15: =SA!GS10-SA!GG10 -> -1900 | EH15: =SA!GT10-SA!GH10 -> -2300 | EI15: =SA!GU10-SA!GI10 -> -3100 | EJ15: =SA!GV10-SA!GJ10 -> -4000 | EK15: =SA!GW10-SA!GK10 -> -3100 | EL15: =SA!GX10-SA!GL10 -> -3800 | EM15: =SA!GY10-SA!GM10 -> -2600 | EN15: =SA!GZ10-SA!GN10 -> -2300 | EO15: =SA!HA10-SA!GO10 -> -900 | EP15: =SA!HB10-SA!GP10 -> -600 | EQ15: =SA!HC10-SA!GQ10 -> 300 | ER15: =SA!HD10-SA!GR10 -> 1400 | ES15: =SA!HE10-SA!GS10 -> 800 | ET15: =SA!HF10-SA!GT10 -> 1400 | EU15: =SA!HG10-SA!GU10 -> 2700 | EV15: =SA!HH10-SA!GV10 -> 3400 | EW15: =SA!HI10-SA!GW10 -> 3600 | EX15: =SA!HJ10-SA!GX10 -> 3700 | EY15: =SA!HK10-SA!GY10 -> 5900 | EZ15: =SA!HL10-SA!GZ10 -> 7400 | FA15: =SA!HM10-SA!HA10 -> 7400 | FB15: =SA!HN10-SA!HB10 -> 9700 | FC15: =SA!HO10-SA!HC10 -> 12100 | FD15: =SA!HP10-SA!HD10 -> 12800 | FE15: =SA!HQ10-SA!HE10 -> 14000 | FF15: =SA!HR10-SA!HF10 -> 15400 | FG15: =SA!HS10-SA!HG10 -> 18700 | FH15: =SA!HT10-SA!HH10 -> 21100 | FI15: =SA!HU10-SA!HI10 -> 22100 | FJ15: =SA!HV10-SA!HJ10 -> 23000 | FK15: =SA!HW10-SA!HK10 -> 20200 | FL15: =SA!HX10-SA!HL10 -> 18900 | FM15: =SA!HY10-SA!HM10 -> 17800 | FN15: =SA!HZ10-SA!HN10 -> 2200 | FO15: =SA!IA10-SA!HO10 -> -1900 | FP15: =SA!IB10-SA!HP10 -> -3700 | FQ15: =SA!IC10-SA!HQ10 -> -4700 | FR15: =SA!ID10-SA!HR10 -> -6100 | FS15: =SA!IE10-SA!HS10 -> -9600 | FT15: =SA!IF10-SA!HT10 -> -15300 | FU15: =SA!IG10-SA!HU10 -> -16000 | FV15: =SA!IH10-SA!HV10 -> -19600 | FW15: =SA!II10-SA!HW10 -> -20700 | FX15: =SA!IJ10-SA!HX10 -> -20000 | FY15: =SA!IK10-SA!HY10 -> -17000 | FZ15: =SA!IL10-SA!HZ10 -> -477500 | GA15: 10922.8 | GB15: =COUNTIF(EY15:FY15, ">" &GA15) -> 11 | GD15: Manufacturing | GE15: -68400 | GF15: -5650 | GG15: -1900 | GH15: 900 | GI15: 2550 | GJ15: 7400 | GK15: 12450 | GL15: 23000 | GM15: 17950.95253
A16: Durable Goods | B16: =SA!BN11-SA!BB11 -> 4600 | C16: =SA!BO11-SA!BC11 -> 8100 | D16: =SA!BP11-SA!BD11 -> 7800 | E16: =SA!BQ11-SA!BE11 -> 7600 | F16: =SA!BR11-SA!BF11 -> 5700 | G16: =SA!BS11-SA!BG11 -> 6900 | H16: =SA!BT11-SA!BH11 -> 4600 | I16: =SA!BU11-SA!BI11 -> 3500 | J16: =SA!BV11-SA!BJ11 -> 3000 | K16: =SA!BW11-SA!BK11 -> 3100 | L16: =SA!BX11-SA!BL11 -> 2000 | M16: =SA!BY11-SA!BM11 -> 1200 | N16: =SA!BZ11-SA!BN11 -> 6200 | O16: =SA!CA11-SA!BO11 -> 1700 | P16: =SA!CB11-SA!BP11 -> 2600 | Q16: =SA!CC11-SA!BQ11 -> 2300 | R16: =SA!CD11-SA!BR11 -> 3000 | S16: =SA!CE11-SA!BS11 -> 3900 | T16: =SA!CF11-SA!BT11 -> 3400 | U16: =SA!CG11-SA!BU11 -> 2900 | V16: =SA!CH11-SA!BV11 -> 2800 | W16: =SA!CI11-SA!BW11 -> 1700 | X16: =SA!CJ11-SA!BX11 -> 1000 | Y16: =SA!CK11-SA!BY11 -> 700 | Z16: =SA!CL11-SA!BZ11 -> -1300 | AA16: =SA!CM11-SA!CA11 -> -1300 | AB16: =SA!CN11-SA!CB11 -> -3400 | AC16: =SA!CO11-SA!CC11 -> -2600 | AD16: =SA!CP11-SA!CD11 -> -2800 | AE16: =SA!CQ11-SA!CE11 -> -4300 | AF16: =SA!CR11-SA!CF11 -> -4400 | AG16: =SA!CS11-SA!CG11 -> -5300 | AH16: =SA!CT11-SA!CH11 -> -6300 | AI16: =SA!CU11-SA!CI11 -> -6000 | AJ16: =SA!CV11-SA!CJ11 -> -5100 | AK16: =SA!CW11-SA!CK11 -> -4900 | AL16: =SA!CX11-SA!CL11 -> -3200 | AM16: =SA!CY11-SA!CM11 -> -2800 | AN16: =SA!CZ11-SA!CN11 -> -2000 | AO16: =SA!DA11-SA!CO11 -> -4000 | AP16: =SA!DB11-SA!CP11 -> -4600 | AQ16: =SA!DC11-SA!CQ11 -> -4700 | AR16: =SA!DD11-SA!CR11 -> -6500 | AS16: =SA!DE11-SA!CS11 -> -7800 | AT16: =SA!DF11-SA!CT11 -> -8400 | AU16: =SA!DG11-SA!CU11 -> -9500 | AV16: =SA!DH11-SA!CV11 -> -11600 | AW16: =SA!DI11-SA!CW11 -> -15300 | AX16: =SA!DJ11-SA!CX11 -> -23300 | AY16: =SA!DK11-SA!CY11 -> -32200 | AZ16: =SA!DL11-SA!CZ11 -> -39400 | BA16: =SA!DM11-SA!DA11 -> -46900 | BB16: =SA!DN11-SA!DB11 -> -51000 | BC16: =SA!DO11-SA!DC11 -> -54900 | BD16: =SA!DP11-SA!DD11 -> -55500 | BE16: =SA!DQ11-SA!DE11 -> -54700 | BF16: =SA!DR11-SA!DF11 -> -49800 | BG16: =SA!DS11-SA!DG11 -> -48700 | BH16: =SA!DT11-SA!DH11 -> -47300 | BI16: =SA!DU11-SA!DI11 -> -44000 | BJ16: =SA!DV11-SA!DJ11 -> -37800 | BK16: =SA!DW11-SA!DK11 -> -28500 | BL16: =SA!DX11-SA!DL11 -> -19600 | BM16: =SA!DY11-SA!DM11 -> -10100 | BN16: =SA!DZ11-SA!DN11 -> -4300 | BO16: =SA!EA11-SA!DO11 -> 700 | BP16: =SA!EB11-SA!DP11 -> 4200 | BQ16: =SA!EC11-SA!DQ11 -> 7100 | BR16: =SA!ED11-SA!DR11 -> 5200 | BS16: =SA!EE11-SA!DS11 -> 5800 | BT16: =SA!EF11-SA!DT11 -> 7500 | BU16: =SA!EG11-SA!DU11 -> 9400 | BV16: =SA!EH11-SA!DV11 -> 11100 | BW16: =SA!EI11-SA!DW11 -> 12200 | BX16: =SA!EJ11-SA!DX11 -> 11700 | BY16: =SA!EK11-SA!DY11 -> 12900 | BZ16: =SA!EL11-SA!DZ11 -> 12300 | CA16: =SA!EM11-SA!EA11 -> 12400 | CB16: =SA!EN11-SA!EB11 -> 13100 | CC16: =SA!EO11-SA!EC11 -> 12000 | CD16: =SA!EP11-SA!ED11 -> 11300 | CE16: =SA!EQ11-SA!EE11 -> 11100 | CF16: =SA!ER11-SA!EF11 -> 11500 | CG16: =SA!ES11-SA!EG11 -> 11100 | CH16: =SA!ET11-SA!EH11 -> 11700 | CI16: =SA!EU11-SA!EI11 -> 10700 | CJ16: =SA!EV11-SA!EJ11 -> 10900 | CK16: =SA!EW11-SA!EK11 -> 9100 | CL16: =SA!EX11-SA!EL11 -> 9000 | CM16: =SA!EY11-SA!EM11 -> 9800 | CN16: =SA!EZ11-SA!EN11 -> 8400 | CO16: =SA!FA11-SA!EO11 -> 7800 | CP16: =SA!FB11-SA!EP11 -> 7700 | CQ16: =SA!FC11-SA!EQ11 -> 8200 | CR16: =SA!FD11-SA!ER11 -> 6600 | CS16: =SA!FE11-SA!ES11 -> 5800 | CT16: =SA!FF11-SA!ET11 -> 4400 | CU16: =SA!FG11-SA!EU11 -> 3500 | CV16: =SA!FH11-SA!EV11 -> 2300 | CW16: =SA!FI11-SA!EW11 -> 800 | CX16: =SA!FJ11-SA!EX11 -> 0 | CY16: =SA!FK11-SA!EY11 -> -400 | CZ16: =SA!FL11-SA!EZ11 -> -2300 | DA16: =SA!FM11-SA!FA11 -> -1400 | DB16: =SA!FN11-SA!FB11 -> -900 | DC16: =SA!FO11-SA!FC11 -> -600 | DD16: =SA!FP11-SA!FD11 -> 400 | DE16: =SA!FQ11-SA!FE11 -> 100 | DF16: =SA!FR11-SA!FF11 -> 400 | DG16: =SA!FS11-SA!FG11 -> 200 | DH16: =SA!FT11-SA!FH11 -> 900 | DI16: =SA!FU11-SA!FI11 -> 3100 | DJ16: =SA!FV11-SA!FJ11 -> 4000 | DK16: =SA!FW11-SA!FK11 -> 3800 | DL16: =SA!FX11-SA!FL11 -> 6100 | DM16: =SA!FY11-SA!FM11 -> 5900 | DN16: =SA!FZ11-SA!FN11 -> 5600 | DO16: =SA!GA11-SA!FO11 -> 5700 | DP16: =SA!GB11-SA!FP11 -> 5300 | DQ16: =SA!GC11-SA!FQ11 -> 6100 | DR16: =SA!GD11-SA!FR11 -> 5500 | DS16: =SA!GE11-SA!FS11 -> 6000 | DT16: =SA!GF11-SA!FT11 -> 5300 | DU16: =SA!GG11-SA!FU11 -> 3200 | DV16: =SA!GH11-SA!FV11 -> 2000 | DW16: =SA!GI11-SA!FW11 -> 1100 | DX16: =SA!GJ11-SA!FX11 -> 400 | DY16: =SA!GK11-SA!FY11 -> -1100 | DZ16: =SA!GL11-SA!FZ11 -> -800 | EA16: =SA!GM11-SA!GA11 -> -2200 | EB16: =SA!GN11-SA!GB11 -> -2700 | EC16: =SA!GO11-SA!GC11 -> -4000 | ED16: =SA!GP11-SA!GD11 -> -3700 | EE16: =SA!GQ11-SA!GE11 -> -4500 | EF16: =SA!GR11-SA!GF11 -> -5000 | EG16: =SA!GS11-SA!GG11 -> -4300 | EH16: =SA!GT11-SA!GH11 -> -4200 | EI16: =SA!GU11-SA!GI11 -> -5100 | EJ16: =SA!GV11-SA!GJ11 -> -5700 | EK16: =SA!GW11-SA!GK11 -> -5000 | EL16: =SA!GX11-SA!GL11 -> -5800 | EM16: =SA!GY11-SA!GM11 -> -4500 | EN16: =SA!GZ11-SA!GN11 -> -4200 | EO16: =SA!HA11-SA!GO11 -> -3100 | EP16: =SA!HB11-SA!GP11 -> -2900 | EQ16: =SA!HC11-SA!GQ11 -> -2300 | ER16: =SA!HD11-SA!GR11 -> -1400 | ES16: =SA!HE11-SA!GS11 -> -1100 | ET16: =SA!HF11-SA!GT11 -> -500 | EU16: =SA!HG11-SA!GU11 -> 800 | EV16: =SA!HH11-SA!GV11 -> 1800 | EW16: =SA!HI11-SA!GW11 -> 2000 | EX16: =SA!HJ11-SA!GX11 -> 1900 | EY16: =SA!HK11-SA!GY11 -> 4900 | EZ16: =SA!HL11-SA!GZ11 -> 6200 | FA16: =SA!HM11-SA!HA11 -> 5900 | FB16: =SA!HN11-SA!HB11 -> 8500 | FC16: =SA!HO11-SA!HC11 -> 10700 | FD16: =SA!HP11-SA!HD11 -> 11200 | FE16: =SA!HQ11-SA!HE11 -> 11200 | FF16: =SA!HR11-SA!HF11 -> 11700 | FG16: =SA!HS11-SA!HG11 -> 14500 | FH16: =SA!HT11-SA!HH11 -> 16300 | FI16: =SA!HU11-SA!HI11 -> 16400 | FJ16: =SA!HV11-SA!HJ11 -> 16800 | FK16: =SA!HW11-SA!HK11 -> 13000 | FL16: =SA!HX11-SA!HL11 -> 10800 | FM16: =SA!HY11-SA!HM11 -> 11000 | FN16: =SA!HZ11-SA!HN11 -> -100 | FO16: =SA!IA11-SA!HO11 -> -4000 | FP16: =SA!IB11-SA!HP11 -> -5100 | FQ16: =SA!IC11-SA!HQ11 -> -5500 | FR16: =SA!ID11-SA!HR11 -> -6400 | FS16: =SA!IE11-SA!HS11 -> -10000 | FT16: =SA!IF11-SA!HT11 -> -14000 | FU16: =SA!IG11-SA!HU11 -> -14400 | FV16: =SA!IH11-SA!HV11 -> -15300 | FW16: =SA!II11-SA!HW11 -> -15700 | FX16: =SA!IJ11-SA!HX11 -> -14500 | FY16: =SA!IK11-SA!HY11 -> -14000 | FZ16: =SA!IL11-SA!HZ11 -> -287700 | GA16: 7777.56 | GB16: =COUNTIF(EY16:FY16, ">" &GA16) -> 12 | GD16: Durable Goods | GE16: -55500 | GF16: -5750 | GG16: -2800 | GH16: 700 | GI16: 2700 | GJ16: 5800 | GK16: 10700 | GL16: 16800 | GM16: 14525.21781
A17: Non-Durable Goods | B17: =SA!BN12-SA!BB12 -> -2100 | C17: =SA!BO12-SA!BC12 -> -2400 | D17: =SA!BP12-SA!BD12 -> -2600 | E17: =SA!BQ12-SA!BE12 -> -3600 | F17: =SA!BR12-SA!BF12 -> -3600 | G17: =SA!BS12-SA!BG12 -> -3100 | H17: =SA!BT12-SA!BH12 -> -2200 | I17: =SA!BU12-SA!BI12 -> -2700 | J17: =SA!BV12-SA!BJ12 -> -2900 | K17: =SA!BW12-SA!BK12 -> -3100 | L17: =SA!BX12-SA!BL12 -> -2400 | M17: =SA!BY12-SA!BM12 -> -2200 | N17: =SA!BZ12-SA!BN12 -> -2000 | O17: =SA!CA12-SA!BO12 -> -1900 | P17: =SA!CB12-SA!BP12 -> -1900 | Q17: =SA!CC12-SA!BQ12 -> -1100 | R17: =SA!CD12-SA!BR12 -> -1600 | S17: =SA!CE12-SA!BS12 -> -1300 | T17: =SA!CF12-SA!BT12 -> -2000 | U17: =SA!CG12-SA!BU12 -> -1900 | V17: =SA!CH12-SA!BV12 -> -1800 | W17: =SA!CI12-SA!BW12 -> -1600 | X17: =SA!CJ12-SA!BX12 -> -1900 | Y17: =SA!CK12-SA!BY12 -> -2000 | Z17: =SA!CL12-SA!BZ12 -> -1500 | AA17: =SA!CM12-SA!CA12 -> -1200 | AB17: =SA!CN12-SA!CB12 -> -1000 | AC17: =SA!CO12-SA!CC12 -> -1800 | AD17: =SA!CP12-SA!CD12 -> -800 | AE17: =SA!CQ12-SA!CE12 -> 100 | AF17: =SA!CR12-SA!CF12 -> -200 | AG17: =SA!CS12-SA!CG12 -> -200 | AH17: =SA!CT12-SA!CH12 -> -300 | AI17: =SA!CU12-SA!CI12 -> -400 | AJ17: =SA!CV12-SA!CJ12 -> 100 | AK17: =SA!CW12-SA!CK12 -> 400 | AL17: =SA!CX12-SA!CL12 -> 200 | AM17: =SA!CY12-SA!CM12 -> 300 | AN17: =SA!CZ12-SA!CN12 -> 100 | AO17: =SA!DA12-SA!CO12 -> 500 | AP17: =SA!DB12-SA!CP12 -> -400 | AQ17: =SA!DC12-SA!CQ12 -> -1100 | AR17: =SA!DD12-SA!CR12 -> -2900 | AS17: =SA!DE12-SA!CS12 -> -2500 | AT17: =SA!DF12-SA!CT12 -> -2900 | AU17: =SA!DG12-SA!CU12 -> -2500 | AV17: =SA!DH12-SA!CV12 -> -3900 | AW17: =SA!DI12-SA!CW12 -> -5100 | AX17: =SA!DJ12-SA!CX12 -> -6800 | AY17: =SA!DK12-SA!CY12 -> -8700 | AZ17: =SA!DL12-SA!CZ12 -> -9800 | BA17: =SA!DM12-SA!DA12 -> -11200 | BB17: =SA!DN12-SA!DB12 -> -11900 | BC17: =SA!DO12-SA!DC12 -> -13100 | BD17: =SA!DP12-SA!DD12 -> -12900 | BE17: =SA!DQ12-SA!DE12 -> -12100 | BF17: =SA!DR12-SA!DF12 -> -10300 | BG17: =SA!DS12-SA!DG12 -> -11900 | BH17: =SA!DT12-SA!DH12 -> -10600 | BI17: =SA!DU12-SA!DI12 -> -9600 | BJ17: =SA!DV12-SA!DJ12 -> -8100 | BK17: =SA!DW12-SA!DK12 -> -6300 | BL17: =SA!DX12-SA!DL12 -> -4700 | BM17: =SA!DY12-SA!DM12 -> -2900 | BN17: =SA!DZ12-SA!DN12 -> -1200 | BO17: =SA!EA12-SA!DO12 -> 400 | BP17: =SA!EB12-SA!DP12 -> 3300 | BQ17: =SA!EC12-SA!DQ12 -> 2100 | BR17: =SA!ED12-SA!DR12 -> 900 | BS17: =SA!EE12-SA!DS12 -> 2200 | BT17: =SA!EF12-SA!DT12 -> 2400 | BU17: =SA!EG12-SA!DU12 -> 2200 | BV17: =SA!EH12-SA!DV12 -> 2600 | BW17: =SA!EI12-SA!DW12 -> 2600 | BX17: =SA!EJ12-SA!DX12 -> 2600 | BY17: =SA!EK12-SA!DY12 -> 3400 | BZ17: =SA!EL12-SA!DZ12 -> 3100 | CA17: =SA!EM12-SA!EA12 -> 1800 | CB17: =SA!EN12-SA!EB12 -> 1300 | CC17: =SA!EO12-SA!EC12 -> 2400 | CD17: =SA!EP12-SA!ED12 -> 2600 | CE17: =SA!EQ12-SA!EE12 -> 2500 | CF17: =SA!ER12-SA!EF12 -> 2100 | CG17: =SA!ES12-SA!EG12 -> 2600 | CH17: =SA!ET12-SA!EH12 -> 2300 | CI17: =SA!EU12-SA!EI12 -> 2300 | CJ17: =SA!EV12-SA!EJ12 -> 2000 | CK17: =SA!EW12-SA!EK12 -> 1600 | CL17: =SA!EX12-SA!EL12 -> 1200 | CM17: =SA!EY12-SA!EM12 -> 2200 | CN17: =SA!EZ12-SA!EN12 -> 1800 | CO17: =SA!FA12-SA!EO12 -> 1300 | CP17: =SA!FB12-SA!EP12 -> 1500 | CQ17: =SA!FC12-SA!EQ12 -> 1900 | CR17: =SA!FD12-SA!ER12 -> 1900 | CS17: =SA!FE12-SA!ES12 -> 1800 | CT17: =SA!FF12-SA!ET12 -> 1700 | CU17: =SA!FG12-SA!EU12 -> 1700 | CV17: =SA!FH12-SA!EV12 -> 1600 | CW17: =SA!FI12-SA!EW12 -> 900 | CX17: =SA!FJ12-SA!EX12 -> 1100 | CY17: =SA!FK12-SA!EY12 -> 900 | CZ17: =SA!FL12-SA!EZ12 -> 1000 | DA17: =SA!FM12-SA!FA12 -> 1200 | DB17: =SA!FN12-SA!FB12 -> 1100 | DC17: =SA!FO12-SA!FC12 -> 1300 | DD17: =SA!FP12-SA!FD12 -> 1700 | DE17: =SA!FQ12-SA!FE12 -> 1800 | DF17: =SA!FR12-SA!FF12 -> 2400 | DG17: =SA!FS12-SA!FG12 -> 2800 | DH17: =SA!FT12-SA!FH12 -> 3100 | DI17: =SA!FU12-SA!FI12 -> 3400 | DJ17: =SA!FV12-SA!FJ12 -> 3500 | DK17: =SA!FW12-SA!FK12 -> 3300 | DL17: =SA!FX12-SA!FL12 -> 3900 | DM17: =SA!FY12-SA!FM12 -> 3800 | DN17: =SA!FZ12-SA!FN12 -> 3700 | DO17: =SA!GA12-SA!FO12 -> 3300 | DP17: =SA!GB12-SA!FP12 -> 3000 | DQ17: =SA!GC12-SA!FQ12 -> 2400 | DR17: =SA!GD12-SA!FR12 -> 2200 | DS17: =SA!GE12-SA!FS12 -> 2200 | DT17: =SA!GF12-SA!FT12 -> 1700 | DU17: =SA!GG12-SA!FU12 -> 1600 | DV17: =SA!GH12-SA!FV12 -> 1800 | DW17: =SA!GI12-SA!FW12 -> 1900 | DX17: =SA!GJ12-SA!FX12 -> 1400 | DY17: =SA!GK12-SA!FY12 -> 1300 | DZ17: =SA!GL12-SA!FZ12 -> 1200 | EA17: =SA!GM12-SA!GA12 -> 1600 | EB17: =SA!GN12-SA!GB12 -> 1700 | EC17: =SA!GO12-SA!GC12 -> 2200 | ED17: =SA!GP12-SA!GD12 -> 2000 | EE17: =SA!GQ12-SA!GE12 -> 1400 | EF17: =SA!GR12-SA!GF12 -> 2000 | EG17: =SA!GS12-SA!GG12 -> 2400 | EH17: =SA!GT12-SA!GH12 -> 1900 | EI17: =SA!GU12-SA!GI12 -> 2000 | EJ17: =SA!GV12-SA!GJ12 -> 1700 | EK17: =SA!GW12-SA!GK12 -> 1900 | EL17: =SA!GX12-SA!GL12 -> 2000 | EM17: =SA!GY12-SA!GM12 -> 1900 | EN17: =SA!GZ12-SA!GN12 -> 1900 | EO17: =SA!HA12-SA!GO12 -> 2200 | EP17: =SA!HB12-SA!GP12 -> 2300 | EQ17: =SA!HC12-SA!GQ12 -> 2600 | ER17: =SA!HD12-SA!GR12 -> 2800 | ES17: =SA!HE12-SA!GS12 -> 1900 | ET17: =SA!HF12-SA!GT12 -> 1900 | EU17: =SA!HG12-SA!GU12 -> 1900 | EV17: =SA!HH12-SA!GV12 -> 1600 | EW17: =SA!HI12-SA!GW12 -> 1600 | EX17: =SA!HJ12-SA!GX12 -> 1800 | EY17: =SA!HK12-SA!GY12 -> 1000 | EZ17: =SA!HL12-SA!GZ12 -> 1200 | FA17: =SA!HM12-SA!HA12 -> 1500 | FB17: =SA!HN12-SA!HB12 -> 1200 | FC17: =SA!HO12-SA!HC12 -> 1400 | FD17: =SA!HP12-SA!HD12 -> 1600 | FE17: =SA!HQ12-SA!HE12 -> 2800 | FF17: =SA!HR12-SA!HF12 -> 3700 | FG17: =SA!HS12-SA!HG12 -> 4200 | FH17: =SA!HT12-SA!HH12 -> 4800 | FI17: =SA!HU12-SA!HI12 -> 5700 | FJ17: =SA!HV12-SA!HJ12 -> 6200 | FK17: =SA!HW12-SA!HK12 -> 7200 | FL17: =SA!HX12-SA!HL12 -> 8100 | FM17: =SA!HY12-SA!HM12 -> 6800 | FN17: =SA!HZ12-SA!HN12 -> 2300 | FO17: =SA!IA12-SA!HO12 -> 2100 | FP17: =SA!IB12-SA!HP12 -> 1400 | FQ17: =SA!IC12-SA!HQ12 -> 800 | FR17: =SA!ID12-SA!HR12 -> 300 | FS17: =SA!IE12-SA!HS12 -> 400 | FT17: =SA!IF12-SA!HT12 -> -1300 | FU17: =SA!IG12-SA!HU12 -> -1600 | FV17: =SA!IH12-SA!HV12 -> -4300 | FW17: =SA!II12-SA!HW12 -> -5000 | FX17: =SA!IJ12-SA!HX12 -> -5500 | FY17: =SA!IK12-SA!HY12 -> -3000 | FZ17: =SA!IL12-SA!HZ12 -> -189800 | GA17: 7668.99 | GB17: =COUNTIF(EY17:FY17, ">" &GA17) -> 1 | GD17: Non-Durable Goods | GE17: -13100 | GF17: -2800 | GG17: -1100 | GH17: 1200 | GI17: 1600 | GJ17: 2000 | GK17: 2600 | GL17: 8100 | GM17: 3849.600095
A18: Trade, Transportation, and Utilities | B18: =SA!BN13-SA!BB13 -> 2400 | C18: =SA!BO13-SA!BC13 -> 4100 | D18: =SA!BP13-SA!BD13 -> 4300 | E18: =SA!BQ13-SA!BE13 -> 6100 | F18: =SA!BR13-SA!BF13 -> 4100 | G18: =SA!BS13-SA!BG13 -> 1500 | H18: =SA!BT13-SA!BH13 -> 1600 | I18: =SA!BU13-SA!BI13 -> 3200 | J18: =SA!BV13-SA!BJ13 -> 4400 | K18: =SA!BW13-SA!BK13 -> 6400 | L18: =SA!BX13-SA!BL13 -> 6100 | M18: =SA!BY13-SA!BM13 -> 7700 | N18: =SA!BZ13-SA!BN13 -> 3700 | O18: =SA!CA13-SA!BO13 -> 3500 | P18: =SA!CB13-SA!BP13 -> 3500 | Q18: =SA!CC13-SA!BQ13 -> 1900 | R18: =SA!CD13-SA!BR13 -> 1500 | S18: =SA!CE13-SA!BS13 -> 3900 | T18: =SA!CF13-SA!BT13 -> 300 | U18: =SA!CG13-SA!BU13 -> 0 | V18: =SA!CH13-SA!BV13 -> 300 | W18: =SA!CI13-SA!BW13 -> -2100 | X18: =SA!CJ13-SA!BX13 -> -1100 | Y18: =SA!CK13-SA!BY13 -> -600 | Z18: =SA!CL13-SA!BZ13 -> 5100 | AA18: =SA!CM13-SA!CA13 -> 3800 | AB18: =SA!CN13-SA!CB13 -> 3700 | AC18: =SA!CO13-SA!CC13 -> 1900 | AD18: =SA!CP13-SA!CD13 -> 4700 | AE18: =SA!CQ13-SA!CE13 -> 4100 | AF18: =SA!CR13-SA!CF13 -> 4300 | AG18: =SA!CS13-SA!CG13 -> 1500 | AH18: =SA!CT13-SA!CH13 -> 1500 | AI18: =SA!CU13-SA!CI13 -> 600 | AJ18: =SA!CV13-SA!CJ13 -> -200 | AK18: =SA!CW13-SA!CK13 -> -2000 | AL18: =SA!CX13-SA!CL13 -> -1700 | AM18: =SA!CY13-SA!CM13 -> -2200 | AN18: =SA!CZ13-SA!CN13 -> -2800 | AO18: =SA!DA13-SA!CO13 -> -1600 | AP18: =SA!DB13-SA!CP13 -> -5100 | AQ18: =SA!DC13-SA!CQ13 -> -6900 | AR18: =SA!DD13-SA!CR13 -> -6400 | AS18: =SA!DE13-SA!CS13 -> -5700 | AT18: =SA!DF13-SA!CT13 -> -7900 | AU18: =SA!DG13-SA!CU13 -> -9300 | AV18: =SA!DH13-SA!CV13 -> -12900 | AW18: =SA!DI13-SA!CW13 -> -14400 | AX18: =SA!DJ13-SA!CX13 -> -18800 | AY18: =SA!DK13-SA!CY13 -> -20300 | AZ18: =SA!DL13-SA!CZ13 -> -23400 | BA18: =SA!DM13-SA!DA13 -> -25600 | BB18: =SA!DN13-SA!DB13 -> -23800 | BC18: =SA!DO13-SA!DC13 -> -23200 | BD18: =SA!DP13-SA!DD13 -> -25600 | BE18: =SA!DQ13-SA!DE13 -> -25400 | BF18: =SA!DR13-SA!DF13 -> -25100 | BG18: =SA!DS13-SA!DG13 -> -23700 | BH18: =SA!DT13-SA!DH13 -> -22600 | BI18: =SA!DU13-SA!DI13 -> -22400 | BJ18: =SA!DV13-SA!DJ13 -> -19400 | BK18: =SA!DW13-SA!DK13 -> -17600 | BL18: =SA!DX13-SA!DL13 -> -14100 | BM18: =SA!DY13-SA!DM13 -> -11000 | BN18: =SA!DZ13-SA!DN13 -> -11400 | BO18: =SA!EA13-SA!DO13 -> -10800 | BP18: =SA!EB13-SA!DP13 -> -7700 | BQ18: =SA!EC13-SA!DQ13 -> -6900 | BR18: =SA!ED13-SA!DR13 -> -5800 | BS18: =SA!EE13-SA!DS13 -> -2300 | BT18: =SA!EF13-SA!DT13 -> -1700 | BU18: =SA!EG13-SA!DU13 -> 200 | BV18: =SA!EH13-SA!DV13 -> 600 | BW18: =SA!EI13-SA!DW13 -> 900 | BX18: =SA!EJ13-SA!DX13 -> 1300 | BY18: =SA!EK13-SA!DY13 -> 2200 | BZ18: =SA!EL13-SA!DZ13 -> 1000 | CA18: =SA!EM13-SA!EA13 -> 800 | CB18: =SA!EN13-SA!EB13 -> 2700 | CC18: =SA!EO13-SA!EC13 -> 3600 | CD18: =SA!EP13-SA!ED13 -> 5100 | CE18: =SA!EQ13-SA!EE13 -> 2200 | CF18: =SA!ER13-SA!EF13 -> 4200 | CG18: =SA!ES13-SA!EG13 -> 3700 | CH18: =SA!ET13-SA!EH13 -> 3600 | CI18: =SA!EU13-SA!EI13 -> 3400 | CJ18: =SA!EV13-SA!EJ13 -> 2700 | CK18: =SA!EW13-SA!EK13 -> 300 | CL18: =SA!EX13-SA!EL13 -> 2400 | CM18: =SA!EY13-SA!EM13 -> 2700 | CN18: =SA!EZ13-SA!EN13 -> 0 | CO18: =SA!FA13-SA!EO13 -> -800 | CP18: =SA!FB13-SA!EP13 -> -400 | CQ18: =SA!FC13-SA!EQ13 -> 1100 | CR18: =SA!FD13-SA!ER13 -> 2300 | CS18: =SA!FE13-SA!ES13 -> 1800 | CT18: =SA!FF13-SA!ET13 -> 2200 | CU18: =SA!FG13-SA!EU13 -> 3600 | CV18: =SA!FH13-SA!EV13 -> 3700 | CW18: =SA!FI13-SA!EW13 -> 5100 | CX18: =SA!FJ13-SA!EX13 -> 5100 | CY18: =SA!FK13-SA!EY13 -> 6100 | CZ18: =SA!FL13-SA!EZ13 -> 6900 | DA18: =SA!FM13-SA!FA13 -> 7700 | DB18: =SA!FN13-SA!FB13 -> 6400 | DC18: =SA!FO13-SA!FC13 -> 5900 | DD18: =SA!FP13-SA!FD13 -> 4500 | DE18: =SA!FQ13-SA!FE13 -> 6500 | DF18: =SA!FR13-SA!FF13 -> 6500 | DG18: =SA!FS13-SA!FG13 -> 6300 | DH18: =SA!FT13-SA!FH13 -> 7200 | DI18: =SA!FU13-SA!FI13 -> 8500 | DJ18: =SA!FV13-SA!FJ13 -> 7200 | DK18: =SA!FW13-SA!FK13 -> 7100 | DL18: =SA!FX13-SA!FL13 -> 7300 | DM18: =SA!FY13-SA!FM13 -> 6500 | DN18: =SA!FZ13-SA!FN13 -> 6900 | DO18: =SA!GA13-SA!FO13 -> 6000 | DP18: =SA!GB13-SA!FP13 -> 7800 | DQ18: =SA!GC13-SA!FQ13 -> 5900 | DR18: =SA!GD13-SA!FR13 -> 5900 | DS18: =SA!GE13-SA!FS13 -> 4700 | DT18: =SA!GF13-SA!FT13 -> 5200 | DU18: =SA!GG13-SA!FU13 -> 3000 | DV18: =SA!GH13-SA!FV13 -> 5600 | DW18: =SA!GI13-SA!FW13 -> 5700 | DX18: =SA!GJ13-SA!FX13 -> 7900 | DY18: =SA!GK13-SA!FY13 -> 9400 | DZ18: =SA!GL13-SA!FZ13 -> 10800 | EA18: =SA!GM13-SA!GA13 -> 11200 | EB18: =SA!GN13-SA!GB13 -> 8900 | EC18: =SA!GO13-SA!GC13 -> 8000 | ED18: =SA!GP13-SA!GD13 -> 10600 | EE18: =SA!GQ13-SA!GE13 -> 12500 | EF18: =SA!GR13-SA!GF13 -> 10800 | EG18: =SA!GS13-SA!GG13 -> 13200 | EH18: =SA!GT13-SA!GH13 -> 10500 | EI18: =SA!GU13-SA!GI13 -> 9400 | EJ18: =SA!GV13-SA!GJ13 -> 8400 | EK18: =SA!GW13-SA!GK13 -> 6800 | EL18: =SA!GX13-SA!GL13 -> 4900 | EM18: =SA!GY13-SA!GM13 -> 4700 | EN18: =SA!GZ13-SA!GN13 -> 4300 | EO18: =SA!HA13-SA!GO13 -> 5500 | EP18: =SA!HB13-SA!GP13 -> 5500 | EQ18: =SA!HC13-SA!GQ13 -> 5100 | ER18: =SA!HD13-SA!GR13 -> 4500 | ES18: =SA!HE13-SA!GS13 -> 1900 | ET18: =SA!HF13-SA!GT13 -> 2100 | EU18: =SA!HG13-SA!GU13 -> 2300 | EV18: =SA!HH13-SA!GV13 -> 400 | EW18: =SA!HI13-SA!GW13 -> 1000 | EX18: =SA!HJ13-SA!GX13 -> 900 | EY18: =SA!HK13-SA!GY13 -> -3700 | EZ18: =SA!HL13-SA!GZ13 -> -1900 | FA18: =SA!HM13-SA!HA13 -> -600 | FB18: =SA!HN13-SA!HB13 -> -1800 | FC18: =SA!HO13-SA!HC13 -> -2100 | FD18: =SA!HP13-SA!HD13 -> 1400 | FE18: =SA!HQ13-SA!HE13 -> 0 | FF18: =SA!HR13-SA!HF13 -> -500 | FG18: =SA!HS13-SA!HG13 -> 800 | FH18: =SA!HT13-SA!HH13 -> 3000 | FI18: =SA!HU13-SA!HI13 -> 1900 | FJ18: =SA!HV13-SA!HJ13 -> -1800 | FK18: =SA!HW13-SA!HK13 -> -100 | FL18: =SA!HX13-SA!HL13 -> 1500 | FM18: =SA!HY13-SA!HM13 -> 2600 | FN18: =SA!HZ13-SA!HN13 -> 7200 | FO18: =SA!IA13-SA!HO13 -> 7000 | FP18: =SA!IB13-SA!HP13 -> 4000 | FQ18: =SA!IC13-SA!HQ13 -> 3700 | FR18: =SA!ID13-SA!HR13 -> 4000 | FS18: =SA!IE13-SA!HS13 -> 3800 | FT18: =SA!IF13-SA!HT13 -> 2500 | FU18: =SA!IG13-SA!HU13 -> 3800 | FV18: =SA!IH13-SA!HV13 -> 9300 | FW18: =SA!II13-SA!HW13 -> 11400 | FX18: =SA!IJ13-SA!HX13 -> 7400 | FY18: =SA!IK13-SA!HY13 -> 6000 | FZ18: =SA!IL13-SA!HZ13 -> -548600 | GA18: 11564.35 | GB18: =COUNTIF(EY18:FY18, ">" &GA18) -> 0 | GD18: Trade, Transportation, and Utilities | GE18: -25600 | GF18: -6650 | GG18: 0 | GH18: 1850 | GI18: 3000 | GJ18: 4700 | GK18: 6650 | GL18: 13200 | GM18: 8450.476155
A19: Wholesale Trade | B19: =SA!BN14-SA!BB14 -> 2600 | C19: =SA!BO14-SA!BC14 -> 3000 | D19: =SA!BP14-SA!BD14 -> 2600 | E19: =SA!BQ14-SA!BE14 -> 4000 | F19: =SA!BR14-SA!BF14 -> 4200 | G19: =SA!BS14-SA!BG14 -> 4200 | H19: =SA!BT14-SA!BH14 -> 3000 | I19: =SA!BU14-SA!BI14 -> 2600 | J19: =SA!BV14-SA!BJ14 -> 3500 | K19: =SA!BW14-SA!BK14 -> 3300 | L19: =SA!BX14-SA!BL14 -> 3100 | M19: =SA!BY14-SA!BM14 -> 3300 | N19: =SA!BZ14-SA!BN14 -> 3600 | O19: =SA!CA14-SA!BO14 -> 3500 | P19: =SA!CB14-SA!BP14 -> 4000 | Q19: =SA!CC14-SA!BQ14 -> 3100 | R19: =SA!CD14-SA!BR14 -> 2800 | S19: =SA!CE14-SA!BS14 -> 3100 | T19: =SA!CF14-SA!BT14 -> 2800 | U19: =SA!CG14-SA!BU14 -> 2800 | V19: =SA!CH14-SA!BV14 -> 2800 | W19: =SA!CI14-SA!BW14 -> 2400 | X19: =SA!CJ14-SA!BX14 -> 2200 | Y19: =SA!CK14-SA!BY14 -> 2100 | Z19: =SA!CL14-SA!BZ14 -> 1600 | AA19: =SA!CM14-SA!CA14 -> 1700 | AB19: =SA!CN14-SA!CB14 -> 1400 | AC19: =SA!CO14-SA!CC14 -> 1400 | AD19: =SA!CP14-SA!CD14 -> 1700 | AE19: =SA!CQ14-SA!CE14 -> 1500 | AF19: =SA!CR14-SA!CF14 -> 1600 | AG19: =SA!CS14-SA!CG14 -> 1100 | AH19: =SA!CT14-SA!CH14 -> 1100 | AI19: =SA!CU14-SA!CI14 -> 1000 | AJ19: =SA!CV14-SA!CJ14 -> 1200 | AK19: =SA!CW14-SA!CK14 -> 1100 | AL19: =SA!CX14-SA!CL14 -> 1200 | AM19: =SA!CY14-SA!CM14 -> 800 | AN19: =SA!CZ14-SA!CN14 -> 1000 | AO19: =SA!DA14-SA!CO14 -> 800 | AP19: =SA!DB14-SA!CP14 -> 800 | AQ19: =SA!DC14-SA!CQ14 -> 300 | AR19: =SA!DD14-SA!CR14 -> -200 | AS19: =SA!DE14-SA!CS14 -> 0 | AT19: =SA!DF14-SA!CT14 -> -700 | AU19: =SA!DG14-SA!CU14 -> -1400 | AV19: =SA!DH14-SA!CV14 -> -1800 | AW19: =SA!DI14-SA!CW14 -> -2600 | AX19: =SA!DJ14-SA!CX14 -> -3200 | AY19: =SA!DK14-SA!CY14 -> -3900 | AZ19: =SA!DL14-SA!CZ14 -> -4900 | BA19: =SA!DM14-SA!DA14 -> -6400 | BB19: =SA!DN14-SA!DB14 -> -6900 | BC19: =SA!DO14-SA!DC14 -> -7300 | BD19: =SA!DP14-SA!DD14 -> -7800 | BE19: =SA!DQ14-SA!DE14 -> -8200 | BF19: =SA!DR14-SA!DF14 -> -8100 | BG19: =SA!DS14-SA!DG14 -> -7300 | BH19: =SA!DT14-SA!DH14 -> -7500 | BI19: =SA!DU14-SA!DI14 -> -7100 | BJ19: =SA!DV14-SA!DJ14 -> -7100 | BK19: =SA!DW14-SA!DK14 -> -6500 | BL19: =SA!DX14-SA!DL14 -> -5900 | BM19: =SA!DY14-SA!DM14 -> -3900 | BN19: =SA!DZ14-SA!DN14 -> -3500 | BO19: =SA!EA14-SA!DO14 -> -2900 | BP19: =SA!EB14-SA!DP14 -> -1700 | BQ19: =SA!EC14-SA!DQ14 -> -900 | BR19: =SA!ED14-SA!DR14 -> -800 | BS19: =SA!EE14-SA!DS14 -> -300 | BT19: =SA!EF14-SA!DT14 -> 100 | BU19: =SA!EG14-SA!DU14 -> 500 | BV19: =SA!EH14-SA!DV14 -> 1100 | BW19: =SA!EI14-SA!DW14 -> 1500 | BX19: =SA!EJ14-SA!DX14 -> 1800 | BY19: =SA!EK14-SA!DY14 -> 1600 | BZ19: =SA!EL14-SA!DZ14 -> 1900 | CA19: =SA!EM14-SA!EA14 -> 1900 | CB19: =SA!EN14-SA!EB14 -> 2400 | CC19: =SA!EO14-SA!EC14 -> 2300 | CD19: =SA!EP14-SA!ED14 -> 3100 | CE19: =SA!EQ14-SA!EE14 -> 2500 | CF19: =SA!ER14-SA!EF14 -> 2700 | CG19: =SA!ES14-SA!EG14 -> 2700 | CH19: =SA!ET14-SA!EH14 -> 2700 | CI19: =SA!EU14-SA!EI14 -> 2700 | CJ19: =SA!EV14-SA!EJ14 -> 2800 | CK19: =SA!EW14-SA!EK14 -> 2800 | CL19: =SA!EX14-SA!EL14 -> 2200 | CM19: =SA!EY14-SA!EM14 -> 2300 | CN19: =SA!EZ14-SA!EN14 -> 1200 | CO19: =SA!FA14-SA!EO14 -> 900 | CP19: =SA!FB14-SA!EP14 -> 600 | CQ19: =SA!FC14-SA!EQ14 -> 1000 | CR19: =SA!FD14-SA!ER14 -> 1100 | CS19: =SA!FE14-SA!ES14 -> 1000 | CT19: =SA!FF14-SA!ET14 -> 2100 | CU19: =SA!FG14-SA!EU14 -> 2100 | CV19: =SA!FH14-SA!EV14 -> 1700 | CW19: =SA!FI14-SA!EW14 -> 1500 | CX19: =SA!FJ14-SA!EX14 -> 1900 | CY19: =SA!FK14-SA!EY14 -> 2100 | CZ19: =SA!FL14-SA!EZ14 -> 2100 | DA19: =SA!FM14-SA!FA14 -> 2300 | DB19: =SA!FN14-SA!FB14 -> 2200 | DC19: =SA!FO14-SA!FC14 -> 2000 | DD19: =SA!FP14-SA!FD14 -> 1800 | DE19: =SA!FQ14-SA!FE14 -> 1900 | DF19: =SA!FR14-SA!FF14 -> 500 | DG19: =SA!FS14-SA!FG14 -> 500 | DH19: =SA!FT14-SA!FH14 -> 1000 | DI19: =SA!FU14-SA!FI14 -> 1000 | DJ19: =SA!FV14-SA!FJ14 -> 1000 | DK19: =SA!FW14-SA!FK14 -> 1000 | DL19: =SA!FX14-SA!FL14 -> 1400 | DM19: =SA!FY14-SA!FM14 -> 1600 | DN19: =SA!FZ14-SA!FN14 -> 1400 | DO19: =SA!GA14-SA!FO14 -> 1100 | DP19: =SA!GB14-SA!FP14 -> 1300 | DQ19: =SA!GC14-SA!FQ14 -> 1300 | DR19: =SA!GD14-SA!FR14 -> 2100 | DS19: =SA!GE14-SA!FS14 -> 1800 | DT19: =SA!GF14-SA!FT14 -> 1700 | DU19: =SA!GG14-SA!FU14 -> 2000 | DV19: =SA!GH14-SA!FV14 -> 2200 | DW19: =SA!GI14-SA!FW14 -> 2200 | DX19: =SA!GJ14-SA!FX14 -> 2300 | DY19: =SA!GK14-SA!FY14 -> 2100 | DZ19: =SA!GL14-SA!FZ14 -> 2200 | EA19: =SA!GM14-SA!GA14 -> 3000 | EB19: =SA!GN14-SA!GB14 -> 3100 | EC19: =SA!GO14-SA!GC14 -> 3000 | ED19: =SA!GP14-SA!GD14 -> 2500 | EE19: =SA!GQ14-SA!GE14 -> 2800 | EF19: =SA!GR14-SA!GF14 -> 2700 | EG19: =SA!GS14-SA!GG14 -> 2500 | EH19: =SA!GT14-SA!GH14 -> 2000 | EI19: =SA!GU14-SA!GI14 -> 1500 | EJ19: =SA!GV14-SA!GJ14 -> 1700 | EK19: =SA!GW14-SA!GK14 -> 1600 | EL19: =SA!GX14-SA!GL14 -> 1800 | EM19: =SA!GY14-SA!GM14 -> 900 | EN19: =SA!GZ14-SA!GN14 -> 500 | EO19: =SA!HA14-SA!GO14 -> 800 | EP19: =SA!HB14-SA!GP14 -> 700 | EQ19: =SA!HC14-SA!GQ14 -> 700 | ER19: =SA!HD14-SA!GR14 -> 700 | ES19: =SA!HE14-SA!GS14 -> 300 | ET19: =SA!HF14-SA!GT14 -> 800 | EU19: =SA!HG14-SA!GU14 -> 1300 | EV19: =SA!HH14-SA!GV14 -> 700 | EW19: =SA!HI14-SA!GW14 -> 1100 | EX19: =SA!HJ14-SA!GX14 -> 1100 | EY19: =SA!HK14-SA!GY14 -> 400 | EZ19: =SA!HL14-SA!GZ14 -> 900 | FA19: =SA!HM14-SA!HA14 -> -400 | FB19: =SA!HN14-SA!HB14 -> 300 | FC19: =SA!HO14-SA!HC14 -> 500 | FD19: =SA!HP14-SA!HD14 -> 100 | FE19: =SA!HQ14-SA!HE14 -> 300 | FF19: =SA!HR14-SA!HF14 -> 100 | FG19: =SA!HS14-SA!HG14 -> 300 | FH19: =SA!HT14-SA!HH14 -> 600 | FI19: =SA!HU14-SA!HI14 -> 0 | FJ19: =SA!HV14-SA!HJ14 -> -1600 | FK19: =SA!HW14-SA!HK14 -> -1500 | FL19: =SA!HX14-SA!HL14 -> -1400 | FM19: =SA!HY14-SA!HM14 -> 900 | FN19: =SA!HZ14-SA!HN14 -> 3500 | FO19: =SA!IA14-SA!HO14 -> 2200 | FP19: =SA!IB14-SA!HP14 -> 2300 | FQ19: =SA!IC14-SA!HQ14 -> 1400 | FR19: =SA!ID14-SA!HR14 -> 1300 | FS19: =SA!IE14-SA!HS14 -> 1600 | FT19: =SA!IF14-SA!HT14 -> 1400 | FU19: =SA!IG14-SA!HU14 -> 2300 | FV19: =SA!IH14-SA!HV14 -> 3400 | FW19: =SA!II14-SA!HW14 -> 3200 | FX19: =SA!IJ14-SA!HX14 -> 1300 | FY19: =SA!IK14-SA!HY14 -> 1700 | FZ19: =SA!IL14-SA!HZ14 -> -128700 | GA19: 5754.21 | GB19: =COUNTIF(EY19:FY19, ">" &GA19) -> 0 | GD19: Wholesale Trade | GE19: -8200 | GF19: -1150 | GG19: 700 | GH19: 1100 | GI19: 1600 | GJ19: 2100 | GK19: 2800 | GL19: 4200 | GM19: 2679.404152
A20: Retail Trade | B20: =SA!BN15-SA!BB15 -> -2600 | C20: =SA!BO15-SA!BC15 -> -1200 | D20: =SA!BP15-SA!BD15 -> -800 | E20: =SA!BQ15-SA!BE15 -> -400 | F20: =SA!BR15-SA!BF15 -> -1800 | G20: =SA!BS15-SA!BG15 -> -4000 | H20: =SA!BT15-SA!BH15 -> -2600 | I20: =SA!BU15-SA!BI15 -> -900 | J20: =SA!BV15-SA!BJ15 -> -800 | K20: =SA!BW15-SA!BK15 -> 3100 | L20: =SA!BX15-SA!BL15 -> 2500 | M20: =SA!BY15-SA!BM15 -> 3300 | N20: =SA!BZ15-SA!BN15 -> -1600 | O20: =SA!CA15-SA!BO15 -> -1900 | P20: =SA!CB15-SA!BP15 -> -2100 | Q20: =SA!CC15-SA!BQ15 -> -2500 | R20: =SA!CD15-SA!BR15 -> -2800 | S20: =SA!CE15-SA!BS15 -> -1100 | T20: =SA!CF15-SA!BT15 -> -3600 | U20: =SA!CG15-SA!BU15 -> -3900 | V20: =SA!CH15-SA!BV15 -> -3900 | W20: =SA!CI15-SA!BW15 -> -6300 | X20: =SA!CJ15-SA!BX15 -> -4400 | Y20: =SA!CK15-SA!BY15 -> -4100 | Z20: =SA!CL15-SA!BZ15 -> 2900 | AA20: =SA!CM15-SA!CA15 -> 1600 | AB20: =SA!CN15-SA!CB15 -> 2000 | AC20: =SA!CO15-SA!CC15 -> 400 | AD20: =SA!CP15-SA!CD15 -> 2400 | AE20: =SA!CQ15-SA!CE15 -> 1600 | AF20: =SA!CR15-SA!CF15 -> 2700 | AG20: =SA!CS15-SA!CG15 -> 0 | AH20: =SA!CT15-SA!CH15 -> 400 | AI20: =SA!CU15-SA!CI15 -> -800 | AJ20: =SA!CV15-SA!CJ15 -> -2200 | AK20: =SA!CW15-SA!CK15 -> -3200 | AL20: =SA!CX15-SA!CL15 -> -3400 | AM20: =SA!CY15-SA!CM15 -> -3100 | AN20: =SA!CZ15-SA!CN15 -> -3600 | AO20: =SA!DA15-SA!CO15 -> -2000 | AP20: =SA!DB15-SA!CP15 -> -4600 | AQ20: =SA!DC15-SA!CQ15 -> -4600 | AR20: =SA!DD15-SA!CR15 -> -4800 | AS20: =SA!DE15-SA!CS15 -> -3400 | AT20: =SA!DF15-SA!CT15 -> -4300 | AU20: =SA!DG15-SA!CU15 -> -4700 | AV20: =SA!DH15-SA!CV15 -> -7300 | AW20: =SA!DI15-SA!CW15 -> -7600 | AX20: =SA!DJ15-SA!CX15 -> -10300 | AY20: =SA!DK15-SA!CY15 -> -10900 | AZ20: =SA!DL15-SA!CZ15 -> -12700 | BA20: =SA!DM15-SA!DA15 -> -13900 | BB20: =SA!DN15-SA!DB15 -> -12600 | BC20: =SA!DO15-SA!DC15 -> -12300 | BD20: =SA!DP15-SA!DD15 -> -13400 | BE20: =SA!DQ15-SA!DE15 -> -13200 | BF20: =SA!DR15-SA!DF15 -> -13300 | BG20: =SA!DS15-SA!DG15 -> -12300 | BH20: =SA!DT15-SA!DH15 -> -10800 | BI20: =SA!DU15-SA!DI15 -> -11100 | BJ20: =SA!DV15-SA!DJ15 -> -9000 | BK20: =SA!DW15-SA!DK15 -> -8500 | BL20: =SA!DX15-SA!DL15 -> -6200 | BM20: =SA!DY15-SA!DM15 -> -5300 | BN20: =SA!DZ15-SA!DN15 -> -5200 | BO20: =SA!EA15-SA!DO15 -> -5300 | BP20: =SA!EB15-SA!DP15 -> -4400 | BQ20: =SA!EC15-SA!DQ15 -> -3700 | BR20: =SA!ED15-SA!DR15 -> -2900 | BS20: =SA!EE15-SA!DS15 -> -800 | BT20: =SA!EF15-SA!DT15 -> -800 | BU20: =SA!EG15-SA!DU15 -> 300 | BV20: =SA!EH15-SA!DV15 -> 200 | BW20: =SA!EI15-SA!DW15 -> 600 | BX20: =SA!EJ15-SA!DX15 -> 700 | BY20: =SA!EK15-SA!DY15 -> 2200 | BZ20: =SA!EL15-SA!DZ15 -> 600 | CA20: =SA!EM15-SA!EA15 -> 700 | CB20: =SA!EN15-SA!EB15 -> 1900 | CC20: =SA!EO15-SA!EC15 -> 2300 | CD20: =SA!EP15-SA!ED15 -> 2700 | CE20: =SA!EQ15-SA!EE15 -> 900 | CF20: =SA!ER15-SA!EF15 -> 2400 | CG20: =SA!ES15-SA!EG15 -> 2000 | CH20: =SA!ET15-SA!EH15 -> 1900 | CI20: =SA!EU15-SA!EI15 -> 1500 | CJ20: =SA!EV15-SA!EJ15 -> 900 | CK20: =SA!EW15-SA!EK15 -> -1300 | CL20: =SA!EX15-SA!EL15 -> 500 | CM20: =SA!EY15-SA!EM15 -> 500 | CN20: =SA!EZ15-SA!EN15 -> -1000 | CO20: =SA!FA15-SA!EO15 -> -1200 | CP20: =SA!FB15-SA!EP15 -> -700 | CQ20: =SA!FC15-SA!EQ15 -> 300 | CR20: =SA!FD15-SA!ER15 -> 1600 | CS20: =SA!FE15-SA!ES15 -> 1000 | CT20: =SA!FF15-SA!ET15 -> 300 | CU20: =SA!FG15-SA!EU15 -> 1500 | CV20: =SA!FH15-SA!EV15 -> 1500 | CW20: =SA!FI15-SA!EW15 -> 3000 | CX20: =SA!FJ15-SA!EX15 -> 3400 | CY20: =SA!FK15-SA!EY15 -> 4800 | CZ20: =SA!FL15-SA!EZ15 -> 5500 | DA20: =SA!FM15-SA!FA15 -> 5400 | DB20: =SA!FN15-SA!FB15 -> 4800 | DC20: =SA!FO15-SA!FC15 -> 4200 | DD20: =SA!FP15-SA!FD15 -> 2700 | DE20: =SA!FQ15-SA!FE15 -> 5000 | DF20: =SA!FR15-SA!FF15 -> 5700 | DG20: =SA!FS15-SA!FG15 -> 5300 | DH20: =SA!FT15-SA!FH15 -> 5900 | DI20: =SA!FU15-SA!FI15 -> 6300 | DJ20: =SA!FV15-SA!FJ15 -> 5100 | DK20: =SA!FW15-SA!FK15 -> 4500 | DL20: =SA!FX15-SA!FL15 -> 4500 | DM20: =SA!FY15-SA!FM15 -> 3800 | DN20: =SA!FZ15-SA!FN15 -> 3900 | DO20: =SA!GA15-SA!FO15 -> 3300 | DP20: =SA!GB15-SA!FP15 -> 4300 | DQ20: =SA!GC15-SA!FQ15 -> 2100 | DR20: =SA!GD15-SA!FR15 -> 1900 | DS20: =SA!GE15-SA!FS15 -> 1300 | DT20: =SA!GF15-SA!FT15 -> 1500 | DU20: =SA!GG15-SA!FU15 -> -300 | DV20: =SA!GH15-SA!FV15 -> 1500 | DW20: =SA!GI15-SA!FW15 -> 1100 | DX20: =SA!GJ15-SA!FX15 -> 1200 | DY20: =SA!GK15-SA!FY15 -> 2600 | DZ20: =SA!GL15-SA!FZ15 -> 3800 | EA20: =SA!GM15-SA!GA15 -> 3600 | EB20: =SA!GN15-SA!GB15 -> 2100 | EC20: =SA!GO15-SA!GC15 -> 1100 | ED20: =SA!GP15-SA!GD15 -> 4300 | EE20: =SA!GQ15-SA!GE15 -> 5500 | EF20: =SA!GR15-SA!GF15 -> 4500 | EG20: =SA!GS15-SA!GG15 -> 6800 | EH20: =SA!GT15-SA!GH15 -> 4900 | EI20: =SA!GU15-SA!GI15 -> 4600 | EJ20: =SA!GV15-SA!GJ15 -> 5100 | EK20: =SA!GW15-SA!GK15 -> 3900 | EL20: =SA!GX15-SA!GL15 -> 2100 | EM20: =SA!GY15-SA!GM15 -> 2700 | EN20: =SA!GZ15-SA!GN15 -> 2100 | EO20: =SA!HA15-SA!GO15 -> 3100 | EP20: =SA!HB15-SA!GP15 -> 2800 | EQ20: =SA!HC15-SA!GQ15 -> 3100 | ER20: =SA!HD15-SA!GR15 -> 2200 | ES20: =SA!HE15-SA!GS15 -> 100 | ET20: =SA!HF15-SA!GT15 -> -200 | EU20: =SA!HG15-SA!GU15 -> 0 | EV20: =SA!HH15-SA!GV15 -> -1400 | EW20: =SA!HI15-SA!GW15 -> -1300 | EX20: =SA!HJ15-SA!GX15 -> -1400 | EY20: =SA!HK15-SA!GY15 -> -5400 | EZ20: =SA!HL15-SA!GZ15 -> -3500 | FA20: =SA!HM15-SA!HA15 -> -3400 | FB20: =SA!HN15-SA!HB15 -> -5200 | FC20: =SA!HO15-SA!HC15 -> -4500 | FD20: =SA!HP15-SA!HD15 -> -2200 | FE20: =SA!HQ15-SA!HE15 -> -2600 | FF20: =SA!HR15-SA!HF15 -> -2800 | FG20: =SA!HS15-SA!HG15 -> -2200 | FH20: =SA!HT15-SA!HH15 -> -1700 | FI20: =SA!HU15-SA!HI15 -> -2000 | FJ20: =SA!HV15-SA!HJ15 -> -4100 | FK20: =SA!HW15-SA!HK15 -> -2900 | FL20: =SA!HX15-SA!HL15 -> -1600 | FM20: =SA!HY15-SA!HM15 -> -700 | FN20: =SA!HZ15-SA!HN15 -> 3200 | FO20: =SA!IA15-SA!HO15 -> 4100 | FP20: =SA!IB15-SA!HP15 -> 1800 | FQ20: =SA!IC15-SA!HQ15 -> 1200 | FR20: =SA!ID15-SA!HR15 -> 1900 | FS20: =SA!IE15-SA!HS15 -> 600 | FT20: =SA!IF15-SA!HT15 -> 700 | FU20: =SA!IG15-SA!HU15 -> 1600 | FV20: =SA!IH15-SA!HV15 -> 5900 | FW20: =SA!II15-SA!HW15 -> 9000 | FX20: =SA!IJ15-SA!HX15 -> 7400 | FY20: =SA!IK15-SA!HY15 -> 7900 | FZ20: =SA!IL15-SA!HZ15 -> -308000 | GA20: 7473.235 | GB20: =COUNTIF(EY20:FY20, ">" &GA20) -> 2 | GD20: Retail Trade | GE20: -13900 | GF20: -4650 | GG20: -2600 | GH20: -800 | GI20: 500 | GJ20: 2100 | GK20: 3700 | GL20: 6800 | GM20: 4557.991814
A21: Transportation, Warehousing, and Utilities | B21: =SA!BN16-SA!BB16 -> 2400 | C21: =SA!BO16-SA!BC16 -> 2300 | D21: =SA!BP16-SA!BD16 -> 2500 | E21: =SA!BQ16-SA!BE16 -> 2500 | F21: =SA!BR16-SA!BF16 -> 1700 | G21: =SA!BS16-SA!BG16 -> 1300 | H21: =SA!BT16-SA!BH16 -> 1200 | I21: =SA!BU16-SA!BI16 -> 1500 | J21: =SA!BV16-SA!BJ16 -> 1700 | K21: =SA!BW16-SA!BK16 -> 0 | L21: =SA!BX16-SA!BL16 -> 500 | M21: =SA!BY16-SA!BM16 -> 1100 | N21: =SA!BZ16-SA!BN16 -> 1700 | O21: =SA!CA16-SA!BO16 -> 1900 | P21: =SA!CB16-SA!BP16 -> 1600 | Q21: =SA!CC16-SA!BQ16 -> 1300 | R21: =SA!CD16-SA!BR16 -> 1500 | S21: =SA!CE16-SA!BS16 -> 1900 | T21: =SA!CF16-SA!BT16 -> 1100 | U21: =SA!CG16-SA!BU16 -> 1100 | V21: =SA!CH16-SA!BV16 -> 1400 | W21: =SA!CI16-SA!BW16 -> 1800 | X21: =SA!CJ16-SA!BX16 -> 1100 | Y21: =SA!CK16-SA!BY16 -> 1400 | Z21: =SA!CL16-SA!BZ16 -> 600 | AA21: =SA!CM16-SA!CA16 -> 500 | AB21: =SA!CN16-SA!CB16 -> 300 | AC21: =SA!CO16-SA!CC16 -> 100 | AD21: =SA!CP16-SA!CD16 -> 600 | AE21: =SA!CQ16-SA!CE16 -> 1000 | AF21: =SA!CR16-SA!CF16 -> 0 | AG21: =SA!CS16-SA!CG16 -> 400 | AH21: =SA!CT16-SA!CH16 -> 0 | AI21: =SA!CU16-SA!CI16 -> 400 | AJ21: =SA!CV16-SA!CJ16 -> 800 | AK21: =SA!CW16-SA!CK16 -> 100 | AL21: =SA!CX16-SA!CL16 -> 500 | AM21: =SA!CY16-SA!CM16 -> 100 | AN21: =SA!CZ16-SA!CN16 -> -200 | AO21: =SA!DA16-SA!CO16 -> -400 | AP21: =SA!DB16-SA!CP16 -> -1300 | AQ21: =SA!DC16-SA!CQ16 -> -2600 | AR21: =SA!DD16-SA!CR16 -> -1400 | AS21: =SA!DE16-SA!CS16 -> -2300 | AT21: =SA!DF16-SA!CT16 -> -2900 | AU21: =SA!DG16-SA!CU16 -> -3200 | AV21: =SA!DH16-SA!CV16 -> -3800 | AW21: =SA!DI16-SA!CW16 -> -4200 | AX21: =SA!DJ16-SA!CX16 -> -5300 | AY21: =SA!DK16-SA!CY16 -> -5500 | AZ21: =SA!DL16-SA!CZ16 -> -5800 | BA21: =SA!DM16-SA!DA16 -> -5300 | BB21: =SA!DN16-SA!DB16 -> -4300 | BC21: =SA!DO16-SA!DC16 -> -3600 | BD21: =SA!DP16-SA!DD16 -> -4400 | BE21: =SA!DQ16-SA!DE16 -> -4000 | BF21: =SA!DR16-SA!DF16 -> -3700 | BG21: =SA!DS16-SA!DG16 -> -4100 | BH21: =SA!DT16-SA!DH16 -> -4300 | BI21: =SA!DU16-SA!DI16 -> -4200 | BJ21: =SA!DV16-SA!DJ16 -> -3300 | BK21: =SA!DW16-SA!DK16 -> -2600 | BL21: =SA!DX16-SA!DL16 -> -2000 | BM21: =SA!DY16-SA!DM16 -> -1800 | BN21: =SA!DZ16-SA!DN16 -> -2700 | BO21: =SA!EA16-SA!DO16 -> -2600 | BP21: =SA!EB16-SA!DP16 -> -1600 | BQ21: =SA!EC16-SA!DQ16 -> -2300 | BR21: =SA!ED16-SA!DR16 -> -2100 | BS21: =SA!EE16-SA!DS16 -> -1200 | BT21: =SA!EF16-SA!DT16 -> -1000 | BU21: =SA!EG16-SA!DU16 -> -600 | BV21: =SA!EH16-SA!DV16 -> -700 | BW21: =SA!EI16-SA!DW16 -> -1200 | BX21: =SA!EJ16-SA!DX16 -> -1200 | BY21: =SA!EK16-SA!DY16 -> -1600 | BZ21: =SA!EL16-SA!DZ16 -> -1500 | CA21: =SA!EM16-SA!EA16 -> -1800 | CB21: =SA!EN16-SA!EB16 -> -1600 | CC21: =SA!EO16-SA!EC16 -> -1000 | CD21: =SA!EP16-SA!ED16 -> -700 | CE21: =SA!EQ16-SA!EE16 -> -1200 | CF21: =SA!ER16-SA!EF16 -> -900 | CG21: =SA!ES16-SA!EG16 -> -1000 | CH21: =SA!ET16-SA!EH16 -> -1000 | CI21: =SA!EU16-SA!EI16 -> -800 | CJ21: =SA!EV16-SA!EJ16 -> -1000 | CK21: =SA!EW16-SA!EK16 -> -1200 | CL21: =SA!EX16-SA!EL16 -> -300 | CM21: =SA!EY16-SA!EM16 -> -100 | CN21: =SA!EZ16-SA!EN16 -> -200 | CO21: =SA!FA16-SA!EO16 -> -500 | CP21: =SA!FB16-SA!EP16 -> -300 | CQ21: =SA!FC16-SA!EQ16 -> -200 | CR21: =SA!FD16-SA!ER16 -> -400 | CS21: =SA!FE16-SA!ES16 -> -200 | CT21: =SA!FF16-SA!ET16 -> -200 | CU21: =SA!FG16-SA!EU16 -> 0 | CV21: =SA!FH16-SA!EV16 -> 500 | CW21: =SA!FI16-SA!EW16 -> 600 | CX21: =SA!FJ16-SA!EX16 -> -200 | CY21: =SA!FK16-SA!EY16 -> -800 | CZ21: =SA!FL16-SA!EZ16 -> -700 | DA21: =SA!FM16-SA!FA16 -> 0 | DB21: =SA!FN16-SA!FB16 -> -600 | DC21: =SA!FO16-SA!FC16 -> -300 | DD21: =SA!FP16-SA!FD16 -> 0 | DE21: =SA!FQ16-SA!FE16 -> -400 | DF21: =SA!FR16-SA!FF16 -> 300 | DG21: =SA!FS16-SA!FG16 -> 500 | DH21: =SA!FT16-SA!FH16 -> 300 | DI21: =SA!FU16-SA!FI16 -> 1200 | DJ21: =SA!FV16-SA!FJ16 -> 1100 | DK21: =SA!FW16-SA!FK16 -> 1600 | DL21: =SA!FX16-SA!FL16 -> 1400 | DM21: =SA!FY16-SA!FM16 -> 1100 | DN21: =SA!FZ16-SA!FN16 -> 1600 | DO21: =SA!GA16-SA!FO16 -> 1600 | DP21: =SA!GB16-SA!FP16 -> 2200 | DQ21: =SA!GC16-SA!FQ16 -> 2500 | DR21: =SA!GD16-SA!FR16 -> 1900 | DS21: =SA!GE16-SA!FS16 -> 1600 | DT21: =SA!GF16-SA!FT16 -> 2000 | DU21: =SA!GG16-SA!FU16 -> 1300 | DV21: =SA!GH16-SA!FV16 -> 1900 | DW21: =SA!GI16-SA!FW16 -> 2400 | DX21: =SA!GJ16-SA!FX16 -> 4400 | DY21: =SA!GK16-SA!FY16 -> 4700 | DZ21: =SA!GL16-SA!FZ16 -> 4800 | EA21: =SA!GM16-SA!GA16 -> 4600 | EB21: =SA!GN16-SA!GB16 -> 3700 | EC21: =SA!GO16-SA!GC16 -> 3900 | ED21: =SA!GP16-SA!GD16 -> 3800 | EE21: =SA!GQ16-SA!GE16 -> 4200 | EF21: =SA!GR16-SA!GF16 -> 3600 | EG21: =SA!GS16-SA!GG16 -> 3900 | EH21: =SA!GT16-SA!GH16 -> 3600 | EI21: =SA!GU16-SA!GI16 -> 3300 | EJ21: =SA!GV16-SA!GJ16 -> 1600 | EK21: =SA!GW16-SA!GK16 -> 1300 | EL21: =SA!GX16-SA!GL16 -> 1000 | EM21: =SA!GY16-SA!GM16 -> 1100 | EN21: =SA!GZ16-SA!GN16 -> 1700 | EO21: =SA!HA16-SA!GO16 -> 1600 | EP21: =SA!HB16-SA!GP16 -> 2000 | EQ21: =SA!HC16-SA!GQ16 -> 1300 | ER21: =SA!HD16-SA!GR16 -> 1600 | ES21: =SA!HE16-SA!GS16 -> 1500 | ET21: =SA!HF16-SA!GT16 -> 1500 | EU21: =SA!HG16-SA!GU16 -> 1000 | EV21: =SA!HH16-SA!GV16 -> 1100 | EW21: =SA!HI16-SA!GW16 -> 1200 | EX21: =SA!HJ16-SA!GX16 -> 1200 | EY21: =SA!HK16-SA!GY16 -> 1300 | EZ21: =SA!HL16-SA!GZ16 -> 700 | FA21: =SA!HM16-SA!HA16 -> 3200 | FB21: =SA!HN16-SA!HB16 -> 3100 | FC21: =SA!HO16-SA!HC16 -> 1900 | FD21: =SA!HP16-SA!HD16 -> 3500 | FE21: =SA!HQ16-SA!HE16 -> 2300 | FF21: =SA!HR16-SA!HF16 -> 2200 | FG21: =SA!HS16-SA!HG16 -> 2700 | FH21: =SA!HT16-SA!HH16 -> 4100 | FI21: =SA!HU16-SA!HI16 -> 3900 | FJ21: =SA!HV16-SA!HJ16 -> 3900 | FK21: =SA!HW16-SA!HK16 -> 4300 | FL21: =SA!HX16-SA!HL16 -> 4500 | FM21: =SA!HY16-SA!HM16 -> 2400 | FN21: =SA!HZ16-SA!HN16 -> 500 | FO21: =SA!IA16-SA!HO16 -> 700 | FP21: =SA!IB16-SA!HP16 -> -100 | FQ21: =SA!IC16-SA!HQ16 -> 1100 | FR21: =SA!ID16-SA!HR16 -> 800 | FS21: =SA!IE16-SA!HS16 -> 1600 | FT21: =SA!IF16-SA!HT16 -> 400 | FU21: =SA!IG16-SA!HU16 -> -100 | FV21: =SA!IH16-SA!HV16 -> 0 | FW21: =SA!II16-SA!HW16 -> -800 | FX21: =SA!IJ16-SA!HX16 -> -1300 | FY21: =SA!IK16-SA!HY16 -> -3600 | FZ21: =SA!IL16-SA!HZ16 -> -111900 | GA21: 6691.86 | GB21: =COUNTIF(EY21:FY21, ">" &GA21) -> 0 | GD21: Transportation, Warehousing, and Utilities | GE21: -5800 | GF21: -1900 | GG21: -600 | GH21: 300 | GI21: 1050 | GJ21: 1600 | GK21: 2400 | GL21: 4800 | GM21: 2266.872014
A22: Information | B22: =SA!BN17-SA!BB17 -> -700 | C22: =SA!BO17-SA!BC17 -> -400 | D22: =SA!BP17-SA!BD17 -> -600 | E22: =SA!BQ17-SA!BE17 -> 0 | F22: =SA!BR17-SA!BF17 -> 100 | G22: =SA!BS17-SA!BG17 -> 300 | H22: =SA!BT17-SA!BH17 -> -400 | I22: =SA!BU17-SA!BI17 -> -300 | J22: =SA!BV17-SA!BJ17 -> -100 | K22: =SA!BW17-SA!BK17 -> -100 | L22: =SA!BX17-SA!BL17 -> 0 | M22: =SA!BY17-SA!BM17 -> 100 | N22: =SA!BZ17-SA!BN17 -> 0 | O22: =SA!CA17-SA!BO17 -> -100 | P22: =SA!CB17-SA!BP17 -> -100 | Q22: =SA!CC17-SA!BQ17 -> -800 | R22: =SA!CD17-SA!BR17 -> -800 | S22: =SA!CE17-SA!BS17 -> -1000 | T22: =SA!CF17-SA!BT17 -> -600 | U22: =SA!CG17-SA!BU17 -> -600 | V22: =SA!CH17-SA!BV17 -> -700 | W22: =SA!CI17-SA!BW17 -> -300 | X22: =SA!CJ17-SA!BX17 -> -200 | Y22: =SA!CK17-SA!BY17 -> -100 | Z22: =SA!CL17-SA!BZ17 -> 200 | AA22: =SA!CM17-SA!CA17 -> 200 | AB22: =SA!CN17-SA!CB17 -> 300 | AC22: =SA!CO17-SA!CC17 -> 800 | AD22: =SA!CP17-SA!CD17 -> 1000 | AE22: =SA!CQ17-SA!CE17 -> 1300 | AF22: =SA!CR17-SA!CF17 -> 1400 | AG22: =SA!CS17-SA!CG17 -> 1400 | AH22: =SA!CT17-SA!CH17 -> 1400 | AI22: =SA!CU17-SA!CI17 -> 1200 | AJ22: =SA!CV17-SA!CJ17 -> 1000 | AK22: =SA!CW17-SA!CK17 -> 900 | AL22: =SA!CX17-SA!CL17 -> 500 | AM22: =SA!CY17-SA!CM17 -> 500 | AN22: =SA!CZ17-SA!CN17 -> 500 | AO22: =SA!DA17-SA!CO17 -> 500 | AP22: =SA!DB17-SA!CP17 -> 1100 | AQ22: =SA!DC17-SA!CQ17 -> 400 | AR22: =SA!DD17-SA!CR17 -> -200 | AS22: =SA!DE17-SA!CS17 -> -400 | AT22: =SA!DF17-SA!CT17 -> -600 | AU22: =SA!DG17-SA!CU17 -> -800 | AV22: =SA!DH17-SA!CV17 -> -1000 | AW22: =SA!DI17-SA!CW17 -> -1100 | AX22: =SA!DJ17-SA!CX17 -> -1100 | AY22: =SA!DK17-SA!CY17 -> -1000 | AZ22: =SA!DL17-SA!CZ17 -> -1500 | BA22: =SA!DM17-SA!DA17 -> -2200 | BB22: =SA!DN17-SA!DB17 -> -2800 | BC22: =SA!DO17-SA!DC17 -> -2500 | BD22: =SA!DP17-SA!DD17 -> -2500 | BE22: =SA!DQ17-SA!DE17 -> -2500 | BF22: =SA!DR17-SA!DF17 -> -2400 | BG22: =SA!DS17-SA!DG17 -> -2800 | BH22: =SA!DT17-SA!DH17 -> -2400 | BI22: =SA!DU17-SA!DI17 -> -2200 | BJ22: =SA!DV17-SA!DJ17 -> -2400 | BK22: =SA!DW17-SA!DK17 -> -2800 | BL22: =SA!DX17-SA!DL17 -> -2200 | BM22: =SA!DY17-SA!DM17 -> -1900 | BN22: =SA!DZ17-SA!DN17 -> -1900 | BO22: =SA!EA17-SA!DO17 -> -1500 | BP22: =SA!EB17-SA!DP17 -> -1100 | BQ22: =SA!EC17-SA!DQ17 -> -800 | BR22: =SA!ED17-SA!DR17 -> -700 | BS22: =SA!EE17-SA!DS17 -> -400 | BT22: =SA!EF17-SA!DT17 -> -100 | BU22: =SA!EG17-SA!DU17 -> -200 | BV22: =SA!EH17-SA!DV17 -> 100 | BW22: =SA!EI17-SA!DW17 -> 500 | BX22: =SA!EJ17-SA!DX17 -> 300 | BY22: =SA!EK17-SA!DY17 -> 700 | BZ22: =SA!EL17-SA!DZ17 -> 400 | CA22: =SA!EM17-SA!EA17 -> -200 | CB22: =SA!EN17-SA!EB17 -> 100 | CC22: =SA!EO17-SA!EC17 -> -100 | CD22: =SA!EP17-SA!ED17 -> 0 | CE22: =SA!EQ17-SA!EE17 -> 200 | CF22: =SA!ER17-SA!EF17 -> -200 | CG22: =SA!ES17-SA!EG17 -> -300 | CH22: =SA!ET17-SA!EH17 -> -500 | CI22: =SA!EU17-SA!EI17 -> -600 | CJ22: =SA!EV17-SA!EJ17 -> -600 | CK22: =SA!EW17-SA!EK17 -> -700 | CL22: =SA!EX17-SA!EL17 -> -600 | CM22: =SA!EY17-SA!EM17 -> 100 | CN22: =SA!EZ17-SA!EN17 -> -400 | CO22: =SA!FA17-SA!EO17 -> -200 | CP22: =SA!FB17-SA!EP17 -> -200 | CQ22: =SA!FC17-SA!EQ17 -> -100 | CR22: =SA!FD17-SA!ER17 -> 0 | CS22: =SA!FE17-SA!ES17 -> -100 | CT22: =SA!FF17-SA!ET17 -> 500 | CU22: =SA!FG17-SA!EU17 -> 600 | CV22: =SA!FH17-SA!EV17 -> 800 | CW22: =SA!FI17-SA!EW17 -> 800 | CX22: =SA!FJ17-SA!EX17 -> 1000 | CY22: =SA!FK17-SA!EY17 -> 700 | CZ22: =SA!FL17-SA!EZ17 -> 900 | DA22: =SA!FM17-SA!FA17 -> 800 | DB22: =SA!FN17-SA!FB17 -> 700 | DC22: =SA!FO17-SA!FC17 -> 800 | DD22: =SA!FP17-SA!FD17 -> 700 | DE22: =SA!FQ17-SA!FE17 -> 1000 | DF22: =SA!FR17-SA!FF17 -> 600 | DG22: =SA!FS17-SA!FG17 -> 600 | DH22: =SA!FT17-SA!FH17 -> 600 | DI22: =SA!FU17-SA!FI17 -> 400 | DJ22: =SA!FV17-SA!FJ17 -> 400 | DK22: =SA!FW17-SA!FK17 -> 500 | DL22: =SA!FX17-SA!FL17 -> 700 | DM22: =SA!FY17-SA!FM17 -> 800 | DN22: =SA!FZ17-SA!FN17 -> 600 | DO22: =SA!GA17-SA!FO17 -> 800 | DP22: =SA!GB17-SA!FP17 -> 900 | DQ22: =SA!GC17-SA!FQ17 -> 900 | DR22: =SA!GD17-SA!FR17 -> 1100 | DS22: =SA!GE17-SA!FS17 -> 800 | DT22: =SA!GF17-SA!FT17 -> 700 | DU22: =SA!GG17-SA!FU17 -> 900 | DV22: =SA!GH17-SA!FV17 -> 1000 | DW22: =SA!GI17-SA!FW17 -> 800 | DX22: =SA!GJ17-SA!FX17 -> 1000 | DY22: =SA!GK17-SA!FY17 -> 1300 | DZ22: =SA!GL17-SA!FZ17 -> 1400 | EA22: =SA!GM17-SA!GA17 -> 1200 | EB22: =SA!GN17-SA!GB17 -> 1100 | EC22: =SA!GO17-SA!GC17 -> 900 | ED22: =SA!GP17-SA!GD17 -> 700 | EE22: =SA!GQ17-SA!GE17 -> 900 | EF22: =SA!GR17-SA!GF17 -> 1000 | EG22: =SA!GS17-SA!GG17 -> 900 | EH22: =SA!GT17-SA!GH17 -> 700 | EI22: =SA!GU17-SA!GI17 -> 400 | EJ22: =SA!GV17-SA!GJ17 -> 100 | EK22: =SA!GW17-SA!GK17 -> -200 | EL22: =SA!GX17-SA!GL17 -> -400 | EM22: =SA!GY17-SA!GM17 -> -600 | EN22: =SA!GZ17-SA!GN17 -> -700 | EO22: =SA!HA17-SA!GO17 -> -700 | EP22: =SA!HB17-SA!GP17 -> -700 | EQ22: =SA!HC17-SA!GQ17 -> -700 | ER22: =SA!HD17-SA!GR17 -> -800 | ES22: =SA!HE17-SA!GS17 -> -1200 | ET22: =SA!HF17-SA!GT17 -> -1400 | EU22: =SA!HG17-SA!GU17 -> -1200 | EV22: =SA!HH17-SA!GV17 -> -1500 | EW22: =SA!HI17-SA!GW17 -> -1800 | EX22: =SA!HJ17-SA!GX17 -> -1600 | EY22: =SA!HK17-SA!GY17 -> -1700 | EZ22: =SA!HL17-SA!GZ17 -> -1900 | FA22: =SA!HM17-SA!HA17 -> -1600 | FB22: =SA!HN17-SA!HB17 -> -1800 | FC22: =SA!HO17-SA!HC17 -> -1900 | FD22: =SA!HP17-SA!HD17 -> -1900 | FE22: =SA!HQ17-SA!HE17 -> -1500 | FF22: =SA!HR17-SA!HF17 -> -1400 | FG22: =SA!HS17-SA!HG17 -> -1500 | FH22: =SA!HT17-SA!HH17 -> -1400 | FI22: =SA!HU17-SA!HI17 -> -1200 | FJ22: =SA!HV17-SA!HJ17 -> -700 | FK22: =SA!HW17-SA!HK17 -> -100 | FL22: =SA!HX17-SA!HL17 -> 700 | FM22: =SA!HY17-SA!HM17 -> 600 | FN22: =SA!HZ17-SA!HN17 -> 900 | FO22: =SA!IA17-SA!HO17 -> 800 | FP22: =SA!IB17-SA!HP17 -> 900 | FQ22: =SA!IC17-SA!HQ17 -> 1200 | FR22: =SA!ID17-SA!HR17 -> 1100 | FS22: =SA!IE17-SA!HS17 -> 1600 | FT22: =SA!IF17-SA!HT17 -> 2200 | FU22: =SA!IG17-SA!HU17 -> 2300 | FV22: =SA!IH17-SA!HV17 -> 1900 | FW22: =SA!II17-SA!HW17 -> 1400 | FX22: =SA!IJ17-SA!HX17 -> 1000 | FY22: =SA!IK17-SA!HY17 -> 1000 | FZ22: =SA!IL17-SA!HZ17 -> -47700 | GA22: 2880.395 | GB22: =COUNTIF(EY22:FY22, ">" &GA22) -> 0 | GD22: Information | GE22: -2800 | GF22: -1500 | GG22: -700 | GH22: -200 | GI22: 0 | GJ22: 600 | GK22: 900 | GL22: 1400 | GM22: 1049.895915
A23: Financial Activities | B23: =SA!BN18-SA!BB18 -> 1700 | C23: =SA!BO18-SA!BC18 -> 1100 | D23: =SA!BP18-SA!BD18 -> 1400 | E23: =SA!BQ18-SA!BE18 -> 1000 | F23: =SA!BR18-SA!BF18 -> 800 | G23: =SA!BS18-SA!BG18 -> 900 | H23: =SA!BT18-SA!BH18 -> 700 | I23: =SA!BU18-SA!BI18 -> 600 | J23: =SA!BV18-SA!BJ18 -> 1400 | K23: =SA!BW18-SA!BK18 -> 600 | L23: =SA!BX18-SA!BL18 -> 700 | M23: =SA!BY18-SA!BM18 -> 400 | N23: =SA!BZ18-SA!BN18 -> 900 | O23: =SA!CA18-SA!BO18 -> 1300 | P23: =SA!CB18-SA!BP18 -> 1000 | Q23: =SA!CC18-SA!BQ18 -> 1700 | R23: =SA!CD18-SA!BR18 -> 2200 | S23: =SA!CE18-SA!BS18 -> 1900 | T23: =SA!CF18-SA!BT18 -> 2200 | U23: =SA!CG18-SA!BU18 -> 1900 | V23: =SA!CH18-SA!BV18 -> 2100 | W23: =SA!CI18-SA!BW18 -> 2200 | X23: =SA!CJ18-SA!BX18 -> 2100 | Y23: =SA!CK18-SA!BY18 -> 2300 | Z23: =SA!CL18-SA!BZ18 -> 2300 | AA23: =SA!CM18-SA!CA18 -> 2400 | AB23: =SA!CN18-SA!CB18 -> 2000 | AC23: =SA!CO18-SA!CC18 -> 1400 | AD23: =SA!CP18-SA!CD18 -> 700 | AE23: =SA!CQ18-SA!CE18 -> 1100 | AF23: =SA!CR18-SA!CF18 -> 200 | AG23: =SA!CS18-SA!CG18 -> 0 | AH23: =SA!CT18-SA!CH18 -> -100 | AI23: =SA!CU18-SA!CI18 -> 1100 | AJ23: =SA!CV18-SA!CJ18 -> 1000 | AK23: =SA!CW18-SA!CK18 -> 900 | AL23: =SA!CX18-SA!CL18 -> 1000 | AM23: =SA!CY18-SA!CM18 -> 1600 | AN23: =SA!CZ18-SA!CN18 -> 1500 | AO23: =SA!DA18-SA!CO18 -> 1600 | AP23: =SA!DB18-SA!CP18 -> 2200 | AQ23: =SA!DC18-SA!CQ18 -> 1500 | AR23: =SA!DD18-SA!CR18 -> 1900 | AS23: =SA!DE18-SA!CS18 -> 2100 | AT23: =SA!DF18-SA!CT18 -> 1200 | AU23: =SA!DG18-SA!CU18 -> -400 | AV23: =SA!DH18-SA!CV18 -> -500 | AW23: =SA!DI18-SA!CW18 -> -1000 | AX23: =SA!DJ18-SA!CX18 -> -1100 | AY23: =SA!DK18-SA!CY18 -> -2100 | AZ23: =SA!DL18-SA!CZ18 -> -2300 | BA23: =SA!DM18-SA!DA18 -> -2500 | BB23: =SA!DN18-SA!DB18 -> -3000 | BC23: =SA!DO18-SA!DC18 -> -3000 | BD23: =SA!DP18-SA!DD18 -> -3700 | BE23: =SA!DQ18-SA!DE18 -> -3600 | BF23: =SA!DR18-SA!DF18 -> -3700 | BG23: =SA!DS18-SA!DG18 -> -3500 | BH23: =SA!DT18-SA!DH18 -> -3700 | BI23: =SA!DU18-SA!DI18 -> -3800 | BJ23: =SA!DV18-SA!DJ18 -> -4200 | BK23: =SA!DW18-SA!DK18 -> -3900 | BL23: =SA!DX18-SA!DL18 -> -3300 | BM23: =SA!DY18-SA!DM18 -> -3800 | BN23: =SA!DZ18-SA!DN18 -> -3800 | BO23: =SA!EA18-SA!DO18 -> -3800 | BP23: =SA!EB18-SA!DP18 -> -3200 | BQ23: =SA!EC18-SA!DQ18 -> -3500 | BR23: =SA!ED18-SA!DR18 -> -2900 | BS23: =SA!EE18-SA!DS18 -> -2500 | BT23: =SA!EF18-SA!DT18 -> -2300 | BU23: =SA!EG18-SA!DU18 -> -2000 | BV23: =SA!EH18-SA!DV18 -> -2000 | BW23: =SA!EI18-SA!DW18 -> -1800 | BX23: =SA!EJ18-SA!DX18 -> -2000 | BY23: =SA!EK18-SA!DY18 -> -1500 | BZ23: =SA!EL18-SA!DZ18 -> -1700 | CA23: =SA!EM18-SA!EA18 -> -1500 | CB23: =SA!EN18-SA!EB18 -> -1300 | CC23: =SA!EO18-SA!EC18 -> -1300 | CD23: =SA!EP18-SA!ED18 -> -600 | CE23: =SA!EQ18-SA!EE18 -> -1000 | CF23: =SA!ER18-SA!EF18 -> -1000 | CG23: =SA!ES18-SA!EG18 -> -1000 | CH23: =SA!ET18-SA!EH18 -> 100 | CI23: =SA!EU18-SA!EI18 -> 0 | CJ23: =SA!EV18-SA!EJ18 -> 100 | CK23: =SA!EW18-SA!EK18 -> -100 | CL23: =SA!EX18-SA!EL18 -> 300 | CM23: =SA!EY18-SA!EM18 -> 300 | CN23: =SA!EZ18-SA!EN18 -> 100 | CO23: =SA!FA18-SA!EO18 -> 500 | CP23: =SA!FB18-SA!EP18 -> -100 | CQ23: =SA!FC18-SA!EQ18 -> 100 | CR23: =SA!FD18-SA!ER18 -> 0 | CS23: =SA!FE18-SA!ES18 -> 200 | CT23: =SA!FF18-SA!ET18 -> -700 | CU23: =SA!FG18-SA!EU18 -> -500 | CV23: =SA!FH18-SA!EV18 -> -500 | CW23: =SA!FI18-SA!EW18 -> -600 | CX23: =SA!FJ18-SA!EX18 -> -300 | CY23: =SA!FK18-SA!EY18 -> -200 | CZ23: =SA!FL18-SA!EZ18 -> -100 | DA23: =SA!FM18-SA!FA18 -> -200 | DB23: =SA!FN18-SA!FB18 -> -200 | DC23: =SA!FO18-SA!FC18 -> -500 | DD23: =SA!FP18-SA!FD18 -> -300 | DE23: =SA!FQ18-SA!FE18 -> -500 | DF23: =SA!FR18-SA!FF18 -> -1500 | DG23: =SA!FS18-SA!FG18 -> -1200 | DH23: =SA!FT18-SA!FH18 -> -1200 | DI23: =SA!FU18-SA!FI18 -> -400 | DJ23: =SA!FV18-SA!FJ18 -> -600 | DK23: =SA!FW18-SA!FK18 -> -500 | DL23: =SA!FX18-SA!FL18 -> -700 | DM23: =SA!FY18-SA!FM18 -> -200 | DN23: =SA!FZ18-SA!FN18 -> 200 | DO23: =SA!GA18-SA!FO18 -> 0 | DP23: =SA!GB18-SA!FP18 -> 100 | DQ23: =SA!GC18-SA!FQ18 -> 500 | DR23: =SA!GD18-SA!FR18 -> 1700 | DS23: =SA!GE18-SA!FS18 -> 1600 | DT23: =SA!GF18-SA!FT18 -> 1600 | DU23: =SA!GG18-SA!FU18 -> 1000 | DV23: =SA!GH18-SA!FV18 -> 1300 | DW23: =SA!GI18-SA!FW18 -> 1300 | DX23: =SA!GJ18-SA!FX18 -> 1400 | DY23: =SA!GK18-SA!FY18 -> 700 | DZ23: =SA!GL18-SA!FZ18 -> 400 | EA23: =SA!GM18-SA!GA18 -> 1200 | EB23: =SA!GN18-SA!GB18 -> 1000 | EC23: =SA!GO18-SA!GC18 -> 700 | ED23: =SA!GP18-SA!GD18 -> 500 | EE23: =SA!GQ18-SA!GE18 -> 400 | EF23: =SA!GR18-SA!GF18 -> 300 | EG23: =SA!GS18-SA!GG18 -> 600 | EH23: =SA!GT18-SA!GH18 -> 100 | EI23: =SA!GU18-SA!GI18 -> 100 | EJ23: =SA!GV18-SA!GJ18 -> 800 | EK23: =SA!GW18-SA!GK18 -> 1100 | EL23: =SA!GX18-SA!GL18 -> 1000 | EM23: =SA!GY18-SA!GM18 -> 900 | EN23: =SA!GZ18-SA!GN18 -> 1200 | EO23: =SA!HA18-SA!GO18 -> 900 | EP23: =SA!HB18-SA!GP18 -> 1800 | EQ23: =SA!HC18-SA!GQ18 -> 1800 | ER23: =SA!HD18-SA!GR18 -> 2100 | ES23: =SA!HE18-SA!GS18 -> 1700 | ET23: =SA!HF18-SA!GT18 -> 1500 | EU23: =SA!HG18-SA!GU18 -> 1500 | EV23: =SA!HH18-SA!GV18 -> 700 | EW23: =SA!HI18-SA!GW18 -> 600 | EX23: =SA!HJ18-SA!GX18 -> 300 | EY23: =SA!HK18-SA!GY18 -> 0 | EZ23: =SA!HL18-SA!GZ18 -> -1000 | FA23: =SA!HM18-SA!HA18 -> -1500 | FB23: =SA!HN18-SA!HB18 -> -1900 | FC23: =SA!HO18-SA!HC18 -> -1700 | FD23: =SA!HP18-SA!HD18 -> -2800 | FE23: =SA!HQ18-SA!HE18 -> -2500 | FF23: =SA!HR18-SA!HF18 -> -2600 | FG23: =SA!HS18-SA!HG18 -> -3000 | FH23: =SA!HT18-SA!HH18 -> -2700 | FI23: =SA!HU18-SA!HI18 -> -3000 | FJ23: =SA!HV18-SA!HJ18 -> -2900 | FK23: =SA!HW18-SA!HK18 -> -1700 | FL23: =SA!HX18-SA!HL18 -> -1200 | FM23: =SA!HY18-SA!HM18 -> 400 | FN23: =SA!HZ18-SA!HN18 -> 2500 | FO23: =SA!IA18-SA!HO18 -> 1900 | FP23: =SA!IB18-SA!HP18 -> 3100 | FQ23: =SA!IC18-SA!HQ18 -> 2800 | FR23: =SA!ID18-SA!HR18 -> 3000 | FS23: =SA!IE18-SA!HS18 -> 4400 | FT23: =SA!IF18-SA!HT18 -> 4100 | FU23: =SA!IG18-SA!HU18 -> 4000 | FV23: =SA!IH18-SA!HV18 -> 3100 | FW23: =SA!II18-SA!HW18 -> 1600 | FX23: =SA!IJ18-SA!HX18 -> 2700 | FY23: =SA!IK18-SA!HY18 -> 2000 | FZ23: =SA!IL18-SA!HZ18 -> -153600 | GA23: 4997.51 | GB23: =COUNTIF(EY23:FY23, ">" &GA23) -> 0 | GD23: Financial Activities | GE23: -4200 | GF23: -2500 | GG23: -1000 | GH23: 0 | GI23: 300 | GJ23: 1000 | GK23: 1600 | GL23: 2500 | GM23: 1718.657567
A24: Real Estate and Rental and Leasing | B24: =SA!BN20-SA!BB20 -> 700 | C24: =SA!BO20-SA!BC20 -> 500 | D24: =SA!BP20-SA!BD20 -> 600 | E24: =SA!BQ20-SA!BE20 -> 600 | F24: =SA!BR20-SA!BF20 -> 400 | G24: =SA!BS20-SA!BG20 -> 400 | H24: =SA!BT20-SA!BH20 -> 300 | I24: =SA!BU20-SA!BI20 -> 100 | J24: =SA!BV20-SA!BJ20 -> 300 | K24: =SA!BW20-SA!BK20 -> 100 | L24: =SA!BX20-SA!BL20 -> 200 | M24: =SA!BY20-SA!BM20 -> 400 | N24: =SA!BZ20-SA!BN20 -> 200 | O24: =SA!CA20-SA!BO20 -> 300 | P24: =SA!CB20-SA!BP20 -> 100 | Q24: =SA!CC20-SA!BQ20 -> 100 | R24: =SA!CD20-SA!BR20 -> 200 | S24: =SA!CE20-SA!BS20 -> 400 | T24: =SA!CF20-SA!BT20 -> 300 | U24: =SA!CG20-SA!BU20 -> 300 | V24: =SA!CH20-SA!BV20 -> 100 | W24: =SA!CI20-SA!BW20 -> 200 | X24: =SA!CJ20-SA!BX20 -> 100 | Y24: =SA!CK20-SA!BY20 -> 0 | Z24: =SA!CL20-SA!BZ20 -> 0 | AA24: =SA!CM20-SA!CA20 -> 100 | AB24: =SA!CN20-SA!CB20 -> 100 | AC24: =SA!CO20-SA!CC20 -> 0 | AD24: =SA!CP20-SA!CD20 -> 0 | AE24: =SA!CQ20-SA!CE20 -> -100 | AF24: =SA!CR20-SA!CF20 -> -400 | AG24: =SA!CS20-SA!CG20 -> -300 | AH24: =SA!CT20-SA!CH20 -> -300 | AI24: =SA!CU20-SA!CI20 -> -100 | AJ24: =SA!CV20-SA!CJ20 -> -300 | AK24: =SA!CW20-SA!CK20 -> -300 | AL24: =SA!CX20-SA!CL20 -> -500 | AM24: =SA!CY20-SA!CM20 -> -400 | AN24: =SA!CZ20-SA!CN20 -> -500 | AO24: =SA!DA20-SA!CO20 -> -600 | AP24: =SA!DB20-SA!CP20 -> -700 | AQ24: =SA!DC20-SA!CQ20 -> -800 | AR24: =SA!DD20-SA!CR20 -> -800 | AS24: =SA!DE20-SA!CS20 -> -900 | AT24: =SA!DF20-SA!CT20 -> -1100 | AU24: =SA!DG20-SA!CU20 -> -1100 | AV24: =SA!DH20-SA!CV20 -> -1000 | AW24: =SA!DI20-SA!CW20 -> -1100 | AX24: =SA!DJ20-SA!CX20 -> -1400 | AY24: =SA!DK20-SA!CY20 -> -1700 | AZ24: =SA!DL20-SA!CZ20 -> -1800 | BA24: =SA!DM20-SA!DA20 -> -2000 | BB24: =SA!DN20-SA!DB20 -> -1800 | BC24: =SA!DO20-SA!DC20 -> -1700 | BD24: =SA!DP20-SA!DD20 -> -1800 | BE24: =SA!DQ20-SA!DE20 -> -1600 | BF24: =SA!DR20-SA!DF20 -> -1500 | BG24: =SA!DS20-SA!DG20 -> -1700 | BH24: =SA!DT20-SA!DH20 -> -1800 | BI24: =SA!DU20-SA!DI20 -> -1700 | BJ24: =SA!DV20-SA!DJ20 -> -1000 | BK24: =SA!DW20-SA!DK20 -> -900 | BL24: =SA!DX20-SA!DL20 -> -800 | BM24: =SA!DY20-SA!DM20 -> -700 | BN24: =SA!DZ20-SA!DN20 -> -900 | BO24: =SA!EA20-SA!DO20 -> -1100 | BP24: =SA!EB20-SA!DP20 -> -900 | BQ24: =SA!EC20-SA!DQ20 -> -1000 | BR24: =SA!ED20-SA!DR20 -> -1000 | BS24: =SA!EE20-SA!DS20 -> -700 | BT24: =SA!EF20-SA!DT20 -> -600 | BU24: =SA!EG20-SA!DU20 -> -600 | BV24: =SA!EH20-SA!DV20 -> -900 | BW24: =SA!EI20-SA!DW20 -> -800 | BX24: =SA!EJ20-SA!DX20 -> -600 | BY24: =SA!EK20-SA!DY20 -> -400 | BZ24: =SA!EL20-SA!DZ20 -> -600 | CA24: =SA!EM20-SA!EA20 -> -300 | CB24: =SA!EN20-SA!EB20 -> -400 | CC24: =SA!EO20-SA!EC20 -> -400 | CD24: =SA!EP20-SA!ED20 -> -200 | CE24: =SA!EQ20-SA!EE20 -> -500 | CF24: =SA!ER20-SA!EF20 -> -400 | CG24: =SA!ES20-SA!EG20 -> -400 | CH24: =SA!ET20-SA!EH20 -> -200 | CI24: =SA!EU20-SA!EI20 -> -300 | CJ24: =SA!EV20-SA!EJ20 -> -400 | CK24: =SA!EW20-SA!EK20 -> -400 | CL24: =SA!EX20-SA!EL20 -> 0 | CM24: =SA!EY20-SA!EM20 -> -100 | CN24: =SA!EZ20-SA!EN20 -> 100 | CO24: =SA!FA20-SA!EO20 -> 100 | CP24: =SA!FB20-SA!EP20 -> -100 | CQ24: =SA!FC20-SA!EQ20 -> 100 | CR24: =SA!FD20-SA!ER20 -> 0 | CS24: =SA!FE20-SA!ES20 -> 100 | CT24: =SA!FF20-SA!ET20 -> 100 | CU24: =SA!FG20-SA!EU20 -> 200 | CV24: =SA!FH20-SA!EV20 -> 300 | CW24: =SA!FI20-SA!EW20 -> 200 | CX24: =SA!FJ20-SA!EX20 -> 300 | CY24: =SA!FK20-SA!EY20 -> 200 | CZ24: =SA!FL20-SA!EZ20 -> 200 | DA24: =SA!FM20-SA!FA20 -> 200 | DB24: =SA!FN20-SA!FB20 -> 400 | DC24: =SA!FO20-SA!FC20 -> 100 | DD24: =SA!FP20-SA!FD20 -> 200 | DE24: =SA!FQ20-SA!FE20 -> 100 | DF24: =SA!FR20-SA!FF20 -> -100 | DG24: =SA!FS20-SA!FG20 -> 0 | DH24: =SA!FT20-SA!FH20 -> 0 | DI24: =SA!FU20-SA!FI20 -> 200 | DJ24: =SA!FV20-SA!FJ20 -> -100 | DK24: =SA!FW20-SA!FK20 -> 100 | DL24: =SA!FX20-SA!FL20 -> -100 | DM24: =SA!FY20-SA!FM20 -> 0 | DN24: =SA!FZ20-SA!FN20 -> 100 | DO24: =SA!GA20-SA!FO20 -> 100 | DP24: =SA!GB20-SA!FP20 -> 0 | DQ24: =SA!GC20-SA!FQ20 -> 0 | DR24: =SA!GD20-SA!FR20 -> 200 | DS24: =SA!GE20-SA!FS20 -> 200 | DT24: =SA!GF20-SA!FT20 -> 200 | DU24: =SA!GG20-SA!FU20 -> 100 | DV24: =SA!GH20-SA!FV20 -> 500 | DW24: =SA!GI20-SA!FW20 -> 400 | DX24: =SA!GJ20-SA!FX20 -> 700 | DY24: =SA!GK20-SA!FY20 -> 700 | DZ24: =SA!GL20-SA!FZ20 -> 600 | EA24: =SA!GM20-SA!GA20 -> 900 | EB24: =SA!GN20-SA!GB20 -> 1000 | EC24: =SA!GO20-SA!GC20 -> 1000 | ED24: =SA!GP20-SA!GD20 -> 700 | EE24: =SA!GQ20-SA!GE20 -> 900 | EF24: =SA!GR20-SA!GF20 -> 700 | EG24: =SA!GS20-SA!GG20 -> 800 | EH24: =SA!GT20-SA!GH20 -> 500 | EI24: =SA!GU20-SA!GI20 -> 400 | EJ24: =SA!GV20-SA!GJ20 -> 500 | EK24: =SA!GW20-SA!GK20 -> 600 | EL24: =SA!GX20-SA!GL20 -> 500 | EM24: =SA!GY20-SA!GM20 -> 600 | EN24: =SA!GZ20-SA!GN20 -> 700 | EO24: =SA!HA20-SA!GO20 -> 700 | EP24: =SA!HB20-SA!GP20 -> 1000 | EQ24: =SA!HC20-SA!GQ20 -> 800 | ER24: =SA!HD20-SA!GR20 -> 1000 | ES24: =SA!HE20-SA!GS20 -> 900 | ET24: =SA!HF20-SA!GT20 -> 800 | EU24: =SA!HG20-SA!GU20 -> 1200 | EV24: =SA!HH20-SA!GV20 -> 800 | EW24: =SA!HI20-SA!GW20 -> 600 | EX24: =SA!HJ20-SA!GX20 -> 600 | EY24: =SA!HK20-SA!GY20 -> 600 | EZ24: =SA!HL20-SA!GZ20 -> 600 | FA24: =SA!HM20-SA!HA20 -> 400 | FB24: =SA!HN20-SA!HB20 -> 400 | FC24: =SA!HO20-SA!HC20 -> 400 | FD24: =SA!HP20-SA!HD20 -> 300 | FE24: =SA!HQ20-SA!HE20 -> 200 | FF24: =SA!HR20-SA!HF20 -> 400 | FG24: =SA!HS20-SA!HG20 -> 0 | FH24: =SA!HT20-SA!HH20 -> 300 | FI24: =SA!HU20-SA!HI20 -> 400 | FJ24: =SA!HV20-SA!HJ20 -> 400 | FK24: =SA!HW20-SA!HK20 -> 300 | FL24: =SA!HX20-SA!HL20 -> 200 | FM24: =SA!HY20-SA!HM20 -> 500 | FN24: =SA!HZ20-SA!HN20 -> 500 | FO24: =SA!IA20-SA!HO20 -> 700 | FP24: =SA!IB20-SA!HP20 -> 400 | FQ24: =SA!IC20-SA!HQ20 -> 300 | FR24: =SA!ID20-SA!HR20 -> 100 | FS24: =SA!IE20-SA!HS20 -> 300 | FT24: =SA!IF20-SA!HT20 -> 200 | FU24: =SA!IG20-SA!HU20 -> 200 | FV24: =SA!IH20-SA!HV20 -> 100 | FW24: =SA!II20-SA!HW20 -> 0 | FX24: =SA!IJ20-SA!HX20 -> 0 | FY24: =SA!IK20-SA!HY20 -> 0 | FZ24: =SA!IL20-SA!HZ20 -> -27000 | GA24: 3370.605 | GB24: =COUNTIF(EY24:FY24, ">" &GA24) -> 0 | GD24: Real Estate and Rental and Leasing | GE24: -2000 | GF24: -850 | GG24: -300 | GH24: 50 | GI24: 100 | GJ24: 300 | GK24: 600 | GL24: 1200 | GM24: 682.700241
A25: Professional and Business Services | B25: =SA!BN21-SA!BB21 -> 9800 | C25: =SA!BO21-SA!BC21 -> 10400 | D25: =SA!BP21-SA!BD21 -> 11600 | E25: =SA!BQ21-SA!BE21 -> 13100 | F25: =SA!BR21-SA!BF21 -> 10700 | G25: =SA!BS21-SA!BG21 -> 8600 | H25: =SA!BT21-SA!BH21 -> 11000 | I25: =SA!BU21-SA!BI21 -> 8600 | J25: =SA!BV21-SA!BJ21 -> 11600 | K25: =SA!BW21-SA!BK21 -> 7200 | L25: =SA!BX21-SA!BL21 -> 9000 | M25: =SA!BY21-SA!BM21 -> 9800 | N25: =SA!BZ21-SA!BN21 -> 7600 | O25: =SA!CA21-SA!BO21 -> 8400 | P25: =SA!CB21-SA!BP21 -> 7300 | Q25: =SA!CC21-SA!BQ21 -> 9200 | R25: =SA!CD21-SA!BR21 -> 9500 | S25: =SA!CE21-SA!BS21 -> 10100 | T25: =SA!CF21-SA!BT21 -> 7100 | U25: =SA!CG21-SA!BU21 -> 6200 | V25: =SA!CH21-SA!BV21 -> 6600 | W25: =SA!CI21-SA!BW21 -> 9200 | X25: =SA!CJ21-SA!BX21 -> 7700 | Y25: =SA!CK21-SA!BY21 -> 5600 | Z25: =SA!CL21-SA!BZ21 -> 8200 | AA25: =SA!CM21-SA!CA21 -> 7100 | AB25: =SA!CN21-SA!CB21 -> 8100 | AC25: =SA!CO21-SA!CC21 -> 6400 | AD25: =SA!CP21-SA!CD21 -> 7900 | AE25: =SA!CQ21-SA!CE21 -> 9000 | AF25: =SA!CR21-SA!CF21 -> 9000 | AG25: =SA!CS21-SA!CG21 -> 9500 | AH25: =SA!CT21-SA!CH21 -> 8300 | AI25: =SA!CU21-SA!CI21 -> 6900 | AJ25: =SA!CV21-SA!CJ21 -> 7600 | AK25: =SA!CW21-SA!CK21 -> 10100 | AL25: =SA!CX21-SA!CL21 -> 8600 | AM25: =SA!CY21-SA!CM21 -> 9300 | AN25: =SA!CZ21-SA!CN21 -> 6900 | AO25: =SA!DA21-SA!CO21 -> 4100 | AP25: =SA!DB21-SA!CP21 -> 3900 | AQ25: =SA!DC21-SA!CQ21 -> 2700 | AR25: =SA!DD21-SA!CR21 -> 2800 | AS25: =SA!DE21-SA!CS21 -> 3100 | AT25: =SA!DF21-SA!CT21 -> 1800 | AU25: =SA!DG21-SA!CU21 -> -1300 | AV25: =SA!DH21-SA!CV21 -> -5400 | AW25: =SA!DI21-SA!CW21 -> -8900 | AX25: =SA!DJ21-SA!CX21 -> -14800 | AY25: =SA!DK21-SA!CY21 -> -20600 | AZ25: =SA!DL21-SA!CZ21 -> -24200 | BA25: =SA!DM21-SA!DA21 -> -25800 | BB25: =SA!DN21-SA!DB21 -> -26100 | BC25: =SA!DO21-SA!DC21 -> -28300 | BD25: =SA!DP21-SA!DD21 -> -28200 | BE25: =SA!DQ21-SA!DE21 -> -29500 | BF25: =SA!DR21-SA!DF21 -> -27500 | BG25: =SA!DS21-SA!DG21 -> -21700 | BH25: =SA!DT21-SA!DH21 -> -16200 | BI25: =SA!DU21-SA!DI21 -> -13200 | BJ25: =SA!DV21-SA!DJ21 -> -7300 | BK25: =SA!DW21-SA!DK21 -> 500 | BL25: =SA!DX21-SA!DL21 -> 3900 | BM25: =SA!DY21-SA!DM21 -> 11800 | BN25: =SA!DZ21-SA!DN21 -> 12600 | BO25: =SA!EA21-SA!DO21 -> 14700 | BP25: =SA!EB21-SA!DP21 -> 17300 | BQ25: =SA!EC21-SA!DQ21 -> 20500 | BR25: =SA!ED21-SA!DR21 -> 20200 | BS25: =SA!EE21-SA!DS21 -> 21100 | BT25: =SA!EF21-SA!DT21 -> 20100 | BU25: =SA!EG21-SA!DU21 -> 21000 | BV25: =SA!EH21-SA!DV21 -> 21500 | BW25: =SA!EI21-SA!DW21 -> 18200 | BX25: =SA!EJ21-SA!DX21 -> 21500 | BY25: =SA!EK21-SA!DY21 -> 14600 | BZ25: =SA!EL21-SA!DZ21 -> 13500 | CA25: =SA!EM21-SA!EA21 -> 13900 | CB25: =SA!EN21-SA!EB21 -> 12900 | CC25: =SA!EO21-SA!EC21 -> 10500 | CD25: =SA!EP21-SA!ED21 -> 12200 | CE25: =SA!EQ21-SA!EE21 -> 8300 | CF25: =SA!ER21-SA!EF21 -> 7600 | CG25: =SA!ES21-SA!EG21 -> 5400 | CH25: =SA!ET21-SA!EH21 -> 5600 | CI25: =SA!EU21-SA!EI21 -> 6400 | CJ25: =SA!EV21-SA!EJ21 -> 7600 | CK25: =SA!EW21-SA!EK21 -> 9400 | CL25: =SA!EX21-SA!EL21 -> 8200 | CM25: =SA!EY21-SA!EM21 -> 8100 | CN25: =SA!EZ21-SA!EN21 -> 5600 | CO25: =SA!FA21-SA!EO21 -> 5200 | CP25: =SA!FB21-SA!EP21 -> 5000 | CQ25: =SA!FC21-SA!EQ21 -> 6200 | CR25: =SA!FD21-SA!ER21 -> 7400 | CS25: =SA!FE21-SA!ES21 -> 5400 | CT25: =SA!FF21-SA!ET21 -> 5200 | CU25: =SA!FG21-SA!EU21 -> 7000 | CV25: =SA!FH21-SA!EV21 -> 6500 | CW25: =SA!FI21-SA!EW21 -> 3400 | CX25: =SA!FJ21-SA!EX21 -> 6700 | CY25: =SA!FK21-SA!EY21 -> 7000 | CZ25: =SA!FL21-SA!EZ21 -> 9100 | DA25: =SA!FM21-SA!FA21 -> 10400 | DB25: =SA!FN21-SA!FB21 -> 8800 | DC25: =SA!FO21-SA!FC21 -> 7800 | DD25: =SA!FP21-SA!FD21 -> 6400 | DE25: =SA!FQ21-SA!FE21 -> 10400 | DF25: =SA!FR21-SA!FF21 -> 9500 | DG25: =SA!FS21-SA!FG21 -> 7200 | DH25: =SA!FT21-SA!FH21 -> 4100 | DI25: =SA!FU21-SA!FI21 -> 7400 | DJ25: =SA!FV21-SA!FJ21 -> 6400 | DK25: =SA!FW21-SA!FK21 -> 5100 | DL25: =SA!FX21-SA!FL21 -> 4300 | DM25: =SA!FY21-SA!FM21 -> 4600 | DN25: =SA!FZ21-SA!FN21 -> 4700 | DO25: =SA!GA21-SA!FO21 -> 6800 | DP25: =SA!GB21-SA!FP21 -> 8200 | DQ25: =SA!GC21-SA!FQ21 -> 4100 | DR25: =SA!GD21-SA!FR21 -> 4700 | DS25: =SA!GE21-SA!FS21 -> 4000 | DT25: =SA!GF21-SA!FT21 -> 5300 | DU25: =SA!GG21-SA!FU21 -> 5700 | DV25: =SA!GH21-SA!FV21 -> 6100 | DW25: =SA!GI21-SA!FW21 -> 6700 | DX25: =SA!GJ21-SA!FX21 -> 8700 | DY25: =SA!GK21-SA!FY21 -> 9200 | DZ25: =SA!GL21-SA!FZ21 -> 7900 | EA25: =SA!GM21-SA!GA21 -> 7300 | EB25: =SA!GN21-SA!GB21 -> 6500 | EC25: =SA!GO21-SA!GC21 -> 10300 | ED25: =SA!GP21-SA!GD21 -> 11900 | EE25: =SA!GQ21-SA!GE21 -> 12400 | EF25: =SA!GR21-SA!GF21 -> 11200 | EG25: =SA!GS21-SA!GG21 -> 10600 | EH25: =SA!GT21-SA!GH21 -> 8300 | EI25: =SA!GU21-SA!GI21 -> 7700 | EJ25: =SA!GV21-SA!GJ21 -> 6300 | EK25: =SA!GW21-SA!GK21 -> 4300 | EL25: =SA!GX21-SA!GL21 -> 6400 | EM25: =SA!GY21-SA!GM21 -> 4500 | EN25: =SA!GZ21-SA!GN21 -> 3700 | EO25: =SA!HA21-SA!GO21 -> 2400 | EP25: =SA!HB21-SA!GP21 -> 900 | EQ25: =SA!HC21-SA!GQ21 -> -200 | ER25: =SA!HD21-SA!GR21 -> 2300 | ES25: =SA!HE21-SA!GS21 -> 2400 | ET25: =SA!HF21-SA!GT21 -> 2800 | EU25: =SA!HG21-SA!GU21 -> 3300 | EV25: =SA!HH21-SA!GV21 -> 2700 | EW25: =SA!HI21-SA!GW21 -> 2000 | EX25: =SA!HJ21-SA!GX21 -> 500 | EY25: =SA!HK21-SA!GY21 -> 3400 | EZ25: =SA!HL21-SA!GZ21 -> 4200 | FA25: =SA!HM21-SA!HA21 -> 5400 | FB25: =SA!HN21-SA!HB21 -> 2600 | FC25: =SA!HO21-SA!HC21 -> 4000 | FD25: =SA!HP21-SA!HD21 -> 5100 | FE25: =SA!HQ21-SA!HE21 -> 5000 | FF25: =SA!HR21-SA!HF21 -> 3900 | FG25: =SA!HS21-SA!HG21 -> -100 | FH25: =SA!HT21-SA!HH21 -> -2300 | FI25: =SA!HU21-SA!HI21 -> -1600 | FJ25: =SA!HV21-SA!HJ21 -> 0 | FK25: =SA!HW21-SA!HK21 -> -3200 | FL25: =SA!HX21-SA!HL21 -> -4400 | FM25: =SA!HY21-SA!HM21 -> -6200 | FN25: =SA!HZ21-SA!HN21 -> -2000 | FO25: =SA!IA21-SA!HO21 -> -600 | FP25: =SA!IB21-SA!HP21 -> -4300 | FQ25: =SA!IC21-SA!HQ21 -> -1700 | FR25: =SA!ID21-SA!HR21 -> -2200 | FS25: =SA!IE21-SA!HS21 -> -1100 | FT25: =SA!IF21-SA!HT21 -> -800 | FU25: =SA!IG21-SA!HU21 -> 600 | FV25: =SA!IH21-SA!HV21 -> 700 | FW25: =SA!II21-SA!HW21 -> 4500 | FX25: =SA!IJ21-SA!HX21 -> 4300 | FY25: =SA!IK21-SA!HY21 -> 4200 | FZ25: =SA!IL21-SA!HZ21 -> -324000 | GA25: 10898.125 | GB25: =COUNTIF(EY25:FY25, ">" &GA25) -> 0 | GD25: Professional and Business Services | GE25: -29500 | GF25: 250 | GG25: 4100 | GH25: 6350 | GI25: 7150 | GJ25: 8600 | GK25: 10650 | GL25: 21500 | GM25: 9332.921528
A26: Professional, Scientific, and Technical Services | B26: =SA!BN22-SA!BB22 -> 3100 | C26: =SA!BO22-SA!BC22 -> 3100 | D26: =SA!BP22-SA!BD22 -> 3200 | E26: =SA!BQ22-SA!BE22 -> 2800 | F26: =SA!BR22-SA!BF22 -> 2500 | G26: =SA!BS22-SA!BG22 -> 2700 | H26: =SA!BT22-SA!BH22 -> 3000 | I26: =SA!BU22-SA!BI22 -> 3200 | J26: =SA!BV22-SA!BJ22 -> 3600 | K26: =SA!BW22-SA!BK22 -> 3400 | L26: =SA!BX22-SA!BL22 -> 3300 | M26: =SA!BY22-SA!BM22 -> 3700 | N26: =SA!BZ22-SA!BN22 -> 3200 | O26: =SA!CA22-SA!BO22 -> 3200 | P26: =SA!CB22-SA!BP22 -> 3000 | Q26: =SA!CC22-SA!BQ22 -> 3900 | R26: =SA!CD22-SA!BR22 -> 3600 | S26: =SA!CE22-SA!BS22 -> 3600 | T26: =SA!CF22-SA!BT22 -> 3100 | U26: =SA!CG22-SA!BU22 -> 2700 | V26: =SA!CH22-SA!BV22 -> 2500 | W26: =SA!CI22-SA!BW22 -> 2600 | X26: =SA!CJ22-SA!BX22 -> 2300 | Y26: =SA!CK22-SA!BY22 -> 1700 | Z26: =SA!CL22-SA!BZ22 -> 2300 | AA26: =SA!CM22-SA!CA22 -> 2200 | AB26: =SA!CN22-SA!CB22 -> 2600 | AC26: =SA!CO22-SA!CC22 -> 2300 | AD26: =SA!CP22-SA!CD22 -> 2800 | AE26: =SA!CQ22-SA!CE22 -> 2800 | AF26: =SA!CR22-SA!CF22 -> 3000 | AG26: =SA!CS22-SA!CG22 -> 3200 | AH26: =SA!CT22-SA!CH22 -> 3200 | AI26: =SA!CU22-SA!CI22 -> 3000 | AJ26: =SA!CV22-SA!CJ22 -> 3200 | AK26: =SA!CW22-SA!CK22 -> 3400 | AL26: =SA!CX22-SA!CL22 -> 2900 | AM26: =SA!CY22-SA!CM22 -> 3100 | AN26: =SA!CZ22-SA!CN22 -> 2700 | AO26: =SA!DA22-SA!CO22 -> 3400 | AP26: =SA!DB22-SA!CP22 -> 2700 | AQ26: =SA!DC22-SA!CQ22 -> 2500 | AR26: =SA!DD22-SA!CR22 -> 2100 | AS26: =SA!DE22-SA!CS22 -> 2100 | AT26: =SA!DF22-SA!CT22 -> 2100 | AU26: =SA!DG22-SA!CU22 -> 1700 | AV26: =SA!DH22-SA!CV22 -> 1000 | AW26: =SA!DI22-SA!CW22 -> 600 | AX26: =SA!DJ22-SA!CX22 -> -400 | AY26: =SA!DK22-SA!CY22 -> -1400 | AZ26: =SA!DL22-SA!CZ22 -> -2300 | BA26: =SA!DM22-SA!DA22 -> -4800 | BB26: =SA!DN22-SA!DB22 -> -5600 | BC26: =SA!DO22-SA!DC22 -> -6100 | BD26: =SA!DP22-SA!DD22 -> -6900 | BE26: =SA!DQ22-SA!DE22 -> -7700 | BF26: =SA!DR22-SA!DF22 -> -8000 | BG26: =SA!DS22-SA!DG22 -> -7700 | BH26: =SA!DT22-SA!DH22 -> -6800 | BI26: =SA!DU22-SA!DI22 -> -7000 | BJ26: =SA!DV22-SA!DJ22 -> -6200 | BK26: =SA!DW22-SA!DK22 -> -5600 | BL26: =SA!DX22-SA!DL22 -> -4600 | BM26: =SA!DY22-SA!DM22 -> -3400 | BN26: =SA!DZ22-SA!DN22 -> -2200 | BO26: =SA!EA22-SA!DO22 -> -1800 | BP26: =SA!EB22-SA!DP22 -> -400 | BQ26: =SA!EC22-SA!DQ22 -> 300 | BR26: =SA!ED22-SA!DR22 -> 300 | BS26: =SA!EE22-SA!DS22 -> 1200 | BT26: =SA!EF22-SA!DT22 -> 1000 | BU26: =SA!EG22-SA!DU22 -> 2000 | BV26: =SA!EH22-SA!DV22 -> 2300 | BW26: =SA!EI22-SA!DW22 -> 2700 | BX26: =SA!EJ22-SA!DX22 -> 2500 | BY26: =SA!EK22-SA!DY22 -> 3300 | BZ26: =SA!EL22-SA!DZ22 -> 3000 | CA26: =SA!EM22-SA!EA22 -> 2700 | CB26: =SA!EN22-SA!EB22 -> 2500 | CC26: =SA!EO22-SA!EC22 -> 2600 | CD26: =SA!EP22-SA!ED22 -> 3200 | CE26: =SA!EQ22-SA!EE22 -> 2300 | CF26: =SA!ER22-SA!EF22 -> 2800 | CG26: =SA!ES22-SA!EG22 -> 1800 | CH26: =SA!ET22-SA!EH22 -> 1800 | CI26: =SA!EU22-SA!EI22 -> 1700 | CJ26: =SA!EV22-SA!EJ22 -> 2100 | CK26: =SA!EW22-SA!EK22 -> 1600 | CL26: =SA!EX22-SA!EL22 -> 1900 | CM26: =SA!EY22-SA!EM22 -> 2700 | CN26: =SA!EZ22-SA!EN22 -> 1900 | CO26: =SA!FA22-SA!EO22 -> 1800 | CP26: =SA!FB22-SA!EP22 -> 1500 | CQ26: =SA!FC22-SA!EQ22 -> 2100 | CR26: =SA!FD22-SA!ER22 -> 2900 | CS26: =SA!FE22-SA!ES22 -> 1800 | CT26: =SA!FF22-SA!ET22 -> 1900 | CU26: =SA!FG22-SA!EU22 -> 2000 | CV26: =SA!FH22-SA!EV22 -> 1800 | CW26: =SA!FI22-SA!EW22 -> 1500 | CX26: =SA!FJ22-SA!EX22 -> 1600 | CY26: =SA!FK22-SA!EY22 -> 900 | CZ26: =SA!FL22-SA!EZ22 -> 2300 | DA26: =SA!FM22-SA!FA22 -> 2000 | DB26: =SA!FN22-SA!FB22 -> 2100 | DC26: =SA!FO22-SA!FC22 -> 1700 | DD26: =SA!FP22-SA!FD22 -> -500 | DE26: =SA!FQ22-SA!FE22 -> 2500 | DF26: =SA!FR22-SA!FF22 -> 1500 | DG26: =SA!FS22-SA!FG22 -> 1300 | DH26: =SA!FT22-SA!FH22 -> 1500 | DI26: =SA!FU22-SA!FI22 -> 1500 | DJ26: =SA!FV22-SA!FJ22 -> 1400 | DK26: =SA!FW22-SA!FK22 -> 2000 | DL26: =SA!FX22-SA!FL22 -> 1100 | DM26: =SA!FY22-SA!FM22 -> 1500 | DN26: =SA!FZ22-SA!FN22 -> 1100 | DO26: =SA!GA22-SA!FO22 -> 1000 | DP26: =SA!GB22-SA!FP22 -> 2000 | DQ26: =SA!GC22-SA!FQ22 -> 1100 | DR26: =SA!GD22-SA!FR22 -> 2700 | DS26: =SA!GE22-SA!FS22 -> 2500 | DT26: =SA!GF22-SA!FT22 -> 2700 | DU26: =SA!GG22-SA!FU22 -> 2900 | DV26: =SA!GH22-SA!FV22 -> 3300 | DW26: =SA!GI22-SA!FW22 -> 3200 | DX26: =SA!GJ22-SA!FX22 -> 3400 | DY26: =SA!GK22-SA!FY22 -> 3400 | DZ26: =SA!GL22-SA!FZ22 -> 3900 | EA26: =SA!GM22-SA!GA22 -> 4500 | EB26: =SA!GN22-SA!GB22 -> 4500 | EC26: =SA!GO22-SA!GC22 -> 4200 | ED26: =SA!GP22-SA!GD22 -> 3400 | EE26: =SA!GQ22-SA!GE22 -> 3700 | EF26: =SA!GR22-SA!GF22 -> 3300 | EG26: =SA!GS22-SA!GG22 -> 3600 | EH26: =SA!GT22-SA!GH22 -> 3100 | EI26: =SA!GU22-SA!GI22 -> 2400 | EJ26: =SA!GV22-SA!GJ22 -> 3000 | EK26: =SA!GW22-SA!GK22 -> 3000 | EL26: =SA!GX22-SA!GL22 -> 3000 | EM26: =SA!GY22-SA!GM22 -> 2100 | EN26: =SA!GZ22-SA!GN22 -> 1800 | EO26: =SA!HA22-SA!GO22 -> 1600 | EP26: =SA!HB22-SA!GP22 -> 1500 | EQ26: =SA!HC22-SA!GQ22 -> 1400 | ER26: =SA!HD22-SA!GR22 -> 1500 | ES26: =SA!HE22-SA!GS22 -> 1000 | ET26: =SA!HF22-SA!GT22 -> 1200 | EU26: =SA!HG22-SA!GU22 -> 2100 | EV26: =SA!HH22-SA!GV22 -> 1000 | EW26: =SA!HI22-SA!GW22 -> 800 | EX26: =SA!HJ22-SA!GX22 -> 600 | EY26: =SA!HK22-SA!GY22 -> 1200 | EZ26: =SA!HL22-SA!GZ22 -> 1300 | FA26: =SA!HM22-SA!HA22 -> 2200 | FB26: =SA!HN22-SA!HB22 -> 2500 | FC26: =SA!HO22-SA!HC22 -> 1600 | FD26: =SA!HP22-SA!HD22 -> 1500 | FE26: =SA!HQ22-SA!HE22 -> 1600 | FF26: =SA!HR22-SA!HF22 -> 600 | FG26: =SA!HS22-SA!HG22 -> -1700 | FH26: =SA!HT22-SA!HH22 -> -1900 | FI26: =SA!HU22-SA!HI22 -> -1900 | FJ26: =SA!HV22-SA!HJ22 -> -1500 | FK26: =SA!HW22-SA!HK22 -> -2100 | FL26: =SA!HX22-SA!HL22 -> -2000 | FM26: =SA!HY22-SA!HM22 -> -2800 | FN26: =SA!HZ22-SA!HN22 -> 1000 | FO26: =SA!IA22-SA!HO22 -> 2500 | FP26: =SA!IB22-SA!HP22 -> 2400 | FQ26: =SA!IC22-SA!HQ22 -> 2600 | FR26: =SA!ID22-SA!HR22 -> 2900 | FS26: =SA!IE22-SA!HS22 -> 4000 | FT26: =SA!IF22-SA!HT22 -> 5700 | FU26: =SA!IG22-SA!HU22 -> 5900 | FV26: =SA!IH22-SA!HV22 -> 5500 | FW26: =SA!II22-SA!HW22 -> 6800 | FX26: =SA!IJ22-SA!HX22 -> 6800 | FY26: =SA!IK22-SA!HY22 -> 6200 | FZ26: =SA!IL22-SA!HZ22 -> -111600 | GA26: 5512.395 | GB26: =COUNTIF(EY26:FY26, ">" &GA26) -> 5 | GD26: Professional, Scientific, and Technical Services | GE26: -8000 | GF26: -450 | GG26: 1500 | GH26: 1900 | GI26: 2300 | GJ26: 2700 | GK26: 3200 | GL26: 4500 | GM26: 2600.821862
A27: Administrative and Support and Waste Management and Remediation Services | B27: =SA!BN24-SA!BB24 -> 6000 | C27: =SA!BO24-SA!BC24 -> 6400 | D27: =SA!BP24-SA!BD24 -> 7300 | E27: =SA!BQ24-SA!BE24 -> 9000 | F27: =SA!BR24-SA!BF24 -> 7200 | G27: =SA!BS24-SA!BG24 -> 5000 | H27: =SA!BT24-SA!BH24 -> 7000 | I27: =SA!BU24-SA!BI24 -> 4500 | J27: =SA!BV24-SA!BJ24 -> 7000 | K27: =SA!BW24-SA!BK24 -> 3300 | L27: =SA!BX24-SA!BL24 -> 5200 | M27: =SA!BY24-SA!BM24 -> 5500 | N27: =SA!BZ24-SA!BN24 -> 4200 | O27: =SA!CA24-SA!BO24 -> 5300 | P27: =SA!CB24-SA!BP24 -> 4500 | Q27: =SA!CC24-SA!BQ24 -> 5100 | R27: =SA!CD24-SA!BR24 -> 5600 | S27: =SA!CE24-SA!BS24 -> 6000 | T27: =SA!CF24-SA!BT24 -> 3400 | U27: =SA!CG24-SA!BU24 -> 2900 | V27: =SA!CH24-SA!BV24 -> 3300 | W27: =SA!CI24-SA!BW24 -> 5200 | X27: =SA!CJ24-SA!BX24 -> 4000 | Y27: =SA!CK24-SA!BY24 -> 2500 | Z27: =SA!CL24-SA!BZ24 -> 3600 | AA27: =SA!CM24-SA!CA24 -> 2300 | AB27: =SA!CN24-SA!CB24 -> 2800 | AC27: =SA!CO24-SA!CC24 -> 1600 | AD27: =SA!CP24-SA!CD24 -> 2600 | AE27: =SA!CQ24-SA!CE24 -> 4000 | AF27: =SA!CR24-SA!CF24 -> 4300 | AG27: =SA!CS24-SA!CG24 -> 4800 | AH27: =SA!CT24-SA!CH24 -> 3800 | AI27: =SA!CU24-SA!CI24 -> 2700 | AJ27: =SA!CV24-SA!CJ24 -> 3200 | AK27: =SA!CW24-SA!CK24 -> 5600 | AL27: =SA!CX24-SA!CL24 -> 4800 | AM27: =SA!CY24-SA!CM24 -> 5300 | AN27: =SA!CZ24-SA!CN24 -> 3500 | AO27: =SA!DA24-SA!CO24 -> 100 | AP27: =SA!DB24-SA!CP24 -> 200 | AQ27: =SA!DC24-SA!CQ24 -> -900 | AR27: =SA!DD24-SA!CR24 -> -1300 | AS27: =SA!DE24-SA!CS24 -> -1200 | AT27: =SA!DF24-SA!CT24 -> -2700 | AU27: =SA!DG24-SA!CU24 -> -5100 | AV27: =SA!DH24-SA!CV24 -> -8600 | AW27: =SA!DI24-SA!CW24 -> -11800 | AX27: =SA!DJ24-SA!CX24 -> -16000 | AY27: =SA!DK24-SA!CY24 -> -20600 | AZ27: =SA!DL24-SA!CZ24 -> -23100 | BA27: =SA!DM24-SA!DA24 -> -21800 | BB27: =SA!DN24-SA!DB24 -> -21000 | BC27: =SA!DO24-SA!DC24 -> -22700 | BD27: =SA!DP24-SA!DD24 -> -21500 | BE27: =SA!DQ24-SA!DE24 -> -21900 | BF27: =SA!DR24-SA!DF24 -> -19600 | BG27: =SA!DS24-SA!DG24 -> -14200 | BH27: =SA!DT24-SA!DH24 -> -9500 | BI27: =SA!DU24-SA!DI24 -> -6500 | BJ27: =SA!DV24-SA!DJ24 -> -1100 | BK27: =SA!DW24-SA!DK24 -> 5500 | BL27: =SA!DX24-SA!DL24 -> 7400 | BM27: =SA!DY24-SA!DM24 -> 13400 | BN27: =SA!DZ24-SA!DN24 -> 13000 | BO27: =SA!EA24-SA!DO24 -> 14500 | BP27: =SA!EB24-SA!DP24 -> 16000 | BQ27: =SA!EC24-SA!DQ24 -> 17700 | BR27: =SA!ED24-SA!DR24 -> 17500 | BS27: =SA!EE24-SA!DS24 -> 17100 | BT27: =SA!EF24-SA!DT24 -> 16000 | BU27: =SA!EG24-SA!DU24 -> 15800 | BV27: =SA!EH24-SA!DV24 -> 15300 | BW27: =SA!EI24-SA!DW24 -> 11900 | BX27: =SA!EJ24-SA!DX24 -> 15500 | BY27: =SA!EK24-SA!DY24 -> 8000 | BZ27: =SA!EL24-SA!DZ24 -> 7100 | CA27: =SA!EM24-SA!EA24 -> 7900 | CB27: =SA!EN24-SA!EB24 -> 6800 | CC27: =SA!EO24-SA!EC24 -> 4800 | CD27: =SA!EP24-SA!ED24 -> 5600 | CE27: =SA!EQ24-SA!EE24 -> 2800 | CF27: =SA!ER24-SA!EF24 -> 1900 | CG27: =SA!ES24-SA!EG24 -> 900 | CH27: =SA!ET24-SA!EH24 -> 900 | CI27: =SA!EU24-SA!EI24 -> 2000 | CJ27: =SA!EV24-SA!EJ24 -> 2700 | CK27: =SA!EW24-SA!EK24 -> 5100 | CL27: =SA!EX24-SA!EL24 -> 3700 | CM27: =SA!EY24-SA!EM24 -> 2700 | CN27: =SA!EZ24-SA!EN24 -> 1200 | CO27: =SA!FA24-SA!EO24 -> 1200 | CP27: =SA!FB24-SA!EP24 -> 1700 | CQ27: =SA!FC24-SA!EQ24 -> 2300 | CR27: =SA!FD24-SA!ER24 -> 2500 | CS27: =SA!FE24-SA!ES24 -> 1500 | CT27: =SA!FF24-SA!ET24 -> 1100 | CU27: =SA!FG24-SA!EU24 -> 2800 | CV27: =SA!FH24-SA!EV24 -> 2300 | CW27: =SA!FI24-SA!EW24 -> -100 | CX27: =SA!FJ24-SA!EX24 -> 3000 | CY27: =SA!FK24-SA!EY24 -> 4000 | CZ27: =SA!FL24-SA!EZ24 -> 4800 | DA27: =SA!FM24-SA!FA24 -> 6100 | DB27: =SA!FN24-SA!FB24 -> 4400 | DC27: =SA!FO24-SA!FC24 -> 3700 | DD27: =SA!FP24-SA!FD24 -> 4600 | DE27: =SA!FQ24-SA!FE24 -> 5800 | DF27: =SA!FR24-SA!FF24 -> 7000 | DG27: =SA!FS24-SA!FG24 -> 4800 | DH27: =SA!FT24-SA!FH24 -> 1900 | DI27: =SA!FU24-SA!FI24 -> 4900 | DJ27: =SA!FV24-SA!FJ24 -> 4000 | DK27: =SA!FW24-SA!FK24 -> 2300 | DL27: =SA!FX24-SA!FL24 -> 2300 | DM27: =SA!FY24-SA!FM24 -> 2100 | DN27: =SA!FZ24-SA!FN24 -> 2600 | DO27: =SA!GA24-SA!FO24 -> 5200 | DP27: =SA!GB24-SA!FP24 -> 5700 | DQ27: =SA!GC24-SA!FQ24 -> 2500 | DR27: =SA!GD24-SA!FR24 -> -300 | DS27: =SA!GE24-SA!FS24 -> -900 | DT27: =SA!GF24-SA!FT24 -> -100 | DU27: =SA!GG24-SA!FU24 -> -200 | DV27: =SA!GH24-SA!FV24 -> -600 | DW27: =SA!GI24-SA!FW24 -> -200 | DX27: =SA!GJ24-SA!FX24 -> 600 | DY27: =SA!GK24-SA!FY24 -> 600 | DZ27: =SA!GL24-SA!FZ24 -> -1500 | EA27: =SA!GM24-SA!GA24 -> -3400 | EB27: =SA!GN24-SA!GB24 -> -4600 | EC27: =SA!GO24-SA!GC24 -> -1000 | ED27: =SA!GP24-SA!GD24 -> 1900 | EE27: =SA!GQ24-SA!GE24 -> 2300 | EF27: =SA!GR24-SA!GF24 -> 1200 | EG27: =SA!GS24-SA!GG24 -> 600 | EH27: =SA!GT24-SA!GH24 -> -500 | EI27: =SA!GU24-SA!GI24 -> -100 | EJ27: =SA!GV24-SA!GJ24 -> -1300 | EK27: =SA!GW24-SA!GK24 -> -2300 | EL27: =SA!GX24-SA!GL24 -> 100 | EM27: =SA!GY24-SA!GM24 -> -200 | EN27: =SA!GZ24-SA!GN24 -> -100 | EO27: =SA!HA24-SA!GO24 -> -500 | EP27: =SA!HB24-SA!GP24 -> -2500 | EQ27: =SA!HC24-SA!GQ24 -> -3300 | ER27: =SA!HD24-SA!GR24 -> -100 | ES27: =SA!HE24-SA!GS24 -> 600 | ET27: =SA!HF24-SA!GT24 -> 900 | EU27: =SA!HG24-SA!GU24 -> 700 | EV27: =SA!HH24-SA!GV24 -> 1700 | EW27: =SA!HI24-SA!GW24 -> 1100 | EX27: =SA!HJ24-SA!GX24 -> -100 | EY27: =SA!HK24-SA!GY24 -> 1900 | EZ27: =SA!HL24-SA!GZ24 -> 2400 | FA27: =SA!HM24-SA!HA24 -> 2000 | FB27: =SA!HN24-SA!HB24 -> 1000 | FC27: =SA!HO24-SA!HC24 -> 2800 | FD27: =SA!HP24-SA!HD24 -> 3700 | FE27: =SA!HQ24-SA!HE24 -> 3000 | FF27: =SA!HR24-SA!HF24 -> 3000 | FG27: =SA!HS24-SA!HG24 -> 1400 | FH27: =SA!HT24-SA!HH24 -> -100 | FI27: =SA!HU24-SA!HI24 -> 900 | FJ27: =SA!HV24-SA!HJ24 -> 1900 | FK27: =SA!HW24-SA!HK24 -> -700 | FL27: =SA!HX24-SA!HL24 -> -2100 | FM27: =SA!HY24-SA!HM24 -> -2400 | FN27: =SA!HZ24-SA!HN24 -> -700 | FO27: =SA!IA24-SA!HO24 -> -700 | FP27: =SA!IB24-SA!HP24 -> -3800 | FQ27: =SA!IC24-SA!HQ24 -> -1000 | FR27: =SA!ID24-SA!HR24 -> -2100 | FS27: =SA!IE24-SA!HS24 -> -2100 | FT27: =SA!IF24-SA!HT24 -> -4600 | FU27: =SA!IG24-SA!HU24 -> -3700 | FV27: =SA!IH24-SA!HV24 -> -2900 | FW27: =SA!II24-SA!HW24 -> -200 | FX27: =SA!IJ24-SA!HX24 -> 100 | FY27: =SA!IK24-SA!HY24 -> 600 | FZ27: =SA!IL24-SA!HZ24 -> -146000 | GA27: 8993.215 | GB27: =COUNTIF(EY27:FY27, ">" &GA27) -> 0 | GD27: Administrative and Support and Waste Management and Remediation Services | GE27: -23100 | GF27: -1300 | GG27: 600 | GH27: 2000 | GI27: 2750 | GJ27: 4500 | GK27: 6050 | GL27: 17700 | GM27: 7225.709209
A28: Education and Health Services | B28: =SA!BN25-SA!BB25 -> 7600 | C28: =SA!BO25-SA!BC25 -> 6600 | D28: =SA!BP25-SA!BD25 -> 7200 | E28: =SA!BQ25-SA!BE25 -> 6900 | F28: =SA!BR25-SA!BF25 -> 6900 | G28: =SA!BS25-SA!BG25 -> 7500 | H28: =SA!BT25-SA!BH25 -> 7300 | I28: =SA!BU25-SA!BI25 -> 6900 | J28: =SA!BV25-SA!BJ25 -> 8400 | K28: =SA!BW25-SA!BK25 -> 7500 | L28: =SA!BX25-SA!BL25 -> 7900 | M28: =SA!BY25-SA!BM25 -> 7300 | N28: =SA!BZ25-SA!BN25 -> 7600 | O28: =SA!CA25-SA!BO25 -> 8400 | P28: =SA!CB25-SA!BP25 -> 7100 | Q28: =SA!CC25-SA!BQ25 -> 7500 | R28: =SA!CD25-SA!BR25 -> 7400 | S28: =SA!CE25-SA!BS25 -> 7300 | T28: =SA!CF25-SA!BT25 -> 8000 | U28: =SA!CG25-SA!BU25 -> 7600 | V28: =SA!CH25-SA!BV25 -> 7300 | W28: =SA!CI25-SA!BW25 -> 8400 | X28: =SA!CJ25-SA!BX25 -> 7800 | Y28: =SA!CK25-SA!BY25 -> 7400 | Z28: =SA!CL25-SA!BZ25 -> 6300 | AA28: =SA!CM25-SA!CA25 -> 5800 | AB28: =SA!CN25-SA!CB25 -> 6500 | AC28: =SA!CO25-SA!CC25 -> 6000 | AD28: =SA!CP25-SA!CD25 -> 6000 | AE28: =SA!CQ25-SA!CE25 -> 6400 | AF28: =SA!CR25-SA!CF25 -> 6100 | AG28: =SA!CS25-SA!CG25 -> 6600 | AH28: =SA!CT25-SA!CH25 -> 6800 | AI28: =SA!CU25-SA!CI25 -> 3500 | AJ28: =SA!CV25-SA!CJ25 -> 2800 | AK28: =SA!CW25-SA!CK25 -> 4000 | AL28: =SA!CX25-SA!CL25 -> 4600 | AM28: =SA!CY25-SA!CM25 -> 4400 | AN28: =SA!CZ25-SA!CN25 -> 4600 | AO28: =SA!DA25-SA!CO25 -> 5400 | AP28: =SA!DB25-SA!CP25 -> 5400 | AQ28: =SA!DC25-SA!CQ25 -> 5500 | AR28: =SA!DD25-SA!CR25 -> 5700 | AS28: =SA!DE25-SA!CS25 -> 5800 | AT28: =SA!DF25-SA!CT25 -> 5800 | AU28: =SA!DG25-SA!CU25 -> 9700 | AV28: =SA!DH25-SA!CV25 -> 11400 | AW28: =SA!DI25-SA!CW25 -> 12000 | AX28: =SA!DJ25-SA!CX25 -> 10700 | AY28: =SA!DK25-SA!CY25 -> 11100 | AZ28: =SA!DL25-SA!CZ25 -> 10700 | BA28: =SA!DM25-SA!DA25 -> 8700 | BB28: =SA!DN25-SA!DB25 -> 8800 | BC28: =SA!DO25-SA!DC25 -> 9200 | BD28: =SA!DP25-SA!DD25 -> 7700 | BE28: =SA!DQ25-SA!DE25 -> 7400 | BF28: =SA!DR25-SA!DF25 -> 4700 | BG28: =SA!DS25-SA!DG25 -> 3900 | BH28: =SA!DT25-SA!DH25 -> 2100 | BI28: =SA!DU25-SA!DI25 -> -400 | BJ28: =SA!DV25-SA!DJ25 -> 2300 | BK28: =SA!DW25-SA!DK25 -> 1900 | BL28: =SA!DX25-SA!DL25 -> 2200 | BM28: =SA!DY25-SA!DM25 -> 300 | BN28: =SA!DZ25-SA!DN25 -> -700 | BO28: =SA!EA25-SA!DO25 -> -1000 | BP28: =SA!EB25-SA!DP25 -> 1000 | BQ28: =SA!EC25-SA!DQ25 -> 1400 | BR28: =SA!ED25-SA!DR25 -> 1200 | BS28: =SA!EE25-SA!DS25 -> 900 | BT28: =SA!EF25-SA!DT25 -> 1500 | BU28: =SA!EG25-SA!DU25 -> 2400 | BV28: =SA!EH25-SA!DV25 -> 600 | BW28: =SA!EI25-SA!DW25 -> 0 | BX28: =SA!EJ25-SA!DX25 -> -1500 | BY28: =SA!EK25-SA!DY25 -> 3700 | BZ28: =SA!EL25-SA!DZ25 -> 4600 | CA28: =SA!EM25-SA!EA25 -> 3700 | CB28: =SA!EN25-SA!EB25 -> 3200 | CC28: =SA!EO25-SA!EC25 -> 2300 | CD28: =SA!EP25-SA!ED25 -> 5400 | CE28: =SA!EQ25-SA!EE25 -> 5200 | CF28: =SA!ER25-SA!EF25 -> 5600 | CG28: =SA!ES25-SA!EG25 -> 6300 | CH28: =SA!ET25-SA!EH25 -> 6600 | CI28: =SA!EU25-SA!EI25 -> 7600 | CJ28: =SA!EV25-SA!EJ25 -> 9500 | CK28: =SA!EW25-SA!EK25 -> 7600 | CL28: =SA!EX25-SA!EL25 -> 7200 | CM28: =SA!EY25-SA!EM25 -> 7600 | CN28: =SA!EZ25-SA!EN25 -> 3800 | CO28: =SA!FA25-SA!EO25 -> 6200 | CP28: =SA!FB25-SA!EP25 -> 7300 | CQ28: =SA!FC25-SA!EQ25 -> 8800 | CR28: =SA!FD25-SA!ER25 -> 8500 | CS28: =SA!FE25-SA!ES25 -> 8300 | CT28: =SA!FF25-SA!ET25 -> 6800 | CU28: =SA!FG25-SA!EU25 -> 6600 | CV28: =SA!FH25-SA!EV25 -> 6100 | CW28: =SA!FI25-SA!EW25 -> 5500 | CX28: =SA!FJ25-SA!EX25 -> 6300 | CY28: =SA!FK25-SA!EY25 -> 5400 | CZ28: =SA!FL25-SA!EZ25 -> 8400 | DA28: =SA!FM25-SA!FA25 -> 7500 | DB28: =SA!FN25-SA!FB25 -> 5500 | DC28: =SA!FO25-SA!FC25 -> 4200 | DD28: =SA!FP25-SA!FD25 -> 4500 | DE28: =SA!FQ25-SA!FE25 -> 3400 | DF28: =SA!FR25-SA!FF25 -> 6300 | DG28: =SA!FS25-SA!FG25 -> 5900 | DH28: =SA!FT25-SA!FH25 -> 5900 | DI28: =SA!FU25-SA!FI25 -> 6500 | DJ28: =SA!FV25-SA!FJ25 -> 6000 | DK28: =SA!FW25-SA!FK25 -> 7100 | DL28: =SA!FX25-SA!FL25 -> 7100 | DM28: =SA!FY25-SA!FM25 -> 6300 | DN28: =SA!FZ25-SA!FN25 -> 6400 | DO28: =SA!GA25-SA!FO25 -> 5700 | DP28: =SA!GB25-SA!FP25 -> 6400 | DQ28: =SA!GC25-SA!FQ25 -> 7200 | DR28: =SA!GD25-SA!FR25 -> 4800 | DS28: =SA!GE25-SA!FS25 -> 5500 | DT28: =SA!GF25-SA!FT25 -> 6000 | DU28: =SA!GG25-SA!FU25 -> 5200 | DV28: =SA!GH25-SA!FV25 -> 6100 | DW28: =SA!GI25-SA!FW25 -> 5300 | DX28: =SA!GJ25-SA!FX25 -> 6200 | DY28: =SA!GK25-SA!FY25 -> 5100 | DZ28: =SA!GL25-SA!FZ25 -> 4800 | EA28: =SA!GM25-SA!GA25 -> 6500 | EB28: =SA!GN25-SA!GB25 -> 6200 | EC28: =SA!GO25-SA!GC25 -> 6800 | ED28: =SA!GP25-SA!GD25 -> 8400 | EE28: =SA!GQ25-SA!GE25 -> 8400 | EF28: =SA!GR25-SA!GF25 -> 7900 | EG28: =SA!GS25-SA!GG25 -> 9500 | EH28: =SA!GT25-SA!GH25 -> 8500 | EI28: =SA!GU25-SA!GI25 -> 8200 | EJ28: =SA!GV25-SA!GJ25 -> 9600 | EK28: =SA!GW25-SA!GK25 -> 9800 | EL28: =SA!GX25-SA!GL25 -> 10200 | EM28: =SA!GY25-SA!GM25 -> 8600 | EN28: =SA!GZ25-SA!GN25 -> 8100 | EO28: =SA!HA25-SA!GO25 -> 6900 | EP28: =SA!HB25-SA!GP25 -> 7300 | EQ28: =SA!HC25-SA!GQ25 -> 7000 | ER28: =SA!HD25-SA!GR25 -> 6800 | ES28: =SA!HE25-SA!GS25 -> 5600 | ET28: =SA!HF25-SA!GT25 -> 4600 | EU28: =SA!HG25-SA!GU25 -> 7400 | EV28: =SA!HH25-SA!GV25 -> 4100 | EW28: =SA!HI25-SA!GW25 -> 4600 | EX28: =SA!HJ25-SA!GX25 -> 4200 | EY28: =SA!HK25-SA!GY25 -> 6800 | EZ28: =SA!HL25-SA!GZ25 -> 5100 | FA28: =SA!HM25-SA!HA25 -> 6000 | FB28: =SA!HN25-SA!HB25 -> 5100 | FC28: =SA!HO25-SA!HC25 -> 4600 | FD28: =SA!HP25-SA!HD25 -> 3700 | FE28: =SA!HQ25-SA!HE25 -> 2600 | FF28: =SA!HR25-SA!HF25 -> 2800 | FG28: =SA!HS25-SA!HG25 -> 600 | FH28: =SA!HT25-SA!HH25 -> 4900 | FI28: =SA!HU25-SA!HI25 -> 4800 | FJ28: =SA!HV25-SA!HJ25 -> 6700 | FK28: =SA!HW25-SA!HK25 -> 4900 | FL28: =SA!HX25-SA!HL25 -> 7600 | FM28: =SA!HY25-SA!HM25 -> 8400 | FN28: =SA!HZ25-SA!HN25 -> 5100 | FO28: =SA!IA25-SA!HO25 -> 3000 | FP28: =SA!IB25-SA!HP25 -> 2100 | FQ28: =SA!IC25-SA!HQ25 -> 6400 | FR28: =SA!ID25-SA!HR25 -> 8600 | FS28: =SA!IE25-SA!HS25 -> 7200 | FT28: =SA!IF25-SA!HT25 -> 2600 | FU28: =SA!IG25-SA!HU25 -> 2500 | FV28: =SA!IH25-SA!HV25 -> 600 | FW28: =SA!II25-SA!HW25 -> 1000 | FX28: =SA!IJ25-SA!HX25 -> 500 | FY28: =SA!IK25-SA!HY25 -> -400 | FZ28: =SA!IL25-SA!HZ25 -> -458600 | GA28: 9011.31 | GB28: =COUNTIF(EY28:FY28, ">" &GA28) -> 0 | GD28: Education and Health Services | GE28: -1500 | GF28: 3600 | GG28: 5100 | GH28: 6000 | GI28: 6500 | GJ28: 7300 | GK28: 8350 | GL28: 12000 | GM28: 2495.044071
A29: Educational Services | B29: =SA!BN26-SA!BB26 -> 1600 | C29: =SA!BO26-SA!BC26 -> 900 | D29: =SA!BP26-SA!BD26 -> 1200 | E29: =SA!BQ26-SA!BE26 -> 900 | F29: =SA!BR26-SA!BF26 -> 1100 | G29: =SA!BS26-SA!BG26 -> 1000 | H29: =SA!BT26-SA!BH26 -> 800 | I29: =SA!BU26-SA!BI26 -> 700 | J29: =SA!BV26-SA!BJ26 -> 1100 | K29: =SA!BW26-SA!BK26 -> 700 | L29: =SA!BX26-SA!BL26 -> 1000 | M29: =SA!BY26-SA!BM26 -> 600 | N29: =SA!BZ26-SA!BN26 -> 700 | O29: =SA!CA26-SA!BO26 -> 900 | P29: =SA!CB26-SA!BP26 -> 600 | Q29: =SA!CC26-SA!BQ26 -> 1000 | R29: =SA!CD26-SA!BR26 -> 1200 | S29: =SA!CE26-SA!BS26 -> 800 | T29: =SA!CF26-SA!BT26 -> 1300 | U29: =SA!CG26-SA!BU26 -> 700 | V29: =SA!CH26-SA!BV26 -> 1000 | W29: =SA!CI26-SA!BW26 -> 1300 | X29: =SA!CJ26-SA!BX26 -> 1400 | Y29: =SA!CK26-SA!BY26 -> 1100 | Z29: =SA!CL26-SA!BZ26 -> 800 | AA29: =SA!CM26-SA!CA26 -> 700 | AB29: =SA!CN26-SA!CB26 -> 1000 | AC29: =SA!CO26-SA!CC26 -> 300 | AD29: =SA!CP26-SA!CD26 -> 400 | AE29: =SA!CQ26-SA!CE26 -> 400 | AF29: =SA!CR26-SA!CF26 -> 400 | AG29: =SA!CS26-SA!CG26 -> 900 | AH29: =SA!CT26-SA!CH26 -> 800 | AI29: =SA!CU26-SA!CI26 -> -1700 | AJ29: =SA!CV26-SA!CJ26 -> -2900 | AK29: =SA!CW26-SA!CK26 -> -2100 | AL29: =SA!CX26-SA!CL26 -> -2000 | AM29: =SA!CY26-SA!CM26 -> -2100 | AN29: =SA!CZ26-SA!CN26 -> -2400 | AO29: =SA!DA26-SA!CO26 -> -1300 | AP29: =SA!DB26-SA!CP26 -> -1800 | AQ29: =SA!DC26-SA!CQ26 -> -1100 | AR29: =SA!DD26-SA!CR26 -> -900 | AS29: =SA!DE26-SA!CS26 -> -1000 | AT29: =SA!DF26-SA!CT26 -> -500 | AU29: =SA!DG26-SA!CU26 -> 2900 | AV29: =SA!DH26-SA!CV26 -> 4000 | AW29: =SA!DI26-SA!CW26 -> 4400 | AX29: =SA!DJ26-SA!CX26 -> 3900 | AY29: =SA!DK26-SA!CY26 -> 3900 | AZ29: =SA!DL26-SA!CZ26 -> 4000 | BA29: =SA!DM26-SA!DA26 -> 2300 | BB29: =SA!DN26-SA!DB26 -> 2500 | BC29: =SA!DO26-SA!DC26 -> 3200 | BD29: =SA!DP26-SA!DD26 -> 2600 | BE29: =SA!DQ26-SA!DE26 -> 2600 | BF29: =SA!DR26-SA!DF26 -> 800 | BG29: =SA!DS26-SA!DG26 -> -300 | BH29: =SA!DT26-SA!DH26 -> -800 | BI29: =SA!DU26-SA!DI26 -> -1900 | BJ29: =SA!DV26-SA!DJ26 -> -1100 | BK29: =SA!DW26-SA!DK26 -> -1000 | BL29: =SA!DX26-SA!DL26 -> -900 | BM29: =SA!DY26-SA!DM26 -> -800 | BN29: =SA!DZ26-SA!DN26 -> -1500 | BO29: =SA!EA26-SA!DO26 -> -1500 | BP29: =SA!EB26-SA!DP26 -> -400 | BQ29: =SA!EC26-SA!DQ26 -> 200 | BR29: =SA!ED26-SA!DR26 -> 300 | BS29: =SA!EE26-SA!DS26 -> -300 | BT29: =SA!EF26-SA!DT26 -> -400 | BU29: =SA!EG26-SA!DU26 -> -100 | BV29: =SA!EH26-SA!DV26 -> -300 | BW29: =SA!EI26-SA!DW26 -> -800 | BX29: =SA!EJ26-SA!DX26 -> -1800 | BY29: =SA!EK26-SA!DY26 -> 400 | BZ29: =SA!EL26-SA!DZ26 -> 1500 | CA29: =SA!EM26-SA!EA26 -> 100 | CB29: =SA!EN26-SA!EB26 -> -400 | CC29: =SA!EO26-SA!EC26 -> -900 | CD29: =SA!EP26-SA!ED26 -> 200 | CE29: =SA!EQ26-SA!EE26 -> 1000 | CF29: =SA!ER26-SA!EF26 -> 1500 | CG29: =SA!ES26-SA!EG26 -> 1400 | CH29: =SA!ET26-SA!EH26 -> 100 | CI29: =SA!EU26-SA!EI26 -> 600 | CJ29: =SA!EV26-SA!EJ26 -> 1900 | CK29: =SA!EW26-SA!EK26 -> 600 | CL29: =SA!EX26-SA!EL26 -> 400 | CM29: =SA!EY26-SA!EM26 -> 300 | CN29: =SA!EZ26-SA!EN26 -> -4200 | CO29: =SA!FA26-SA!EO26 -> -2500 | CP29: =SA!FB26-SA!EP26 -> -1200 | CQ29: =SA!FC26-SA!EQ26 -> -600 | CR29: =SA!FD26-SA!ER26 -> -800 | CS29: =SA!FE26-SA!ES26 -> -500 | CT29: =SA!FF26-SA!ET26 -> -100 | CU29: =SA!FG26-SA!EU26 -> -100 | CV29: =SA!FH26-SA!EV26 -> -400 | CW29: =SA!FI26-SA!EW26 -> -700 | CX29: =SA!FJ26-SA!EX26 -> -900 | CY29: =SA!FK26-SA!EY26 -> -700 | CZ29: =SA!FL26-SA!EZ26 -> 3200 | DA29: =SA!FM26-SA!FA26 -> 1600 | DB29: =SA!FN26-SA!FB26 -> 300 | DC29: =SA!FO26-SA!FC26 -> -200 | DD29: =SA!FP26-SA!FD26 -> -200 | DE29: =SA!FQ26-SA!FE26 -> -600 | DF29: =SA!FR26-SA!FF26 -> 400 | DG29: =SA!FS26-SA!FG26 -> 0 | DH29: =SA!FT26-SA!FH26 -> -100 | DI29: =SA!FU26-SA!FI26 -> 200 | DJ29: =SA!FV26-SA!FJ26 -> 500 | DK29: =SA!FW26-SA!FK26 -> 300 | DL29: =SA!FX26-SA!FL26 -> 600 | DM29: =SA!FY26-SA!FM26 -> 400 | DN29: =SA!FZ26-SA!FN26 -> 400 | DO29: =SA!GA26-SA!FO26 -> 0 | DP29: =SA!GB26-SA!FP26 -> -100 | DQ29: =SA!GC26-SA!FQ26 -> 500 | DR29: =SA!GD26-SA!FR26 -> 0 | DS29: =SA!GE26-SA!FS26 -> 500 | DT29: =SA!GF26-SA!FT26 -> 600 | DU29: =SA!GG26-SA!FU26 -> 300 | DV29: =SA!GH26-SA!FV26 -> 100 | DW29: =SA!GI26-SA!FW26 -> 300 | DX29: =SA!GJ26-SA!FX26 -> 500 | DY29: =SA!GK26-SA!FY26 -> -200 | DZ29: =SA!GL26-SA!FZ26 -> 0 | EA29: =SA!GM26-SA!GA26 -> 400 | EB29: =SA!GN26-SA!GB26 -> 600 | EC29: =SA!GO26-SA!GC26 -> 100 | ED29: =SA!GP26-SA!GD26 -> 300 | EE29: =SA!GQ26-SA!GE26 -> -100 | EF29: =SA!GR26-SA!GF26 -> 0 | EG29: =SA!GS26-SA!GG26 -> 500 | EH29: =SA!GT26-SA!GH26 -> 400 | EI29: =SA!GU26-SA!GI26 -> 600 | EJ29: =SA!GV26-SA!GJ26 -> 400 | EK29: =SA!GW26-SA!GK26 -> 800 | EL29: =SA!GX26-SA!GL26 -> 500 | EM29: =SA!GY26-SA!GM26 -> 300 | EN29: =SA!GZ26-SA!GN26 -> 200 | EO29: =SA!HA26-SA!GO26 -> 300 | EP29: =SA!HB26-SA!GP26 -> 400 | EQ29: =SA!HC26-SA!GQ26 -> 800 | ER29: =SA!HD26-SA!GR26 -> 500 | ES29: =SA!HE26-SA!GS26 -> 300 | ET29: =SA!HF26-SA!GT26 -> -300 | EU29: =SA!HG26-SA!GU26 -> 300 | EV29: =SA!HH26-SA!GV26 -> -200 | EW29: =SA!HI26-SA!GW26 -> -100 | EX29: =SA!HJ26-SA!GX26 -> 600 | EY29: =SA!HK26-SA!GY26 -> 400 | EZ29: =SA!HL26-SA!GZ26 -> 500 | FA29: =SA!HM26-SA!HA26 -> 600 | FB29: =SA!HN26-SA!HB26 -> 500 | FC29: =SA!HO26-SA!HC26 -> 900 | FD29: =SA!HP26-SA!HD26 -> 800 | FE29: =SA!HQ26-SA!HE26 -> 400 | FF29: =SA!HR26-SA!HF26 -> 700 | FG29: =SA!HS26-SA!HG26 -> -300 | FH29: =SA!HT26-SA!HH26 -> 0 | FI29: =SA!HU26-SA!HI26 -> -100 | FJ29: =SA!HV26-SA!HJ26 -> 800 | FK29: =SA!HW26-SA!HK26 -> 1700 | FL29: =SA!HX26-SA!HL26 -> 1900 | FM29: =SA!HY26-SA!HM26 -> 1900 | FN29: =SA!HZ26-SA!HN26 -> 2100 | FO29: =SA!IA26-SA!HO26 -> 700 | FP29: =SA!IB26-SA!HP26 -> 900 | FQ29: =SA!IC26-SA!HQ26 -> 1400 | FR29: =SA!ID26-SA!HR26 -> 1900 | FS29: =SA!IE26-SA!HS26 -> 2400 | FT29: =SA!IF26-SA!HT26 -> 2600 | FU29: =SA!IG26-SA!HU26 -> 2700 | FV29: =SA!IH26-SA!HV26 -> 900 | FW29: =SA!II26-SA!HW26 -> -400 | FX29: =SA!IJ26-SA!HX26 -> -600 | FY29: =SA!IK26-SA!HY26 -> -700 | FZ29: =SA!IL26-SA!HZ26 -> -53300 | GA29: 5612.74 | GB29: =COUNTIF(EY29:FY29, ">" &GA29) -> 0 | GD29: Educational Services | GE29: -4200 | GF29: -800 | GG29: -100 | GH29: 300 | GI29: 400 | GJ29: 700 | GK29: 1250 | GL29: 4400 | GM29: 1264.26097
A30: Health Care and Social Assistance | B30: =SA!BN27-SA!BB27 -> 6000 | C30: =SA!BO27-SA!BC27 -> 5700 | D30: =SA!BP27-SA!BD27 -> 6000 | E30: =SA!BQ27-SA!BE27 -> 6000 | F30: =SA!BR27-SA!BF27 -> 5800 | G30: =SA!BS27-SA!BG27 -> 6500 | H30: =SA!BT27-SA!BH27 -> 6500 | I30: =SA!BU27-SA!BI27 -> 6200 | J30: =SA!BV27-SA!BJ27 -> 7300 | K30: =SA!BW27-SA!BK27 -> 6800 | L30: =SA!BX27-SA!BL27 -> 6900 | M30: =SA!BY27-SA!BM27 -> 6700 | N30: =SA!BZ27-SA!BN27 -> 6900 | O30: =SA!CA27-SA!BO27 -> 7500 | P30: =SA!CB27-SA!BP27 -> 6500 | Q30: =SA!CC27-SA!BQ27 -> 6500 | R30: =SA!CD27-SA!BR27 -> 6200 | S30: =SA!CE27-SA!BS27 -> 6500 | T30: =SA!CF27-SA!BT27 -> 6700 | U30: =SA!CG27-SA!BU27 -> 6900 | V30: =SA!CH27-SA!BV27 -> 6300 | W30: =SA!CI27-SA!BW27 -> 7100 | X30: =SA!CJ27-SA!BX27 -> 6400 | Y30: =SA!CK27-SA!BY27 -> 6300 | Z30: =SA!CL27-SA!BZ27 -> 5500 | AA30: =SA!CM27-SA!CA27 -> 5100 | AB30: =SA!CN27-SA!CB27 -> 5500 | AC30: =SA!CO27-SA!CC27 -> 5700 | AD30: =SA!CP27-SA!CD27 -> 5600 | AE30: =SA!CQ27-SA!CE27 -> 6000 | AF30: =SA!CR27-SA!CF27 -> 5700 | AG30: =SA!CS27-SA!CG27 -> 5700 | AH30: =SA!CT27-SA!CH27 -> 6000 | AI30: =SA!CU27-SA!CI27 -> 5200 | AJ30: =SA!CV27-SA!CJ27 -> 5700 | AK30: =SA!CW27-SA!CK27 -> 6100 | AL30: =SA!CX27-SA!CL27 -> 6600 | AM30: =SA!CY27-SA!CM27 -> 6500 | AN30: =SA!CZ27-SA!CN27 -> 7000 | AO30: =SA!DA27-SA!CO27 -> 6700 | AP30: =SA!DB27-SA!CP27 -> 7200 | AQ30: =SA!DC27-SA!CQ27 -> 6600 | AR30: =SA!DD27-SA!CR27 -> 6600 | AS30: =SA!DE27-SA!CS27 -> 6800 | AT30: =SA!DF27-SA!CT27 -> 6300 | AU30: =SA!DG27-SA!CU27 -> 6800 | AV30: =SA!DH27-SA!CV27 -> 7400 | AW30: =SA!DI27-SA!CW27 -> 7600 | AX30: =SA!DJ27-SA!CX27 -> 6800 | AY30: =SA!DK27-SA!CY27 -> 7200 | AZ30: =SA!DL27-SA!CZ27 -> 6700 | BA30: =SA!DM27-SA!DA27 -> 6400 | BB30: =SA!DN27-SA!DB27 -> 6300 | BC30: =SA!DO27-SA!DC27 -> 6000 | BD30: =SA!DP27-SA!DD27 -> 5100 | BE30: =SA!DQ27-SA!DE27 -> 4800 | BF30: =SA!DR27-SA!DF27 -> 3900 | BG30: =SA!DS27-SA!DG27 -> 4200 | BH30: =SA!DT27-SA!DH27 -> 2900 | BI30: =SA!DU27-SA!DI27 -> 1500 | BJ30: =SA!DV27-SA!DJ27 -> 3400 | BK30: =SA!DW27-SA!DK27 -> 2900 | BL30: =SA!DX27-SA!DL27 -> 3100 | BM30: =SA!DY27-SA!DM27 -> 1100 | BN30: =SA!DZ27-SA!DN27 -> 800 | BO30: =SA!EA27-SA!DO27 -> 500 | BP30: =SA!EB27-SA!DP27 -> 1400 | BQ30: =SA!EC27-SA!DQ27 -> 1200 | BR30: =SA!ED27-SA!DR27 -> 900 | BS30: =SA!EE27-SA!DS27 -> 1200 | BT30: =SA!EF27-SA!DT27 -> 1900 | BU30: =SA!EG27-SA!DU27 -> 2500 | BV30: =SA!EH27-SA!DV27 -> 900 | BW30: =SA!EI27-SA!DW27 -> 800 | BX30: =SA!EJ27-SA!DX27 -> 300 | BY30: =SA!EK27-SA!DY27 -> 3300 | BZ30: =SA!EL27-SA!DZ27 -> 3100 | CA30: =SA!EM27-SA!EA27 -> 3600 | CB30: =SA!EN27-SA!EB27 -> 3600 | CC30: =SA!EO27-SA!EC27 -> 3200 | CD30: =SA!EP27-SA!ED27 -> 5200 | CE30: =SA!EQ27-SA!EE27 -> 4200 | CF30: =SA!ER27-SA!EF27 -> 4100 | CG30: =SA!ES27-SA!EG27 -> 4900 | CH30: =SA!ET27-SA!EH27 -> 6500 | CI30: =SA!EU27-SA!EI27 -> 7000 | CJ30: =SA!EV27-SA!EJ27 -> 7600 | CK30: =SA!EW27-SA!EK27 -> 7000 | CL30: =SA!EX27-SA!EL27 -> 6800 | CM30: =SA!EY27-SA!EM27 -> 7300 | CN30: =SA!EZ27-SA!EN27 -> 8000 | CO30: =SA!FA27-SA!EO27 -> 8700 | CP30: =SA!FB27-SA!EP27 -> 8500 | CQ30: =SA!FC27-SA!EQ27 -> 9400 | CR30: =SA!FD27-SA!ER27 -> 9300 | CS30: =SA!FE27-SA!ES27 -> 8800 | CT30: =SA!FF27-SA!ET27 -> 6900 | CU30: =SA!FG27-SA!EU27 -> 6700 | CV30: =SA!FH27-SA!EV27 -> 6500 | CW30: =SA!FI27-SA!EW27 -> 6200 | CX30: =SA!FJ27-SA!EX27 -> 7200 | CY30: =SA!FK27-SA!EY27 -> 6100 | CZ30: =SA!FL27-SA!EZ27 -> 5200 | DA30: =SA!FM27-SA!FA27 -> 5900 | DB30: =SA!FN27-SA!FB27 -> 5200 | DC30: =SA!FO27-SA!FC27 -> 4400 | DD30: =SA!FP27-SA!FD27 -> 4700 | DE30: =SA!FQ27-SA!FE27 -> 4000 | DF30: =SA!FR27-SA!FF27 -> 5900 | DG30: =SA!FS27-SA!FG27 -> 5900 | DH30: =SA!FT27-SA!FH27 -> 6000 | DI30: =SA!FU27-SA!FI27 -> 6300 | DJ30: =SA!FV27-SA!FJ27 -> 5500 | DK30: =SA!FW27-SA!FK27 -> 6800 | DL30: =SA!FX27-SA!FL27 -> 6500 | DM30: =SA!FY27-SA!FM27 -> 5900 | DN30: =SA!FZ27-SA!FN27 -> 6000 | DO30: =SA!GA27-SA!FO27 -> 5700 | DP30: =SA!GB27-SA!FP27 -> 6500 | DQ30: =SA!GC27-SA!FQ27 -> 6700 | DR30: =SA!GD27-SA!FR27 -> 4800 | DS30: =SA!GE27-SA!FS27 -> 5000 | DT30: =SA!GF27-SA!FT27 -> 5400 | DU30: =SA!GG27-SA!FU27 -> 4900 | DV30: =SA!GH27-SA!FV27 -> 6000 | DW30: =SA!GI27-SA!FW27 -> 5000 | DX30: =SA!GJ27-SA!FX27 -> 5700 | DY30: =SA!GK27-SA!FY27 -> 5300 | DZ30: =SA!GL27-SA!FZ27 -> 4800 | EA30: =SA!GM27-SA!GA27 -> 6100 | EB30: =SA!GN27-SA!GB27 -> 5600 | EC30: =SA!GO27-SA!GC27 -> 6700 | ED30: =SA!GP27-SA!GD27 -> 8100 | EE30: =SA!GQ27-SA!GE27 -> 8500 | EF30: =SA!GR27-SA!GF27 -> 7900 | EG30: =SA!GS27-SA!GG27 -> 9000 | EH30: =SA!GT27-SA!GH27 -> 8100 | EI30: =SA!GU27-SA!GI27 -> 7600 | EJ30: =SA!GV27-SA!GJ27 -> 9200 | EK30: =SA!GW27-SA!GK27 -> 9000 | EL30: =SA!GX27-SA!GL27 -> 9700 | EM30: =SA!GY27-SA!GM27 -> 8300 | EN30: =SA!GZ27-SA!GN27 -> 7900 | EO30: =SA!HA27-SA!GO27 -> 6600 | EP30: =SA!HB27-SA!GP27 -> 6900 | EQ30: =SA!HC27-SA!GQ27 -> 6200 | ER30: =SA!HD27-SA!GR27 -> 6300 | ES30: =SA!HE27-SA!GS27 -> 5300 | ET30: =SA!HF27-SA!GT27 -> 4900 | EU30: =SA!HG27-SA!GU27 -> 7100 | EV30: =SA!HH27-SA!GV27 -> 4300 | EW30: =SA!HI27-SA!GW27 -> 4700 | EX30: =SA!HJ27-SA!GX27 -> 3600 | EY30: =SA!HK27-SA!GY27 -> 6400 | EZ30: =SA!HL27-SA!GZ27 -> 4600 | FA30: =SA!HM27-SA!HA27 -> 5400 | FB30: =SA!HN27-SA!HB27 -> 4600 | FC30: =SA!HO27-SA!HC27 -> 3700 | FD30: =SA!HP27-SA!HD27 -> 2900 | FE30: =SA!HQ27-SA!HE27 -> 2200 | FF30: =SA!HR27-SA!HF27 -> 2100 | FG30: =SA!HS27-SA!HG27 -> 900 | FH30: =SA!HT27-SA!HH27 -> 4900 | FI30: =SA!HU27-SA!HI27 -> 4900 | FJ30: =SA!HV27-SA!HJ27 -> 5900 | FK30: =SA!HW27-SA!HK27 -> 3200 | FL30: =SA!HX27-SA!HL27 -> 5700 | FM30: =SA!HY27-SA!HM27 -> 6500 | FN30: =SA!HZ27-SA!HN27 -> 3000 | FO30: =SA!IA27-SA!HO27 -> 2300 | FP30: =SA!IB27-SA!HP27 -> 1200 | FQ30: =SA!IC27-SA!HQ27 -> 5000 | FR30: =SA!ID27-SA!HR27 -> 6700 | FS30: =SA!IE27-SA!HS27 -> 4800 | FT30: =SA!IF27-SA!HT27 -> 0 | FU30: =SA!IG27-SA!HU27 -> -200 | FV30: =SA!IH27-SA!HV27 -> -300 | FW30: =SA!II27-SA!HW27 -> 1400 | FX30: =SA!IJ27-SA!HX27 -> 1100 | FY30: =SA!IK27-SA!HY27 -> 300 | FZ30: =SA!IL27-SA!HZ27 -> -405300 | GA30: 7050.47 | GB30: =COUNTIF(EY30:FY30, ">" &GA30) -> 0 | GD30: Health Care and Social Assistance | GE30: 300 | GF30: 3350 | GG30: 5000 | GH30: 5900 | GI30: 6200 | GJ30: 6600 | GK30: 7200 | GL30: 9700 | GM30: 1967.620138
A31: Leisure and Hospitality | B31: =SA!BN28-SA!BB28 -> 3100 | C31: =SA!BO28-SA!BC28 -> 4600 | D31: =SA!BP28-SA!BD28 -> 5200 | E31: =SA!BQ28-SA!BE28 -> 7700 | F31: =SA!BR28-SA!BF28 -> 5200 | G31: =SA!BS28-SA!BG28 -> 5600 | H31: =SA!BT28-SA!BH28 -> 2800 | I31: =SA!BU28-SA!BI28 -> 3300 | J31: =SA!BV28-SA!BJ28 -> 4200 | K31: =SA!BW28-SA!BK28 -> 2100 | L31: =SA!BX28-SA!BL28 -> 4000 | M31: =SA!BY28-SA!BM28 -> 3100 | N31: =SA!BZ28-SA!BN28 -> 5500 | O31: =SA!CA28-SA!BO28 -> 6000 | P31: =SA!CB28-SA!BP28 -> 5900 | Q31: =SA!CC28-SA!BQ28 -> 2700 | R31: =SA!CD28-SA!BR28 -> 2800 | S31: =SA!CE28-SA!BS28 -> 4100 | T31: =SA!CF28-SA!BT28 -> 4200 | U31: =SA!CG28-SA!BU28 -> 4000 | V31: =SA!CH28-SA!BV28 -> 3200 | W31: =SA!CI28-SA!BW28 -> 5400 | X31: =SA!CJ28-SA!BX28 -> 3800 | Y31: =SA!CK28-SA!BY28 -> 5100 | Z31: =SA!CL28-SA!BZ28 -> 4300 | AA31: =SA!CM28-SA!CA28 -> 3600 | AB31: =SA!CN28-SA!CB28 -> 2900 | AC31: =SA!CO28-SA!CC28 -> 1600 | AD31: =SA!CP28-SA!CD28 -> 3900 | AE31: =SA!CQ28-SA!CE28 -> 3800 | AF31: =SA!CR28-SA!CF28 -> 2000 | AG31: =SA!CS28-SA!CG28 -> 2300 | AH31: =SA!CT28-SA!CH28 -> 700 | AI31: =SA!CU28-SA!CI28 -> 1300 | AJ31: =SA!CV28-SA!CJ28 -> 2200 | AK31: =SA!CW28-SA!CK28 -> 900 | AL31: =SA!CX28-SA!CL28 -> -500 | AM31: =SA!CY28-SA!CM28 -> -1500 | AN31: =SA!CZ28-SA!CN28 -> -1800 | AO31: =SA!DA28-SA!CO28 -> -1200 | AP31: =SA!DB28-SA!CP28 -> -1600 | AQ31: =SA!DC28-SA!CQ28 -> -2900 | AR31: =SA!DD28-SA!CR28 -> -2100 | AS31: =SA!DE28-SA!CS28 -> -3300 | AT31: =SA!DF28-SA!CT28 -> -2200 | AU31: =SA!DG28-SA!CU28 -> -3400 | AV31: =SA!DH28-SA!CV28 -> -4800 | AW31: =SA!DI28-SA!CW28 -> -5300 | AX31: =SA!DJ28-SA!CX28 -> -7000 | AY31: =SA!DK28-SA!CY28 -> -5900 | AZ31: =SA!DL28-SA!CZ28 -> -6700 | BA31: =SA!DM28-SA!DA28 -> -7800 | BB31: =SA!DN28-SA!DB28 -> -5000 | BC31: =SA!DO28-SA!DC28 -> -5600 | BD31: =SA!DP28-SA!DD28 -> -7000 | BE31: =SA!DQ28-SA!DE28 -> -7400 | BF31: =SA!DR28-SA!DF28 -> -6500 | BG31: =SA!DS28-SA!DG28 -> -8300 | BH31: =SA!DT28-SA!DH28 -> -7700 | BI31: =SA!DU28-SA!DI28 -> -7000 | BJ31: =SA!DV28-SA!DJ28 -> -4000 | BK31: =SA!DW28-SA!DK28 -> -5300 | BL31: =SA!DX28-SA!DL28 -> -4500 | BM31: =SA!DY28-SA!DM28 -> -700 | BN31: =SA!DZ28-SA!DN28 -> -3900 | BO31: =SA!EA28-SA!DO28 -> -3400 | BP31: =SA!EB28-SA!DP28 -> -700 | BQ31: =SA!EC28-SA!DQ28 -> 1000 | BR31: =SA!ED28-SA!DR28 -> 200 | BS31: =SA!EE28-SA!DS28 -> 2400 | BT31: =SA!EF28-SA!DT28 -> 2700 | BU31: =SA!EG28-SA!DU28 -> 2800 | BV31: =SA!EH28-SA!DV28 -> 1500 | BW31: =SA!EI28-SA!DW28 -> 1600 | BX31: =SA!EJ28-SA!DX28 -> 1300 | BY31: =SA!EK28-SA!DY28 -> 0 | BZ31: =SA!EL28-SA!DZ28 -> 300 | CA31: =SA!EM28-SA!EA28 -> 1400 | CB31: =SA!EN28-SA!EB28 -> 1100 | CC31: =SA!EO28-SA!EC28 -> 1100 | CD31: =SA!EP28-SA!ED28 -> 1600 | CE31: =SA!EQ28-SA!EE28 -> 1200 | CF31: =SA!ER28-SA!EF28 -> 500 | CG31: =SA!ES28-SA!EG28 -> 100 | CH31: =SA!ET28-SA!EH28 -> 1900 | CI31: =SA!EU28-SA!EI28 -> 3300 | CJ31: =SA!EV28-SA!EJ28 -> 5800 | CK31: =SA!EW28-SA!EK28 -> 6400 | CL31: =SA!EX28-SA!EL28 -> 5100 | CM31: =SA!EY28-SA!EM28 -> 5700 | CN31: =SA!EZ28-SA!EN28 -> 4700 | CO31: =SA!FA28-SA!EO28 -> 3500 | CP31: =SA!FB28-SA!EP28 -> 4800 | CQ31: =SA!FC28-SA!EQ28 -> 3100 | CR31: =SA!FD28-SA!ER28 -> 3900 | CS31: =SA!FE28-SA!ES28 -> 5400 | CT31: =SA!FF28-SA!ET28 -> 4600 | CU31: =SA!FG28-SA!EU28 -> 4400 | CV31: =SA!FH28-SA!EV28 -> 2500 | CW31: =SA!FI28-SA!EW28 -> -900 | CX31: =SA!FJ28-SA!EX28 -> 4000 | CY31: =SA!FK28-SA!EY28 -> 2900 | CZ31: =SA!FL28-SA!EZ28 -> 4000 | DA31: =SA!FM28-SA!FA28 -> 5900 | DB31: =SA!FN28-SA!FB28 -> 5200 | DC31: =SA!FO28-SA!FC28 -> 6200 | DD31: =SA!FP28-SA!FD28 -> 6100 | DE31: =SA!FQ28-SA!FE28 -> 5400 | DF31: =SA!FR28-SA!FF28 -> 4100 | DG31: =SA!FS28-SA!FG28 -> 3900 | DH31: =SA!FT28-SA!FH28 -> 3400 | DI31: =SA!FU28-SA!FI28 -> 5500 | DJ31: =SA!FV28-SA!FJ28 -> 3100 | DK31: =SA!FW28-SA!FK28 -> 4300 | DL31: =SA!FX28-SA!FL28 -> 1700 | DM31: =SA!FY28-SA!FM28 -> 1200 | DN31: =SA!FZ28-SA!FN28 -> 800 | DO31: =SA!GA28-SA!FO28 -> 1500 | DP31: =SA!GB28-SA!FP28 -> 2300 | DQ31: =SA!GC28-SA!FQ28 -> 2700 | DR31: =SA!GD28-SA!FR28 -> 4700 | DS31: =SA!GE28-SA!FS28 -> 4400 | DT31: =SA!GF28-SA!FT28 -> 6200 | DU31: =SA!GG28-SA!FU28 -> 6500 | DV31: =SA!GH28-SA!FV28 -> 6300 | DW31: =SA!GI28-SA!FW28 -> 5700 | DX31: =SA!GJ28-SA!FX28 -> 7000 | DY31: =SA!GK28-SA!FY28 -> 7100 | DZ31: =SA!GL28-SA!FZ28 -> 7500 | EA31: =SA!GM28-SA!GA28 -> 8500 | EB31: =SA!GN28-SA!GB28 -> 9300 | EC31: =SA!GO28-SA!GC28 -> 8400 | ED31: =SA!GP28-SA!GD28 -> 7200 | EE31: =SA!GQ28-SA!GE28 -> 8100 | EF31: =SA!GR28-SA!GF28 -> 6200 | EG31: =SA!GS28-SA!GG28 -> 6100 | EH31: =SA!GT28-SA!GH28 -> 5300 | EI31: =SA!GU28-SA!GI28 -> 3700 | EJ31: =SA!GV28-SA!GJ28 -> 5800 | EK31: =SA!GW28-SA!GK28 -> 5600 | EL31: =SA!GX28-SA!GL28 -> 5500 | EM31: =SA!GY28-SA!GM28 -> 4600 | EN31: =SA!GZ28-SA!GN28 -> 2400 | EO31: =SA!HA28-SA!GO28 -> 2600 | EP31: =SA!HB28-SA!GP28 -> 5200 | EQ31: =SA!HC28-SA!GQ28 -> 4900 | ER31: =SA!HD28-SA!GR28 -> 6000 | ES31: =SA!HE28-SA!GS28 -> 4000 | ET31: =SA!HF28-SA!GT28 -> 3300 | EU31: =SA!HG28-SA!GU28 -> 6800 | EV31: =SA!HH28-SA!GV28 -> 4400 | EW31: =SA!HI28-SA!GW28 -> 3600 | EX31: =SA!HJ28-SA!GX28 -> 2000 | EY31: =SA!HK28-SA!GY28 -> 2200 | EZ31: =SA!HL28-SA!GZ28 -> 4100 | FA31: =SA!HM28-SA!HA28 -> 5900 | FB31: =SA!HN28-SA!HB28 -> 3600 | FC31: =SA!HO28-SA!HC28 -> 2000 | FD31: =SA!HP28-SA!HD28 -> 1300 | FE31: =SA!HQ28-SA!HE28 -> 1800 | FF31: =SA!HR28-SA!HF28 -> 2500 | FG31: =SA!HS28-SA!HG28 -> 4400 | FH31: =SA!HT28-SA!HH28 -> 6800 | FI31: =SA!HU28-SA!HI28 -> 4300 | FJ31: =SA!HV28-SA!HJ28 -> 4800 | FK31: =SA!HW28-SA!HK28 -> 4800 | FL31: =SA!HX28-SA!HL28 -> 9000 | FM31: =SA!HY28-SA!HM28 -> 11900 | FN31: =SA!HZ28-SA!HN28 -> 6100 | FO31: =SA!IA28-SA!HO28 -> 7500 | FP31: =SA!IB28-SA!HP28 -> 3800 | FQ31: =SA!IC28-SA!HQ28 -> 3800 | FR31: =SA!ID28-SA!HR28 -> 3900 | FS31: =SA!IE28-SA!HS28 -> 900 | FT31: =SA!IF28-SA!HT28 -> 200 | FU31: =SA!IG28-SA!HU28 -> 200 | FV31: =SA!IH28-SA!HV28 -> 1000 | FW31: =SA!II28-SA!HW28 -> 900 | FX31: =SA!IJ28-SA!HX28 -> -4200 | FY31: =SA!IK28-SA!HY28 -> -5300 | FZ31: =SA!IL28-SA!HZ28 -> -289700 | GA31: 11600.54 | GB31: =COUNTIF(EY31:FY31, ">" &GA31) -> 1 | GD31: Leisure and Hospitality | GE31: -8300 | GF31: -1700 | GG31: 1500 | GH31: 2850 | GI31: 3800 | GJ31: 4700 | GK31: 5900 | GL31: 11900 | GM31: 3917.812205
A32: Arts, Entertainment, and Recreation | B32: =SA!BN29-SA!BB29 -> -600 | C32: =SA!BO29-SA!BC29 -> -800 | D32: =SA!BP29-SA!BD29 -> -200 | E32: =SA!BQ29-SA!BE29 -> 700 | F32: =SA!BR29-SA!BF29 -> 0 | G32: =SA!BS29-SA!BG29 -> 300 | H32: =SA!BT29-SA!BH29 -> -100 | I32: =SA!BU29-SA!BI29 -> 100 | J32: =SA!BV29-SA!BJ29 -> 400 | K32: =SA!BW29-SA!BK29 -> 100 | L32: =SA!BX29-SA!BL29 -> 100 | M32: =SA!BY29-SA!BM29 -> -200 | N32: =SA!BZ29-SA!BN29 -> 100 | O32: =SA!CA29-SA!BO29 -> 900 | P32: =SA!CB29-SA!BP29 -> 700 | Q32: =SA!CC29-SA!BQ29 -> 600 | R32: =SA!CD29-SA!BR29 -> 500 | S32: =SA!CE29-SA!BS29 -> 500 | T32: =SA!CF29-SA!BT29 -> 500 | U32: =SA!CG29-SA!BU29 -> 600 | V32: =SA!CH29-SA!BV29 -> 500 | W32: =SA!CI29-SA!BW29 -> 400 | X32: =SA!CJ29-SA!BX29 -> 100 | Y32: =SA!CK29-SA!BY29 -> 500 | Z32: =SA!CL29-SA!BZ29 -> 900 | AA32: =SA!CM29-SA!CA29 -> 800 | AB32: =SA!CN29-SA!CB29 -> 1000 | AC32: =SA!CO29-SA!CC29 -> -400 | AD32: =SA!CP29-SA!CD29 -> 1300 | AE32: =SA!CQ29-SA!CE29 -> 1400 | AF32: =SA!CR29-SA!CF29 -> 1100 | AG32: =SA!CS29-SA!CG29 -> 900 | AH32: =SA!CT29-SA!CH29 -> 700 | AI32: =SA!CU29-SA!CI29 -> 1000 | AJ32: =SA!CV29-SA!CJ29 -> 1500 | AK32: =SA!CW29-SA!CK29 -> 1300 | AL32: =SA!CX29-SA!CL29 -> 900 | AM32: =SA!CY29-SA!CM29 -> 400 | AN32: =SA!CZ29-SA!CN29 -> -100 | AO32: =SA!DA29-SA!CO29 -> -100 | AP32: =SA!DB29-SA!CP29 -> -300 | AQ32: =SA!DC29-SA!CQ29 -> -500 | AR32: =SA!DD29-SA!CR29 -> -300 | AS32: =SA!DE29-SA!CS29 -> -100 | AT32: =SA!DF29-SA!CT29 -> -800 | AU32: =SA!DG29-SA!CU29 -> -200 | AV32: =SA!DH29-SA!CV29 -> -1300 | AW32: =SA!DI29-SA!CW29 -> -1000 | AX32: =SA!DJ29-SA!CX29 -> -1400 | AY32: =SA!DK29-SA!CY29 -> -1600 | AZ32: =SA!DL29-SA!CZ29 -> -1300 | BA32: =SA!DM29-SA!DA29 -> -1600 | BB32: =SA!DN29-SA!DB29 -> -500 | BC32: =SA!DO29-SA!DC29 -> -700 | BD32: =SA!DP29-SA!DD29 -> -1200 | BE32: =SA!DQ29-SA!DE29 -> -1500 | BF32: =SA!DR29-SA!DF29 -> -300 | BG32: =SA!DS29-SA!DG29 -> -1900 | BH32: =SA!DT29-SA!DH29 -> -800 | BI32: =SA!DU29-SA!DI29 -> -1400 | BJ32: =SA!DV29-SA!DJ29 -> -900 | BK32: =SA!DW29-SA!DK29 -> -600 | BL32: =SA!DX29-SA!DL29 -> -200 | BM32: =SA!DY29-SA!DM29 -> 1700 | BN32: =SA!DZ29-SA!DN29 -> -600 | BO32: =SA!EA29-SA!DO29 -> -1300 | BP32: =SA!EB29-SA!DP29 -> 200 | BQ32: =SA!EC29-SA!DQ29 -> 500 | BR32: =SA!ED29-SA!DR29 -> -200 | BS32: =SA!EE29-SA!DS29 -> 600 | BT32: =SA!EF29-SA!DT29 -> 300 | BU32: =SA!EG29-SA!DU29 -> 700 | BV32: =SA!EH29-SA!DV29 -> 400 | BW32: =SA!EI29-SA!DW29 -> 700 | BX32: =SA!EJ29-SA!DX29 -> -100 | BY32: =SA!EK29-SA!DY29 -> -700 | BZ32: =SA!EL29-SA!DZ29 -> -500 | CA32: =SA!EM29-SA!EA29 -> 800 | CB32: =SA!EN29-SA!EB29 -> 500 | CC32: =SA!EO29-SA!EC29 -> 300 | CD32: =SA!EP29-SA!ED29 -> 600 | CE32: =SA!EQ29-SA!EE29 -> 1000 | CF32: =SA!ER29-SA!EF29 -> 900 | CG32: =SA!ES29-SA!EG29 -> 800 | CH32: =SA!ET29-SA!EH29 -> 1000 | CI32: =SA!EU29-SA!EI29 -> 500 | CJ32: =SA!EV29-SA!EJ29 -> 2100 | CK32: =SA!EW29-SA!EK29 -> 2700 | CL32: =SA!EX29-SA!EL29 -> 1400 | CM32: =SA!EY29-SA!EM29 -> 900 | CN32: =SA!EZ29-SA!EN29 -> 300 | CO32: =SA!FA29-SA!EO29 -> 100 | CP32: =SA!FB29-SA!EP29 -> 800 | CQ32: =SA!FC29-SA!EQ29 -> -100 | CR32: =SA!FD29-SA!ER29 -> -200 | CS32: =SA!FE29-SA!ES29 -> 100 | CT32: =SA!FF29-SA!ET29 -> 300 | CU32: =SA!FG29-SA!EU29 -> 500 | CV32: =SA!FH29-SA!EV29 -> -900 | CW32: =SA!FI29-SA!EW29 -> -3600 | CX32: =SA!FJ29-SA!EX29 -> 700 | CY32: =SA!FK29-SA!EY29 -> 400 | CZ32: =SA!FL29-SA!EZ29 -> 300 | DA32: =SA!FM29-SA!FA29 -> 800 | DB32: =SA!FN29-SA!FB29 -> 400 | DC32: =SA!FO29-SA!FC29 -> 800 | DD32: =SA!FP29-SA!FD29 -> 1300 | DE32: =SA!FQ29-SA!FE29 -> 1500 | DF32: =SA!FR29-SA!FF29 -> 700 | DG32: =SA!FS29-SA!FG29 -> 1000 | DH32: =SA!FT29-SA!FH29 -> 900 | DI32: =SA!FU29-SA!FI29 -> 1600 | DJ32: =SA!FV29-SA!FJ29 -> 200 | DK32: =SA!FW29-SA!FK29 -> 700 | DL32: =SA!FX29-SA!FL29 -> 1100 | DM32: =SA!FY29-SA!FM29 -> 600 | DN32: =SA!FZ29-SA!FN29 -> 300 | DO32: =SA!GA29-SA!FO29 -> 300 | DP32: =SA!GB29-SA!FP29 -> 600 | DQ32: =SA!GC29-SA!FQ29 -> 400 | DR32: =SA!GD29-SA!FR29 -> 1000 | DS32: =SA!GE29-SA!FS29 -> 500 | DT32: =SA!GF29-SA!FT29 -> 1200 | DU32: =SA!GG29-SA!FU29 -> 2300 | DV32: =SA!GH29-SA!FV29 -> 1400 | DW32: =SA!GI29-SA!FW29 -> 1500 | DX32: =SA!GJ29-SA!FX29 -> 200 | DY32: =SA!GK29-SA!FY29 -> 1100 | DZ32: =SA!GL29-SA!FZ29 -> 1300 | EA32: =SA!GM29-SA!GA29 -> 2100 | EB32: =SA!GN29-SA!GB29 -> 2300 | EC32: =SA!GO29-SA!GC29 -> 1300 | ED32: =SA!GP29-SA!GD29 -> 1500 | EE32: =SA!GQ29-SA!GE29 -> 2100 | EF32: =SA!GR29-SA!GF29 -> 1800 | EG32: =SA!GS29-SA!GG29 -> 1800 | EH32: =SA!GT29-SA!GH29 -> 1700 | EI32: =SA!GU29-SA!GI29 -> 1200 | EJ32: =SA!GV29-SA!GJ29 -> 2700 | EK32: =SA!GW29-SA!GK29 -> 2200 | EL32: =SA!GX29-SA!GL29 -> 2100 | EM32: =SA!GY29-SA!GM29 -> 1500 | EN32: =SA!GZ29-SA!GN29 -> 400 | EO32: =SA!HA29-SA!GO29 -> 700 | EP32: =SA!HB29-SA!GP29 -> 2100 | EQ32: =SA!HC29-SA!GQ29 -> 1400 | ER32: =SA!HD29-SA!GR29 -> 1300 | ES32: =SA!HE29-SA!GS29 -> 900 | ET32: =SA!HF29-SA!GT29 -> 700 | EU32: =SA!HG29-SA!GU29 -> 1800 | EV32: =SA!HH29-SA!GV29 -> 700 | EW32: =SA!HI29-SA!GW29 -> 700 | EX32: =SA!HJ29-SA!GX29 -> -200 | EY32: =SA!HK29-SA!GY29 -> 2500 | EZ32: =SA!HL29-SA!GZ29 -> 2900 | FA32: =SA!HM29-SA!HA29 -> 3500 | FB32: =SA!HN29-SA!HB29 -> 800 | FC32: =SA!HO29-SA!HC29 -> 1800 | FD32: =SA!HP29-SA!HD29 -> 1100 | FE32: =SA!HQ29-SA!HE29 -> -400 | FF32: =SA!HR29-SA!HF29 -> -400 | FG32: =SA!HS29-SA!HG29 -> -800 | FH32: =SA!HT29-SA!HH29 -> 100 | FI32: =SA!HU29-SA!HI29 -> -300 | FJ32: =SA!HV29-SA!HJ29 -> 100 | FK32: =SA!HW29-SA!HK29 -> -1000 | FL32: =SA!HX29-SA!HL29 -> 600 | FM32: =SA!HY29-SA!HM29 -> 0 | FN32: =SA!HZ29-SA!HN29 -> 5500 | FO32: =SA!IA29-SA!HO29 -> 6300 | FP32: =SA!IB29-SA!HP29 -> 4000 | FQ32: =SA!IC29-SA!HQ29 -> 5100 | FR32: =SA!ID29-SA!HR29 -> 4400 | FS32: =SA!IE29-SA!HS29 -> 4500 | FT32: =SA!IF29-SA!HT29 -> 5400 | FU32: =SA!IG29-SA!HU29 -> 5200 | FV32: =SA!IH29-SA!HV29 -> 6000 | FW32: =SA!II29-SA!HW29 -> 4700 | FX32: =SA!IJ29-SA!HX29 -> 3000 | FY32: =SA!IK29-SA!HY29 -> 3900 | FZ32: =SA!IL29-SA!HZ29 -> -47400 | GA32: 6798.785 | GB32: =COUNTIF(EY32:FY32, ">" &GA32) -> 0 | GD32: Arts, Entertainment, and Recreation | GE32: -3600 | GF32: -500 | GG32: 100 | GH32: 400 | GI32: 600 | GJ32: 900 | GK32: 1500 | GL32: 5500 | GM32: 1082.405901
A33: Accommodation and Food Services | B33: =SA!BN30-SA!BB30 -> 3700 | C33: =SA!BO30-SA!BC30 -> 5400 | D33: =SA!BP30-SA!BD30 -> 5400 | E33: =SA!BQ30-SA!BE30 -> 7000 | F33: =SA!BR30-SA!BF30 -> 5200 | G33: =SA!BS30-SA!BG30 -> 5300 | H33: =SA!BT30-SA!BH30 -> 2900 | I33: =SA!BU30-SA!BI30 -> 3200 | J33: =SA!BV30-SA!BJ30 -> 3800 | K33: =SA!BW30-SA!BK30 -> 2000 | L33: =SA!BX30-SA!BL30 -> 3900 | M33: =SA!BY30-SA!BM30 -> 3300 | N33: =SA!BZ30-SA!BN30 -> 5400 | O33: =SA!CA30-SA!BO30 -> 5100 | P33: =SA!CB30-SA!BP30 -> 5200 | Q33: =SA!CC30-SA!BQ30 -> 2100 | R33: =SA!CD30-SA!BR30 -> 2300 | S33: =SA!CE30-SA!BS30 -> 3600 | T33: =SA!CF30-SA!BT30 -> 3700 | U33: =SA!CG30-SA!BU30 -> 3400 | V33: =SA!CH30-SA!BV30 -> 2700 | W33: =SA!CI30-SA!BW30 -> 5000 | X33: =SA!CJ30-SA!BX30 -> 3700 | Y33: =SA!CK30-SA!BY30 -> 4600 | Z33: =SA!CL30-SA!BZ30 -> 3400 | AA33: =SA!CM30-SA!CA30 -> 2800 | AB33: =SA!CN30-SA!CB30 -> 1900 | AC33: =SA!CO30-SA!CC30 -> 2000 | AD33: =SA!CP30-SA!CD30 -> 2600 | AE33: =SA!CQ30-SA!CE30 -> 2400 | AF33: =SA!CR30-SA!CF30 -> 900 | AG33: =SA!CS30-SA!CG30 -> 1400 | AH33: =SA!CT30-SA!CH30 -> 0 | AI33: =SA!CU30-SA!CI30 -> 300 | AJ33: =SA!CV30-SA!CJ30 -> 700 | AK33: =SA!CW30-SA!CK30 -> -400 | AL33: =SA!CX30-SA!CL30 -> -1400 | AM33: =SA!CY30-SA!CM30 -> -1900 | AN33: =SA!CZ30-SA!CN30 -> -1700 | AO33: =SA!DA30-SA!CO30 -> -1100 | AP33: =SA!DB30-SA!CP30 -> -1300 | AQ33: =SA!DC30-SA!CQ30 -> -2400 | AR33: =SA!DD30-SA!CR30 -> -1800 | AS33: =SA!DE30-SA!CS30 -> -3200 | AT33: =SA!DF30-SA!CT30 -> -1400 | AU33: =SA!DG30-SA!CU30 -> -3200 | AV33: =SA!DH30-SA!CV30 -> -3500 | AW33: =SA!DI30-SA!CW30 -> -4300 | AX33: =SA!DJ30-SA!CX30 -> -5600 | AY33: =SA!DK30-SA!CY30 -> -4300 | AZ33: =SA!DL30-SA!CZ30 -> -5400 | BA33: =SA!DM30-SA!DA30 -> -6200 | BB33: =SA!DN30-SA!DB30 -> -4500 | BC33: =SA!DO30-SA!DC30 -> -4900 | BD33: =SA!DP30-SA!DD30 -> -5800 | BE33: =SA!DQ30-SA!DE30 -> -5900 | BF33: =SA!DR30-SA!DF30 -> -6200 | BG33: =SA!DS30-SA!DG30 -> -6400 | BH33: =SA!DT30-SA!DH30 -> -6900 | BI33: =SA!DU30-SA!DI30 -> -5600 | BJ33: =SA!DV30-SA!DJ30 -> -3100 | BK33: =SA!DW30-SA!DK30 -> -4700 | BL33: =SA!DX30-SA!DL30 -> -4300 | BM33: =SA!DY30-SA!DM30 -> -2400 | BN33: =SA!DZ30-SA!DN30 -> -3300 | BO33: =SA!EA30-SA!DO30 -> -2100 | BP33: =SA!EB30-SA!DP30 -> -900 | BQ33: =SA!EC30-SA!DQ30 -> 500 | BR33: =SA!ED30-SA!DR30 -> 400 | BS33: =SA!EE30-SA!DS30 -> 1800 | BT33: =SA!EF30-SA!DT30 -> 2400 | BU33: =SA!EG30-SA!DU30 -> 2100 | BV33: =SA!EH30-SA!DV30 -> 1100 | BW33: =SA!EI30-SA!DW30 -> 900 | BX33: =SA!EJ30-SA!DX30 -> 1400 | BY33: =SA!EK30-SA!DY30 -> 700 | BZ33: =SA!EL30-SA!DZ30 -> 800 | CA33: =SA!EM30-SA!EA30 -> 600 | CB33: =SA!EN30-SA!EB30 -> 600 | CC33: =SA!EO30-SA!EC30 -> 800 | CD33: =SA!EP30-SA!ED30 -> 1000 | CE33: =SA!EQ30-SA!EE30 -> 200 | CF33: =SA!ER30-SA!EF30 -> -400 | CG33: =SA!ES30-SA!EG30 -> -700 | CH33: =SA!ET30-SA!EH30 -> 900 | CI33: =SA!EU30-SA!EI30 -> 2800 | CJ33: =SA!EV30-SA!EJ30 -> 3700 | CK33: =SA!EW30-SA!EK30 -> 3700 | CL33: =SA!EX30-SA!EL30 -> 3700 | CM33: =SA!EY30-SA!EM30 -> 4800 | CN33: =SA!EZ30-SA!EN30 -> 4400 | CO33: =SA!FA30-SA!EO30 -> 3400 | CP33: =SA!FB30-SA!EP30 -> 4000 | CQ33: =SA!FC30-SA!EQ30 -> 3200 | CR33: =SA!FD30-SA!ER30 -> 4100 | CS33: =SA!FE30-SA!ES30 -> 5300 | CT33: =SA!FF30-SA!ET30 -> 4300 | CU33: =SA!FG30-SA!EU30 -> 3900 | CV33: =SA!FH30-SA!EV30 -> 3400 | CW33: =SA!FI30-SA!EW30 -> 2700 | CX33: =SA!FJ30-SA!EX30 -> 3300 | CY33: =SA!FK30-SA!EY30 -> 2500 | CZ33: =SA!FL30-SA!EZ30 -> 3700 | DA33: =SA!FM30-SA!FA30 -> 5100 | DB33: =SA!FN30-SA!FB30 -> 4800 | DC33: =SA!FO30-SA!FC30 -> 5400 | DD33: =SA!FP30-SA!FD30 -> 4800 | DE33: =SA!FQ30-SA!FE30 -> 3900 | DF33: =SA!FR30-SA!FF30 -> 3400 | DG33: =SA!FS30-SA!FG30 -> 2900 | DH33: =SA!FT30-SA!FH30 -> 2500 | DI33: =SA!FU30-SA!FI30 -> 3900 | DJ33: =SA!FV30-SA!FJ30 -> 2900 | DK33: =SA!FW30-SA!FK30 -> 3600 | DL33: =SA!FX30-SA!FL30 -> 600 | DM33: =SA!FY30-SA!FM30 -> 600 | DN33: =SA!FZ30-SA!FN30 -> 500 | DO33: =SA!GA30-SA!FO30 -> 1200 | DP33: =SA!GB30-SA!FP30 -> 1700 | DQ33: =SA!GC30-SA!FQ30 -> 2300 | DR33: =SA!GD30-SA!FR30 -> 3700 | DS33: =SA!GE30-SA!FS30 -> 3900 | DT33: =SA!GF30-SA!FT30 -> 5000 | DU33: =SA!GG30-SA!FU30 -> 4200 | DV33: =SA!GH30-SA!FV30 -> 4900 | DW33: =SA!GI30-SA!FW30 -> 4200 | DX33: =SA!GJ30-SA!FX30 -> 6800 | DY33: =SA!GK30-SA!FY30 -> 6000 | DZ33: =SA!GL30-SA!FZ30 -> 6200 | EA33: =SA!GM30-SA!GA30 -> 6400 | EB33: =SA!GN30-SA!GB30 -> 7000 | EC33: =SA!GO30-SA!GC30 -> 7100 | ED33: =SA!GP30-SA!GD30 -> 5700 | EE33: =SA!GQ30-SA!GE30 -> 6000 | EF33: =SA!GR30-SA!GF30 -> 4400 | EG33: =SA!GS30-SA!GG30 -> 4300 | EH33: =SA!GT30-SA!GH30 -> 3600 | EI33: =SA!GU30-SA!GI30 -> 2500 | EJ33: =SA!GV30-SA!GJ30 -> 3100 | EK33: =SA!GW30-SA!GK30 -> 3400 | EL33: =SA!GX30-SA!GL30 -> 3400 | EM33: =SA!GY30-SA!GM30 -> 3100 | EN33: =SA!GZ30-SA!GN30 -> 2000 | EO33: =SA!HA30-SA!GO30 -> 1900 | EP33: =SA!HB30-SA!GP30 -> 3100 | EQ33: =SA!HC30-SA!GQ30 -> 3500 | ER33: =SA!HD30-SA!GR30 -> 4700 | ES33: =SA!HE30-SA!GS30 -> 3100 | ET33: =SA!HF30-SA!GT30 -> 2600 | EU33: =SA!HG30-SA!GU30 -> 5000 | EV33: =SA!HH30-SA!GV30 -> 3700 | EW33: =SA!HI30-SA!GW30 -> 2900 | EX33: =SA!HJ30-SA!GX30 -> 2200 | EY33: =SA!HK30-SA!GY30 -> -300 | EZ33: =SA!HL30-SA!GZ30 -> 1200 | FA33: =SA!HM30-SA!HA30 -> 2400 | FB33: =SA!HN30-SA!HB30 -> 2800 | FC33: =SA!HO30-SA!HC30 -> 200 | FD33: =SA!HP30-SA!HD30 -> 200 | FE33: =SA!HQ30-SA!HE30 -> 2200 | FF33: =SA!HR30-SA!HF30 -> 2900 | FG33: =SA!HS30-SA!HG30 -> 5200 | FH33: =SA!HT30-SA!HH30 -> 6700 | FI33: =SA!HU30-SA!HI30 -> 4600 | FJ33: =SA!HV30-SA!HJ30 -> 4700 | FK33: =SA!HW30-SA!HK30 -> 5800 | FL33: =SA!HX30-SA!HL30 -> 8400 | FM33: =SA!HY30-SA!HM30 -> 11900 | FN33: =SA!HZ30-SA!HN30 -> 600 | FO33: =SA!IA30-SA!HO30 -> 1200 | FP33: =SA!IB30-SA!HP30 -> -200 | FQ33: =SA!IC30-SA!HQ30 -> -1300 | FR33: =SA!ID30-SA!HR30 -> -500 | FS33: =SA!IE30-SA!HS30 -> -3600 | FT33: =SA!IF30-SA!HT30 -> -5200 | FU33: =SA!IG30-SA!HU30 -> -5000 | FV33: =SA!IH30-SA!HV30 -> -5000 | FW33: =SA!II30-SA!HW30 -> -3800 | FX33: =SA!IJ30-SA!HX30 -> -7200 | FY33: =SA!IK30-SA!HY30 -> -9200 | FZ33: =SA!IL30-SA!HZ30 -> -242300 | GA33: 9399.53 | GB33: =COUNTIF(EY33:FY33, ">" &GA33) -> 1 | GD33: Accommodation and Food Services | GE33: -6900 | GF33: -1750 | GG33: 800 | GH33: 2400 | GI33: 3100 | GJ33: 3700 | GK33: 5000 | GL33: 11900 | GM33: 3340.39491
A34: Other Services | B34: =SA!BN31-SA!BB31 -> 1700 | C34: =SA!BO31-SA!BC31 -> 1600 | D34: =SA!BP31-SA!BD31 -> 1400 | E34: =SA!BQ31-SA!BE31 -> 1500 | F34: =SA!BR31-SA!BF31 -> 1300 | G34: =SA!BS31-SA!BG31 -> 600 | H34: =SA!BT31-SA!BH31 -> 700 | I34: =SA!BU31-SA!BI31 -> 500 | J34: =SA!BV31-SA!BJ31 -> 500 | K34: =SA!BW31-SA!BK31 -> -1200 | L34: =SA!BX31-SA!BL31 -> 0 | M34: =SA!BY31-SA!BM31 -> 700 | N34: =SA!BZ31-SA!BN31 -> 100 | O34: =SA!CA31-SA!BO31 -> -300 | P34: =SA!CB31-SA!BP31 -> -200 | Q34: =SA!CC31-SA!BQ31 -> -500 | R34: =SA!CD31-SA!BR31 -> -400 | S34: =SA!CE31-SA!BS31 -> 100 | T34: =SA!CF31-SA!BT31 -> 0 | U34: =SA!CG31-SA!BU31 -> -100 | V34: =SA!CH31-SA!BV31 -> 100 | W34: =SA!CI31-SA!BW31 -> 200 | X34: =SA!CJ31-SA!BX31 -> 400 | Y34: =SA!CK31-SA!BY31 -> 600 | Z34: =SA!CL31-SA!BZ31 -> 1200 | AA34: =SA!CM31-SA!CA31 -> 1500 | AB34: =SA!CN31-SA!CB31 -> 1500 | AC34: =SA!CO31-SA!CC31 -> 1800 | AD34: =SA!CP31-SA!CD31 -> 1900 | AE34: =SA!CQ31-SA!CE31 -> 1800 | AF34: =SA!CR31-SA!CF31 -> 1800 | AG34: =SA!CS31-SA!CG31 -> 1500 | AH34: =SA!CT31-SA!CH31 -> 1000 | AI34: =SA!CU31-SA!CI31 -> 1700 | AJ34: =SA!CV31-SA!CJ31 -> 1700 | AK34: =SA!CW31-SA!CK31 -> 1500 | AL34: =SA!CX31-SA!CL31 -> 900 | AM34: =SA!CY31-SA!CM31 -> 900 | AN34: =SA!CZ31-SA!CN31 -> 900 | AO34: =SA!DA31-SA!CO31 -> 1100 | AP34: =SA!DB31-SA!CP31 -> 1200 | AQ34: =SA!DC31-SA!CQ31 -> 1200 | AR34: =SA!DD31-SA!CR31 -> 1200 | AS34: =SA!DE31-SA!CS31 -> 1700 | AT34: =SA!DF31-SA!CT31 -> 1900 | AU34: =SA!DG31-SA!CU31 -> 3300 | AV34: =SA!DH31-SA!CV31 -> 2100 | AW34: =SA!DI31-SA!CW31 -> 1400 | AX34: =SA!DJ31-SA!CX31 -> 1200 | AY34: =SA!DK31-SA!CY31 -> 900 | AZ34: =SA!DL31-SA!CZ31 -> 800 | BA34: =SA!DM31-SA!DA31 -> -300 | BB34: =SA!DN31-SA!DB31 -> -600 | BC34: =SA!DO31-SA!DC31 -> -800 | BD34: =SA!DP31-SA!DD31 -> -1200 | BE34: =SA!DQ31-SA!DE31 -> -1600 | BF34: =SA!DR31-SA!DF31 -> -1500 | BG34: =SA!DS31-SA!DG31 -> -3700 | BH34: =SA!DT31-SA!DH31 -> -2600 | BI34: =SA!DU31-SA!DI31 -> -2200 | BJ34: =SA!DV31-SA!DJ31 -> -2300 | BK34: =SA!DW31-SA!DK31 -> -2100 | BL34: =SA!DX31-SA!DL31 -> -2000 | BM34: =SA!DY31-SA!DM31 -> -1100 | BN34: =SA!DZ31-SA!DN31 -> -1400 | BO34: =SA!EA31-SA!DO31 -> -1400 | BP34: =SA!EB31-SA!DP31 -> -900 | BQ34: =SA!EC31-SA!DQ31 -> -700 | BR34: =SA!ED31-SA!DR31 -> -800 | BS34: =SA!EE31-SA!DS31 -> 0 | BT34: =SA!EF31-SA!DT31 -> -500 | BU34: =SA!EG31-SA!DU31 -> -400 | BV34: =SA!EH31-SA!DV31 -> 200 | BW34: =SA!EI31-SA!DW31 -> 100 | BX34: =SA!EJ31-SA!DX31 -> 100 | BY34: =SA!EK31-SA!DY31 -> 0 | BZ34: =SA!EL31-SA!DZ31 -> 300 | CA34: =SA!EM31-SA!EA31 -> 200 | CB34: =SA!EN31-SA!EB31 -> 600 | CC34: =SA!EO31-SA!EC31 -> 400 | CD34: =SA!EP31-SA!ED31 -> 400 | CE34: =SA!EQ31-SA!EE31 -> -400 | CF34: =SA!ER31-SA!EF31 -> 200 | CG34: =SA!ES31-SA!EG31 -> 700 | CH34: =SA!ET31-SA!EH31 -> 500 | CI34: =SA!EU31-SA!EI31 -> 900 | CJ34: =SA!EV31-SA!EJ31 -> 600 | CK34: =SA!EW31-SA!EK31 -> 600 | CL34: =SA!EX31-SA!EL31 -> 500 | CM34: =SA!EY31-SA!EM31 -> 1900 | CN34: =SA!EZ31-SA!EN31 -> 300 | CO34: =SA!FA31-SA!EO31 -> 500 | CP34: =SA!FB31-SA!EP31 -> 500 | CQ34: =SA!FC31-SA!EQ31 -> 500 | CR34: =SA!FD31-SA!ER31 -> 500 | CS34: =SA!FE31-SA!ES31 -> 0 | CT34: =SA!FF31-SA!ET31 -> -200 | CU34: =SA!FG31-SA!EU31 -> -600 | CV34: =SA!FH31-SA!EV31 -> -300 | CW34: =SA!FI31-SA!EW31 -> -500 | CX34: =SA!FJ31-SA!EX31 -> -100 | CY34: =SA!FK31-SA!EY31 -> -900 | CZ34: =SA!FL31-SA!EZ31 -> -200 | DA34: =SA!FM31-SA!FA31 -> 100 | DB34: =SA!FN31-SA!FB31 -> 1100 | DC34: =SA!FO31-SA!FC31 -> 800 | DD34: =SA!FP31-SA!FD31 -> 1600 | DE34: =SA!FQ31-SA!FE31 -> 2100 | DF34: =SA!FR31-SA!FF31 -> 2900 | DG34: =SA!FS31-SA!FG31 -> 3700 | DH34: =SA!FT31-SA!FH31 -> 3800 | DI34: =SA!FU31-SA!FI31 -> 4600 | DJ34: =SA!FV31-SA!FJ31 -> 4700 | DK34: =SA!FW31-SA!FK31 -> 5100 | DL34: =SA!FX31-SA!FL31 -> 6200 | DM34: =SA!FY31-SA!FM31 -> 6800 | DN34: =SA!FZ31-SA!FN31 -> 6200 | DO34: =SA!GA31-SA!FO31 -> 6800 | DP34: =SA!GB31-SA!FP31 -> 6500 | DQ34: =SA!GC31-SA!FQ31 -> 6300 | DR34: =SA!GD31-SA!FR31 -> 6800 | DS34: =SA!GE31-SA!FS31 -> 6500 | DT34: =SA!GF31-SA!FT31 -> 6600 | DU34: =SA!GG31-SA!FU31 -> 6100 | DV34: =SA!GH31-SA!FV31 -> 6100 | DW34: =SA!GI31-SA!FW31 -> 5200 | DX34: =SA!GJ31-SA!FX31 -> 4600 | DY34: =SA!GK31-SA!FY31 -> 3500 | DZ34: =SA!GL31-SA!FZ31 -> 3200 | EA34: =SA!GM31-SA!GA31 -> 3200 | EB34: =SA!GN31-SA!GB31 -> 2700 | EC34: =SA!GO31-SA!GC31 -> 2900 | ED34: =SA!GP31-SA!GD31 -> 1800 | EE34: =SA!GQ31-SA!GE31 -> 1300 | EF34: =SA!GR31-SA!GF31 -> 1100 | EG34: =SA!GS31-SA!GG31 -> 1600 | EH34: =SA!GT31-SA!GH31 -> 1100 | EI34: =SA!GU31-SA!GI31 -> 1000 | EJ34: =SA!GV31-SA!GJ31 -> 1900 | EK34: =SA!GW31-SA!GK31 -> 2200 | EL34: =SA!GX31-SA!GL31 -> 2600 | EM34: =SA!GY31-SA!GM31 -> 2200 | EN34: =SA!GZ31-SA!GN31 -> 2500 | EO34: =SA!HA31-SA!GO31 -> 1800 | EP34: =SA!HB31-SA!GP31 -> 1700 | EQ34: =SA!HC31-SA!GQ31 -> 2200 | ER34: =SA!HD31-SA!GR31 -> 2300 | ES34: =SA!HE31-SA!GS31 -> 1300 | ET34: =SA!HF31-SA!GT31 -> 1200 | EU34: =SA!HG31-SA!GU31 -> 1600 | EV34: =SA!HH31-SA!GV31 -> 100 | EW34: =SA!HI31-SA!GW31 -> 200 | EX34: =SA!HJ31-SA!GX31 -> -200 | EY34: =SA!HK31-SA!GY31 -> 1600 | EZ34: =SA!HL31-SA!GZ31 -> 400 | FA34: =SA!HM31-SA!HA31 -> 300 | FB34: =SA!HN31-SA!HB31 -> 3100 | FC34: =SA!HO31-SA!HC31 -> 1600 | FD34: =SA!HP31-SA!HD31 -> 1500 | FE34: =SA!HQ31-SA!HE31 -> 700 | FF34: =SA!HR31-SA!HF31 -> 1100 | FG34: =SA!HS31-SA!HG31 -> 1100 | FH34: =SA!HT31-SA!HH31 -> 1300 | FI34: =SA!HU31-SA!HI31 -> 800 | FJ34: =SA!HV31-SA!HJ31 -> 800 | FK34: =SA!HW31-SA!HK31 -> -500 | FL34: =SA!HX31-SA!HL31 -> 700 | FM34: =SA!HY31-SA!HM31 -> 800 | FN34: =SA!HZ31-SA!HN31 -> 600 | FO34: =SA!IA31-SA!HO31 -> 1400 | FP34: =SA!IB31-SA!HP31 -> 1900 | FQ34: =SA!IC31-SA!HQ31 -> 2600 | FR34: =SA!ID31-SA!HR31 -> 2900 | FS34: =SA!IE31-SA!HS31 -> 1800 | FT34: =SA!IF31-SA!HT31 -> 2800 | FU34: =SA!IG31-SA!HU31 -> 2900 | FV34: =SA!IH31-SA!HV31 -> 3400 | FW34: =SA!II31-SA!HW31 -> 2400 | FX34: =SA!IJ31-SA!HX31 -> 700 | FY34: =SA!IK31-SA!HY31 -> 2500 | FZ34: =SA!IL31-SA!HZ31 -> -154300 | GA34: 7644.315 | GB34: =COUNTIF(EY34:FY34, ">" &GA34) -> 0 | GD34: Other Services | GE34: -3700 | GF34: -400 | GG34: 200 | GH34: 700 | GI34: 1100 | GJ34: 1600 | GK34: 2800 | GL34: 6800 | GM34: 1969.948592
A35: Government | B35: =SA!BN32-SA!BB32 -> 8300 | C35: =SA!BO32-SA!BC32 -> 4500 | D35: =SA!BP32-SA!BD32 -> 2100 | E35: =SA!BQ32-SA!BE32 -> 4700 | F35: =SA!BR32-SA!BF32 -> 3400 | G35: =SA!BS32-SA!BG32 -> -700 | H35: =SA!BT32-SA!BH32 -> 1300 | I35: =SA!BU32-SA!BI32 -> -100 | J35: =SA!BV32-SA!BJ32 -> 8000 | K35: =SA!BW32-SA!BK32 -> 2500 | L35: =SA!BX32-SA!BL32 -> -700 | M35: =SA!BY32-SA!BM32 -> 4900 | N35: =SA!BZ32-SA!BN32 -> -1000 | O35: =SA!CA32-SA!BO32 -> -1600 | P35: =SA!CB32-SA!BP32 -> 1300 | Q35: =SA!CC32-SA!BQ32 -> 800 | R35: =SA!CD32-SA!BR32 -> -400 | S35: =SA!CE32-SA!BS32 -> 4100 | T35: =SA!CF32-SA!BT32 -> 1600 | U35: =SA!CG32-SA!BU32 -> 2000 | V35: =SA!CH32-SA!BV32 -> -300 | W35: =SA!CI32-SA!BW32 -> -1700 | X35: =SA!CJ32-SA!BX32 -> 900 | Y35: =SA!CK32-SA!BY32 -> -2300 | Z35: =SA!CL32-SA!BZ32 -> -1500 | AA35: =SA!CM32-SA!CA32 -> -1600 | AB35: =SA!CN32-SA!CB32 -> -1700 | AC35: =SA!CO32-SA!CC32 -> -400 | AD35: =SA!CP32-SA!CD32 -> 2100 | AE35: =SA!CQ32-SA!CE32 -> 3600 | AF35: =SA!CR32-SA!CF32 -> 1300 | AG35: =SA!CS32-SA!CG32 -> 2500 | AH35: =SA!CT32-SA!CH32 -> 3100 | AI35: =SA!CU32-SA!CI32 -> 1400 | AJ35: =SA!CV32-SA!CJ32 -> -1000 | AK35: =SA!CW32-SA!CK32 -> 3100 | AL35: =SA!CX32-SA!CL32 -> 6500 | AM35: =SA!CY32-SA!CM32 -> 6500 | AN35: =SA!CZ32-SA!CN32 -> 4600 | AO35: =SA!DA32-SA!CO32 -> 2100 | AP35: =SA!DB32-SA!CP32 -> 4100 | AQ35: =SA!DC32-SA!CQ32 -> -1000 | AR35: =SA!DD32-SA!CR32 -> 4900 | AS35: =SA!DE32-SA!CS32 -> 2300 | AT35: =SA!DF32-SA!CT32 -> 10500 | AU35: =SA!DG32-SA!CU32 -> 9200 | AV35: =SA!DH32-SA!CV32 -> 14500 | AW35: =SA!DI32-SA!CW32 -> 7300 | AX35: =SA!DJ32-SA!CX32 -> 2100 | AY35: =SA!DK32-SA!CY32 -> 3900 | AZ35: =SA!DL32-SA!CZ32 -> 4600 | BA35: =SA!DM32-SA!DA32 -> 5200 | BB35: =SA!DN32-SA!DB32 -> 3800 | BC35: =SA!DO32-SA!DC32 -> 1200 | BD35: =SA!DP32-SA!DD32 -> -700 | BE35: =SA!DQ32-SA!DE32 -> -2000 | BF35: =SA!DR32-SA!DF32 -> -14600 | BG35: =SA!DS32-SA!DG32 -> -5000 | BH35: =SA!DT32-SA!DH32 -> -10200 | BI35: =SA!DU32-SA!DI32 -> -4600 | BJ35: =SA!DV32-SA!DJ32 -> -3500 | BK35: =SA!DW32-SA!DK32 -> -6100 | BL35: =SA!DX32-SA!DL32 -> -4800 | BM35: =SA!DY32-SA!DM32 -> -700 | BN35: =SA!DZ32-SA!DN32 -> 1900 | BO35: =SA!EA32-SA!DO32 -> 2200 | BP35: =SA!EB32-SA!DP32 -> -2100 | BQ35: =SA!EC32-SA!DQ32 -> -1300 | BR35: =SA!ED32-SA!DR32 -> 1200 | BS35: =SA!EE32-SA!DS32 -> -1200 | BT35: =SA!EF32-SA!DT32 -> 1500 | BU35: =SA!EG32-SA!DU32 -> -5500 | BV35: =SA!EH32-SA!DV32 -> -2100 | BW35: =SA!EI32-SA!DW32 -> 1300 | BX35: =SA!EJ32-SA!DX32 -> 500 | BY35: =SA!EK32-SA!DY32 -> -5600 | BZ35: =SA!EL32-SA!DZ32 -> -8200 | CA35: =SA!EM32-SA!EA32 -> -8300 | CB35: =SA!EN32-SA!EB32 -> -100 | CC35: =SA!EO32-SA!EC32 -> -3400 | CD35: =SA!EP32-SA!ED32 -> -6000 | CE35: =SA!EQ32-SA!EE32 -> -9800 | CF35: =SA!ER32-SA!EF32 -> -13300 | CG35: =SA!ES32-SA!EG32 -> -3800 | CH35: =SA!ET32-SA!EH32 -> -15800 | CI35: =SA!EU32-SA!EI32 -> -14400 | CJ35: =SA!EV32-SA!EJ32 -> -8000 | CK35: =SA!EW32-SA!EK32 -> -1800 | CL35: =SA!EX32-SA!EL32 -> 700 | CM35: =SA!EY32-SA!EM32 -> -1900 | CN35: =SA!EZ32-SA!EN32 -> -9200 | CO35: =SA!FA32-SA!EO32 -> -1200 | CP35: =SA!FB32-SA!EP32 -> -1500 | CQ35: =SA!FC32-SA!EQ32 -> 2600 | CR35: =SA!FD32-SA!ER32 -> 9400 | CS35: =SA!FE32-SA!ES32 -> 300 | CT35: =SA!FF32-SA!ET32 -> -700 | CU35: =SA!FG32-SA!EU32 -> 7700 | CV35: =SA!FH32-SA!EV32 -> -800 | CW35: =SA!FI32-SA!EW32 -> -6500 | CX35: =SA!FJ32-SA!EX32 -> -10200 | CY35: =SA!FK32-SA!EY32 -> -3200 | CZ35: =SA!FL32-SA!EZ32 -> -600 | DA35: =SA!FM32-SA!FA32 -> -4500 | DB35: =SA!FN32-SA!FB32 -> 1500 | DC35: =SA!FO32-SA!FC32 -> 200 | DD35: =SA!FP32-SA!FD32 -> -7700 | DE35: =SA!FQ32-SA!FE32 -> -600 | DF35: =SA!FR32-SA!FF32 -> 10700 | DG35: =SA!FS32-SA!FG32 -> -2400 | DH35: =SA!FT32-SA!FH32 -> -100 | DI35: =SA!FU32-SA!FI32 -> 1900 | DJ35: =SA!FV32-SA!FJ32 -> 2200 | DK35: =SA!FW32-SA!FK32 -> 2200 | DL35: =SA!FX32-SA!FL32 -> 1900 | DM35: =SA!FY32-SA!FM32 -> 8900 | DN35: =SA!FZ32-SA!FN32 -> 900 | DO35: =SA!GA32-SA!FO32 -> 400 | DP35: =SA!GB32-SA!FP32 -> 6900 | DQ35: =SA!GC32-SA!FQ32 -> 300 | DR35: =SA!GD32-SA!FR32 -> -1500 | DS35: =SA!GE32-SA!FS32 -> 1900 | DT35: =SA!GF32-SA!FT32 -> 500 | DU35: =SA!GG32-SA!FU32 -> 1900 | DV35: =SA!GH32-SA!FV32 -> 300 | DW35: =SA!GI32-SA!FW32 -> -900 | DX35: =SA!GJ32-SA!FX32 -> -1500 | DY35: =SA!GK32-SA!FY32 -> -8500 | DZ35: =SA!GL32-SA!FZ32 -> -4600 | EA35: =SA!GM32-SA!GA32 -> -3700 | EB35: =SA!GN32-SA!GB32 -> -12400 | EC35: =SA!GO32-SA!GC32 -> -2200 | ED35: =SA!GP32-SA!GD32 -> 700 | EE35: =SA!GQ32-SA!GE32 -> -800 | EF35: =SA!GR32-SA!GF32 -> -600 | EG35: =SA!GS32-SA!GG32 -> 200 | EH35: =SA!GT32-SA!GH32 -> -1800 | EI35: =SA!GU32-SA!GI32 -> 0 | EJ35: =SA!GV32-SA!GJ32 -> 2300 | EK35: =SA!GW32-SA!GK32 -> 9900 | EL35: =SA!GX32-SA!GL32 -> 2800 | EM35: =SA!GY32-SA!GM32 -> 2100 | EN35: =SA!GZ32-SA!GN32 -> 13100 | EO35: =SA!HA32-SA!GO32 -> 2700 | EP35: =SA!HB32-SA!GP32 -> -1700 | EQ35: =SA!HC32-SA!GQ32 -> -2000 | ER35: =SA!HD32-SA!GR32 -> -4400 | ES35: =SA!HE32-SA!GS32 -> -3900 | ET35: =SA!HF32-SA!GT32 -> 1500 | EU35: =SA!HG32-SA!GU32 -> -3900 | EV35: =SA!HH32-SA!GV32 -> -2700 | EW35: =SA!HI32-SA!GW32 -> -12200 | EX35: =SA!HJ32-SA!GX32 -> -2900 | EY35: =SA!HK32-SA!GY32 -> -2000 | EZ35: =SA!HL32-SA!GZ32 -> -11000 | FA35: =SA!HM32-SA!HA32 -> -5200 | FB35: =SA!HN32-SA!HB32 -> -1500 | FC35: =SA!HO32-SA!HC32 -> 700 | FD35: =SA!HP32-SA!HD32 -> 2200 | FE35: =SA!HQ32-SA!HE32 -> 400 | FF35: =SA!HR32-SA!HF32 -> -1100 | FG35: =SA!HS32-SA!HG32 -> 3100 | FH35: =SA!HT32-SA!HH32 -> 1900 | FI35: =SA!HU32-SA!HI32 -> 8100 | FJ35: =SA!HV32-SA!HJ32 -> 1500 | FK35: =SA!HW32-SA!HK32 -> -1200 | FL35: =SA!HX32-SA!HL32 -> 4900 | FM35: =SA!HY32-SA!HM32 -> 3400 | FN35: =SA!HZ32-SA!HN32 -> -3400 | FO35: =SA!IA32-SA!HO32 -> -7600 | FP35: =SA!IB32-SA!HP32 -> -3500 | FQ35: =SA!IC32-SA!HQ32 -> -4400 | FR35: =SA!ID32-SA!HR32 -> -3800 | FS35: =SA!IE32-SA!HS32 -> -900 | FT35: =SA!IF32-SA!HT32 -> -3600 | FU35: =SA!IG32-SA!HU32 -> -9700 | FV35: =SA!IH32-SA!HV32 -> -4600 | FW35: =SA!II32-SA!HW32 -> -2000 | FX35: =SA!IJ32-SA!HX32 -> -6100 | FY35: =SA!IK32-SA!HY32 -> -5300 | FZ35: =SA!IL32-SA!HZ32 -> -404000 | GA35: n/a | GB35: =COUNTIF(EY35:FY35, ">" &GA35) -> 0 | GD35: Government | GE35: -15800 | GF35: -4600 | GG35: -1700 | GH35: -600 | GI35: 500 | GJ35: 2000 | GK35: 4100 | GL35: 14500 | GM35: 5090.052402
A36: Federal Government | B36: =SA!BN33-SA!BB33 -> -200 | C36: =SA!BO33-SA!BC33 -> -200 | D36: =SA!BP33-SA!BD33 -> -200 | E36: =SA!BQ33-SA!BE33 -> -300 | F36: =SA!BR33-SA!BF33 -> -100 | G36: =SA!BS33-SA!BG33 -> -300 | H36: =SA!BT33-SA!BH33 -> -400 | I36: =SA!BU33-SA!BI33 -> -500 | J36: =SA!BV33-SA!BJ33 -> -300 | K36: =SA!BW33-SA!BK33 -> -500 | L36: =SA!BX33-SA!BL33 -> -500 | M36: =SA!BY33-SA!BM33 -> -300 | N36: =SA!BZ33-SA!BN33 -> -300 | O36: =SA!CA33-SA!BO33 -> -300 | P36: =SA!CB33-SA!BP33 -> 0 | Q36: =SA!CC33-SA!BQ33 -> -100 | R36: =SA!CD33-SA!BR33 -> -200 | S36: =SA!CE33-SA!BS33 -> 100 | T36: =SA!CF33-SA!BT33 -> 100 | U36: =SA!CG33-SA!BU33 -> 0 | V36: =SA!CH33-SA!BV33 -> 100 | W36: =SA!CI33-SA!BW33 -> 100 | X36: =SA!CJ33-SA!BX33 -> 200 | Y36: =SA!CK33-SA!BY33 -> 200 | Z36: =SA!CL33-SA!BZ33 -> 300 | AA36: =SA!CM33-SA!CA33 -> 100 | AB36: =SA!CN33-SA!CB33 -> -100 | AC36: =SA!CO33-SA!CC33 -> -100 | AD36: =SA!CP33-SA!CD33 -> 0 | AE36: =SA!CQ33-SA!CE33 -> 0 | AF36: =SA!CR33-SA!CF33 -> -100 | AG36: =SA!CS33-SA!CG33 -> 100 | AH36: =SA!CT33-SA!CH33 -> -100 | AI36: =SA!CU33-SA!CI33 -> 200 | AJ36: =SA!CV33-SA!CJ33 -> 0 | AK36: =SA!CW33-SA!CK33 -> -200 | AL36: =SA!CX33-SA!CL33 -> 0 | AM36: =SA!CY33-SA!CM33 -> 300 | AN36: =SA!CZ33-SA!CN33 -> 300 | AO36: =SA!DA33-SA!CO33 -> 300 | AP36: =SA!DB33-SA!CP33 -> 400 | AQ36: =SA!DC33-SA!CQ33 -> 300 | AR36: =SA!DD33-SA!CR33 -> 600 | AS36: =SA!DE33-SA!CS33 -> 500 | AT36: =SA!DF33-SA!CT33 -> 600 | AU36: =SA!DG33-SA!CU33 -> 200 | AV36: =SA!DH33-SA!CV33 -> 400 | AW36: =SA!DI33-SA!CW33 -> 700 | AX36: =SA!DJ33-SA!CX33 -> 500 | AY36: =SA!DK33-SA!CY33 -> 400 | AZ36: =SA!DL33-SA!CZ33 -> 200 | BA36: =SA!DM33-SA!DA33 -> 2400 | BB36: =SA!DN33-SA!DB33 -> 2300 | BC36: =SA!DO33-SA!DC33 -> 200 | BD36: =SA!DP33-SA!DD33 -> -200 | BE36: =SA!DQ33-SA!DE33 -> -100 | BF36: =SA!DR33-SA!DF33 -> -200 | BG36: =SA!DS33-SA!DG33 -> 200 | BH36: =SA!DT33-SA!DH33 -> 0 | BI36: =SA!DU33-SA!DI33 -> -100 | BJ36: =SA!DV33-SA!DJ33 -> -300 | BK36: =SA!DW33-SA!DK33 -> -300 | BL36: =SA!DX33-SA!DL33 -> 600 | BM36: =SA!DY33-SA!DM33 -> 1600 | BN36: =SA!DZ33-SA!DN33 -> 6000 | BO36: =SA!EA33-SA!DO33 -> 4500 | BP36: =SA!EB33-SA!DP33 -> 2800 | BQ36: =SA!EC33-SA!DQ33 -> 800 | BR36: =SA!ED33-SA!DR33 -> 100 | BS36: =SA!EE33-SA!DS33 -> -200 | BT36: =SA!EF33-SA!DT33 -> -100 | BU36: =SA!EG33-SA!DU33 -> -200 | BV36: =SA!EH33-SA!DV33 -> -100 | BW36: =SA!EI33-SA!DW33 -> -200 | BX36: =SA!EJ33-SA!DX33 -> -800 | BY36: =SA!EK33-SA!DY33 -> -4000 | BZ36: =SA!EL33-SA!DZ33 -> -8500 | CA36: =SA!EM33-SA!EA33 -> -4900 | CB36: =SA!EN33-SA!EB33 -> -2900 | CC36: =SA!EO33-SA!EC33 -> -1100 | CD36: =SA!EP33-SA!ED33 -> -300 | CE36: =SA!EQ33-SA!EE33 -> -200 | CF36: =SA!ER33-SA!EF33 -> -500 | CG36: =SA!ES33-SA!EG33 -> -400 | CH36: =SA!ET33-SA!EH33 -> -500 | CI36: =SA!EU33-SA!EI33 -> -400 | CJ36: =SA!EV33-SA!EJ33 -> -400 | CK36: =SA!EW33-SA!EK33 -> -500 | CL36: =SA!EX33-SA!EL33 -> -400 | CM36: =SA!EY33-SA!EM33 -> -400 | CN36: =SA!EZ33-SA!EN33 -> -400 | CO36: =SA!FA33-SA!EO33 -> -300 | CP36: =SA!FB33-SA!EP33 -> -400 | CQ36: =SA!FC33-SA!EQ33 -> -300 | CR36: =SA!FD33-SA!ER33 -> -400 | CS36: =SA!FE33-SA!ES33 -> -200 | CT36: =SA!FF33-SA!ET33 -> -200 | CU36: =SA!FG33-SA!EU33 -> -100 | CV36: =SA!FH33-SA!EV33 -> -500 | CW36: =SA!FI33-SA!EW33 -> -200 | CX36: =SA!FJ33-SA!EX33 -> -300 | CY36: =SA!FK33-SA!EY33 -> -400 | CZ36: =SA!FL33-SA!EZ33 -> -500 | DA36: =SA!FM33-SA!FA33 -> -600 | DB36: =SA!FN33-SA!FB33 -> -400 | DC36: =SA!FO33-SA!FC33 -> -600 | DD36: =SA!FP33-SA!FD33 -> 0 | DE36: =SA!FQ33-SA!FE33 -> -500 | DF36: =SA!FR33-SA!FF33 -> -200 | DG36: =SA!FS33-SA!FG33 -> -300 | DH36: =SA!FT33-SA!FH33 -> 0 | DI36: =SA!FU33-SA!FI33 -> -200 | DJ36: =SA!FV33-SA!FJ33 -> -100 | DK36: =SA!FW33-SA!FK33 -> -100 | DL36: =SA!FX33-SA!FL33 -> 0 | DM36: =SA!FY33-SA!FM33 -> 200 | DN36: =SA!FZ33-SA!FN33 -> 100 | DO36: =SA!GA33-SA!FO33 -> 200 | DP36: =SA!GB33-SA!FP33 -> 100 | DQ36: =SA!GC33-SA!FQ33 -> 400 | DR36: =SA!GD33-SA!FR33 -> 100 | DS36: =SA!GE33-SA!FS33 -> 100 | DT36: =SA!GF33-SA!FT33 -> 100 | DU36: =SA!GG33-SA!FU33 -> 200 | DV36: =SA!GH33-SA!FV33 -> 200 | DW36: =SA!GI33-SA!FW33 -> 400 | DX36: =SA!GJ33-SA!FX33 -> 300 | DY36: =SA!GK33-SA!FY33 -> 100 | DZ36: =SA!GL33-SA!FZ33 -> 100 | EA36: =SA!GM33-SA!GA33 -> 100 | EB36: =SA!GN33-SA!GB33 -> 100 | EC36: =SA!GO33-SA!GC33 -> 100 | ED36: =SA!GP33-SA!GD33 -> 200 | EE36: =SA!GQ33-SA!GE33 -> 200 | EF36: =SA!GR33-SA!GF33 -> 300 | EG36: =SA!GS33-SA!GG33 -> 100 | EH36: =SA!GT33-SA!GH33 -> 100 | EI36: =SA!GU33-SA!GI33 -> 200 | EJ36: =SA!GV33-SA!GJ33 -> 0 | EK36: =SA!GW33-SA!GK33 -> 300 | EL36: =SA!GX33-SA!GL33 -> 400 | EM36: =SA!GY33-SA!GM33 -> 300 | EN36: =SA!GZ33-SA!GN33 -> 300 | EO36: =SA!HA33-SA!GO33 -> 200 | EP36: =SA!HB33-SA!GP33 -> 300 | EQ36: =SA!HC33-SA!GQ33 -> 200 | ER36: =SA!HD33-SA!GR33 -> 200 | ES36: =SA!HE33-SA!GS33 -> 0 | ET36: =SA!HF33-SA!GT33 -> 200 | EU36: =SA!HG33-SA!GU33 -> 0 | EV36: =SA!HH33-SA!GV33 -> 200 | EW36: =SA!HI33-SA!GW33 -> -300 | EX36: =SA!HJ33-SA!GX33 -> -200 | EY36: =SA!HK33-SA!GY33 -> -100 | EZ36: =SA!HL33-SA!GZ33 -> -200 | FA36: =SA!HM33-SA!HA33 -> -100 | FB36: =SA!HN33-SA!HB33 -> -100 | FC36: =SA!HO33-SA!HC33 -> 0 | FD36: =SA!HP33-SA!HD33 -> -200 | FE36: =SA!HQ33-SA!HE33 -> 100 | FF36: =SA!HR33-SA!HF33 -> 0 | FG36: =SA!HS33-SA!HG33 -> 0 | FH36: =SA!HT33-SA!HH33 -> 0 | FI36: =SA!HU33-SA!HI33 -> 400 | FJ36: =SA!HV33-SA!HJ33 -> 300 | FK36: =SA!HW33-SA!HK33 -> 300 | FL36: =SA!HX33-SA!HL33 -> 300 | FM36: =SA!HY33-SA!HM33 -> 100 | FN36: =SA!HZ33-SA!HN33 -> -100 | FO36: =SA!IA33-SA!HO33 -> -100 | FP36: =SA!IB33-SA!HP33 -> -100 | FQ36: =SA!IC33-SA!HQ33 -> 0 | FR36: =SA!ID33-SA!HR33 -> 0 | FS36: =SA!IE33-SA!HS33 -> 0 | FT36: =SA!IF33-SA!HT33 -> 0 | FU36: =SA!IG33-SA!HU33 -> 400 | FV36: =SA!IH33-SA!HV33 -> 100 | FW36: =SA!II33-SA!HW33 -> 0 | FX36: =SA!IJ33-SA!HX33 -> -100 | FY36: =SA!IK33-SA!HY33 -> 100 | FZ36: =SA!IL33-SA!HZ33 -> -29000 | GA36: n/a | GB36: =COUNTIF(EY36:FY36, ">" &GA36) -> 0 | GD36: Federal Government | GE36: -8500 | GF36: -400 | GG36: -200 | GH36: -100 | GI36: 0 | GJ36: 200 | GK36: 300 | GL36: 6000 | GM36: 1122.760756
A37: State Government | B37: =SA!BN34-SA!BB34 -> 5200 | C37: =SA!BO34-SA!BC34 -> 2000 | D37: =SA!BP34-SA!BD34 -> 1500 | E37: =SA!BQ34-SA!BE34 -> 1100 | F37: =SA!BR34-SA!BF34 -> 1700 | G37: =SA!BS34-SA!BG34 -> -1500 | H37: =SA!BT34-SA!BH34 -> -500 | I37: =SA!BU34-SA!BI34 -> -2000 | J37: =SA!BV34-SA!BJ34 -> 300 | K37: =SA!BW34-SA!BK34 -> -800 | L37: =SA!BX34-SA!BL34 -> -900 | M37: =SA!BY34-SA!BM34 -> 600 | N37: =SA!BZ34-SA!BN34 -> -800 | O37: =SA!CA34-SA!BO34 -> 700 | P37: =SA!CB34-SA!BP34 -> 700 | Q37: =SA!CC34-SA!BQ34 -> 1100 | R37: =SA!CD34-SA!BR34 -> 400 | S37: =SA!CE34-SA!BS34 -> 3600 | T37: =SA!CF34-SA!BT34 -> 2100 | U37: =SA!CG34-SA!BU34 -> 3200 | V37: =SA!CH34-SA!BV34 -> 1200 | W37: =SA!CI34-SA!BW34 -> 1400 | X37: =SA!CJ34-SA!BX34 -> 600 | Y37: =SA!CK34-SA!BY34 -> -100 | Z37: =SA!CL34-SA!BZ34 -> -1000 | AA37: =SA!CM34-SA!CA34 -> 600 | AB37: =SA!CN34-SA!CB34 -> 1800 | AC37: =SA!CO34-SA!CC34 -> 800 | AD37: =SA!CP34-SA!CD34 -> 2300 | AE37: =SA!CQ34-SA!CE34 -> 300 | AF37: =SA!CR34-SA!CF34 -> -300 | AG37: =SA!CS34-SA!CG34 -> 100 | AH37: =SA!CT34-SA!CH34 -> -1300 | AI37: =SA!CU34-SA!CI34 -> -900 | AJ37: =SA!CV34-SA!CJ34 -> 0 | AK37: =SA!CW34-SA!CK34 -> 300 | AL37: =SA!CX34-SA!CL34 -> 2100 | AM37: =SA!CY34-SA!CM34 -> 600 | AN37: =SA!CZ34-SA!CN34 -> -400 | AO37: =SA!DA34-SA!CO34 -> -200 | AP37: =SA!DB34-SA!CP34 -> 200 | AQ37: =SA!DC34-SA!CQ34 -> -1100 | AR37: =SA!DD34-SA!CR34 -> 800 | AS37: =SA!DE34-SA!CS34 -> 0 | AT37: =SA!DF34-SA!CT34 -> -700 | AU37: =SA!DG34-SA!CU34 -> 2400 | AV37: =SA!DH34-SA!CV34 -> 1900 | AW37: =SA!DI34-SA!CW34 -> 800 | AX37: =SA!DJ34-SA!CX34 -> -1300 | AY37: =SA!DK34-SA!CY34 -> -700 | AZ37: =SA!DL34-SA!CZ34 -> -200 | BA37: =SA!DM34-SA!DA34 -> -3000 | BB37: =SA!DN34-SA!DB34 -> -3000 | BC37: =SA!DO34-SA!DC34 -> -3800 | BD37: =SA!DP34-SA!DD34 -> -5000 | BE37: =SA!DQ34-SA!DE34 -> -4900 | BF37: =SA!DR34-SA!DF34 -> -6300 | BG37: =SA!DS34-SA!DG34 -> -7600 | BH37: =SA!DT34-SA!DH34 -> -6200 | BI37: =SA!DU34-SA!DI34 -> -5100 | BJ37: =SA!DV34-SA!DJ34 -> -5800 | BK37: =SA!DW34-SA!DK34 -> -4800 | BL37: =SA!DX34-SA!DL34 -> -5500 | BM37: =SA!DY34-SA!DM34 -> -200 | BN37: =SA!DZ34-SA!DN34 -> -1500 | BO37: =SA!EA34-SA!DO34 -> 1300 | BP37: =SA!EB34-SA!DP34 -> 1500 | BQ37: =SA!EC34-SA!DQ34 -> 1600 | BR37: =SA!ED34-SA!DR34 -> 2900 | BS37: =SA!EE34-SA!DS34 -> 2200 | BT37: =SA!EF34-SA!DT34 -> 800 | BU37: =SA!EG34-SA!DU34 -> -1900 | BV37: =SA!EH34-SA!DV34 -> -500 | BW37: =SA!EI34-SA!DW34 -> -800 | BX37: =SA!EJ34-SA!DX34 -> 400 | BY37: =SA!EK34-SA!DY34 -> -2600 | BZ37: =SA!EL34-SA!DZ34 -> 500 | CA37: =SA!EM34-SA!EA34 -> -3700 | CB37: =SA!EN34-SA!EB34 -> -3700 | CC37: =SA!EO34-SA!EC34 -> -9000 | CD37: =SA!EP34-SA!ED34 -> -5800 | CE37: =SA!EQ34-SA!EE34 -> -4000 | CF37: =SA!ER34-SA!EF34 -> -3300 | CG37: =SA!ES34-SA!EG34 -> -900 | CH37: =SA!ET34-SA!EH34 -> -10100 | CI37: =SA!EU34-SA!EI34 -> -7200 | CJ37: =SA!EV34-SA!EJ34 -> -2400 | CK37: =SA!EW34-SA!EK34 -> -500 | CL37: =SA!EX34-SA!EL34 -> -3200 | CM37: =SA!EY34-SA!EM34 -> -2300 | CN37: =SA!EZ34-SA!EN34 -> -800 | CO37: =SA!FA34-SA!EO34 -> 4100 | CP37: =SA!FB34-SA!EP34 -> 3200 | CQ37: =SA!FC34-SA!EQ34 -> 1400 | CR37: =SA!FD34-SA!ER34 -> 1300 | CS37: =SA!FE34-SA!ES34 -> 100 | CT37: =SA!FF34-SA!ET34 -> -200 | CU37: =SA!FG34-SA!EU34 -> 6500 | CV37: =SA!FH34-SA!EV34 -> 400 | CW37: =SA!FI34-SA!EW34 -> -100 | CX37: =SA!FJ34-SA!EX34 -> -2600 | CY37: =SA!FK34-SA!EY34 -> 1000 | CZ37: =SA!FL34-SA!EZ34 -> 400 | DA37: =SA!FM34-SA!FA34 -> 1400 | DB37: =SA!FN34-SA!FB34 -> 600 | DC37: =SA!FO34-SA!FC34 -> 1600 | DD37: =SA!FP34-SA!FD34 -> 900 | DE37: =SA!FQ34-SA!FE34 -> 1500 | DF37: =SA!FR34-SA!FF34 -> 11600 | DG37: =SA!FS34-SA!FG34 -> 1300 | DH37: =SA!FT34-SA!FH34 -> 1200 | DI37: =SA!FU34-SA!FI34 -> 1500 | DJ37: =SA!FV34-SA!FJ34 -> 2800 | DK37: =SA!FW34-SA!FK34 -> 1600 | DL37: =SA!FX34-SA!FL34 -> 900 | DM37: =SA!FY34-SA!FM34 -> 700 | DN37: =SA!FZ34-SA!FN34 -> 800 | DO37: =SA!GA34-SA!FO34 -> -600 | DP37: =SA!GB34-SA!FP34 -> 900 | DQ37: =SA!GC34-SA!FQ34 -> 600 | DR37: =SA!GD34-SA!FR34 -> -400 | DS37: =SA!GE34-SA!FS34 -> 300 | DT37: =SA!GF34-SA!FT34 -> 1100 | DU37: =SA!GG34-SA!FU34 -> 200 | DV37: =SA!GH34-SA!FV34 -> 100 | DW37: =SA!GI34-SA!FW34 -> -700 | DX37: =SA!GJ34-SA!FX34 -> -500 | DY37: =SA!GK34-SA!FY34 -> -1800 | DZ37: =SA!GL34-SA!FZ34 -> -2900 | EA37: =SA!GM34-SA!GA34 -> -2600 | EB37: =SA!GN34-SA!GB34 -> -3600 | EC37: =SA!GO34-SA!GC34 -> -2600 | ED37: =SA!GP34-SA!GD34 -> -2400 | EE37: =SA!GQ34-SA!GE34 -> -2700 | EF37: =SA!GR34-SA!GF34 -> -2700 | EG37: =SA!GS34-SA!GG34 -> -2500 | EH37: =SA!GT34-SA!GH34 -> -1700 | EI37: =SA!GU34-SA!GI34 -> -1200 | EJ37: =SA!GV34-SA!GJ34 -> -1400 | EK37: =SA!GW34-SA!GK34 -> -600 | EL37: =SA!GX34-SA!GL34 -> -1000 | EM37: =SA!GY34-SA!GM34 -> 600 | EN37: =SA!GZ34-SA!GN34 -> 800 | EO37: =SA!HA34-SA!GO34 -> -300 | EP37: =SA!HB34-SA!GP34 -> -400 | EQ37: =SA!HC34-SA!GQ34 -> -100 | ER37: =SA!HD34-SA!GR34 -> -5200 | ES37: =SA!HE34-SA!GS34 -> 400 | ET37: =SA!HF34-SA!GT34 -> 1200 | EU37: =SA!HG34-SA!GU34 -> 1000 | EV37: =SA!HH34-SA!GV34 -> 600 | EW37: =SA!HI34-SA!GW34 -> 900 | EX37: =SA!HJ34-SA!GX34 -> 300 | EY37: =SA!HK34-SA!GY34 -> -1300 | EZ37: =SA!HL34-SA!GZ34 -> -900 | FA37: =SA!HM34-SA!HA34 -> -3700 | FB37: =SA!HN34-SA!HB34 -> -3200 | FC37: =SA!HO34-SA!HC34 -> -2000 | FD37: =SA!HP34-SA!HD34 -> 2400 | FE37: =SA!HQ34-SA!HE34 -> -2100 | FF37: =SA!HR34-SA!HF34 -> -2500 | FG37: =SA!HS34-SA!HG34 -> -2300 | FH37: =SA!HT34-SA!HH34 -> -2200 | FI37: =SA!HU34-SA!HI34 -> -2900 | FJ37: =SA!HV34-SA!HJ34 -> -1300 | FK37: =SA!HW34-SA!HK34 -> -1100 | FL37: =SA!HX34-SA!HL34 -> -800 | FM37: =SA!HY34-SA!HM34 -> 2900 | FN37: =SA!HZ34-SA!HN34 -> -400 | FO37: =SA!IA34-SA!HO34 -> -1100 | FP37: =SA!IB34-SA!HP34 -> -600 | FQ37: =SA!IC34-SA!HQ34 -> -2400 | FR37: =SA!ID34-SA!HR34 -> -1700 | FS37: =SA!IE34-SA!HS34 -> -900 | FT37: =SA!IF34-SA!HT34 -> 0 | FU37: =SA!IG34-SA!HU34 -> -1200 | FV37: =SA!IH34-SA!HV34 -> -2400 | FW37: =SA!II34-SA!HW34 -> -1300 | FX37: =SA!IJ34-SA!HX34 -> -1900 | FY37: =SA!IK34-SA!HY34 -> -2700 | FZ37: =SA!IL34-SA!HZ34 -> -91800 | GA37: n/a | GB37: =COUNTIF(EY37:FY37, ">" &GA37) -> 0 | GD37: State Government | GE37: -10100 | GF37: -2950 | GG37: -1300 | GH37: -450 | GI37: 100 | GJ37: 800 | GK37: 1500 | GL37: 11600 | GM37: 2664.118897
A38: Local Government | B38: =SA!BN35-SA!BB35 -> 3300 | C38: =SA!BO35-SA!BC35 -> 2700 | D38: =SA!BP35-SA!BD35 -> 800 | E38: =SA!BQ35-SA!BE35 -> 3900 | F38: =SA!BR35-SA!BF35 -> 1800 | G38: =SA!BS35-SA!BG35 -> 1100 | H38: =SA!BT35-SA!BH35 -> 2200 | I38: =SA!BU35-SA!BI35 -> 2400 | J38: =SA!BV35-SA!BJ35 -> 8000 | K38: =SA!BW35-SA!BK35 -> 3800 | L38: =SA!BX35-SA!BL35 -> 700 | M38: =SA!BY35-SA!BM35 -> 4600 | N38: =SA!BZ35-SA!BN35 -> 100 | O38: =SA!CA35-SA!BO35 -> -2000 | P38: =SA!CB35-SA!BP35 -> 600 | Q38: =SA!CC35-SA!BQ35 -> -200 | R38: =SA!CD35-SA!BR35 -> -600 | S38: =SA!CE35-SA!BS35 -> 400 | T38: =SA!CF35-SA!BT35 -> -600 | U38: =SA!CG35-SA!BU35 -> -1200 | V38: =SA!CH35-SA!BV35 -> -1600 | W38: =SA!CI35-SA!BW35 -> -3200 | X38: =SA!CJ35-SA!BX35 -> 100 | Y38: =SA!CK35-SA!BY35 -> -2400 | Z38: =SA!CL35-SA!BZ35 -> -800 | AA38: =SA!CM35-SA!CA35 -> -2300 | AB38: =SA!CN35-SA!CB35 -> -3400 | AC38: =SA!CO35-SA!CC35 -> -1100 | AD38: =SA!CP35-SA!CD35 -> -200 | AE38: =SA!CQ35-SA!CE35 -> 3300 | AF38: =SA!CR35-SA!CF35 -> 1700 | AG38: =SA!CS35-SA!CG35 -> 2300 | AH38: =SA!CT35-SA!CH35 -> 4500 | AI38: =SA!CU35-SA!CI35 -> 2100 | AJ38: =SA!CV35-SA!CJ35 -> -1000 | AK38: =SA!CW35-SA!CK35 -> 3000 | AL38: =SA!CX35-SA!CL35 -> 4400 | AM38: =SA!CY35-SA!CM35 -> 5600 | AN38: =SA!CZ35-SA!CN35 -> 4700 | AO38: =SA!DA35-SA!CO35 -> 2000 | AP38: =SA!DB35-SA!CP35 -> 3500 | AQ38: =SA!DC35-SA!CQ35 -> -200 | AR38: =SA!DD35-SA!CR35 -> 3500 | AS38: =SA!DE35-SA!CS35 -> 1800 | AT38: =SA!DF35-SA!CT35 -> 10600 | AU38: =SA!DG35-SA!CU35 -> 6600 | AV38: =SA!DH35-SA!CV35 -> 12200 | AW38: =SA!DI35-SA!CW35 -> 5800 | AX38: =SA!DJ35-SA!CX35 -> 2900 | AY38: =SA!DK35-SA!CY35 -> 4200 | AZ38: =SA!DL35-SA!CZ35 -> 4600 | BA38: =SA!DM35-SA!DA35 -> 5800 | BB38: =SA!DN35-SA!DB35 -> 4500 | BC38: =SA!DO35-SA!DC35 -> 4800 | BD38: =SA!DP35-SA!DD35 -> 4500 | BE38: =SA!DQ35-SA!DE35 -> 3000 | BF38: =SA!DR35-SA!DF35 -> -8100 | BG38: =SA!DS35-SA!DG35 -> 2400 | BH38: =SA!DT35-SA!DH35 -> -4000 | BI38: =SA!DU35-SA!DI35 -> 600 | BJ38: =SA!DV35-SA!DJ35 -> 2600 | BK38: =SA!DW35-SA!DK35 -> -1000 | BL38: =SA!DX35-SA!DL35 -> 100 | BM38: =SA!DY35-SA!DM35 -> -2100 | BN38: =SA!DZ35-SA!DN35 -> -2600 | BO38: =SA!EA35-SA!DO35 -> -3600 | BP38: =SA!EB35-SA!DP35 -> -6400 | BQ38: =SA!EC35-SA!DQ35 -> -3700 | BR38: =SA!ED35-SA!DR35 -> -1800 | BS38: =SA!EE35-SA!DS35 -> -3200 | BT38: =SA!EF35-SA!DT35 -> 800 | BU38: =SA!EG35-SA!DU35 -> -3400 | BV38: =SA!EH35-SA!DV35 -> -1500 | BW38: =SA!EI35-SA!DW35 -> 2300 | BX38: =SA!EJ35-SA!DX35 -> 900 | BY38: =SA!EK35-SA!DY35 -> 1000 | BZ38: =SA!EL35-SA!DZ35 -> -200 | CA38: =SA!EM35-SA!EA35 -> 300 | CB38: =SA!EN35-SA!EB35 -> 6500 | CC38: =SA!EO35-SA!EC35 -> 6700 | CD38: =SA!EP35-SA!ED35 -> 100 | CE38: =SA!EQ35-SA!EE35 -> -5600 | CF38: =SA!ER35-SA!EF35 -> -9500 | CG38: =SA!ES35-SA!EG35 -> -2500 | CH38: =SA!ET35-SA!EH35 -> -5200 | CI38: =SA!EU35-SA!EI35 -> -6800 | CJ38: =SA!EV35-SA!EJ35 -> -5200 | CK38: =SA!EW35-SA!EK35 -> -800 | CL38: =SA!EX35-SA!EL35 -> 4300 | CM38: =SA!EY35-SA!EM35 -> 800 | CN38: =SA!EZ35-SA!EN35 -> -8000 | CO38: =SA!FA35-SA!EO35 -> -5000 | CP38: =SA!FB35-SA!EP35 -> -4300 | CQ38: =SA!FC35-SA!EQ35 -> 1500 | CR38: =SA!FD35-SA!ER35 -> 8500 | CS38: =SA!FE35-SA!ES35 -> 400 | CT38: =SA!FF35-SA!ET35 -> -300 | CU38: =SA!FG35-SA!EU35 -> 1300 | CV38: =SA!FH35-SA!EV35 -> -700 | CW38: =SA!FI35-SA!EW35 -> -6200 | CX38: =SA!FJ35-SA!EX35 -> -7300 | CY38: =SA!FK35-SA!EY35 -> -3800 | CZ38: =SA!FL35-SA!EZ35 -> -500 | DA38: =SA!FM35-SA!FA35 -> -5300 | DB38: =SA!FN35-SA!FB35 -> 1300 | DC38: =SA!FO35-SA!FC35 -> -800 | DD38: =SA!FP35-SA!FD35 -> -8600 | DE38: =SA!FQ35-SA!FE35 -> -1600 | DF38: =SA!FR35-SA!FF35 -> -700 | DG38: =SA!FS35-SA!FG35 -> -3400 | DH38: =SA!FT35-SA!FH35 -> -1300 | DI38: =SA!FU35-SA!FI35 -> 600 | DJ38: =SA!FV35-SA!FJ35 -> -500 | DK38: =SA!FW35-SA!FK35 -> 700 | DL38: =SA!FX35-SA!FL35 -> 1000 | DM38: =SA!FY35-SA!FM35 -> 8000 | DN38: =SA!FZ35-SA!FN35 -> 0 | DO38: =SA!GA35-SA!FO35 -> 800 | DP38: =SA!GB35-SA!FP35 -> 5900 | DQ38: =SA!GC35-SA!FQ35 -> -700 | DR38: =SA!GD35-SA!FR35 -> -1200 | DS38: =SA!GE35-SA!FS35 -> 1500 | DT38: =SA!GF35-SA!FT35 -> -700 | DU38: =SA!GG35-SA!FU35 -> 1500 | DV38: =SA!GH35-SA!FV35 -> 0 | DW38: =SA!GI35-SA!FW35 -> -600 | DX38: =SA!GJ35-SA!FX35 -> -1300 | DY38: =SA!GK35-SA!FY35 -> -6800 | DZ38: =SA!GL35-SA!FZ35 -> -1800 | EA38: =SA!GM35-SA!GA35 -> -1200 | EB38: =SA!GN35-SA!GB35 -> -8900 | EC38: =SA!GO35-SA!GC35 -> 300 | ED38: =SA!GP35-SA!GD35 -> 2900 | EE38: =SA!GQ35-SA!GE35 -> 1700 | EF38: =SA!GR35-SA!GF35 -> 1800 | EG38: =SA!GS35-SA!GG35 -> 2600 | EH38: =SA!GT35-SA!GH35 -> -200 | EI38: =SA!GU35-SA!GI35 -> 1000 | EJ38: =SA!GV35-SA!GJ35 -> 3700 | EK38: =SA!GW35-SA!GK35 -> 10200 | EL38: =SA!GX35-SA!GL35 -> 3400 | EM38: =SA!GY35-SA!GM35 -> 1200 | EN38: =SA!GZ35-SA!GN35 -> 12000 | EO38: =SA!HA35-SA!GO35 -> 2800 | EP38: =SA!HB35-SA!GP35 -> -1600 | EQ38: =SA!HC35-SA!GQ35 -> -2100 | ER38: =SA!HD35-SA!GR35 -> 600 | ES38: =SA!HE35-SA!GS35 -> -4300 | ET38: =SA!HF35-SA!GT35 -> 100 | EU38: =SA!HG35-SA!GU35 -> -4900 | EV38: =SA!HH35-SA!GV35 -> -3500 | EW38: =SA!HI35-SA!GW35 -> -12800 | EX38: =SA!HJ35-SA!GX35 -> -3000 | EY38: =SA!HK35-SA!GY35 -> -600 | EZ38: =SA!HL35-SA!GZ35 -> -9900 | FA38: =SA!HM35-SA!HA35 -> -1400 | FB38: =SA!HN35-SA!HB35 -> 1800 | FC38: =SA!HO35-SA!HC35 -> 2700 | FD38: =SA!HP35-SA!HD35 -> 0 | FE38: =SA!HQ35-SA!HE35 -> 2400 | FF38: =SA!HR35-SA!HF35 -> 1400 | FG38: =SA!HS35-SA!HG35 -> 5400 | FH38: =SA!HT35-SA!HH35 -> 4100 | FI38: =SA!HU35-SA!HI35 -> 10600 | FJ38: =SA!HV35-SA!HJ35 -> 2500 | FK38: =SA!HW35-SA!HK35 -> -400 | FL38: =SA!HX35-SA!HL35 -> 5400 | FM38: =SA!HY35-SA!HM35 -> 400 | FN38: =SA!HZ35-SA!HN35 -> -2900 | FO38: =SA!IA35-SA!HO35 -> -6400 | FP38: =SA!IB35-SA!HP35 -> -2800 | FQ38: =SA!IC35-SA!HQ35 -> -2000 | FR38: =SA!ID35-SA!HR35 -> -2100 | FS38: =SA!IE35-SA!HS35 -> 0 | FT38: =SA!IF35-SA!HT35 -> -3600 | FU38: =SA!IG35-SA!HU35 -> -8900 | FV38: =SA!IH35-SA!HV35 -> -2300 | FW38: =SA!II35-SA!HW35 -> -700 | FX38: =SA!IJ35-SA!HX35 -> -4100 | FY38: =SA!IK35-SA!HY35 -> -2700 | FZ38: =SA!IL35-SA!HZ35 -> -283200 | GA38: n/a | GB38: =COUNTIF(EY38:FY38, ">" &GA38) -> 0 | GD38: Local Government | GE38: -12800 | GF38: -3450 | GG38: -1200 | GH38: 0 | GI38: 750 | GJ38: 2300 | GK38: 4350 | GL38: 12200 | GM38: 4125.430038
N40: Housing Market Prices Peaks | Z40: Housing Market Price Declines Begin | AE40: Peak | AF40: Decline begins | AH40: Floods | AW40: GM Closes | BV40: Act 10 Protests | CA40: Act 10 Passes | CD40: Education Cuts begin | CM40: Severe Drought | DE40: Severe Winter Weather/Late Spring
AU41: Great Recession | DF41: Dodd Frank | DS41: Cold winter/summer | FE41: Long Winter!
A42: Month over Month Change | B42: 2005-01-01 | C42: 2005-02-01 | D42: 2005-03-01 | E42: 2005-04-01 | F42: 2005-05-01 | G42: 2005-06-01 | H42: 2005-07-01 | I42: 2005-08-01 | J42: 2005-09-01 | K42: 2005-10-01 | L42: 2005-11-01 | M42: 2005-12-01 | N42: 2006-01-01 | O42: 2006-02-01 | P42: 2006-03-01 | Q42: 2006-04-01 | R42: 2006-05-01 | S42: 2006-06-01 | T42: 2006-07-01 | U42: 2006-08-01 | V42: 2006-09-01 | W42: 2006-10-01 | X42: 2006-11-01 | Y42: 2006-12-01 | Z42: 2007-01-01 | AA42: 2007-02-01 | AB42: 2007-03-01 | AC42: 2007-04-01 | AD42: 2007-05-01 | AE42: 2007-06-01 | AF42: 2007-07-01 | AG42: 2007-08-01 | AH42: 2007-09-01 | AI42: 2007-10-01 | AJ42: 2007-11-01 | AK42: 2007-12-01 | AL42: 2008-01-01 | AM42: 2008-02-01 | AN42: 2008-03-01 | AO42: 2008-04-01 | AP42: 2008-05-01 | AQ42: 2008-06-01 | AR42: 2008-07-01 | AS42: 2008-08-01 | AT42: 2008-09-01 | AU42: 2008-10-01 | AV42: 2008-11-01 | AW42: 2008-12-01 | AX42: 2009-01-01 | AY42: 2009-02-01 | AZ42: 2009-03-01 | BA42: 2009-04-01 | BB42: 2009-05-01 | BC42: 2009-06-01 | BD42: 2009-07-01 | BE42: 2009-08-01 | BF42: 2009-09-01 | BG42: 2009-10-01 | BH42: 2009-11-01 | BI42: 2009-12-01 | BJ42: 2010-01-01 | BK42: 2010-02-01 | BL42: 2010-03-01 | BM42: 2010-04-01 | BN42: 2010-05-01 | BO42: 2010-06-01 | BP42: 2010-07-01 | BQ42: 2010-08-01 | BR42: 2010-09-01 | BS42: 2010-10-01 | BT42: 2010-11-01 | BU42: 2010-12-01 | BV42: 2011-01-01 | BW42: 2011-02-01 | BX42: 2011-03-01 | BY42: 2011-04-01 | BZ42: 2011-05-01 | CA42: 2011-06-01 | CB42: 2011-07-01 | CC42: 2011-08-01 | CD42: 2011-09-01 | CE42: 2011-10-01 | CF42: 2011-11-01 | CG42: 2011-12-01 | CH42: 2012-01-01 | CI42: 2012-02-01 | CJ42: 2012-03-01 | CK42: 2012-04-01 | CL42: 2012-05-01 | CM42: 2012-06-01 | CN42: 2012-07-01 | CO42: 2012-08-01 | CP42: 2012-09-01 | CQ42: 2012-10-01 | CR42: 2012-11-01 | CS42: 2012-12-01 | CT42: 2013-01-01 | CU42: 2013-02-01 | CV42: 2013-03-01 | CW42: 2013-04-01 | CX42: 2013-05-01 | CY42: 2013-06-01 | CZ42: 2013-07-01 | DA42: 2013-08-01 | DB42: 2013-09-01 | DC42: 2013-10-01 | DD42: 2013-11-01 | DE42: 2013-12-01 | DF42: 2014-01-01 | DG42: 2014-02-01 | DH42: 2014-03-01 | DI42: 2014-04-01 | DJ42: 2014-05-01 | DK42: 2014-06-01 | DL42: =EDATE(DK42, 1) -> 2014-07-01 | DM42: =EDATE(DL42, 1) -> 2014-08-01 | DN42: 2014-09-01 | DO42: 2014-10-01 | DP42: 2014-11-01 | DQ42: 2014-12-01 | DR42: 2015-01-01 | DS42: =EDATE(DR42, 1) -> 2015-02-01 | DT42: =EDATE(DS42, 1) -> 2015-03-01 | DU42: =EDATE(DT42, 1) -> 2015-04-01 | DV42: =EDATE(DU42, 1) -> 2015-05-01 | DW42: =EDATE(DV42, 1) -> 2015-06-01 | DX42: =EDATE(DW42, 1) -> 2015-07-01 | DY42: 2015-08-01 | DZ42: 2015-09-01 | EA42: 2015-10-01 | EB42: 2015-11-01 | EC42: 2015-12-01 | ED42: 2016-01-01 | EE42: =EDATE(ED42, 1) -> 2016-02-01 | EF42: =EDATE(EE42, 1) -> 2016-03-01 | EG42: =EDATE(EF42, 1) -> 2016-04-01 | EH42: =EDATE(EG42, 1) -> 2016-05-01 | EI42: =EDATE(EH42, 1) -> 2016-06-01 | EJ42: =EDATE(EI42, 1) -> 2016-07-01 | EK42: =EDATE(EJ42, 1) -> 2016-08-01 | EL42: =EDATE(EK42, 1) -> 2016-09-01 | EM42: 2016-10-01 | EN42: 2016-11-01 | EO42: =EDATE(EN42, 1) -> 2016-12-01 | EP42: =EDATE(EO42, 1) -> 2017-01-01 | EQ42: =EDATE(EP42, 1) -> 2017-02-01 | ER42: =EDATE(EQ42, 1) -> 2017-03-01 | ES42: 2017-04-01 | ET42: 2017-05-01 | EU42: 2017-06-01 | EV42: 2017-07-01 | EW42: 2017-08-01 | EX42: 2017-09-01 | EY42: 2017-10-01 | EZ42: 2017-11-01 | FA42: =EDATE(EZ42, 1) -> 2017-12-01 | FB42: =EDATE(FA42, 1) -> 2018-01-01 | FC42: 2018-02-01 | FD42: 2018-03-01 | FE42: 2018-04-01 | FF42: 2018-05-01 | FG42: 2018-06-01 | FH42: 2018-07-01 | FI42: 2018-08-01 | FJ42: 2018-09-01 | FK42: 2018-10-01 | FL42: 2018-11-01 | FM42: 2018-12-01 | FN42: =EDATE(FM42, 1) -> 2019-01-01 | FO42: =EDATE(FN42, 1) -> 2019-02-01 | FP42: =EDATE(FO42, 1) -> 2019-03-01 | FQ42: =EDATE(FP42, 1) -> 2019-04-01 | FR42: =EDATE(FQ42, 1) -> 2019-05-01 | FS42: =EDATE(FR42, 1) -> 2019-06-01 | FT42: =EDATE(FS42, 1) -> 2019-07-01 | FU42: =EDATE(FT42, 1) -> 2019-08-01 | FV42: =EDATE(FU42, 1) -> 2019-09-01 | FW42: =EDATE(FV42, 1) -> 2019-10-01 | FX42: =EDATE(FW42, 1) -> 2019-11-01 | FY42: =EDATE(FX42, 1) -> 2019-12-01 | FZ42: =EDATE(FY42, 1) -> 2020-01-01 | GA42: M/M Sig | GB42: # Positive Sig Changes since October 2017 | GC42: 12 mo Trend | GD42: Month over Month Change | GE42: Min | GF42: 0.15 | GG42: 0.3 | GH42: 0.45 | GI42: 0.55 | GJ42: 0.7 | GK42: 0.85 | GL42: Max | GM42: Std Deviation
A43: Total Non Farm | B43: =SA!BN2-SA!BM2 -> 900 | C43: =SA!BO2-SA!BN2 -> 6700 | D43: =SA!BP2-SA!BO2 -> 2300 | E43: =SA!BQ2-SA!BP2 -> 8800 | F43: =SA!BR2-SA!BQ2 -> -4700 | G43: =SA!BS2-SA!BR2 -> -3200 | H43: =SA!BT2-SA!BS2 -> 9400 | I43: =SA!BU2-SA!BT2 -> 2600 | J43: =SA!BV2-SA!BU2 -> 6200 | K43: =SA!BW2-SA!BV2 -> -3500 | L43: =SA!BX2-SA!BW2 -> 2800 | M43: =SA!BY2-SA!BX2 -> 4400 | N43: =SA!BZ2-SA!BY2 -> -900 | O43: =SA!CA2-SA!BZ2 -> 3600 | P43: =SA!CB2-SA!CA2 -> 2400 | Q43: =SA!CC2-SA!CB2 -> 7000 | R43: =SA!CD2-SA!CC2 -> -7000 | S43: =SA!CE2-SA!CD2 -> 7600 | T43: =SA!CF2-SA!CE2 -> -1700 | U43: =SA!CG2-SA!CF2 -> 400 | V43: =SA!CH2-SA!CG2 -> 3100 | W43: =SA!CI2-SA!CH2 -> -2100 | X43: =SA!CJ2-SA!CI2 -> 300 | Y43: =SA!CK2-SA!CJ2 -> 2800 | Z43: =SA!CL2-SA!CK2 -> 4800 | AA43: =SA!CM2-SA!CL2 -> -1900 | AB43: =SA!CN2-SA!CM2 -> 4800 | AC43: =SA!CO2-SA!CN2 -> 200 | AD43: =SA!CP2-SA!CO2 -> 5300 | AE43: =SA!CQ2-SA!CP2 -> 8600 | AF43: =SA!CR2-SA!CQ2 -> -6100 | AG43: =SA!CS2-SA!CR2 -> -1400 | AH43: =SA!CT2-SA!CS2 -> -500 | AI43: =SA!CU2-SA!CT2 -> -6200 | AJ43: =SA!CV2-SA!CU2 -> -200 | AK43: =SA!CW2-SA!CV2 -> 4800 | AL43: =SA!CX2-SA!CW2 -> 4600 | AM43: =SA!CY2-SA!CX2 -> -500 | AN43: =SA!CZ2-SA!CY2 -> -3000 | AO43: =SA!DA2-SA!CZ2 -> -4300 | AP43: =SA!DB2-SA!DA2 -> 2500 | AQ43: =SA!DC2-SA!DB2 -> -2300 | AR43: =SA!DD2-SA!DC2 -> -2600 | AS43: =SA!DE2-SA!DD2 -> -4900 | AT43: =SA!DF2-SA!DE2 -> 2900 | AU43: =SA!DG2-SA!DF2 -> -11800 | AV43: =SA!DH2-SA!DG2 -> -9100 | AW43: =SA!DI2-SA!DH2 -> -14300 | AX43: =SA!DJ2-SA!DI2 -> -26000 | AY43: =SA!DK2-SA!DJ2 -> -16700 | AZ43: =SA!DL2-SA!DK2 -> -21300 | BA43: =SA!DM2-SA!DL2 -> -22000 | BB43: =SA!DN2-SA!DM2 -> -700 | BC43: =SA!DO2-SA!DN2 -> -13000 | BD43: =SA!DP2-SA!DO2 -> -11600 | BE43: =SA!DQ2-SA!DP2 -> -7200 | BF43: =SA!DR2-SA!DQ2 -> -1600 | BG43: =SA!DS2-SA!DR2 -> 100 | BH43: =SA!DT2-SA!DS2 -> -3300 | BI43: =SA!DU2-SA!DT2 -> -1100 | BJ43: =SA!DV2-SA!DU2 -> -600 | BK43: =SA!DW2-SA!DV2 -> 100 | BL43: =SA!DX2-SA!DW2 -> 1900 | BM43: =SA!DY2-SA!DX2 -> 11100 | BN43: =SA!DZ2-SA!DY2 -> 2600 | BO43: =SA!EA2-SA!DZ2 -> -1900 | BP43: =SA!EB2-SA!EA2 -> 3200 | BQ43: =SA!EC2-SA!EB2 -> 3000 | BR43: =SA!ED2-SA!EC2 -> -1600 | BS43: =SA!EE2-SA!ED2 -> 9100 | BT43: =SA!EF2-SA!EE2 -> 1200 | BU43: =SA!EG2-SA!EF2 -> -2100 | BV43: =SA!EH2-SA!EG2 -> 4100 | BW43: =SA!EI2-SA!EH2 -> 1800 | BX43: =SA!EJ2-SA!EI2 -> 2600 | BY43: =SA!EK2-SA!EJ2 -> 3800 | BZ43: =SA!EL2-SA!EK2 -> 700 | CA43: =SA!EM2-SA!EL2 -> -2800 | CB43: =SA!EN2-SA!EM2 -> 13300 | CC43: =SA!EO2-SA!EN2 -> -3300 | CD43: =SA!EP2-SA!EO2 -> 3100 | CE43: =SA!EQ2-SA!EP2 -> -4700 | CF43: =SA!ER2-SA!EQ2 -> 500 | CG43: =SA!ES2-SA!ER2 -> 6000 | CH43: =SA!ET2-SA!ES2 -> -4600 | CI43: =SA!EU2-SA!ET2 -> 6400 | CJ43: =SA!EV2-SA!EU2 -> 14600 | CK43: =SA!EW2-SA!EV2 -> 8000 | CL43: =SA!EX2-SA!EW2 -> -1800 | CM43: =SA!EY2-SA!EX2 -> -600 | CN43: =SA!EZ2-SA!EY2 -> -9000 | CO43: =SA!FA2-SA!EZ2 -> 4200 | CP43: =SA!FB2-SA!FA2 -> 5600 | CQ43: =SA!FC2-SA!FB2 -> 4600 | CR43: =SA!FD2-SA!FC2 -> 8200 | CS43: =SA!FE2-SA!FD2 -> -3400 | CT43: =SA!FF2-SA!FE2 -> -9000 | CU43: =SA!FG2-SA!FF2 -> 17000 | CV43: =SA!FH2-SA!FG2 -> 1500 | CW43: =SA!FI2-SA!FH2 -> -10900 | CX43: =SA!FJ2-SA!FI2 -> 11100 | CY43: =SA!FK2-SA!FJ2 -> 4400 | CZ43: =SA!FL2-SA!FK2 -> 900 | DA43: =SA!FM2-SA!FL2 -> 5800 | DB43: =SA!FN2-SA!FM2 -> 6700 | DC43: =SA!FO2-SA!FN2 -> 500 | DD43: =SA!FP2-SA!FO2 -> 500 | DE43: =SA!FQ2-SA!FP2 -> 4600 | DF43: =SA!FR2-SA!FQ2 -> 3900 | DG43: =SA!FS2-SA!FR2 -> 1300 | DH43: =SA!FT2-SA!FS2 -> 2800 | DI43: =SA!FU2-SA!FT2 -> 5200 | DJ43: =SA!FV2-SA!FU2 -> 4700 | DK43: =SA!FW2-SA!FV2 -> 6700 | DL43: =SA!FX2-SA!FW2 -> 1300 | DM43: =SA!FY2-SA!FX2 -> 11800 | DN43: =SA!FZ2-SA!FY2 -> -1300 | DO43: =SA!GA2-SA!FZ2 -> 1700 | DP43: =SA!GB2-SA!GA2 -> 10800 | DQ43: =SA!GC2-SA!GB2 -> -4600 | DR43: =SA!GD2-SA!GC2 -> 3200 | DS43: =SA!GE2-SA!GD2 -> 2600 | DT43: =SA!GF2-SA!GE2 -> 3600 | DU43: =SA!GG2-SA!GF2 -> 2500 | DV43: =SA!GH2-SA!GG2 -> 6000 | DW43: =SA!GI2-SA!GH2 -> 1400 | DX43: =SA!GJ2-SA!GI2 -> 5100 | DY43: =SA!GK2-SA!GJ2 -> 1600 | DZ43: =SA!GL2-SA!GK2 -> 1600 | EA43: =SA!GM2-SA!GL2 -> 4800 | EB43: =SA!GN2-SA!GM2 -> -1700 | EC43: =SA!GO2-SA!GN2 -> 8100 | ED43: =SA!GP2-SA!GO2 -> 8000 | EE43: =SA!GQ2-SA!GP2 -> 3200 | EF43: =SA!GR2-SA!GQ2 -> -900 | EG43: =SA!GS2-SA!GR2 -> 6400 | EH43: =SA!GT2-SA!GS2 -> -5700 | EI43: =SA!GU2-SA!GT2 -> -1600 | EJ43: =SA!GV2-SA!GU2 -> 9200 | EK43: =SA!GW2-SA!GV2 -> 7700 | EL43: =SA!GX2-SA!GW2 -> -5200 | EM43: =SA!GY2-SA!GX2 -> -200 | EN43: =SA!GZ2-SA!GY2 -> 6700 | EO43: =SA!HA2-SA!GZ2 -> -4200 | EP43: =SA!HB2-SA!HA2 -> 7200 | EQ43: =SA!HC2-SA!HB2 -> 3200 | ER43: =SA!HD2-SA!HC2 -> 400 | ES43: =SA!HE2-SA!HD2 -> 400 | ET43: =SA!HF2-SA!HE2 -> -900 | EU43: =SA!HG2-SA!HF2 -> 2400 | EV43: =SA!HH2-SA!HG2 -> 100 | EW43: =SA!HI2-SA!HH2 -> -2700 | EX43: =SA!HJ2-SA!HI2 -> 0 | EY43: =SA!HK2-SA!HJ2 -> 3700 | EZ43: =SA!HL2-SA!HK2 -> -1000 | FA43: =SA!HM2-SA!HL2 -> 7100 | FB43: =SA!HN2-SA!HM2 -> 8200 | FC43: =SA!HO2-SA!HN2 -> 5600 | FD43: =SA!HP2-SA!HO2 -> 6400 | FE43: =SA!HQ2-SA!HP2 -> -4900 | FF43: =SA!HR2-SA!HQ2 -> 100 | FG43: =SA!HS2-SA!HR2 -> 7600 | FH43: =SA!HT2-SA!HS2 -> 8400 | FI43: =SA!HU2-SA!HT2 -> 1600 | FJ43: =SA!HV2-SA!HU2 -> -4100 | FK43: =SA!HW2-SA!HV2 -> -2800 | FL43: =SA!HX2-SA!HW2 -> 13100 | FM43: =SA!HY2-SA!HX2 -> 9100 | FN43: =SA!HZ2-SA!HY2 -> -13000 | FO43: =SA!IA2-SA!HZ2 -> -3700 | FP43: =SA!IB2-SA!IA2 -> -4100 | FQ43: =SA!IC2-SA!IB2 -> -500 | FR43: =SA!ID2-SA!IC2 -> 2700 | FS43: =SA!IE2-SA!ID2 -> 3300 | FT43: =SA!IF2-SA!IE2 -> -4700 | FU43: =SA!IG2-SA!IF2 -> -2900 | FV43: =SA!IH2-SA!IG2 -> 1800 | FW43: =SA!II2-SA!IH2 -> 1900 | FX43: =SA!IJ2-SA!II2 -> -700 | FY43: =SA!IK2-SA!IJ2 -> 9800 | FZ43: =SA!IL2-SA!IK2 -> -2991500 | GA43: 9894.675 | GB43: =COUNTIF(EY43:FY43, ">" &GA43) -> 1 | GD43: Total Non Farm | GE43: =MIN(B43:FN43) -> -26000 | GF43: =_xlfn.PERCENTILE.EXC($B43:$FN43,0.15) -> -4450 | GG43: =_xlfn.PERCENTILE.EXC($B43:$FN43,0.3) -> -1300 | GH43: =_xlfn.PERCENTILE.EXC($B43:$FN43,0.45) -> 600 | GI43: =_xlfn.PERCENTILE.EXC($B43:$FN43,0.55) -> 2450 | GJ43: =_xlfn.PERCENTILE.EXC($B43:$FN43,0.7) -> 4400 | GK43: =_xlfn.PERCENTILE.EXC($B43:$FN43,0.85) -> 7050 | GL43: =MAX(B43:FN43) -> 17000 | GM43: =STDEVP(B43:FN43) -> 6495.632897
A44: Total Private | B44: =SA!BN3-SA!BM3 -> -3900 | C44: =SA!BO3-SA!BN3 -> 7200 | D44: =SA!BP3-SA!BO3 -> 4300 | E44: =SA!BQ3-SA!BP3 -> 8400 | F44: =SA!BR3-SA!BQ3 -> -4300 | G44: =SA!BS3-SA!BR3 -> -1800 | H44: =SA!BT3-SA!BS3 -> 8000 | I44: =SA!BU3-SA!BT3 -> 2900 | J44: =SA!BV3-SA!BU3 -> 1700 | K44: =SA!BW3-SA!BV3 -> -1200 | L44: =SA!BX3-SA!BW3 -> 4800 | M44: =SA!BY3-SA!BX3 -> 1700 | N44: =SA!BZ3-SA!BY3 -> 200 | O44: =SA!CA3-SA!BZ3 -> 4700 | P44: =SA!CB3-SA!CA3 -> 1500 | Q44: =SA!CC3-SA!CB3 -> 7100 | R44: =SA!CD3-SA!CC3 -> -5400 | S44: =SA!CE3-SA!CD3 -> 4500 | T44: =SA!CF3-SA!CE3 -> -600 | U44: =SA!CG3-SA!CF3 -> 300 | V44: =SA!CH3-SA!CG3 -> 900 | W44: =SA!CI3-SA!CH3 -> 1600 | X44: =SA!CJ3-SA!CI3 -> -300 | Y44: =SA!CK3-SA!CJ3 -> 3300 | Z44: =SA!CL3-SA!CK3 -> 5100 | AA44: =SA!CM3-SA!CL3 -> -700 | AB44: =SA!CN3-SA!CM3 -> 4000 | AC44: =SA!CO3-SA!CN3 -> -1000 | AD44: =SA!CP3-SA!CO3 -> 4400 | AE44: =SA!CQ3-SA!CP3 -> 4000 | AF44: =SA!CR3-SA!CQ3 -> -2700 | AG44: =SA!CS3-SA!CR3 -> -2700 | AH44: =SA!CT3-SA!CS3 -> -3300 | AI44: =SA!CU3-SA!CT3 -> -800 | AJ44: =SA!CV3-SA!CU3 -> 1600 | AK44: =SA!CW3-SA!CV3 -> 1200 | AL44: =SA!CX3-SA!CW3 -> 1500 | AM44: =SA!CY3-SA!CX3 -> 700 | AN44: =SA!CZ3-SA!CY3 -> -1900 | AO44: =SA!DA3-SA!CZ3 -> -3000 | AP44: =SA!DB3-SA!DA3 -> -400 | AQ44: =SA!DC3-SA!DB3 -> -1800 | AR44: =SA!DD3-SA!DC3 -> -5100 | AS44: =SA!DE3-SA!DD3 -> -3600 | AT44: =SA!DF3-SA!DE3 -> -8100 | AU44: =SA!DG3-SA!DF3 -> -5100 | AV44: =SA!DH3-SA!DG3 -> -12600 | AW44: =SA!DI3-SA!DH3 -> -10700 | AX44: =SA!DJ3-SA!DI3 -> -23900 | AY44: =SA!DK3-SA!DJ3 -> -17300 | AZ44: =SA!DL3-SA!DK3 -> -20900 | BA44: =SA!DM3-SA!DL3 -> -21300 | BB44: =SA!DN3-SA!DM3 -> -2200 | BC44: =SA!DO3-SA!DN3 -> -9900 | BD44: =SA!DP3-SA!DO3 -> -12200 | BE44: =SA!DQ3-SA!DP3 -> -4600 | BF44: =SA!DR3-SA!DQ3 -> 0 | BG44: =SA!DS3-SA!DR3 -> -2800 | BH44: =SA!DT3-SA!DS3 -> -1600 | BI44: =SA!DU3-SA!DT3 -> -3100 | BJ44: =SA!DV3-SA!DU3 -> 400 | BK44: =SA!DW3-SA!DV3 -> 2100 | BL44: =SA!DX3-SA!DW3 -> 1000 | BM44: =SA!DY3-SA!DX3 -> 7700 | BN44: =SA!DZ3-SA!DY3 -> -1500 | BO44: =SA!EA3-SA!DZ3 -> 900 | BP44: =SA!EB3-SA!EA3 -> 6900 | BQ44: =SA!EC3-SA!EB3 -> 4800 | BR44: =SA!ED3-SA!EC3 -> -2500 | BS44: =SA!EE3-SA!ED3 -> 8600 | BT44: =SA!EF3-SA!EE3 -> 200 | BU44: =SA!EG3-SA!EF3 -> 2900 | BV44: =SA!EH3-SA!EG3 -> 1700 | BW44: =SA!EI3-SA!EH3 -> 400 | BX44: =SA!EJ3-SA!EI3 -> 2500 | BY44: =SA!EK3-SA!EJ3 -> 6500 | BZ44: =SA!EL3-SA!EK3 -> -800 | CA44: =SA!EM3-SA!EL3 -> 100 | CB44: =SA!EN3-SA!EM3 -> 8800 | CC44: =SA!EO3-SA!EN3 -> 1800 | CD44: =SA!EP3-SA!EO3 -> 4800 | CE44: =SA!EQ3-SA!EP3 -> -1400 | CF44: =SA!ER3-SA!EQ3 -> 3000 | CG44: =SA!ES3-SA!ER3 -> 1500 | CH44: =SA!ET3-SA!ES3 -> 5000 | CI44: =SA!EU3-SA!ET3 -> 3600 | CJ44: =SA!EV3-SA!EU3 -> 8100 | CK44: =SA!EW3-SA!EV3 -> 4500 | CL44: =SA!EX3-SA!EW3 -> -5800 | CM44: =SA!EY3-SA!EX3 -> 4900 | CN44: =SA!EZ3-SA!EY3 -> -6200 | CO44: =SA!FA3-SA!EZ3 -> 1300 | CP44: =SA!FB3-SA!FA3 -> 7600 | CQ44: =SA!FC3-SA!FB3 -> 3800 | CR44: =SA!FD3-SA!FC3 -> 3900 | CS44: =SA!FE3-SA!FD3 -> 1200 | CT44: =SA!FF3-SA!FE3 -> 1600 | CU44: =SA!FG3-SA!FF3 -> 5800 | CV44: =SA!FH3-SA!FG3 -> 3500 | CW44: =SA!FI3-SA!FH3 -> -8700 | CX44: =SA!FJ3-SA!FI3 -> 10800 | CY44: =SA!FK3-SA!FJ3 -> 2900 | CZ44: =SA!FL3-SA!FK3 -> 1100 | DA44: =SA!FM3-SA!FL3 -> 6800 | DB44: =SA!FN3-SA!FM3 -> 2700 | DC44: =SA!FO3-SA!FN3 -> 1000 | DD44: =SA!FP3-SA!FO3 -> 4100 | DE44: =SA!FQ3-SA!FP3 -> 2100 | DF44: =SA!FR3-SA!FQ3 -> 3200 | DG44: =SA!FS3-SA!FR3 -> 3200 | DH44: =SA!FT3-SA!FS3 -> 2500 | DI44: =SA!FU3-SA!FT3 -> 5400 | DJ44: =SA!FV3-SA!FU3 -> 4100 | DK44: =SA!FW3-SA!FV3 -> 5200 | DL44: =SA!FX3-SA!FW3 -> 1800 | DM44: =SA!FY3-SA!FX3 -> 5800 | DN44: =SA!FZ3-SA!FY3 -> 2700 | DO44: =SA!GA3-SA!FZ3 -> 2700 | DP44: =SA!GB3-SA!GA3 -> 7900 | DQ44: =SA!GC3-SA!GB3 -> -500 | DR44: =SA!GD3-SA!GC3 -> 4300 | DS44: =SA!GE3-SA!GD3 -> 1100 | DT44: =SA!GF3-SA!GE3 -> 4700 | DU44: =SA!GG3-SA!GF3 -> 1300 | DV44: =SA!GH3-SA!GG3 -> 7000 | DW44: =SA!GI3-SA!GH3 -> 1100 | DX44: =SA!GJ3-SA!GI3 -> 6200 | DY44: =SA!GK3-SA!GJ3 -> 2600 | DZ44: =SA!GL3-SA!GK3 -> 1700 | EA44: =SA!GM3-SA!GL3 -> 4900 | EB44: =SA!GN3-SA!GM3 -> 4100 | EC44: =SA!GO3-SA!GN3 -> 2000 | ED44: =SA!GP3-SA!GO3 -> 6200 | EE44: =SA!GQ3-SA!GP3 -> 3200 | EF44: =SA!GR3-SA!GQ3 -> 0 | EG44: =SA!GS3-SA!GR3 -> 4400 | EH44: =SA!GT3-SA!GS3 -> -2700 | EI44: =SA!GU3-SA!GT3 -> -3700 | EJ44: =SA!GV3-SA!GU3 -> 8000 | EK44: =SA!GW3-SA!GV3 -> 1100 | EL44: =SA!GX3-SA!GW3 -> 2000 | EM44: =SA!GY3-SA!GX3 -> 600 | EN44: =SA!GZ3-SA!GY3 -> 1500 | EO44: =SA!HA3-SA!GZ3 -> 100 | EP44: =SA!HB3-SA!HA3 -> 9800 | EQ44: =SA!HC3-SA!HB3 -> 3500 | ER44: =SA!HD3-SA!HC3 -> 3700 | ES44: =SA!HE3-SA!HD3 -> -2100 | ET44: =SA!HF3-SA!HE3 -> -3300 | EU44: =SA!HG3-SA!HF3 -> 5700 | EV44: =SA!HH3-SA!HG3 -> -2300 | EW44: =SA!HI3-SA!HH3 -> 200 | EX44: =SA!HJ3-SA!HI3 -> -2100 | EY44: =SA!HK3-SA!HJ3 -> 3600 | EZ44: =SA!HL3-SA!HK3 -> 2800 | FA44: =SA!HM3-SA!HL3 -> 5600 | FB44: =SA!HN3-SA!HM3 -> 7100 | FC44: =SA!HO3-SA!HN3 -> 3700 | FD44: =SA!HP3-SA!HO3 -> 8200 | FE44: =SA!HQ3-SA!HP3 -> -5600 | FF44: =SA!HR3-SA!HQ3 -> -800 | FG44: =SA!HS3-SA!HR3 -> 6700 | FH44: =SA!HT3-SA!HS3 -> 7200 | FI44: =SA!HU3-SA!HT3 -> -1700 | FJ44: =SA!HV3-SA!HU3 -> 400 | FK44: =SA!HW3-SA!HV3 -> -200 | FL44: =SA!HX3-SA!HW3 -> 10800 | FM44: =SA!HY3-SA!HX3 -> 9100 | FN44: =SA!HZ3-SA!HY3 -> -7300 | FO44: =SA!IA3-SA!HZ3 -> -1400 | FP44: =SA!IB3-SA!IA3 -> -6400 | FQ44: =SA!IC3-SA!IB3 -> -300 | FR44: =SA!ID3-SA!IC3 -> 1200 | FS44: =SA!IE3-SA!ID3 -> -500 | FT44: =SA!IF3-SA!IE3 -> -3200 | FU44: =SA!IG3-SA!IF3 -> -100 | FV44: =SA!IH3-SA!IG3 -> 1200 | FW44: =SA!II3-SA!IH3 -> 1900 | FX44: =SA!IJ3-SA!II3 -> 1100 | FY44: =SA!IK3-SA!IJ3 -> 9000 | FZ44: =SA!IL3-SA!IK3 -> -2587100 | GA44: 9557.45 | GB44: =COUNTIF(EY44:FY44, ">" &GA44) -> 1 | GD44: Total Private | GE44: -23900 | GF44: -3050 | GG44: -400 | GH44: 1250 | GI44: 2050 | GJ44: 4000 | GK44: 6000 | GL44: 10800 | GM44: 5523.882724
A45: Goods Producing | B45: =SA!BN4-SA!BM4 -> -4800 | C45: =SA!BO4-SA!BN4 -> 4700 | D45: =SA!BP4-SA!BO4 -> -100 | E45: =SA!BQ4-SA!BP4 -> 500 | F45: =SA!BR4-SA!BQ4 -> -800 | G45: =SA!BS4-SA!BR4 -> -400 | H45: =SA!BT4-SA!BS4 -> 1800 | I45: =SA!BU4-SA!BT4 -> -400 | J45: =SA!BV4-SA!BU4 -> -900 | K45: =SA!BW4-SA!BV4 -> -400 | L45: =SA!BX4-SA!BW4 -> 200 | M45: =SA!BY4-SA!BX4 -> -700 | N45: =SA!BZ4-SA!BY4 -> 3000 | O45: =SA!CA4-SA!BZ4 -> 400 | P45: =SA!CB4-SA!CA4 -> -200 | Q45: =SA!CC4-SA!CB4 -> 2000 | R45: =SA!CD4-SA!CC4 -> -2400 | S45: =SA!CE4-SA!CD4 -> 1700 | T45: =SA!CF4-SA!CE4 -> -1600 | U45: =SA!CG4-SA!CF4 -> -800 | V45: =SA!CH4-SA!CG4 -> -1600 | W45: =SA!CI4-SA!CH4 -> -1700 | X45: =SA!CJ4-SA!CI4 -> -2400 | Y45: =SA!CK4-SA!CJ4 -> 1100 | Z45: =SA!CL4-SA!CK4 -> 600 | AA45: =SA!CM4-SA!CL4 -> -1800 | AB45: =SA!CN4-SA!CM4 -> 1700 | AC45: =SA!CO4-SA!CN4 -> -1000 | AD45: =SA!CP4-SA!CO4 -> 1200 | AE45: =SA!CQ4-SA!CP4 -> -200 | AF45: =SA!CR4-SA!CQ4 -> -1000 | AG45: =SA!CS4-SA!CR4 -> -1800 | AH45: =SA!CT4-SA!CS4 -> -2600 | AI45: =SA!CU4-SA!CT4 -> -800 | AJ45: =SA!CV4-SA!CU4 -> -300 | AK45: =SA!CW4-SA!CV4 -> -1200 | AL45: =SA!CX4-SA!CW4 -> -100 | AM45: =SA!CY4-SA!CX4 -> 0 | AN45: =SA!CZ4-SA!CY4 -> -1000 | AO45: =SA!DA4-SA!CZ4 -> -3100 | AP45: =SA!DB4-SA!DA4 -> -800 | AQ45: =SA!DC4-SA!DB4 -> -400 | AR45: =SA!DD4-SA!DC4 -> -4800 | AS45: =SA!DE4-SA!DD4 -> -3100 | AT45: =SA!DF4-SA!DE4 -> -4100 | AU45: =SA!DG4-SA!DF4 -> -2900 | AV45: =SA!DH4-SA!DG4 -> -5600 | AW45: =SA!DI4-SA!DH4 -> -6900 | AX45: =SA!DJ4-SA!DI4 -> -11900 | AY45: =SA!DK4-SA!DJ4 -> -11000 | AZ45: =SA!DL4-SA!DK4 -> -11300 | BA45: =SA!DM4-SA!DL4 -> -12500 | BB45: =SA!DN4-SA!DM4 -> -5600 | BC45: =SA!DO4-SA!DN4 -> -6800 | BD45: =SA!DP4-SA!DO4 -> -5600 | BE45: =SA!DQ4-SA!DP4 -> -2000 | BF45: =SA!DR4-SA!DQ4 -> 3400 | BG45: =SA!DS4-SA!DR4 -> -2800 | BH45: =SA!DT4-SA!DS4 -> -1300 | BI45: =SA!DU4-SA!DT4 -> -1200 | BJ45: =SA!DV4-SA!DU4 -> -1500 | BK45: =SA!DW4-SA!DV4 -> 400 | BL45: =SA!DX4-SA!DW4 -> 1300 | BM45: =SA!DY4-SA!DX4 -> 2900 | BN45: =SA!DZ4-SA!DY4 -> -800 | BO45: =SA!EA4-SA!DZ4 -> 700 | BP45: =SA!EB4-SA!EA4 -> 1600 | BQ45: =SA!EC4-SA!EB4 -> 1100 | BR45: =SA!ED4-SA!EC4 -> 500 | BS45: =SA!EE4-SA!ED4 -> 800 | BT45: =SA!EF4-SA!EE4 -> 0 | BU45: =SA!EG4-SA!EF4 -> 700 | BV45: =SA!EH4-SA!EG4 -> 1100 | BW45: =SA!EI4-SA!EH4 -> 1700 | BX45: =SA!EJ4-SA!EI4 -> 1300 | BY45: =SA!EK4-SA!EJ4 -> 3000 | BZ45: =SA!EL4-SA!EK4 -> 1200 | CA45: =SA!EM4-SA!EL4 -> 0 | CB45: =SA!EN4-SA!EM4 -> 2500 | CC45: =SA!EO4-SA!EN4 -> 900 | CD45: =SA!EP4-SA!EO4 -> 200 | CE45: =SA!EQ4-SA!EP4 -> -800 | CF45: =SA!ER4-SA!EQ4 -> 1600 | CG45: =SA!ES4-SA!ER4 -> 1300 | CH45: =SA!ET4-SA!ES4 -> 1500 | CI45: =SA!EU4-SA!ET4 -> 1700 | CJ45: =SA!EV4-SA!EU4 -> 2200 | CK45: =SA!EW4-SA!EV4 -> 3200 | CL45: =SA!EX4-SA!EW4 -> -3400 | CM45: =SA!EY4-SA!EX4 -> 1500 | CN45: =SA!EZ4-SA!EY4 -> -200 | CO45: =SA!FA4-SA!EZ4 -> -400 | CP45: =SA!FB4-SA!FA4 -> 1000 | CQ45: =SA!FC4-SA!FB4 -> 1600 | CR45: =SA!FD4-SA!FC4 -> -400 | CS45: =SA!FE4-SA!FD4 -> 2600 | CT45: =SA!FF4-SA!FE4 -> 700 | CU45: =SA!FG4-SA!FF4 -> 1200 | CV45: =SA!FH4-SA!FG4 -> -100 | CW45: =SA!FI4-SA!FH4 -> -4000 | CX45: =SA!FJ4-SA!FI4 -> 3300 | CY45: =SA!FK4-SA!FJ4 -> 1200 | CZ45: =SA!FL4-SA!FK4 -> -900 | DA45: =SA!FM4-SA!FL4 -> 1900 | DB45: =SA!FN4-SA!FM4 -> 800 | DC45: =SA!FO4-SA!FN4 -> 1100 | DD45: =SA!FP4-SA!FO4 -> 1500 | DE45: =SA!FQ4-SA!FP4 -> -1300 | DF45: =SA!FR4-SA!FQ4 -> 2200 | DG45: =SA!FS4-SA!FR4 -> 600 | DH45: =SA!FT4-SA!FS4 -> 1500 | DI45: =SA!FU4-SA!FT4 -> 1400 | DJ45: =SA!FV4-SA!FU4 -> 1900 | DK45: =SA!FW4-SA!FV4 -> 2000 | DL45: =SA!FX4-SA!FW4 -> 1900 | DM45: =SA!FY4-SA!FX4 -> 1500 | DN45: =SA!FZ4-SA!FY4 -> 1000 | DO45: =SA!GA4-SA!FZ4 -> 1000 | DP45: =SA!GB4-SA!GA4 -> 700 | DQ45: =SA!GC4-SA!GB4 -> 700 | DR45: =SA!GD4-SA!GC4 -> 1200 | DS45: =SA!GE4-SA!GD4 -> 700 | DT45: =SA!GF4-SA!GE4 -> -400 | DU45: =SA!GG4-SA!GF4 -> 500 | DV45: =SA!GH4-SA!GG4 -> 700 | DW45: =SA!GI4-SA!GH4 -> -300 | DX45: =SA!GJ4-SA!GI4 -> 200 | DY45: =SA!GK4-SA!GJ4 -> -1200 | DZ45: =SA!GL4-SA!GK4 -> 300 | EA45: =SA!GM4-SA!GL4 -> 100 | EB45: =SA!GN4-SA!GM4 -> 300 | EC45: =SA!GO4-SA!GN4 -> 900 | ED45: =SA!GP4-SA!GO4 -> 0 | EE45: =SA!GQ4-SA!GP4 -> -100 | EF45: =SA!GR4-SA!GQ4 -> 400 | EG45: =SA!GS4-SA!GR4 -> -400 | EH45: =SA!GT4-SA!GS4 -> -1000 | EI45: =SA!GU4-SA!GT4 -> -1100 | EJ45: =SA!GV4-SA!GU4 -> -400 | EK45: =SA!GW4-SA!GV4 -> 600 | EL45: =SA!GX4-SA!GW4 -> 0 | EM45: =SA!GY4-SA!GX4 -> 1100 | EN45: =SA!GZ4-SA!GY4 -> 1100 | EO45: =SA!HA4-SA!GZ4 -> 1100 | EP45: =SA!HB4-SA!HA4 -> 1300 | EQ45: =SA!HC4-SA!HB4 -> 1800 | ER45: =SA!HD4-SA!HC4 -> 1000 | ES45: =SA!HE4-SA!HD4 -> 600 | ET45: =SA!HF4-SA!HE4 -> 0 | EU45: =SA!HG4-SA!HF4 -> 700 | EV45: =SA!HH4-SA!HG4 -> 100 | EW45: =SA!HI4-SA!HH4 -> 400 | EX45: =SA!HJ4-SA!HI4 -> 0 | EY45: =SA!HK4-SA!HJ4 -> 1600 | EZ45: =SA!HL4-SA!HK4 -> 2000 | FA45: =SA!HM4-SA!HL4 -> 1700 | FB45: =SA!HN4-SA!HM4 -> 3600 | FC45: =SA!HO4-SA!HN4 -> 4400 | FD45: =SA!HP4-SA!HO4 -> 3700 | FE45: =SA!HQ4-SA!HP4 -> -700 | FF45: =SA!HR4-SA!HQ4 -> 2800 | FG45: =SA!HS4-SA!HR4 -> 5200 | FH45: =SA!HT4-SA!HS4 -> 2300 | FI45: =SA!HU4-SA!HT4 -> 2100 | FJ45: =SA!HV4-SA!HU4 -> 1600 | FK45: =SA!HW4-SA!HV4 -> 600 | FL45: =SA!HX4-SA!HW4 -> 200 | FM45: =SA!HY4-SA!HX4 -> 600 | FN45: =SA!HZ4-SA!HY4 -> -12700 | FO45: =SA!IA4-SA!HZ4 -> -1300 | FP45: =SA!IB4-SA!IA4 -> -1400 | FQ45: =SA!IC4-SA!IB4 -> -2700 | FR45: =SA!ID4-SA!IC4 -> 2300 | FS45: =SA!IE4-SA!ID4 -> 700 | FT45: =SA!IF4-SA!IE4 -> -3100 | FU45: =SA!IG4-SA!IF4 -> 1000 | FV45: =SA!IH4-SA!IG4 -> -1300 | FW45: =SA!II4-SA!IH4 -> -500 | FX45: =SA!IJ4-SA!II4 -> 1300 | FY45: =SA!IK4-SA!IJ4 -> 2900 | FZ45: =SA!IL4-SA!IK4 -> -606000 | GA45: 4418.47 | GB45: =COUNTIF(EY45:FY45, ">" &GA45) -> 1 | GD45: Goods Producing | GE45: -12700 | GF45: -1750 | GG45: -400 | GH45: 150 | GI45: 600 | GJ45: 1200 | GK45: 1800 | GL45: 5200 | GM45: 2855.838068
A46: Service-Providing | B46: =SA!BN5-SA!BM5 -> 5700 | C46: =SA!BO5-SA!BN5 -> 2000 | D46: =SA!BP5-SA!BO5 -> 2400 | E46: =SA!BQ5-SA!BP5 -> 8300 | F46: =SA!BR5-SA!BQ5 -> -3900 | G46: =SA!BS5-SA!BR5 -> -2800 | H46: =SA!BT5-SA!BS5 -> 7600 | I46: =SA!BU5-SA!BT5 -> 3000 | J46: =SA!BV5-SA!BU5 -> 7100 | K46: =SA!BW5-SA!BV5 -> -3100 | L46: =SA!BX5-SA!BW5 -> 2600 | M46: =SA!BY5-SA!BX5 -> 5100 | N46: =SA!BZ5-SA!BY5 -> -3900 | O46: =SA!CA5-SA!BZ5 -> 3200 | P46: =SA!CB5-SA!CA5 -> 2600 | Q46: =SA!CC5-SA!CB5 -> 5000 | R46: =SA!CD5-SA!CC5 -> -4600 | S46: =SA!CE5-SA!CD5 -> 5900 | T46: =SA!CF5-SA!CE5 -> -100 | U46: =SA!CG5-SA!CF5 -> 1200 | V46: =SA!CH5-SA!CG5 -> 4700 | W46: =SA!CI5-SA!CH5 -> -400 | X46: =SA!CJ5-SA!CI5 -> 2700 | Y46: =SA!CK5-SA!CJ5 -> 1700 | Z46: =SA!CL5-SA!CK5 -> 4200 | AA46: =SA!CM5-SA!CL5 -> -100 | AB46: =SA!CN5-SA!CM5 -> 3100 | AC46: =SA!CO5-SA!CN5 -> 1200 | AD46: =SA!CP5-SA!CO5 -> 4100 | AE46: =SA!CQ5-SA!CP5 -> 8800 | AF46: =SA!CR5-SA!CQ5 -> -5100 | AG46: =SA!CS5-SA!CR5 -> 400 | AH46: =SA!CT5-SA!CS5 -> 2100 | AI46: =SA!CU5-SA!CT5 -> -5400 | AJ46: =SA!CV5-SA!CU5 -> 100 | AK46: =SA!CW5-SA!CV5 -> 6000 | AL46: =SA!CX5-SA!CW5 -> 4700 | AM46: =SA!CY5-SA!CX5 -> -500 | AN46: =SA!CZ5-SA!CY5 -> -2000 | AO46: =SA!DA5-SA!CZ5 -> -1200 | AP46: =SA!DB5-SA!DA5 -> 3300 | AQ46: =SA!DC5-SA!DB5 -> -1900 | AR46: =SA!DD5-SA!DC5 -> 2200 | AS46: =SA!DE5-SA!DD5 -> -1800 | AT46: =SA!DF5-SA!DE5 -> 7000 | AU46: =SA!DG5-SA!DF5 -> -8900 | AV46: =SA!DH5-SA!DG5 -> -3500 | AW46: =SA!DI5-SA!DH5 -> -7400 | AX46: =SA!DJ5-SA!DI5 -> -14100 | AY46: =SA!DK5-SA!DJ5 -> -5700 | AZ46: =SA!DL5-SA!DK5 -> -10000 | BA46: =SA!DM5-SA!DL5 -> -9500 | BB46: =SA!DN5-SA!DM5 -> 4900 | BC46: =SA!DO5-SA!DN5 -> -6200 | BD46: =SA!DP5-SA!DO5 -> -6000 | BE46: =SA!DQ5-SA!DP5 -> -5200 | BF46: =SA!DR5-SA!DQ5 -> -5000 | BG46: =SA!DS5-SA!DR5 -> 2900 | BH46: =SA!DT5-SA!DS5 -> -2000 | BI46: =SA!DU5-SA!DT5 -> 100 | BJ46: =SA!DV5-SA!DU5 -> 900 | BK46: =SA!DW5-SA!DV5 -> -300 | BL46: =SA!DX5-SA!DW5 -> 600 | BM46: =SA!DY5-SA!DX5 -> 8200 | BN46: =SA!DZ5-SA!DY5 -> 3400 | BO46: =SA!EA5-SA!DZ5 -> -2600 | BP46: =SA!EB5-SA!EA5 -> 1600 | BQ46: =SA!EC5-SA!EB5 -> 1900 | BR46: =SA!ED5-SA!EC5 -> -2100 | BS46: =SA!EE5-SA!ED5 -> 8300 | BT46: =SA!EF5-SA!EE5 -> 1200 | BU46: =SA!EG5-SA!EF5 -> -2800 | BV46: =SA!EH5-SA!EG5 -> 3000 | BW46: =SA!EI5-SA!EH5 -> 100 | BX46: =SA!EJ5-SA!EI5 -> 1300 | BY46: =SA!EK5-SA!EJ5 -> 800 | BZ46: =SA!EL5-SA!EK5 -> -500 | CA46: =SA!EM5-SA!EL5 -> -2800 | CB46: =SA!EN5-SA!EM5 -> 10800 | CC46: =SA!EO5-SA!EN5 -> -4200 | CD46: =SA!EP5-SA!EO5 -> 2900 | CE46: =SA!EQ5-SA!EP5 -> -3900 | CF46: =SA!ER5-SA!EQ5 -> -1100 | CG46: =SA!ES5-SA!ER5 -> 4700 | CH46: =SA!ET5-SA!ES5 -> -6100 | CI46: =SA!EU5-SA!ET5 -> 4700 | CJ46: =SA!EV5-SA!EU5 -> 12400 | CK46: =SA!EW5-SA!EV5 -> 4800 | CL46: =SA!EX5-SA!EW5 -> 1600 | CM46: =SA!EY5-SA!EX5 -> -2100 | CN46: =SA!EZ5-SA!EY5 -> -8800 | CO46: =SA!FA5-SA!EZ5 -> 4600 | CP46: =SA!FB5-SA!FA5 -> 4600 | CQ46: =SA!FC5-SA!FB5 -> 3000 | CR46: =SA!FD5-SA!FC5 -> 8600 | CS46: =SA!FE5-SA!FD5 -> -6000 | CT46: =SA!FF5-SA!FE5 -> -9700 | CU46: =SA!FG5-SA!FF5 -> 15800 | CV46: =SA!FH5-SA!FG5 -> 1600 | CW46: =SA!FI5-SA!FH5 -> -6900 | CX46: =SA!FJ5-SA!FI5 -> 7800 | CY46: =SA!FK5-SA!FJ5 -> 3200 | CZ46: =SA!FL5-SA!FK5 -> 1800 | DA46: =SA!FM5-SA!FL5 -> 3900 | DB46: =SA!FN5-SA!FM5 -> 5900 | DC46: =SA!FO5-SA!FN5 -> -600 | DD46: =SA!FP5-SA!FO5 -> -1000 | DE46: =SA!FQ5-SA!FP5 -> 5900 | DF46: =SA!FR5-SA!FQ5 -> 1700 | DG46: =SA!FS5-SA!FR5 -> 700 | DH46: =SA!FT5-SA!FS5 -> 1300 | DI46: =SA!FU5-SA!FT5 -> 3800 | DJ46: =SA!FV5-SA!FU5 -> 2800 | DK46: =SA!FW5-SA!FV5 -> 4700 | DL46: =SA!FX5-SA!FW5 -> -600 | DM46: =SA!FY5-SA!FX5 -> 10300 | DN46: =SA!FZ5-SA!FY5 -> -2300 | DO46: =SA!GA5-SA!FZ5 -> 700 | DP46: =SA!GB5-SA!GA5 -> 10100 | DQ46: =SA!GC5-SA!GB5 -> -5300 | DR46: =SA!GD5-SA!GC5 -> 2000 | DS46: =SA!GE5-SA!GD5 -> 1900 | DT46: =SA!GF5-SA!GE5 -> 4000 | DU46: =SA!GG5-SA!GF5 -> 2000 | DV46: =SA!GH5-SA!GG5 -> 5300 | DW46: =SA!GI5-SA!GH5 -> 1700 | DX46: =SA!GJ5-SA!GI5 -> 4900 | DY46: =SA!GK5-SA!GJ5 -> 2800 | DZ46: =SA!GL5-SA!GK5 -> 1300 | EA46: =SA!GM5-SA!GL5 -> 4700 | EB46: =SA!GN5-SA!GM5 -> -2000 | EC46: =SA!GO5-SA!GN5 -> 7200 | ED46: =SA!GP5-SA!GO5 -> 8000 | EE46: =SA!GQ5-SA!GP5 -> 3300 | EF46: =SA!GR5-SA!GQ5 -> -1300 | EG46: =SA!GS5-SA!GR5 -> 6800 | EH46: =SA!GT5-SA!GS5 -> -4700 | EI46: =SA!GU5-SA!GT5 -> -500 | EJ46: =SA!GV5-SA!GU5 -> 9600 | EK46: =SA!GW5-SA!GV5 -> 7100 | EL46: =SA!GX5-SA!GW5 -> -5200 | EM46: =SA!GY5-SA!GX5 -> -1300 | EN46: =SA!GZ5-SA!GY5 -> 5600 | EO46: =SA!HA5-SA!GZ5 -> -5300 | EP46: =SA!HB5-SA!HA5 -> 5900 | EQ46: =SA!HC5-SA!HB5 -> 1400 | ER46: =SA!HD5-SA!HC5 -> -600 | ES46: =SA!HE5-SA!HD5 -> -200 | ET46: =SA!HF5-SA!HE5 -> -900 | EU46: =SA!HG5-SA!HF5 -> 1700 | EV46: =SA!HH5-SA!HG5 -> 0 | EW46: =SA!HI5-SA!HH5 -> -3100 | EX46: =SA!HJ5-SA!HI5 -> 0 | EY46: =SA!HK5-SA!HJ5 -> 2100 | EZ46: =SA!HL5-SA!HK5 -> -3000 | FA46: =SA!HM5-SA!HL5 -> 5400 | FB46: =SA!HN5-SA!HM5 -> 4600 | FC46: =SA!HO5-SA!HN5 -> 1200 | FD46: =SA!HP5-SA!HO5 -> 2700 | FE46: =SA!HQ5-SA!HP5 -> -4200 | FF46: =SA!HR5-SA!HQ5 -> -2700 | FG46: =SA!HS5-SA!HR5 -> 2400 | FH46: =SA!HT5-SA!HS5 -> 6100 | FI46: =SA!HU5-SA!HT5 -> -500 | FJ46: =SA!HV5-SA!HU5 -> -5700 | FK46: =SA!HW5-SA!HV5 -> -3400 | FL46: =SA!HX5-SA!HW5 -> 12900 | FM46: =SA!HY5-SA!HX5 -> 8500 | FN46: =SA!HZ5-SA!HY5 -> -300 | FO46: =SA!IA5-SA!HZ5 -> -2400 | FP46: =SA!IB5-SA!IA5 -> -2700 | FQ46: =SA!IC5-SA!IB5 -> 2200 | FR46: =SA!ID5-SA!IC5 -> 400 | FS46: =SA!IE5-SA!ID5 -> 2600 | FT46: =SA!IF5-SA!IE5 -> -1600 | FU46: =SA!IG5-SA!IF5 -> -3900 | FV46: =SA!IH5-SA!IG5 -> 3100 | FW46: =SA!II5-SA!IH5 -> 2400 | FX46: =SA!IJ5-SA!II5 -> -2000 | FY46: =SA!IK5-SA!IJ5 -> 6900 | FZ46: =SA!IL5-SA!IK5 -> -2385500 | GA46: n/a | GB46: =COUNTIF(EY46:FY46, ">" &GA46) -> 0 | GD46: Service-Providing | GE46: -14100 | GF46: -4050 | GG46: -1000 | GH46: 1050 | GI46: 1900 | GJ46: 3400 | GK46: 5900 | GL46: 15800 | GM46: 4850.820015
